{"text_format":"1","workbook":"xlsx","n_sheets":32,"sheets":["Rippe Q2i 4S","Elementkonfigurationen","kmod+gamma+Trag.keit","Rippe Q3","Block Q3","Block Q","Akustik","Lösung","Verbindung Schrauben","Stab Kombinationlasten","Eingabe und Ergebnis","Rippe Q2i","Fall 1. Wind","Fall 2. Erdbeben","Fall 3. Stabilisierung","Block 3S","Akustik 2S Ausklinkung","Block 2S Ausklinkung","Akustik 3S Ausklinkung","Block 3S Ausklinkung","Rippe 2S Ausklinkung","Rippe 3S Ausklinkung","Block 3S Füllholz","Block 2S","Block 2S Füllholz","Rippe 3S","Rippe 3S Füllholz","Rippe Q2i 2S","Rippe 2S","Rippe 2S Füllholz","Akustik 3S","Akustik 2S"],"not_rendered":{"charts":0,"images":38,"macros":1,"external_links":0,"defined_names":427,"comments":1,"pivot_tables":0},"unopened":[],"bounds":{"document_bytes":16777216,"sheet_cells":100000,"rows_first":2000,"rows_last":500,"rows_between":2000,"halvings":0,"cell_chars":16384,"cell_head_chars":4096},"cells_cut":0,"cells_raw":0,"read":"whole","date_system":"1900"}

{"sheet":"Rippe Q2i 4S","index":0,"n_rows":0,"n_cols":0,"rows_kept":0,"cut":false,"hidden":true,"merged":[]}

{"sheet":"Elementkonfigurationen","index":1,"n_rows":71,"n_cols":24,"rows_kept":71,"cut":false,"hidden":true,"merged":[]}
[null,null,null,"Modelle","Z-Lage"]
["Rippe_Q3",null,"Rippe_Q3","geschlossen","Z0P0Nsi",150,170,190,210,230,250,270,290,310,330,350,370,390,410,430,450]
["Rippe_Q3_r25",null,null,"akustik","Z0P0",150,170,190,210,230,250,270,290]
["Rippe_Q3_r50",null,null,null,"Z26P0",150,170,190,210,230,250,270,290,310,330,350,370,390,410,430,450]
["Block_Q",null,null,null,"Z26P26",150,170,190,210,230,250,270,290,310,330,350,370,390,410,430,450]
["Block_Q3",null,null,null,"Z26P53",null,170,190,210,230,250,270,290,310,330,350,370,390,410,430,450]
["Akustik_klassik_Q",null,null,null,"Z53P0",null,170,190,210,230,250,270,290,310,330,350,370,390,410,430,450]
["Akustik_klassik_Q3",null,null,null,"Z53P26",null,170,190,210,230,250,270,290,310,330,350,370,390,410,430,450]
["Rippe_Q2i",null,null,null,"Z53P53",null,null,null,210,230,250,270,290,310,330,350,370,390,410,430,450]
[null,null,null,null,"Z80P0",null,null,190,210,230,250,270,290,310,330,350,370,390,410,430,450]
[null,null,null,null,"Z80P26",null,null,null,210,230,250,270,290,310,330,350,370,390,410,430,450]
[null,null,null,null,"Z80P53",null,null,null,null,230,250,270,290,310,330,350,370,390,410,430,450]
[null,null,null,"Modelle","Z-Lage"]
["Verschraubung normal",null,"Rippe_Q3_r25","geschlossen","Z0P0Nsi",150,170,190,210,230,250,270,290]
[2,null,null,"akustik","Z0P0",150,170,190,210,230,250,270,290]
[3,null,null,null,"Z26P0",150,170,190,210,230,250,270,290]
[null,null,null,null,"Z26P26",150,170,190,210,230,250,270,290]
[null,null,null,null,"Z26P53",null,null,null,210,230,250,270,290]
[null,null,null,null,"Z53P0",null,170,190,210,230,250,270,290]
[2,null,null,null,"Z53P26",null,null,null,210,230,250,270,290]
[4,null,null,null,"Z53P53",null,null,null,210,230,250,270,290]
[null,null,null,null,"Z80P0",null,null,null,210,230,250,270,290]
[null,null,null,null,"Z80P26",null,null,null,null,230,250,270,290]
[null,null,null,"Modelle","Z-Lage"]
[null,null,"Rippe_Q3_r50","geschlossen","Z0P0Nsi",null,null,190,210,230,250,270,290]
[null,null,null,"akustik","Z0P0",null,null,190,210,230,250,270,290]
[null,null,null,null,"Z26P0",null,null,190,210,230,250,270,290]
[null,null,null,null,"Z26P26",null,null,null,210,230,250,270,290]
[null,null,null,null,"Z26P53",null,null,null,210,230,250,270,290]
[null,null,null,null,"Z53P0",null,null,null,210,230,250,270,290]
[null,null,null,null,"Z53P26",null,null,null,210,230,250,270,290]
[null,null,null,null,"Z53P53",null,null,null,null,230,250,270,290]
[null,null,null,null,"Z80P0",null,null,null,null,230,250,270,290]
[null,null,null,null,"Z80P26",null,null,null,null,230,250,270,290]
[null,null,null,"Modelle","Z-Lage"]
[null,null,"Block_Q","geschlossen","Z0P0Nsi",null,null,110,130]
[null,null,null,"akustik","Z0P0",70,90,110,130]
[null,null,null,"Modelle","Z-Lage"]
[null,null,"Block_Q3","geschlossen","Z0P0Nsi",150,170,190,210,230,250,270,290,310,330,350,370,390,410,430,450]
[null,null,null,"akustik","Z0P0",150,170,190,210,230,250,270,290,310,330,350,370,390,410,430,450]
[null,null,null,null,"Z26P0",150,170,190,210,230,250,270,290,310,330,350,370,390,410,430,450]
[null,null,null,null,"Z26P26",null,170,190,210,230,250,270,290,310,330,350,370,390,410,430,450]
[null,null,null,null,"Z26P53",null,null,190,210,230,250,270,290,310,330,350,370,390,410,430,450]
[null,null,null,null,"Z53P0",null,170,190,210,230,250,270,290,310,330,350,370,390,410,430,450]
[null,null,null,null,"Z53P26",null,null,190,210,230,250,270,290,310,330,350,370,390,410,430,450]
[null,null,null,null,"Z53P53",null,null,null,210,230,250,270,290,310,330,350,370,390,410,430,450]
[null,null,null,null,"Z80P0",null,null,190,210,230,250,270,290,310,330,350,370,390,410,430,450]
[null,null,null,null,"Z80P26",null,null,null,null,230,250,270,290,310,330,350,370,390,410,430,450]
[null,null,null,null,"Z80P53",null,null,null,null,null,250,270,290,310,330,350,370,390,410,430,450]
[]
[]
[null,null,null,"Modelle","Z-Lage"]
[null,null,"Akustik_klassik_Q","akustik","Z0K0",90,110,130,150]
[null,null,null,null,"Z0K50l",90,110,130,150]
[null,null,null,null,"Z0K50g",90,110,130,150]
[null,null,null,"Modelle","Z-Lage"]
[null,null,"Akustik_klassik_Q3","akustik","Z0K0",null,null,130,150,170,190,210,230,250,270,290,310,330,350,370,390,410,430,450]
[null,null,null,null,"Z0K50l",null,null,130,150,170,190,210,230,250,270,290,310,330,350,370,390,410,430,450]
[null,null,null,null,"Z0K50g",null,null,130,150,170,190,210,230,250,270,290,310,330,350,370,390,410,430,450]
[]
[]
[null,null,null,"Modelle","Z-Lage"]
[null,null,"Rippe_Q2i","geschlossen","Z26P0_i120",170,190,210,230,250,270,290]
[null,null,null,null,"Z26P0_i160",170,190,210,230,250,270,290]
[null,null,null,null,"Z26P0_i200",null,null,210,230,250,270,290]
[null,null,null,null,"Z53P0_i120",null,190,210,230,250,270,290]
[null,null,null,null,"Z53P0_i160",null,190,210,230,250,270,290]
[null,null,null,null,"Z53P0_i200",null,null,210,230,250,270,290]
[null,null,null,null,"Z80P0_i120",null,null,null,230,250,270,290]
[null,null,null,null,"Z80P0_i160",null,null,null,230,250,270,290]
[null,null,null,null,"Z80P0_i200",null,null,null,230,250,270,290]

{"sheet":"kmod+gamma+Trag.keit","index":2,"n_rows":31,"n_cols":14,"rows_kept":31,"cut":false,"hidden":true,"merged":[[33,2,33,3],[23,2,24,2],[23,3,24,3],[23,4,24,5],[23,6,23,7],[28,4,28,5],[25,4,25,5],[26,4,26,5],[27,4,27,5],[29,4,29,5],[30,4,30,5]]}
[]
[null,null,"Klasse","GL 24h","GL 28h","GL 32h","GL 36h","C 18","C 22","C 24","C 27","C 30"]
[null,null,"Widerstandskennlinien (MPa)"]
[null,"Biegefestigkeit","Flexion longitudinale fm,k",24,28,32,36,18,22,24,27,30]
[null,"Zugfestigkeit in Faserrichtung","Traction longitudinale ft,o,k",16.5,19.5,22.5,26,11,13,14,16,18]
[null,"Druckfestigkeit in Faserrichtung","Compression longitudinale fc,o,k",24,26.5,29,31,18,20,21,22,23]
[null,"Schubfestigkeit","Cisaillement longitudinal fv,k",2.7,3.2,3.8,4.3,2,2.4,2.5,2.8,3]
[null,"Druckfestigkeit quer zur Faser","Compressiontransversale fc,90,k",2.7,3,3.3,3.6,2.2000000000000002,2.4,2.5,2.6,2.7]
[null,"Zugfestigkeitrechtwinklig in Faserrichtung","Traction transversale ft,90,k",0.4,0.45,0.5,0.6,0.5,0.5,0.5,0.6,0.6]
[null,null,"Elastizitätsmodul (MPa)"]
[null,"Mittelwert eines Elastizitätsmoduls","Module longitudinal moyen E0,mean",11600,12600,13700,14700,9000,10000,11000,11500,12000]
[null,"5% Quantilwert eines Elastizitätsmoduls ","Module longitudinal 5% E0,05",9400,10200,11100,11900,6000,6700,7400,7700,8000]
[null,"Mittelwert des Schubmoduls","Module de cisaillement moyen Gmean",750,780,850,910,560,630,690,720,750]
[null,"Rohdichte","Masse volumique carractéristique en Kg/m3 ρk",380,410,430,450,320,340,350,370,380]
[]
[]
[null,null,"Leztgrenze Stand (ELU)","γM",null,null,"γM"]
[null,null,"Brettschichtholz",1.25,null,"Erdbeben",1]
[null,null,"Vollholz",1.3]
[null,null,"Sperrholz,OSB,LVL",1.2]
[null,null,"Dienstgrenze Stand (ELS)",1]
[null,null,null,null,null,null,null,null,null,null,"FMK",24]
[null,null,null,null,null,null,null,null,null,null,"l",20000,"IY",{"$f":"(L24*L25^3)/12","v":2250000000}]
[null,null,"Zeit ordnen","Zeit","Beispiel",null,"kmod & Dienst Ordnen",null,null,null,"b",1000,"PI",{"$f":"PI()","v":3.1415926535897931}]
[null,null,null,null,null,null,"1 et 2",3,null,null,"h",300,"s",{"$f":"L24*L25","v":300000}]
[null,null,"Ständig","Länger als 10 Jahren","Eigengewicht",null,0.6,0.5,null,null,"e005 ",9400]
[null,null,"Lang","6 Monaten - 10 Jahren","Lagerstoffe",null,0.7,0.55000000000000004]
[null,null,"Mittel","1 Woche - 6 Monaten","Verkehrslasten",null,0.8,0.65,null,null,"SIGMA CRIT",{"$f":" (0.78*L24^2)/(L25*0.9*L23)*L26","v":1357.7777777777776}]
[null,null,"Kurz","Kürzer als 1 Woche","Schnee",null,0.9,0.7,null,null,"GAMMA REL",{"$f":"(L22/L28)^0.5","v":0.13295089725231793}]
[null,null,"Kurz / Sehr Kurz","/","Wind",null,1,0.8]
[null,null,"Sehr Kurz","/","außergewöhnliche Einwirkung",null,1.1000000000000001,0.9]

{"sheet":"Rippe Q3","index":3,"n_rows":141,"n_cols":24,"rows_kept":141,"cut":false,"hidden":true,"merged":[[100,0,100,5],[53,0,53,5],[6,0,6,5]]}
["Scheibenkennwerte Rippe Q3"]
[]
["Anmerkung: ",null,null,"Die Scheibenkennwerte beziehen sich auf einen Laufmeter Element. Die Elementbreite bE = 0,625m"]
[]
[null,null,null,null,null,null,null,null,{"$f":"_xlfn.XLOOKUP('Eingabe und Ergebnis'!DM18,INDIRECT(\"tab_H1\"&'Eingabe und Ergebnis'!DM16),(_xlfn.XLOOKUP('Eingabe und Ergebnis'!DM17,INDIRECT(\"tab_Z1\"&'Eingabe und Ergebnis'!DM16),INDIRECT(\"tab_\"&'Eingabe und Ergebnis'!DM16))))","v":49}]
["Rippe Q3"]
["Elementhöhe",null,null,null,null,null,150,170,190,210,230,250,270,290,310,330,350,370,390,410,430,450,470,"[mm]"]
["Rippe","Q3","Z0P0Nsi",null,null,"VR,k,xy",31.8,31.8,31.8,31.8,31.8,31.8,31.8,31.8,31.8,31.8,31.8,31.8,31.8,31.8,31.8,31.8,null,"[kN]"]
[null,null,{"$f":"\"GA \"&C8","v":"GA Z0P0Nsi"},null,null,"GAef",34916,34916,34916,34916,34916,34916,34916,34916,34916,34916,34916,34916,34916,34916,34916,34916,null,"[kN]"]
[null,null,null,null,null,"Iz",80.446821562500006,95.123217395833336,109.79961322916664,124.642745275,139.31914110833333,153.99553694166667,168.67193277499999,183.51506482083332,208.06871510416667,222.74511093749999,237.54564427083329,258.48731093749996,279.42897760416668,300.37064427083328,321.3123109375,342.25397760416666,0,"[10^3*cm4]"]
[null,null,{"$f":"\"M \"&C8","v":"M Z0P0Nsi"},null,null,"MR,k,z",49.505736346153853,58.537364551282053,67.568992756410253,76.703227861538466,85.734856066666666,94.766484271794909,103.79811247692309,112.93234758205128,128.04228621794874,137.07391442307693,146.18193493589743,159.06911442307691,171.95629391025642,184.84347339743587,197.73065288461538,210.61783237179486,0,"[kNm]"]
["Rippe","Q3","Z0P0",null,null,"VR,k,y",33.1,33.1,33.1,33.1,33.1,33.1,33.1,33.1,null,null,null,null,null,null,null,null,null,"[kN]"]
[null,null,{"$f":"\"GA \"&C12","v":"GA Z0P0"},null,null,"GAef",14203,14203,14203,14203,14203,14203,14203,14203,null,null,null,null,null,null,null,null,null,"[kN]"]
[null,null,null,null,null,"Iz",143.05540422500002,157.73180005833331,172.40819589166665,187.25132793749998,201.92772377083332,216.60411960416667,231.28051543749999,246.12364748333337,0,0,0,0,0,0,0,0,0,"[10^3*cm4]"]
[null,null,{"$f":"\"M \"&C12","v":"M Z0P0"},null,null,"MR,k,z",88.034094907692307,97.065723112820507,106.09735131794871,115.23158642307692,124.26321462820515,133.29484283333332,142.32647103846156,151.46070614358979,0,0,0,0,0,0,0,0,0,"[kNm]"]
["Rippe","Q3","Z26P0",null,null,"VR,k,y",49,49,49,49,49,49,49,49,49,49,49,49,49,49,49,49,null,"[kN]"]
[null,null,{"$f":"\"GA \"&C16","v":"GA Z26P0"},null,null,"GAef",29741,29741,29741,29741,29741,29741,29741,29741,29741,29741,29741,29741,29741,29741,29741,29741,null,"[kN]"]
[null,null,null,null,null,"Iz",119.68481375,134.36120958333333,149.03760541666668,163.71400125,178.55713329583332,193.23352912916667,207.90992496249999,222.5863207958333,247.3067072916667,261.98310312500001,276.6594989583333,297.60116562499996,318.54283229166663,339.48449895833329,360.42616562499995,381.36783229166667,0,"[10^3*cm4]"]
[null,null,{"$f":"\"M \"&C16","v":"M Z26P0"},null,null,"MR,k,z",73.652193076923083,82.683821282051298,91.715449487179498,100.7470776923077,109.88131279743591,118.91294100256411,127.94456920769233,136.97619741282048,152.18874294871796,161.22037115384617,170.25199935897436,183.13917884615381,196.02635833333338,208.91353782051283,221.80071730769231,234.68789679487185,0,"[kNm]"]
["Rippe","Q3","Z26P26",null,null,"VR,k,y",27.1,27.1,27.1,27.1,27.1,27.1,27.1,27.1,27.1,27.1,27.1,27.1,27.1,27.1,27.1,27.1,null,"[kN]"]
[null,null,{"$f":"\"GA \"&C20","v":"GA Z26P26"},null,null,"GAef",29741,29741,29741,29741,29741,29741,29741,29741,29741,29741,29741,29741,29741,29741,29741,29741,null,"[kN]"]
[null,null,null,null,null,"Iz",137.77492568333332,152.45132151666667,167.12771735000001,181.80411318333333,196.4805090166667,211.3236410625,226.00003689583329,240.67643272916669,265.396819225,280.07321505833335,294.74961089166669,315.69127755833335,336.63294422500002,357.57461089166668,378.51627755833334,399.45794422500006,0,"[10^3*cm4]"]
[null,null,{"$f":"\"M \"&C20","v":"M Z26P26"},null,null,"MR,k,z",84.784569651282069,93.81619785641027,102.84782606153848,111.87945426666668,120.91108247179488,130.04531757692311,139.07694578205127,148.10857398717951,163.32111952307696,172.35274772820517,181.38437593333336,194.2715554205129,207.15873490769235,220.04591439487186,232.93309388205134,245.82027336923085,0,"[kNm]"]
["Rippe","Q3","Z26P53",null,null,"VR,k,y",null,27.1,27.1,27.1,27.1,27.1,27.1,27.1,27.1,27.1,27.1,27.1,27.1,27.1,27.1,27.1,null,"[kN]"]
[null,null,{"$f":"\"GA \"&C24","v":"GA Z26P53"},null,null,"GAef",null,29741,29741,29741,29741,29741,29741,29741,29741,29741,29741,29741,29741,29741,29741,29741,null,"[kN]"]
[null,null,null,null,null,"Iz",0,168.37386268749998,183.05025852083335,197.72665435416664,214.73735716250005,229.41375299583328,244.09014882916668,258.76654466250005,283.48693115833339,298.16332699166662,312.83972282500002,333.78138949166663,354.72305615833335,375.66472282500001,396.60638949166662,417.5480561583334,0,"[10^3*cm4]"]
[null,null,{"$f":"\"M \"&C24","v":"M Z26P53"},null,null,"MR,k,z",0,103.61468473076923,112.64631293589746,121.67794114102566,132.1460659461539,141.17769415128205,150.2093223564103,159.24095056153851,174.45349609743593,183.48512430256412,192.51675250769233,205.40393199487181,218.29111148205126,231.17829096923072,244.06547045641025,256.95264994358979,0,"[kNm]"]
["Rippe","Q3","Z53P0",null,null,"VR,k,y",null,37.5,37.5,37.5,37.5,37.5,37.5,37.5,37.5,37.5,37.5,37.5,37.5,37.5,37.5,37.5,null,"[kN]"]
[null,null,{"$f":"\"GA \"&C28","v":"GA Z53P0"},null,null,"GAef",null,41169,41169,41169,41169,41169,41169,41169,41169,41169,41169,41169,41169,41169,41169,41169,null,"[kN]"]
[null,null,null,null,null,"Iz",0,168.82937312500002,183.50576895833333,198.18216479166668,213.02529683750001,227.70169267083335,242.37808850416667,257.05448433750001,281.77487083333335,296.45126666666664,311.12766249999999,332.06932916666665,353.01099583333337,373.95266249999997,394.89432916666664,415.83599583333336,0,"[10^3*cm4]"]
[null,null,{"$f":"\"M \"&C28","v":"M Z53P0"},null,null,"MR,k,z",0,103.89499884615387,112.92662705128207,121.95825525641028,131.09249036153847,140.12411856666668,149.15574677179487,158.18737497692308,173.39992051282059,182.43154871794871,191.4631769230769,204.35035641025647,217.23753589743592,230.1247153846154,243.01189487179491,255.89907435897436,0,"[kNm]"]
["Rippe","Q3","Z53P26",null,null,"VR,k,y",null,37.5,37.5,37.5,37.5,37.5,37.5,37.5,37.5,37.5,37.5,37.5,37.5,37.5,37.5,37.5,null,"[kN]"]
[null,null,{"$f":"\"GA \"&C32","v":"GA Z53P26"},null,null,"GAef",null,41169,41169,41169,41169,41169,41169,41169,41169,41169,41169,41169,41169,41169,41169,41169,null,"[kN]"]
[null,null,null,null,null,"Iz",0,184.75191429583333,199.42831012916668,214.10470596249999,231.11540877083334,245.79180460416666,260.4682004375,275.14459627083335,299.86498276666663,314.54137859999997,329.21777443333337,350.15944109999998,371.1011077666667,392.04277443333336,412.98444109999997,433.92610776666669,0,"[10^3*cm4]"]
[null,null,{"$f":"\"M \"&C32","v":"M Z53P26"},null,null,"MR,k,z",0,113.69348572051284,122.72511392564105,131.75674213076925,142.22486693589747,151.25649514102562,160.28812334615387,169.31975155128211,184.5322970871795,193.56392529230772,202.59555349743593,215.48273298461538,228.36991247179495,241.25709195897437,254.14427144615388,267.03145093333336,0,"[kNm]"]
["Rippe","Q3","Z53P53",null,null,"VR,k,y",null,null,null,37.5,37.5,37.5,37.5,37.5,37.5,37.5,37.5,37.5,37.5,37.5,37.5,37.5,null,"[kN]"]
[null,null,{"$f":"\"GA \"&C36","v":"GA Z53P53"},null,null,"GAef",null,null,null,41169,41169,41169,41169,41169,41169,41169,41169,41169,41169,41169,41169,41169,null,"[kN]"]
[null,null,null,null,null,"Iz",0,0,0,236.14291237083339,249.2055207041667,263.88191653750005,278.55831237083339,293.23470820416668,317.95509470000002,332.63149053333331,347.30788636666665,368.24955303333331,389.19121970000003,410.13288636666664,431.0745530333333,452.01621970000002,0,"[10^3*cm4]"]
[null,null,{"$f":"\"M \"&C36","v":"M Z53P53"},null,null,"MR,k,z",0,0,0,145.31871530512825,153.35724351025644,162.38887171538465,171.4204999205129,180.45212812564102,195.66467366153847,204.69630186666669,213.72793007179484,226.61510955897435,239.50228904615389,252.38946853333331,265.27664802051282,278.1638275076923,0,"[kNm]"]
["Rippe","Q3","Z80P0",null,null,"VR,k,y",null,null,48.1,48.1,48.1,48.1,48.1,48.1,48.1,48.1,48.1,48.1,48.1,48.1,48.1,48.1,null,"[kN]"]
[null,null,{"$f":"\"GA \"&C40","v":"GA Z80P0"},null,null,"GAef",null,null,52813,52813,52813,52813,52813,52813,52813,52813,52813,52813,52813,52813,52813,52813,null,"[kN]"]
[null,null,null,null,null,"Iz",0,0,216.28996823333335,230.96636406666667,247.97706687499999,262.65346270833334,277.32985854166668,292.00625437500003,316.76923958333339,331.44563541666668,346.12203125000008,367.06369791666668,388.00536458333335,408.94703125000007,429.88869791666667,450.83036458333339,0,"[10^3*cm4]"]
[null,null,{"$f":"\"M \"&C40","v":"M Z80P0"},null,null,"MR,k,z",0,0,133.10151891282055,142.13314711794871,152.60127192307692,161.63290012820516,170.66452833333335,179.69615653846154,194.93491666666665,203.96654487179489,212.99817307692317,225.88535256410259,238.7725320512821,251.65971153846155,264.546891025641,277.43407051282054,0,"[kNm]"]
["Rippe","Q3","Z80P26",null,null,"VR,k,y",null,null,null,48.1,48.1,48.1,48.1,48.1,48.1,48.1,48.1,48.1,48.1,48.1,48.1,48.1,null,"[kN]"]
[null,null,{"$f":"\"GA \"&C44","v":"GA Z80P26"},null,null,"GAef",null,null,null,52813,52813,52813,52813,52813,52813,52813,52813,52813,52813,52813,52813,52813,null,"[kN]"]
[null,null,null,null,null,"Iz",0,0,0,257.23747620416668,270.30008453749997,284.97648037083337,299.65287620416666,314.32927203750006,339.09225724583342,353.76865307916671,368.4450489125,389.38671557916666,410.32838224583332,431.27004891249999,452.21171557916659,473.15338224583343,0,"[10^3*cm4]"]
[null,null,{"$f":"\"M \"&C44","v":"M Z80P26"},null,null,"MR,k,z",0,0,0,158.29998535641028,166.33851356153849,175.37014176666668,184.40176997179486,193.43339817692313,208.67215830512825,217.70378651025644,226.73541471538465,239.6225942025641,252.50977368974364,265.39695317692315,278.28413266410251,291.17131215128217,0,"[kNm]"]
["Rippe","Q3","Z80P53",null,null,"VR,k,y",null,null,null,null,48.1,48.1,48.1,48.1,48.1,48.1,48.1,48.1,48.1,48.1,48.1,48.1,null,"[kN]"]
[null,null,{"$f":"\"GA \"&C48","v":"GA Z80P53"},null,null,"GAef",null,null,null,null,52813,52813,52813,52813,52813,52813,52813,52813,52813,52813,52813,52813,null,"[kN]"]
[null,null,null,null,null,"Iz",0,0,0,0,292.62310220000001,307.29949803333329,321.97589386666669,336.4855534875,361.4152749083334,376.09167074166663,390.76806657500003,411.7097332416667,432.65139990833336,453.59306657500002,474.53473324166669,495.47639990833335,0,"[10^3*cm4]"]
[null,null,{"$f":"\"M \"&C48","v":"M Z80P53"},null,null,"MR,k,z",0,0,0,0,180.07575519999997,189.10738340512819,198.13901161025646,207.06803291538461,222.40939994358979,231.44102814871795,240.47265635384619,253.35983584102564,266.24701532820524,279.1341948153846,292.02137430256408,304.90855378974368,0,"[kNm]"]
[]
["Rippe Q3-r25"]
["Elementhöhe",null,null,null,null,null,150,170,190,210,230,250,270,290,310,"[mm]"]
["Rippe","Q3","Z0P0Nsi",null,null,"VR,k,xy",31.8,31.8,31.8,31.8,31.8,31.8,31.8,31.8,null,"[kN]"]
[null,null,{"$f":"\"GA \"&C55","v":"GA Z0P0Nsi"},null,null,"GAef",34916,34916,34916,34916,34916,34916,34916,34916,null,"[kN]"]
[null,null,null,null,null,"Iz",52.429184895833338,67.105580729166661,81.415066666666661,96.091462499999992,110.76785833333332,125.44425416666668,139.75374010416667,154.43013593749998,0,"[10^3*cm4]"]
[null,null,{"$f":"\"M \"&C55","v":"M Z0P0Nsi"},null,null,"MR,k,z",32.264113782051282,41.295741987179483,50.101579487179499,59.1332076923077,68.164835897435893,77.196464102564107,86.002301602564117,95.033929807692289,0,"[kNm]"]
["Rippe","Q3","Z0P0",null,null,"VR,k,y",33.1,33.1,33.1,33.1,33.1,33.1,33.1,33.1,null,"[kN]"]
[null,null,{"$f":"\"GA \"&C59","v":"GA Z0P0"},null,null,"GAef",14203,14203,14203,14203,14203,14203,14203,14203,null,"[kN]"]
[null,null,null,null,null,"Iz",114.14734880833332,128.82374464166665,144.02364932916669,158.7000451625,173.37644099583332,188.05283682916669,202.36232276666667,217.03871859999998,0,"[10^3*cm4]"]
[null,null,{"$f":"\"M \"&C59","v":"M Z0P0"},null,null,"MR,k,z",70.244522343589736,79.276150548717951,88.62993804871796,97.661566253846161,106.69319445897436,115.72482266410258,124.53066016410257,133.56228836923077,0,"[kNm]"]
["Rippe","Q3","Z26P0",null,null,"VR,k,y",27.1,27.1,27.1,27.1,27.1,27.1,27.1,27.1,null,"[kN]"]
[null,null,{"$f":"\"GA \"&C63","v":"GA Z26P0"},null,null,"GAef",29741,29741,29741,29741,29741,29741,29741,29741,null,"[kN]"]
[null,null,null,null,null,"Iz",91.667177083333328,106.34357291666667,121.01996875000003,135.32945468750003,150.00585052083335,164.68224635416669,179.35864218750001,193.66812812500001,0,"[10^3*cm4]"]
[null,null,{"$f":"\"M \"&C63","v":"M Z26P0"},null,null,"MR,k,z",56.410570512820513,65.442198717948727,74.473826923076942,83.279664423076937,92.311292628205152,101.34292083333334,110.37454903846155,119.18038653846153,0,"[kNm]"]
["Rippe","Q3","Z26Z26",null,null,"VR,k,y",27.1,27.1,27.1,27.1,27.1,27.1,27.1,27.1,null,"[kN]"]
[null,null,{"$f":"\"GA \"&C67","v":"GA Z26Z26"},null,null,"GAef",29741,29741,29741,29741,29741,29741,29741,29741,null,"[kN]"]
[null,null,null,null,null,"Iz",108.86687026666669,123.5432661,138.21966193333336,153.41956662083339,168.09596245416668,182.77235828750003,197.4487541208334,211.75824005833337,0,"[10^3*cm4]"]
[null,null,{"$f":"\"M \"&C67","v":"M Z26Z26"},null,null,"MR,k,z",66.994997087179513,76.026625292307699,85.058253497435928,94.412040997435938,103.44366920256412,112.47529740769232,121.50692561282057,130.31276311282056,0,"[kNm]"]
["Rippe","Q3","Z26P53",null,null,"VR,k,y",null,null,null,27.1,27.1,27.1,27.1,27.1,null,"[kN]"]
[null,null,{"$f":"\"GA \"&C71","v":"GA Z26P53"},null,null,"GAef",null,null,null,29741,29741,29741,29741,29741,null,"[kN]"]
[null,null,null,null,null,"Iz",0,0,0,171.50967855416667,186.18607438750004,200.86247022083339,215.5388660541667,229.84835199166665,0,"[10^3*cm4]"]
[null,null,{"$f":"\"M \"&C71","v":"M Z26P53"},null,null,"MR,k,z",0,0,0,105.54441757179488,114.5760457769231,123.60767398205132,132.63930218717954,141.44513968717948,0,"[kNm]"]
["Rippe","Q3","Z53P0",null,null,"VR,k,y",null,37.5,37.5,37.5,37.5,37.5,37.5,37.5,null,"[kN]"]
[null,null,{"$f":"\"GA \"&C75","v":"GA Z53P0"},null,null,"GAef",null,41169,41169,41169,41169,41169,41169,41169,null,"[kN]"]
[null,null,null,null,null,"Iz",0,139.92131770833333,154.59771354166665,169.79761822916669,184.4740140625,199.15040989583335,213.82680572916669,228.13629166666666,0,"[10^3*cm4]"]
[null,null,{"$f":"\"M \"&C75","v":"M Z53P0"},null,null,"MR,k,z",0,86.105426282051283,95.137054487179498,104.49084198717952,113.52247019230772,122.55409839743592,131.58572660256414,140.3915641025641,0,"[kNm]"]
["Rippe","Q3","Z53P26",null,null,"VR,k,y",null,null,null,37.5,37.5,37.5,37.5,37.5,null,"[kN]"]
[null,null,{"$f":"\"GA \"&C79","v":"GA Z53P26"},null,null,"GAef",null,null,null,41169,41169,41169,41169,41169,null,"[kN]"]
[null,null,null,null,null,"Iz",0,0,0,187.88773016249999,202.56412599583334,217.24052182916671,231.91691766249994,246.2264036,0,"[10^3*cm4]"]
[null,null,{"$f":"\"M \"&C79","v":"M Z53P26"},null,null,"MR,k,z",0,0,0,115.62321856153847,124.65484676666667,133.68647497179489,142.71810317692308,151.52394067692308,0,"[kNm]"]
["Rippe","Q3","Z53P53",null,null,"VR,k,y",null,null,null,37.5,37.5,37.5,37.5,37.5,null,"[kN]"]
[null,null,{"$f":"\"GA \"&C83","v":"GA Z53P53"},null,null,"GAef",null,null,null,41169,41169,41169,41169,41169,null,"[kN]"]
[null,null,null,null,null,"Iz",0,0,0,205.97784209583335,220.6542379291667,235.33063376249999,250.00702959583336,264.31651553333336,0,"[10^3*cm4]"]
[null,null,{"$f":"\"M \"&C83","v":"M Z53P53"},null,null,"MR,k,z",0,0,0,126.75559513589749,135.78722334102568,144.81885154615387,153.85047975128208,162.65631725128208,0,"[kNm]"]
["Rippe","Q3","Z80P0",null,null,"VR,k,y",null,null,null,48.1,48.1,48.1,48.1,48.1,null,"[kN]"]
[null,null,{"$f":"\"GA \"&C87","v":"GA Z80P0"},null,null,"GAef",null,null,null,52813,52813,52813,52813,52813,null,"[kN]"]
[null,null,null,null,null,"Iz",0,0,0,205.283034375,219.95943020833337,234.63582604166663,249.31222187499998,263.62170781250001,0,"[10^3*cm4]"]
[null,null,{"$f":"\"M \"&C87","v":"M Z80P0"},null,null,"MR,k,z",0,0,0,126.32802115384618,135.35964935897437,144.39127756410255,153.42290576923079,162.22874326923079,0,"[kNm]"]
["Rippe","Q3","Z80P26",null,null,"VR,k,y",null,null,null,null,48.1,48.1,48.1,48.1,null,"[kN]"]
[null,null,{"$f":"\"GA \"&C91","v":"GA Z80P26"},null,null,"GAef",null,null,null,null,52813,52813,52813,52813,null,"[kN]"]
[null,null,null,null,null,"Iz",0,0,0,0,242.28244787083335,256.95884370416672,271.63523953750001,285.94472547499998,0,"[10^3*cm4]"]
[null,null,{"$f":"\"M \"&C91","v":"M Z80P26"},null,null,"MR,k,z",0,0,0,0,149.09689099743591,158.12851920256415,167.16014740769234,175.96598490769233,0,"[kNm]"]
["Rippe","Q3","Z80P53",null,null,"VR,k,y",null,null,null,null,48.1,48.1,48.1,48.1,null,"[kN]"]
[null,null,{"$f":"\"GA \"&C95","v":"GA Z80P53"},null,null,"GAef",null,null,null,null,52813,52813,52813,52813,null,"[kN]"]
[null,null,null,null,null,"Iz",0,0,0,0,263.71504678333338,278.39144261666667,293.06783845000007,308.26774313749996,0,"[10^3*cm4]"]
[null,null,{"$f":"\"M \"&C95","v":"M Z80P53"},null,null,"MR,k,z",0,0,0,0,162.28618263589743,171.31781084102565,180.34943904615389,189.70322654615384,0,"[kNm]"]
[]
["Rippe Q3-r50"]
["Elementhöhe",null,null,null,null,null,190,210,230,250,270,290,310,"[mm]"]
["Rippe","Q3","Z0P0Nsi",null,null,"VR,k,xy",31.8,31.8,31.8,31.8,31.8,31.8,null,"[kN]"]
[null,null,{"$f":"\"GA \"&C102","v":"GA Z0P0Nsi"},null,null,"GAef",34916,34916,34916,34916,34916,34916,null,"[kN]"]
[null,null,null,null,null,"Iz",61.968842187500002,76.645238020833332,91.321633854166663,105.99802968750001,120.30751562500004,134.98391145833335,0,"[10^3*cm4]"]
[null,null,{"$f":"\"M \"&C102","v":"M Z0P0Nsi"},null,null,"MR,k,z",38.134672115384618,47.166300320512825,56.197928525641039,65.229556730769232,74.035394230769256,83.067022435897456,0,"[kNm]"]
["Rippe","Q3","Z0P0",null,null,"VR,k,y",33.1,33.1,33.1,33.1,33.1,33.1,null,"[kN]"]
[null,null,{"$f":"\"GA \"&C106","v":"GA Z0P0"},null,null,"GAef",14203,14203,14203,14203,14203,14203,null,"[kN]"]
[null,null,null,null,null,"Iz",124.57742485000003,139.25382068333332,153.93021651666666,168.60661235000001,182.91609828750001,197.59249412083332,0,"[10^3*cm4]"]
[null,null,{"$f":"\"M \"&C106","v":"M Z0P0"},null,null,"MR,k,z",76.6630306769231,85.6946588820513,94.7262870871795,103.7579152923077,112.5637527923077,121.5953809974359,0,"[kNm]"]
["Rippe","Q3","Z26P0",null,null,"VR,k,y",27.1,27.1,27.1,27.1,27.1,27.1,null,"[kN]"]
[null,null,{"$f":"\"GA \"&C110","v":"GA Z26P0"},null,null,"GAef",29741,29741,29741,29741,29741,29741,null,"[kN]"]
[null,null,null,null,null,"Iz",100.68332552083335,115.88323020833332,130.55962604166669,145.23602187500003,159.91241770833335,174.22190364583335,0,"[10^3*cm4]"]
[null,null,{"$f":"\"M \"&C110","v":"M Z26P0"},null,null,"MR,k,z",61.95896955128206,71.312757051282063,80.344385256410263,89.376013461538477,98.407641666666677,107.21347916666669,0,"[kNm]"]
["Rippe","Q3","Z26Z26",null,null,"VR,k,y",null,27.1,27.1,27.1,27.1,27.1,null,"[kN]"]
[null,null,{"$f":"\"GA \"&C114","v":"GA Z26Z26"},null,null,"GAef",null,29741,29741,29741,29741,29741,null,"[kN]"]
[null,null,null,null,null,"Iz",0,133.97334214166671,148.64973797500002,163.32613380833337,178.00252964166668,192.31201557916668,0,"[10^3*cm4]"]
[null,null,{"$f":"\"M \"&C114","v":"M Z26Z26"},null,null,"MR,k,z",0,82.445133625641049,91.476761830769263,100.50839003589748,109.54001824102565,118.34585574102564,0,"[kNm]"]
["Rippe","Q3","Z26P53",null,null,"VR,k,y",null,27.1,27.1,27.1,27.1,27.1,null,"[kN]"]
[null,null,{"$f":"\"GA \"&C118","v":"GA Z26P53"},null,null,"GAef",null,29741,29741,29741,29741,29741,null,"[kN]"]
[null,null,null,null,null,"Iz",0,152.06345407500001,166.73984990833335,181.41624574166667,196.09264157500002,210.40212751250002,0,"[10^3*cm4]"]
[null,null,{"$f":"\"M \"&C118","v":"M Z26P53"},null,null,"MR,k,z",0,93.57751020000002,102.60913840512823,111.64076661025643,120.67239481538465,129.47823231538462,0,"[kNm]"]
["Rippe","Q3","Z53P0",null,null,"VR,k,y",null,37.5,37.5,37.5,37.5,37.5,null,"[kN]"]
[null,null,{"$f":"\"GA \"&C122","v":"GA Z53P0"},null,null,"GAef",null,41169,41169,41169,41169,41169,null,"[kN]"]
[null,null,null,null,null,"Iz",0,150.35139375,165.02778958333337,179.70418541666669,194.38058124999998,208.69006718750001,0,"[10^3*cm4]"]
[null,null,{"$f":"\"M \"&C122","v":"M Z53P0"},null,null,"MR,k,z",0,92.523934615384618,101.55556282051285,110.58719102564105,119.61881923076925,128.42465673076924,0,"[kNm]"]
["Rippe","Q3","Z53P26",null,null,"VR,k,y",null,37.5,37.5,37.5,37.5,37.5,null,"[kN]"]
[null,null,{"$f":"\"GA \"&C126","v":"GA Z53P26"},null,null,"GAef",null,41169,41169,41169,41169,41169,null,"[kN]"]
[null,null,null,null,null,"Iz",0,168.44150568333336,183.11790151666671,197.79429735000002,212.47069318333334,226.78017912083334,0,"[10^3*cm4]"]
[null,null,{"$f":"\"M \"&C126","v":"M Z53P26"},null,null,"MR,k,z",0,103.6563111897436,112.68793939487183,121.7195676,130.75119580512822,139.55703330512821,0,"[kNm]"]
["Rippe","Q3","Z53P53",null,null,"VR,k,y",null,37.5,37.5,37.5,37.5,37.5,null,"[kN]"]
[null,null,{"$f":"\"GA \"&C130","v":"GA Z53P53"},null,null,"GAef",null,41169,41169,41169,41169,41169,null,"[kN]"]
[null,null,null,null,null,"Iz",0,0,200.31759470000003,214.99399053333337,229.67038636666669,244.8702910541667,0,"[10^3*cm4]"]
[null,null,{"$f":"\"M \"&C130","v":"M Z53P53"},null,null,"MR,k,z",0,0,123.27236596923082,132.30399417435902,141.33562237948721,150.68940987948721,0,"[kNm]"]
["Rippe","Q3","Z80P0",null,null,"VR,k,y",null,null,48.1,48.1,48.1,48.1,null,"[kN]"]
[null,null,{"$f":"\"GA \"&C134","v":"GA Z80P0"},null,null,"GAef",null,null,52813,52813,52813,52813,null,"[kN]"]
[null,null,null,null,null,"Iz",null,0,200.51320572916669,215.1896015625,229.86599739583335,244.17548333333335,0,"[10^3*cm4]"]
[null,null,{"$f":"\"M \"&C134","v":"M Z80P0"},null,null,"MR,k,z",0,0,123.39274198717951,132.42437019230772,141.45599839743591,150.26183589743593,0,"[kNm]"]
["Rippe","Q3","Z80P26",null,null,"VR,k,y",null,null,48.1,48.1,48.1,48.1,null,"[kN]"]
[null,null,{"$f":"\"GA \"&C138","v":"GA Z80P26"},null,null,"GAef",null,null,52813,52813,52813,52813,null,"[kN]"]
[null,null,null,null,null,"Iz",0,0,221.94580464166671,236.62220047500006,251.2985963083334,266.4985009958333,0,"[10^3*cm4]"]
[null,null,{"$f":"\"M \"&C138","v":"M Z80P26"},null,null,"MR,k,z",0,0,136.58203362564106,145.6136618307693,154.64529003589749,163.99907753589741,0,"[kNm]"]

{"sheet":"Block Q3","index":4,"n_rows":53,"n_cols":24,"rows_kept":53,"cut":false,"hidden":true,"merged":[[8,0,8,5]]}
["Scheibenkennwerte Block Q3"]
[]
[]
["Anmerkung: ",null,null,"Die Scheibenkennwerte beziehen sich auf einen Laufmeter Element. Die Elementbreite bE = 0,625m"]
[]
[]
[]
["Block Q3"]
["Elementhöhe",null,null,null,null,null,150,170,190,210,230,250,270,290,310,330,350,370,390,410,430,450,470,"[mm]"]
["Block","Q3","Z0P0Nsi",null,null,"VR,k,xy",29,29,29,29,29,29,29,29,29,29,29,29,29,29,29,29,null,"[kN]"]
[null,null,{"$f":"\"GA \"&C10","v":"GA Z0P0Nsi"},null,null,"GAef",39095,39095,39095,39095,39095,39095,39095,39095,39095,39095,39095,39095,39095,39095,39095,39095,null,"[kN]"]
[null,null,null,null,null,"Iz",79.272050687499998,100.40132652083334,121.53060235416665,142.73457597916666,163.8638518125,184.99312764583334,206.12240347916668,227.32637710416668,282.1154756041667,303.24475143749999,324.57010877083337,348.68729627083337,372.80448377083337,396.92167127083337,421.03885877083337,445.15604627083343,0,"[103*cm4]"]
[null,null,{"$f":"\"M \"&C10","v":"M Z0P0Nsi"},null,null,"MR,k,z",40.578014977148079,51.393732039914703,62.209449102681283,73.063402695003063,83.879119757769658,94.694836820536281,105.51055388330288,116.36450747562465,144.41011548293724,155.22583254570384,166.14192039457649,178.48709863954903,190.83227688452163,203.17745512949423,215.52263337446678,227.86781161943941,0,"[kNm]"]
["Block","Q3","Z0P0",null,null,"VR,k,y",31.9,31.9,31.9,31.9,31.9,31.9,31.9,31.9,31.9,31.9,31.9,31.9,31.9,31.9,31.9,31.9,null,"[kN]"]
[null,null,{"$f":"\"GA \"&C14","v":"GA Z0P0"},null,null,"GAef",16323,16323,16323,16323,16323,16323,16323,16323,16323,16323,16323,16323,16323,16323,16323,16323,null,"[kN]"]
[null,null,null,null,null,"Iz",108.85115944583335,129.98043527916667,151.10971111249998,172.31368473750001,193.44296057083335,214.57223640416663,235.7015122375,256.90548586250003,311.6945843625,332.82386019583333,354.14921752916672,378.26640502916672,402.38359252916672,426.50078002916672,450.61796752916672,474.73515502916672,0,"[103*cm4]"]
[null,null,{"$f":"\"M \"&C14","v":"M Z0P0"},null,null,"MR,k,z",55.719057851614892,66.534774914381472,77.350491977148081,88.20444556946984,99.020162632236463,109.83587969500304,120.65159675776968,131.5055503500914,159.55115835740406,170.36687542017066,181.28296326904328,193.62814151401588,205.97331975898848,218.31849800396103,230.6636762489336,243.00885449390623,0,"[kNm]"]
["Block","Q3","Z26P0",null,null,"VR,k,y",25.1,25.1,25.1,25.1,25.1,25.1,25.1,25.1,25.1,25.1,25.1,25.1,25.1,25.1,25.1,25.1,null,"[kN]"]
[null,null,{"$f":"\"GA \"&C18","v":"GA Z26P0"},null,null,"GAef",33920,33920,33920,33920,33920,33920,33920,33920,33920,33920,33920,33920,33920,33920,33920,33920,null,"[kN]"]
[null,null,null,null,null,"Iz",110.01323730833334,131.14251314166668,152.27178897499999,173.40106480833333,194.60503843333333,215.7343142666667,236.86359010000001,257.99286593333335,312.85666222499998,333.98593805833337,355.11521389166666,379.23240139166666,403.34958889166666,427.46677639166666,451.5839638916666,475.7011513916666,0,"[103*cm4]"]
[null,null,{"$f":"\"M \"&C18","v":"M Z26P0"},null,null,"MR,k,z",56.313905751980514,67.129622814747123,77.945339877513732,88.761056940280298,99.615010532602085,110.43072759536872,121.2464446581353,132.06216172090188,160.14600625776967,170.96172332053629,181.77744038330286,194.12261862827546,206.46779687324801,218.81297511822058,231.15815336319315,243.50333160816572,0,"[kNm]"]
["Block","Q3","Z26P26",null,null,"VR,k,y",null,25.1,25.1,25.1,25.1,25.1,25.1,25.1,25.1,25.1,25.1,25.1,25.1,25.1,25.1,25.1,null,"[kN]"]
[null,null,{"$f":"\"GA \"&C22","v":"GA Z26P26"},null,null,"GAef",null,33920,33920,33920,33920,33920,33920,33920,33920,33920,33920,33920,33920,33920,33920,33920,null,"[kN]"]
[null,null,null,null,null,"Iz",0,132.96802725416666,154.09730308750002,175.22657892083336,196.43055254583334,217.5598283791667,238.68910421250001,259.81838004583335,314.68217633749998,335.81145217083332,356.9407280041666,381.0579155041666,405.1751030041666,429.2922905041666,453.4094780041666,477.5266655041666,0,"[103*cm4]"]
[null,null,{"$f":"\"M \"&C22","v":"M Z26P26"},null,null,"MR,k,z",0,68.064072451858635,78.87978951462523,89.695506577391839,100.54946016971363,111.36517723248024,122.1808942952468,132.99661135801344,161.08045589488117,171.89617295764776,182.71189002041436,195.05706826538696,207.4022465103595,219.7474247553321,232.09260300030471,244.43778124527725,0,"[kNm]"]
["Block","Q3","Z26P53",null,null,"VR,k,y",null,null,25.1,25.1,25.1,25.1,25.1,25.1,25.1,25.1,25.1,25.1,25.1,25.1,25.1,25.1,null,"[kN]"]
[null,null,{"$f":"\"GA \"&C26","v":"GA Z26P53"},null,null,"GAef",null,null,33920,33920,33920,33920,33920,33920,33920,33920,33920,33920,33920,33920,33920,33920,null,"[kN]"]
[null,null,null,null,null,"Iz",0,0,153.36892762916665,174.49820346249999,196.67324837916667,217.8025242125,238.93180004583331,260.06107587916665,314.92487217083328,336.05414800416668,357.1834238374999,381.3006113374999,405.4177988374999,429.53498633749996,453.65217383749996,477.76936133749996,0,"[103*cm4]"]
[null,null,{"$f":"\"M \"&C26","v":"M Z26P53"},null,null,"MR,k,z",0,0,78.506946501218778,89.322663563985373,100.67369204052409,111.48940910329067,122.30512616605728,133.1208432288239,161.20468776569163,172.02040482845825,182.83612189122482,195.18130013619742,207.52647838117002,219.87165662614262,232.21683487111517,244.56201311608777,0,"[kNm]"]
["Block","Q3","Z53P0",null,null,"VR,k,y",null,33.6,33.6,33.6,33.6,33.6,33.6,33.6,33.6,33.6,33.6,33.6,33.6,33.6,33.6,33.6,null,"[kN]"]
[null,null,{"$f":"\"GA \"&C30","v":"GA Z53P0"},null,null,"GAef",null,45348,45348,45348,45348,45348,45348,45348,45348,45348,45348,45348,45348,45348,45348,45348,null,"[kN]"]
[null,null,null,null,null,"Iz",0,155.01668511666665,176.14596095000002,197.27523678333336,218.47921040833333,239.6084862416667,260.73776207499998,281.86703790833337,336.7308342,357.86011003333329,378.98938586666668,403.10657336666668,427.22376086666668,451.34094836666662,475.45813586666662,499.57532336666662,0,"[103*cm4]"]
[null,null,{"$f":"\"M \"&C30","v":"M Z53P0"},null,null,"MR,k,z",0,79.35040554418039,90.166122606946999,100.98183966971359,111.83579326203537,122.65151032480196,133.46722738756856,144.28294445033518,172.36678898720294,183.18250604996953,193.99822311273613,206.34340135770873,218.68857960268127,231.03375784765385,243.37893609262642,255.72411433759902,0,"[kNm]"]
["Block","Q3","Z53P26",null,null,"VR,k,y",null,null,33.6,33.6,33.6,33.6,33.6,33.6,33.6,33.6,33.6,33.6,33.6,33.6,33.6,33.6,null,"[kN]"]
[null,null,{"$f":"\"GA \"&C34","v":"GA Z53P26"},null,null,"GAef",null,null,45348,45348,45348,45348,45348,45348,45348,45348,45348,45348,45348,45348,45348,45348,null,"[kN]"]
[null,null,null,null,null,"Iz",0,0,177.00040377083337,198.12967960416665,220.30472452083336,241.43400035416664,262.56327618749998,283.69255202083332,338.55634831250001,359.68562414583334,380.81489997916663,404.93208747916663,429.04927497916663,453.16646247916663,477.28364997916663,501.40083747916663,0,"[103*cm4]"]
[null,null,{"$f":"\"M \"&C34","v":"M Z53P26"},null,null,"MR,k,z",0,0,90.603497359841569,101.41921442260816,112.77024289914689,123.58595996191345,134.40167702468008,145.21739408744668,173.30123862431444,184.11695568708106,194.93267274984771,207.27785099482026,219.6230292397928,231.96820748476537,244.31338572973797,256.65856397471055,0,"[kNm]"]
["Block","Q3","Z53P53",null,null,"VR,k,y",null,null,null,33.6,33.6,33.6,33.6,33.6,33.6,33.6,33.6,33.6,33.6,33.6,33.6,33.6,null,"[kN]"]
[null,null,{"$f":"\"GA \"&C38","v":"GA Z53P53"},null,null,"GAef",null,null,null,45348,45348,45348,45348,45348,45348,45348,45348,45348,45348,45348,45348,45348,null,"[kN]"]
[null,null,null,null,null,"Iz",0,0,0,220.54742035416666,220.54742035416666,241.6766961875,262.80597202083334,283.93524785416668,338.79904414583331,359.92831997916664,381.05759581249993,405.17478331249993,429.29197081249993,453.40915831249998,477.52634581249998,501.64353331249998,0,"[103*cm4]"]
[null,null,{"$f":"\"M \"&C38","v":"M Z53P53"},null,null,"MR,k,z",0,0,0,112.89447476995734,112.89447476995734,123.71019183272398,134.52590889549057,145.34162595825717,173.42547049512493,184.24118755789158,195.05690462065809,207.40208286563069,219.74726111060329,232.09243935557589,244.43761760054846,256.78279584552109,0,"[kNm]"]
["Block","Q3","Z80P0",null,null,"VR,k,y",null,null,42.2,42.2,42.2,42.2,42.2,42.2,42.2,42.2,42.2,42.2,42.2,42.2,42.2,42.2,null,"[kN]"]
[null,null,{"$f":"\"GA \"&C42","v":"GA Z80P0"},null,null,"GAef",null,null,56992,56992,56992,56992,56992,56992,56992,56992,56992,56992,56992,56992,56992,56992,null,"[kN]"]
[null,null,null,null,null,"Iz",0,0,199.42481991666668,220.55409575000002,242.72914066666669,263.85841649999998,284.98769233333331,306.11696816666665,360.85938075000001,381.98865658333335,403.11793241666663,427.23511991666663,451.35230741666658,475.46949491666658,499.58668241666658,523.70386991666658,0,"[103*cm4]"]
[null,null,{"$f":"\"M \"&C42","v":"M Z80P0"},null,null,"MR,k,z",0,0,102.0821747288239,112.8978917915905,124.24892026812921,135.06463733089583,145.8803543936624,156.69607145642902,184.71778173674593,195.5334987995125,206.3492158622791,218.69439410725172,231.03957235222424,243.38475059719678,255.72992884216939,268.07510708714199,0,"[kNm]"]
["Block","Q3","Z80P26",null,null,"VR,k,y",null,null,null,null,42.2,42.2,42.2,42.2,42.2,42.2,42.2,42.2,42.2,42.2,42.2,42.2,null,"[kN]"]
[null,null,{"$f":"\"GA \"&C46","v":"GA Z80P26"},null,null,"GAef",null,null,null,null,56992,56992,56992,56992,56992,56992,56992,56992,56992,56992,56992,56992,null,"[kN]"]
[null,null,null,null,null,"Iz",0,0,0,0,248.8714330083333,270.00070884166666,291.12998467499995,312.25926050833334,367.0016730916667,388.13094892499998,409.26022475833327,433.37741225833327,457.49459975833327,481.61178725833327,505.72897475833327,529.84616225833327,0,"[103*cm4]"]
[null,null,{"$f":"\"M \"&C46","v":"M Z80P26"},null,null,"MR,k,z",0,0,0,0,127.39305528762947,138.20877235039609,149.02448941316271,159.84020647592934,187.86191675624625,198.67763381901281,209.49335088177941,221.83852912675195,234.18370737172452,246.52888561669712,258.8740638616697,271.21924210664224,0,"[kNm]"]
["Block","Q3","Z80P53",null,null,"VR,k,y",null,null,null,null,null,42.2,42.2,42.2,42.2,42.2,42.2,42.2,42.2,42.2,42.2,42.2,null,"[kN]"]
[null,null,{"$f":"\"GA \"&C50","v":"GA Z80P53"},null,null,"GAef",null,null,null,null,null,56992,56992,56992,56992,56992,56992,56992,56992,56992,56992,56992,null,"[kN]"]
[null,null,null,null,null,"Iz",0,0,0,0,0,274.56018290416665,295.68945873750005,316.81873457083333,371.56114715416669,392.69042298749997,413.81969882083342,437.93688632083342,462.05407382083342,486.17126132083342,510.28844882083342,534.40563632083331,0,"[103*cm4]"]
[null,null,{"$f":"\"M \"&C50","v":"M Z80P53"},null,null,"MR,k,z",0,0,0,0,0,140.54268960359536,151.35840666636201,162.17412372912861,190.19583400944555,201.01155107221209,211.82726813497868,224.17244637995128,236.51762462492388,248.86280286989643,261.20798111486909,273.55315935984163,0,"[kNm]"]

{"sheet":"Block Q","index":5,"n_rows":16,"n_cols":12,"rows_kept":16,"cut":false,"hidden":true,"merged":[[7,0,7,5]]}
["Scheibenkennwerte Block Q"]
[]
[]
["Anmerkung: ",null,null,"Die Scheibenkennwerte beziehen sich auf einen Laufmeter Element. Die Elementbreite bE = 0,625m"]
[]
[]
["Block Q"]
["Elementhöhe",null,null,null,null,null,70,90,110,130,150,"[mm]"]
["Block","Q","Z0P0Nsi",null,null,"VR,k,xy",null,null,22.2,22.2,null,"[kN]"]
[null,null,{"$f":"\"GA \"&C9","v":"GA Z0P0Nsi"},null,null,"GAef",null,null,46079,46079,null,"[kN]"]
[null,null,null,null,null,"Iz",0,0,79.105989583333326,116.85150733333333,0,"[103*cm4]"]
[null,null,{"$f":"\"M \"&C9","v":"M Z0P0Nsi"},null,null,"MR,k,z",0,0,42.351199012109625,62.559124384958579,0,"[kNm]"]
["Block","Q","Z0P0",null,null,"VR,k,y",23.7,23.7,23.7,23.7,null,"[kN]"]
[null,null,{"$f":"\"GA \"&C13","v":"GA Z0P0"},null,null,"GAef",25950,25950,25950,25950,null,"[kN]"]
[null,null,null,null,null,"Iz",58.7050968,96.5172168,134.32933679999999,166.95256633333335,0,"[103*cm4]"]
[null,null,{"$f":"\"M \"&C13","v":"M Z0P0"},null,null,"MR,k,z",31.429114921606125,51.67269733078394,71.91627973996178,89.3818710771192,0,"[kNm]"]

{"sheet":"Akustik","index":6,"n_rows":34,"n_cols":26,"rows_kept":34,"cut":false,"hidden":true,"merged":[[21,0,21,5],[35,10,35,22],[6,0,6,5]]}
["Scheibenkennwerte Akustik klassik"]
[]
[]
["Anmerkung: ",null,null,"Die Scheibenkennwerte beziehen sich auf einen Laufmeter Element. Die Elementbreite bE = 0,625m"]
[]
["Akustik Q"]
["Elementhöhe",null,null,null,null,null,90,110,130,150,170,190,210,230,250,270,290,310,330,350,370,390,410,430,450,"[mm]"]
["Akustik","Q","klassik","Z0k50l",null,"VR,k,xy",14.58,21.52,21.52,21.52,null,null,null,null,null,null,null,null,null,null,null,null,null,null,null,"[kN]"]
[null,null,null,{"$f":"\"GA \"&D8","v":"GA Z0k50l"},null,"GAef",2486.2185000000004,2486.2185000000004,2486.2185000000004,2486.2185000000004,null,null,null,null,null,null,null,null,null,null,null,null,null,null,null,"[kN]"]
[null,null,null,null,null,"Iz",93.2,124.9,156.6,188.3,null,null,null,null,null,null,null,null,null,null,null,null,null,null,null,"[103*cm4]"]
[null,null,null,{"$f":"\"M \"&D8","v":"M Z0k50l"},null,"MR,k,z",47.47,63.6,79.73,95.86,null,null,null,null,null,null,null,null,null,null,null,null,null,null,null,"[kNm]"]
["Akustik","Q","klassik","Z0k50g",null,"VR,k,y",14.58,21.52,21.52,21.52,null,null,null,null,null,null,null,null,null,null,null,null,null,null,null,"[kN]"]
[null,null,null,{"$f":"\"GA \"&D12","v":"GA Z0k50g"},null,"GAef",2486.2185000000004,2486.2185000000004,2486.2185000000004,2486.2185000000004,null,null,null,null,null,null,null,null,null,null,null,null,null,null,null,"[kN]"]
[null,null,null,null,null,"Iz",93.2,124.9,156.6,188.3,null,null,null,null,null,null,null,null,null,null,null,null,null,null,null,"[103*cm4]"]
[null,null,null,{"$f":"\"M \"&D12","v":"M Z0k50g"},null,"MR,k,z",47.47,63.6,79.73,95.86,null,null,null,null,null,null,null,null,null,null,null,null,null,null,null,"[kNm]"]
["Akustik","Q","klassik","Z0k0",null,"VR,k,y",14.58,21.52,21.52,21.52,null,null,null,null,null,null,null,null,null,null,null,null,null,null,null,"[kN]"]
[null,null,null,{"$f":"\"GA \"&D16","v":"GA Z0k0"},null,"GAef",4972.4370000000008,4972.4370000000008,4972.4370000000008,4972.4370000000008,null,null,null,null,null,null,null,null,null,null,null,null,null,null,null,"[kN]"]
[null,null,null,null,null,"Iz",93.2,124.9,156.6,188.3,null,null,null,null,null,null,null,null,null,null,null,null,null,null,null,"[103*cm4]"]
[null,null,null,{"$f":"\"M \"&D16","v":"M Z0k0"},null,"MR,k,z",47.47,63.6,79.73,95.86,null,null,null,null,null,null,null,null,null,null,null,null,null,null,null,"[kNm]"]
[]
["Akustik Q3"]
["Elementhöhe",null,null,null,null,null,90,110,130,150,170,190,210,230,250,270,290,310,330,350,370,390,410,430,450,"[mm]"]
["Akustik","Q3","klassik","Z0k50l",null,"VR,k,xy",null,null,35.57,35.57,35.57,35.57,35.57,35.57,35.57,35.57,35.57,7.87,7.87,7.87,7.87,7.87,7.87,7.87,7.87,"[kN]"]
[null,null,null,{"$f":"\"GA \"&D23","v":"GA Z0k50l"},null,"GAef",null,null,3098,3098,3098,3098,3098,3098,3098,3098,3098,3098,3098,3098,3098,3098,3098,3098,3098,"[kN]"]
[null,null,null,null,null,"Iz",null,null,112.2,131.19999999999999,150.1,169.1,188.1,207.1,226,245,264,348.5,367.4,386.4,418.1,449.8,481.5,513.15,544.79999999999995,"[103*cm4]"]
[null,null,null,{"$f":"\"M \"&D23","v":"M Z0k50l"},null,"MR,k,z",null,null,57.13,66.78,76.44,86.09,95.75,105.41,115.06,124.72,134.38,177.41,187.06,196.72,212.85,228.98,245.11,261.24,277.37,"[kNm]"]
["Akustik","Q3","klassik","Z0k50g",null,"VR,k,y",null,null,35.57,35.57,35.57,35.57,35.57,35.57,35.57,35.57,35.57,7.87,7.87,7.87,7.87,7.87,7.87,7.87,7.87,"[kN]"]
[null,null,null,{"$f":"\"GA \"&D27","v":"GA Z0k50g"},null,"GAef",null,null,3098,3098,3098,3098,3098,3098,3098,3098,3098,3098,3098,3098,3098,3098,3098,3098,3098,"[kN]"]
[null,null,null,null,null,"Iz",null,null,112.2,131.19999999999999,150.1,169.1,188.1,207.1,226,245,264,348.5,367.4,386.4,418.1,449.8,481.5,513.15,544.79999999999995,"[103*cm4]"]
[null,null,null,{"$f":"\"M \"&D27","v":"M Z0k50g"},null,"MR,k,z",null,null,57.13,66.78,76.44,86.09,95.75,105.41,115.06,124.72,134.38,177.41,187.06,196.72,212.85,228.98,245.11,261.24,277.37,"[kNm]"]
["Akustik","Q3","klassik","Z0k0",null,"VR,k,y",null,null,35.57,35.57,35.57,35.57,35.57,35.57,35.57,35.57,35.57,7.87,7.87,7.87,7.87,7.87,7.87,7.87,7.87,"[kN]"]
[null,null,null,{"$f":"\"GA \"&D31","v":"GA Z0k0"},null,"GAef",null,null,5092,5092,5092,5092,5092,5092,5092,5092,5092,5092,5092,5092,5092,5092,5092,5092,5092,"[kN]"]
[null,null,null,null,null,"Iz",null,null,112.2,131.19999999999999,150.1,169.1,188.1,207.1,226,245,264,348.5,367.4,386.4,418.1,449.8,481.5,513.15,544.79999999999995,"[103*cm4]"]
[null,null,null,{"$f":"\"M \"&D31","v":"M Z0k0"},null,"MR,k,z",null,null,57.13,66.78,76.44,86.09,95.75,105.41,115.06,124.72,134.38,177.41,187.06,196.72,212.85,228.98,245.11,261.24,277.37,"[kNm]"]

{"sheet":"Lösung","index":7,"n_rows":42,"n_cols":2,"rows_kept":42,"cut":false,"hidden":true,"merged":[[0,0,0,6],[14,0,17,0],[18,0,21,0],[22,0,25,0],[26,0,29,0],[2,1,2,5],[6,1,6,5],[10,1,10,5],[14,1,14,5],[18,1,18,5],[34,1,34,5],[34,0,37,0],[2,0,5,0],[6,0,9,0],[10,0,13,0],[30,0,33,0],[30,1,30,5]]}
["Mögliche Lösung"]
[]
[1,"der Quertragfähigkeit"]
[]
[null,"Nehmen Sie mit unsere technischen Abteilung Kontakt auf (Tel : 07755 / 9200-0 )"]
[]
[2,"der Momenttragfähigkeit beim Lastfall 1"]
[]
[null,"Nehmen Sie mit unsere technischen Abteilung Kontakt auf (Tel : 07755 / 9200-0 )"]
[]
[3,"der Momenttragfähigkeit beim Lastfall 2"]
[]
[null,"Nehmen Sie mit unsere technischen Abteilung Kontakt auf (Tel : 07755 / 9200-0 )"]
[]
[4,"der Schubtragfähigkeit der Koppelbrett"]
[null,"Wählen Sie ein Koppelbrett aus Sperrholz, bzw. dreischichtplatte"]
[null,"Nehmen Sie mit unsere technischen Abteilung Kontakt auf (Tel : 07755 / 9200-0 )"]
[]
[5,"der Klammern im Koppelbrett"]
[null,"Wählen Sie einen kleineren Klammerabstand"]
[]
[]
[6,"der Verbindungsmittel Scheibe an Randgurt parallel zur Elementspannrichtung"]
[null,"Wählen Sie einen kleineren Verbindungsmittel-Abstand"]
[]
[]
[7,"der Verbindungsmittel Scheibe an Randgurt quer zur Elementspannrichtung"]
[null,"Wählen Sie mehr Verbindungsmittel pro Element"]
[]
[]
[8,"der Verformung [Lastfall 1]"]
[null,"Nehmen Sie mit unsere technischen Abteilung Kontakt auf (Tel : 07755 / 9200-0 )"]
[]
[]
[9,"der Verformung [Lastfall 2]"]
[null,"Zuerst , wählen Sie einen kleineren Verbindungsmittel-abstand. Wenn nicht ok : Wählen Sie ein Koppelbrett aus Sperrholz, bzw. Dreischichtplatte. Wenn nicht ok: Wählen Sie ein anderes Element. Wenn nicht ok: Nehmen Sie mit unserer technischen Abteilung Kontakt auf (Tel : 07755 / 9200-0 )"]
[]
[]
[]
[null,"Wählen Sie ein Koppelbrett aus Sperrholz, bzw. dreischichtplatte"]
[null,"Wählen Sie ein anderes Element"]
[null,"Nehmen Sie imt unsere technischen Abteilung Kontakt auf (Tel : 07755 / 9200-0 )"]

{"sheet":"Verbindung Schrauben","index":8,"n_rows":260,"n_cols":55,"rows_kept":260,"cut":false,"hidden":true,"merged":[[3,39,3,45],[3,48,3,54],[1,1,1,20],[160,17,160,18],[158,1,158,7],[158,9,158,15],[3,1,3,7],[58,1,58,7],[3,9,3,15],[58,9,58,15],[3,17,3,20],[2,25,2,54],[155,1,155,18],[3,25,3,27],[3,30,3,36]]}
[]
[null,"Würth Assy plus"]
[null,null,null,null,null,null,null,null,null,null,null,null,null,null,null,null,null,null,null,null,null,null,null,null,null,"Rothoblaas"]
[null,"Teilgewinde Senkkopf",null,null,null,null,null,null,null,"Vollgewinde Senkkopf",null,null,null,null,null,null,null,"Würth Assy plus",null,null,null,null,null,null,null,"Rothoblaas",null,null,null,null,"Teilgewinde Tellerkopf",null,null,null,null,null,null,null,null,"Teilgewinde Senkkopf",null,null,null,null,null,null,null,null,"Vollgewinde Zylinderkopf"]
[null,"Typ","d (mm)","länge Lsch (mm)","Gewinde länge (mm)","Kopftdurchemesser dk (mm)","Fließmoment My,k (Nmm)","Zugtragfähigkeit Rt,u,k (N)",null,"Typ","d (mm)","länge Lsch (mm)","Gewinde länge (mm)","Kopftdurchemesser dk (mm)","Fließmoment My,k (Nmm)","Zugtragfähigkeit Rt,u,k (N)",null,"TeilgewindeSenkkopf","TeilgewindeScheibenkopf","VollgewindeSenkkopf","VollgewindeZylinderkopf",null,null,null,null,"TeilgewindeTellerkopf_R","TeilgewindeSenkkopf_R","VollgewindeZylinderkopf_R",null,null,"Typ","d (mm)","länge Lsch (mm)","Gewinde länge (mm)","Kopftdurchemesser dk (mm)","Fließmoment My,k (Nmm)","Zugtragfähigkeit Rt,u,k (N)",null,null,"Typ","d (mm)","länge Lsch (mm)","Gewinde länge (mm)","Kopftdurchemesser dk (mm)","Fließmoment My,k (Nmm)","Zugtragfähigkeit Rt,u,k (N)",null,null,"Typ","d (mm)","länge Lsch (mm)","Gewinde länge (mm)","Kopftdurchemesser dk (mm)","Fließmoment My,k (Nmm)","Zugtragfähigkeit Rt,u,k (N)"]
[null,"6,0 x 80",6,80,50,12,10000,12500,null,"8,0 x 120",8,120,101,15,23000,22000,null,"6,0 x 80","6,0 x 80","8,0 x 120","6,0 x 80",null,null,null,null,"6,0 x 60","3,5 x 40","5,3 x 80",null,null,"6,0 x 60",6,60,40,15.5,9493.7000000000007,11300,null,null,"3,5 x 40",3.5,40,18,7,2143,3800,null,null,"5,3 x 80",5.3,80,70,8,6876,11000]
[null,"6,0 x 100",6,100,60,12,10000,12500,null,"8,0 x 140",8,140,121,15,23000,22000,null,"6,0 x 100","6,0 x 100","8,0 x 140","6,0 x 100",null,null,null,null,"6,0 x 70","3,5 x 45","5,3 x 100",null,null,"6,0 x 70",6,70,40,15.5,9493.7000000000007,11300,null,null,"3,5 x 45",3.5,45,24,7,2143,3800,null,null,"5,3 x 100",5.3,100,90,8,6876,11000]
[null,"6,0 x 120",6,120,70,12,10000,12500,null,"8,0 x 160",8,160,141,15,23000,22000,null,"6,0 x 120","6,0 x 120","8,0 x 160","6,0 x 120",null,null,null,null,"6,0 x 80","3,5 x 50","5,3 x 120",null,null,"6,0 x 80",6,80,50,15.5,9493.7000000000007,11300,null,null,"3,5 x 50",3.5,50,24,7,2143,3800,null,null,"5,3 x 120",5.3,120,110,8,6876,11000]
[null,"6,0 x 140",6,140,70,12,10000,12500,null,"8,0 x 180",8,180,161,15,23000,22000,null,"6,0 x 140","6,0 x 140","8,0 x 180","6,0 x 140",null,null,null,null,"6,0 x 90","4,0 x 30","5,6 x 140",null,null,"6,0 x 90",6,90,50,15.5,9493.7000000000007,11300,null,null,"4,0 x 30",4,30,18,8,3033,5000,null,null,"5,6 x 140",5.6,140,130,8,7935,12300]
[null,"6,0 x 160",6,160,70,12,10000,12500,null,"8,0 x 200",8,200,181,15,23000,22000,null,"6,0 x 160","6,0 x 160","8,0 x 200","6,0 x 160",null,null,null,null,"6,0 x 100","4,0 x 35","5,6 x 160",null,null,"6,0 x 100",6,100,60,15.5,9493.7000000000007,11300,null,null,"4,0 x 35",4,35,18,8,3033,5000,null,null,"5,6 x 160",5.6,160,150,8,7935,12300]
[null,"6,0 x 180",6,180,70,12,10000,12500,null,"8,0 x 220",8,220,201,15,23000,22000,null,"6,0 x 180","6,0 x 180","8,0 x 220","6,0 x 180",null,null,null,null,"6,0 x 120","4,0 x 40","7,0 x 80",null,null,"6,0 x 120",6,120,75,15.5,9493.7000000000007,11300,null,null,"4,0 x 40",4,40,24,8,3033,5000,null,null,"7,0 x 80",7,80,70,9.5,14174,15400]
[null,"6,0 x 200",6,200,70,12,10000,12500,null,"8,0 x 240",8,240,221,15,23000,22000,null,"6,0 x 200","6,0 x 200","8,0 x 240","6,0 x 200",null,null,null,null,"6,0 x 140","4,0 x 45","7,0 x 100",null,null,"6,0 x 140",6,140,75,15.5,9493.7000000000007,11300,null,null,"4,0 x 45",4,45,30,8,3033,5000,null,null,"7,0 x 100",7,100,90,9.5,14174,15400]
[null,"6,0 x 220",6,220,70,12,10000,12500,null,"8,0 x 260",8,260,241,15,23000,22000,null,"6,0 x 220","6,0 x 220","8,0 x 260","6,0 x 220",null,null,null,null,"6,0 x 160","4,0 x 50","7,0 x 120",null,null,"6,0 x 160",6,160,75,15.5,9493.7000000000007,11300,null,null,"4,0 x 50",4,50,30,8,3033,5000,null,null,"7,0 x 120",7,120,110,9.5,14174,15400]
[null,"6,0 x 240",6,240,70,12,10000,12500,null,"8,0 x 280",8,280,261,15,23000,22000,null,"6,0 x 240","6,0 x 240","8,0 x 280","6,0 x 240",null,null,null,null,"6,0 x 180","4,0 x 60","7,0 x 140",null,null,"6,0 x 180",6,180,75,15.5,9493.7000000000007,11300,null,null,"4,0 x 60",4,60,35,8,3033,5000,null,null,"7,0 x 140",7,140,130,9.5,14174,15400]
[null,"6,0 x 260",6,260,70,12,10000,12500,null,"8,0 x 300",8,300,275,15,23000,22000,null,"6,0 x 260","6,0 x 260","8,0 x 300","6,0 x 260",null,null,null,null,"6,0 x 200","4,0 x 70","7,0 x 160",null,null,"6,0 x 200",6,200,75,15.5,9493.7000000000007,11300,null,null,"4,0 x 70",4,70,40,8,3033,5000,null,null,"7,0 x 160",7,160,150,9.5,14174,15400]
[null,"6,0 x 280",6,280,70,12,10000,12500,null,"8,0 x 330",8,330,305,15,23000,22000,null,"6,0 x 280","6,0 x 280","8,0 x 330","8,0 x 120",null,null,null,null,"6,0 x 220","4,0 x 80","7,0 x 180",null,null,"6,0 x 220",6,220,100,15.5,9493.7000000000007,11300,null,null,"4,0 x 80",4,80,40,8,3033,5000,null,null,"7,0 x 180",7,180,170,9.5,14174,15400]
[null,"6,0 x 300",6,300,70,12,10000,12500,null,"8,0 x 340",8,340,315,15,23000,22000,null,"6,0 x 300","6,0 x 300","8,0 x 340","8,0 x 140",null,null,null,null,"6,0 x 240","4,5 x 40","7,0 x 200",null,null,"6,0 x 240",6,240,100,15.5,9493.7000000000007,11300,null,null,"4,5 x 40",4.5,40,24,9,4119,6400,null,null,"7,0 x 200",7,200,190,9.5,14174,15400]
[null,"8,0 x 100",8,100,60,15,23000,21500,null,"8,0 x 360",8,360,335,15,23000,22000,null,"8,0 x 100","8,0 x 100","8,0 x 360","8,0 x 160",null,null,null,null,"6,0 x 260","4,5 x 45","7,0 x 220",null,null,"6,0 x 260",6,260,100,15.5,9493.7000000000007,11300,null,null,"4,5 x 45",4.5,45,30,9,4119,6400,null,null,"7,0 x 220",7,220,210,9.5,14174,15400]
[null,"8,0 x 120",8,120,80,15,23000,21500,null,"8,0 x 380",8,380,355,15,23000,22000,null,"8,0 x 120","8,0 x 120","8,0 x 380","8,0 x 180",null,null,null,null,"6,0 x 280","4,5 x 50","7,0 x 240",null,null,"6,0 x 280",6,280,100,15.5,9493.7000000000007,11300,null,null,"4,5 x 50",4.5,50,30,9,4119,6400,null,null,"7,0 x 240",7,240,230,9.5,14174,15400]
[null,"8,0 x 140",8,140,80,15,23000,21500,null,"8,0 x 400",8,400,375,15,23000,22000,null,"8,0 x 140","8,0 x 140","8,0 x 400","8,0 x 200",null,null,null,null,"6,0 x 300","4,5 x 60","7,0 x 260",null,null,"6,0 x 300",6,300,100,15.5,9493.7000000000007,11300,null,null,"4,5 x 60",4.5,60,35,9,4119,6400,null,null,"7,0 x 260",7,260,250,9.5,14174,15400]
[null,"8,0 x 160",8,160,80,15,23000,21500,null,"8,0 x 430",8,430,405,15,23000,22000,null,"8,0 x 160","8,0 x 160","8,0 x 430","8,0 x 220",null,null,null,null,"8,0 x 40","4,5 x 70","7,0 x 280",null,null,"8,0 x 40",8,40,32,19,20057.5,20100,null,null,"4,5 x 70",4.5,70,40,9,4119,6400,null,null,"7,0 x 280",7,280,270,9.5,14174,15400]
[null,"8,0 x 180",8,180,80,15,23000,21500,null,"8,0 x 450",8,450,425,15,23000,22000,null,"8,0 x 180","8,0 x 180","8,0 x 450","8,0 x 240",null,null,null,null,"8,0 x 60","4,5 x 80","7,0 x 300",null,null,"8,0 x 60",8,60,52,19,20057.5,20100,null,null,"4,5 x 80",4.5,80,40,9,4119,6400,null,null,"7,0 x 300",7,300,290,9.5,14174,15400]
[null,"8,0 x 200",8,200,80,15,23000,21500,null,"8,0 x 480",8,480,445,15,23000,22000,null,"8,0 x 200","8,0 x 200","8,0 x 480","8,0 x 260",null,null,null,null,"8,0 x 80","5,0 x 40","7,0 x 340",null,null,"8,0 x 80",8,80,52,19,20057.5,20100,null,null,"5,0 x 40",5,40,24,10,5417,7900,null,null,"7,0 x 340",7,340,330,9.5,14174,15400]
[null,"8,0 x 220",8,220,100,15,23000,21500,null,"8,0 x 530",8,530,495,15,23000,22000,null,"8,0 x 220","8,0 x 220","8,0 x 530","8,0 x 280",null,null,null,null,"8,0 x 100","5,0 x 45","7,0 x 380",null,null,"8,0 x 100",8,100,80,19,20057.5,20100,null,null,"5,0 x 45",5,45,24,10,5417,7900,null,null,"7,0 x 380",7,380,370,9.5,14174,15400]
[null,"8,0 x 240",8,240,100,15,23000,21500,null,"8,0 x 580",8,580,545,15,23000,22000,null,"8,0 x 240","8,0 x 240","8,0 x 580","8,0 x 300",null,null,null,null,"8,0 x 120","5,0 x 50","9,0 x 160",null,null,"8,0 x 120",8,120,80,19,20057.5,20100,null,null,"5,0 x 50",5,50,24,10,5417,7900,null,null,"9,0 x 160",9,160,150,11.5,27244,25400]
[null,"8,0 x 260",8,260,100,15,23000,21500,null,"10.0 x 100",10,100,77,20,36000,33000,null,"8,0 x 260","8,0 x 260","10.0 x 100","8,0 x 320",null,null,null,null,"8,0 x 140","5,0 x 60","9,0 x 180",null,null,"8,0 x 140",8,140,80,19,20057.5,20100,null,null,"5,0 x 60",5,60,30,10,5417,7900,null,null,"9,0 x 180",9,180,170,11.5,27244,25400]
[null,"8,0 x 280",8,280,100,15,23000,21500,null,"10.0 x 120",10,120,97,20,36000,33000,null,"8,0 x 280","8,0 x 280","10.0 x 120","8,0 x 330",null,null,null,null,"8,0 x 160","5,0 x 70","9,0 x 200",null,null,"8,0 x 160",8,160,100,19,20057.5,20100,null,null,"5,0 x 70",5,70,35,10,5417,7900,null,null,"9,0 x 200",9,200,190,11.5,27244,25400]
[null,"8,0 x 300",8,300,100,15,23000,21500,null,"10.0 x 140",10,140,117,20,36000,33000,null,"8,0 x 300","8,0 x 300","10.0 x 140","8,0 x 340",null,null,null,null,"8,0 x 180","5,0 x 80","9,0 x 220",null,null,"8,0 x 180",8,180,100,19,20057.5,20100,null,null,"5,0 x 80",5,80,40,10,5417,7900,null,null,"9,0 x 220",9,220,210,11.5,27244,25400]
[null,"8,0 x 320",8,320,100,15,23000,21500,null,"10.0 x 160",10,160,137,20,36000,33000,null,"8,0 x 320","8,0 x 320","10.0 x 160","8,0 x 360",null,null,null,null,"8,0 x 200","5,0 x 90","9,0 x 240",null,null,"8,0 x 200",8,200,100,19,20057.5,20100,null,null,"5,0 x 90",5,90,45,10,5417,7900,null,null,"9,0 x 240",9,240,230,11.5,27244,25400]
[null,"8,0 x 330",8,330,100,15,23000,21500,null,"10.0 x 180",10,180,157,20,36000,33000,null,"8,0 x 330","8,0 x 330","10.0 x 180","8,0 x 380",null,null,null,null,"8,0 x 220","5,0 x 100","9,0 x 260",null,null,"8,0 x 220",8,220,100,19,20057.5,20100,null,null,"5,0 x 100",5,100,50,10,5417,7900,null,null,"9,0 x 260",9,260,250,11.5,27244,25400]
[null,"8,0 x 340",8,340,100,15,23000,21500,null,"10.0 x 200",10,200,177,20,36000,33000,null,"8,0 x 340","8,0 x 340","10.0 x 200","8,0 x 400",null,null,null,null,"8,0 x 240","5,0 x 120","9,0 x 280",null,null,"8,0 x 240",8,240,100,19,20057.5,20100,null,null,"5,0 x 120",5,120,60,10,5417,7900,null,null,"9,0 x 280",9,280,270,11.5,27244,25400]
[null,"8,0 x 360",8,360,100,15,23000,21500,null,"10.0 x 220",10,220,197,20,36000,33000,null,"8,0 x 360","8,0 x 360","10.0 x 220","8,0 x 430",null,null,null,null,"8,0 x 260","6,0 x 40","9,0 x 300",null,null,"8,0 x 260",8,260,100,19,20057.5,20100,null,null,"6,0 x 40",6,40,35,12,9494,11300,null,null,"9,0 x 300",9,300,290,11.5,27244,25400]
[null,"8,0 x 380",8,380,100,15,23000,21500,null,"10.0 x 240",10,240,217,20,36000,33000,null,"8,0 x 380","8,0 x 380","10.0 x 240","8,0 x 450",null,null,null,null,"8,0 x 280","6,0 x 50","9,0 x 320",null,null,"8,0 x 280",8,280,100,19,20057.5,20100,null,null,"6,0 x 50",6,50,35,12,9494,11300,null,null,"9,0 x 320",9,320,310,11.5,27244,25400]
[null,"8,0 x 400",8,400,100,15,23000,21500,null,"10.0 x 260",10,260,237,20,36000,33000,null,"8,0 x 400","8,0 x 400","10.0 x 260","8,0 x 480",null,null,null,null,"8,0 x 300","6,0 x 60","9,0 x 340",null,null,"8,0 x 300",8,300,100,19,20057.5,20100,null,null,"6,0 x 60",6,60,30,12,9494,11300,null,null,"9,0 x 340",9,340,330,11.5,27244,25400]
[null,"10.0 x 100",10,100,60,18.5,36000,26000,null,"10.0 x 280",10,280,257,20,36000,33000,null,"10.0 x 100","8,0 x 420","10.0 x 280","8,0 x 530",null,null,null,null,"8,0 x 320","6,0 x 70","9,0 x 360",null,null,"8,0 x 320",8,320,100,19,20057.5,20100,null,null,"6,0 x 70",6,70,40,12,9494,11300,null,null,"9,0 x 360",9,360,350,11.5,27244,25400]
[null,"10.0 x 120",10,120,80,18.5,36000,26000,null,"10.0 x 300",10,300,272,20,36000,33000,null,"10.0 x 120","8,0 x 440","10.0 x 300","8,0 x 580",null,null,null,null,"8,0 x 340","6,0 x 80","9,0 x 380",null,null,"8,0 x 340",8,340,100,19,20057.5,20100,null,null,"6,0 x 80",6,80,40,12,9494,11300,null,null,"9,0 x 380",9,380,370,11.5,27244,25400]
[null,"10.0 x 140",10,140,80,18.5,36000,26000,null,"10.0 x 320",10,320,292,20,36000,33000,null,"10.0 x 140","8,0 x 460","10.0 x 320","10,0 x 120",null,null,null,null,"8,0 x 360","6,0 x 90","9,0 x 400",null,null,"8,0 x 360",8,360,100,19,20057.5,20100,null,null,"6,0 x 90",6,90,50,12,9494,11300,null,null,"9,0 x 400",9,400,390,11.5,27244,25400]
[null,"10.0 x 160",10,160,100,18.5,36000,26000,null,"10.0 x 340",10,340,312,20,36000,33000,null,"10.0 x 160","8,0 x 480","10.0 x 340","10,0 x140",null,null,null,null,"8,0 x 380","6,0 x 100","9,0 x 440",null,null,"8,0 x 380",8,380,100,19,20057.5,20100,null,null,"6,0 x 100",6,100,50,12,9494,11300,null,null,"9,0 x 440",9,440,430,11.5,27244,25400]
[null,"10.0 x 180",10,180,100,18.5,36000,26000,null,"10.0 x 360",10,360,332,20,36000,33000,null,"10.0 x 180","8,0 x 500","10.0 x 360","10,0 x 160",null,null,null,null,"8,0 x 400","6,0 x 110","9,0 x 480",null,null,"8,0 x 400",8,400,100,19,20057.5,20100,null,null,"6,0 x 110",6,110,60,12,9494,11300,null,null,"9,0 x 480",9,480,470,11.5,27244,25400]
[null,"10.0 x 200",10,200,100,18.5,36000,26000,null,"10.0 x 380",10,380,352,20,36000,33000,null,"10.0 x 200","8,0 x 520","10.0 x 380","10,0 x 180",null,null,null,null,"8,0 x 440","6,0 x 120","9,0 x 520",null,null,"8,0 x 440",8,440,100,19,20057.5,20100,null,null,"6,0 x 120",6,120,60,12,9494,11300,null,null,"9,0 x 520",9,520,510,11.5,27244,25400]
[null,"10.0 x 220",10,220,100,18.5,36000,26000,null,"10.0 x 400",10,400,372,20,36000,33000,null,"10.0 x 220","8,0 x 540","10.0 x 400","10,0 x 200",null,null,null,null,"8,0 x 480","6,0 x 130","11,0 x 250",null,null,"8,0 x 480",8,480,100,19,20057.5,20100,null,null,"6,0 x 130",6,130,60,12,9494,11300,null,null,"11,0 x 250",11,250,240,13.5,45905,38000]
[null,"10.0 x 240",10,240,100,18.5,36000,26000,null,"10.0 x 430",10,430,402,20,36000,33000,null,"10.0 x 240","8,0 x 560","10.0 x 430","10,0 x 220",null,null,null,null,"8,0 x 520","6,0 x 140","11,0 x 300",null,null,"8,0 x 520",8,520,100,19,20057.5,20100,null,null,"6,0 x 140",6,140,75,12,9494,11300,null,null,"11,0 x 300",11,300,290,13.5,45905,38000]
[null,"10.0 x 260",10,260,100,18.5,36000,26000,null,"10.0 x 450",10,450,415,20,36000,33000,null,"10.0 x 260","10.0 x 100","10.0 x 450","10,0 x 240",null,null,null,null,"8,0 x 200 MAX","6,0 x 150","11,0 x 350",null,null,"8,0 x 200 MAX",8,200,120,24.5,20057.5,20100,null,null,"6,0 x 150",6,150,75,12,9494,11300,null,null,"11,0 x 350",11,350,340,13.5,45905,38000]
[null,"10.0 x 280",10,280,100,18.5,36000,26000,null,"10.0 x 480",10,480,442,20,36000,33000,null,"10.0 x 280","10.0 x 120","10.0 x 480","10,0 x 260",null,null,null,null,"8,0 x 220 MAX","6,0 x 160","11,0 x 400",null,null,"8,0 x 220 MAX",8,220,120,24.5,20057.5,20100,null,null,"6,0 x 160",6,160,75,12,9494,11300,null,null,"11,0 x 400",11,400,390,13.5,45905,38000]
[null,"10.0 x 300",10,300,100,18.5,36000,26000,null,"10.0 x 530",10,530,492,20,36000,33000,null,"10.0 x 300","10.0 x 140","10.0 x 530","10,0 x 280",null,null,null,null,"8,0 x x240 MAX","6,0 x 170","11,0 x 450",null,null,"8,0 x x240 MAX",8,240,120,24.5,20057.5,20100,null,null,"6,0 x 180",6,180,75,12,9494,11300,null,null,"11,0 x 450",11,450,440,13.5,45905,38000]
[null,"10.0 x 320",10,320,120,18.5,36000,26000,null,"10.0 x 580",10,580,542,20,36000,33000,null,"10.0 x 320","10.0 x 160","10.0 x 580","10,0 x 300",null,null,null,null,"10,0 x 100","6,0 x 180","11,0 x 500",null,null,"10,0 x 100",10,100,52,25,35829.599999999999,31400,null,null,"6,0 x 200",6,200,75,12,9494,11300,null,null,"11,0 x 500",11,500,490,13.5,45905,38000]
[null,"10.0 x 340",10,340,120,18.5,36000,26000,null,null,null,null,null,null,null,null,null,"10.0 x 340","10.0 x 180",null,"10,0 x 320",null,null,null,null,"10,0 x 120","6,0 x 200","11,0 x 550",null,null,"10,0 x 120",10,120,60,25,35829.599999999999,31400,null,null,"6,0 x 220",6,220,75,12,9494,11300,null,null,"11,0 x 550",11,550,540,13.5,45905,38000]
[null,"10.0 x 360",10,360,120,18.5,36000,26000,null,null,null,null,null,null,null,null,null,"10.0 x 360","10.0 x 200",null,"10,0 x 340",null,null,null,null,"10,0 x 140","6,0 x 220","11,0 x 600",null,null,"10,0 x 140",10,140,60,25,35829.599999999999,31400,null,null,"6,0 x 240",6,240,75,12,9494,11300,null,null,"11,0 x 600",11,600,590,13.5,45905,38000]
[null,"10.0 x 380",10,380,120,18.5,36000,26000,null,null,null,null,null,null,null,null,null,"10.0 x 380","10.0 x 220",null,"10,0 x 360",null,null,null,null,"10,0 x 160","6,0 x 240",null,null,null,"10,0 x 160",10,160,80,25,35829.599999999999,31400,null,null,"6,0 x 260",6,260,75,12,9494,11300]
[null,"10.0 x 400",10,400,120,18.5,36000,26000,null,null,null,null,null,null,null,null,null,"10.0 x 400","10.0 x 240",null,"10,0 x 380",null,null,null,null,"10,0 x 180","6,0 x 260",null,null,null,"10,0 x 180",10,180,80,25,35829.599999999999,31400,null,null,"6,0 x 280",6,280,75,12,9494,11300]
[null,null,null,null,null,null,null,null,null,null,null,null,null,null,null,null,null,null,"10.0 x 260",null,"10,0 x 400",null,null,null,null,"10,0 x 200","6,0 x 280",null,null,null,"10,0 x 200",10,200,100,25,35829.599999999999,31400,null,null,"6,0 x 300",6,300,75,12,9494,11300]
[null,null,null,null,null,null,null,null,null,null,null,null,null,null,null,null,null,null,"10.0 x 280",null,"10,0 x 430",null,null,null,null,"10,0 x 220","6,0 x 300",null,null,null,"10,0 x 220",10,220,100,25,35829.599999999999,31400,null,null,"8,0 x 80",8,80,52,14.5,20057,20100]
[null,null,null,null,null,null,null,null,null,null,null,null,null,null,null,null,null,null,"10.0 x 300",null,"10,0 x 450",null,null,null,null,"10,0 x 240","8,0 x 80",null,null,null,"10,0 x 240",10,240,100,25,35829.599999999999,31400,null,null,"8,0 x 100",8,100,52,14.5,20057,20100]
[null,null,null,null,null,null,null,null,null,null,null,null,null,null,null,null,null,null,"10.0 x 320",null,"10,0 x 480",null,null,null,null,"10,0 x 260","8,0 x 100",null,null,null,"10,0 x 260",10,260,100,25,35829.599999999999,31400,null,null,"8,0 x 120",8,120,60,14.5,20057,20100]
[null,null,null,null,null,null,null,null,null,null,null,null,null,null,null,null,null,null,"10.0 x 340",null,"10,0 x 530",null,null,null,null,"10,0 x 280","8,0 x 120",null,null,null,"10,0 x 280",10,280,100,25,35829.599999999999,31400,null,null,"8,0 x 140",8,140,60,14.5,20057,20100]
[null,null,null,null,null,null,null,null,null,null,null,null,null,null,null,null,null,null,"10.0 x 360",null,"10,0 x 580",null,null,null,null,"10,0 x 300","8,0 x 140",null,null,null,"10,0 x 300",10,300,100,25,35829.599999999999,31400,null,null,"8,0 x 160",8,160,80,14.5,20057,20100]
[null,null,null,null,null,null,null,null,null,null,null,null,null,null,null,null,null,null,"10.0 x 380",null,null,null,null,null,null,"10,0 x 320","8,0 x 160",null,null,null,"10,0 x 320",10,320,120,25,35829.599999999999,31400,null,null,"8,0 x 180",8,180,80,14.5,20057,20100]
[null,null,null,null,null,null,null,null,null,null,null,null,null,null,null,null,null,null,"10.0 x 400",null,null,null,null,null,null,"10,0 x 340","8,0 x 180",null,null,null,"10,0 x 340",10,340,120,25,35829.599999999999,31400,null,null,"8,0 x 200",8,200,80,14.5,20057,20100]
[null,"Teilgewinde Scheibenkopf",null,null,null,null,null,null,null,"Vollgewinde Zylinderkopf",null,null,null,null,null,null,null,null,"10.0 x 420",null,null,null,null,null,null,"10,0 x 360","8,0 x 200",null,null,null,"10,0 x 360",10,360,120,25,35829.599999999999,31400,null,null,"8,0 x 220",8,220,80,14.5,20057,20100]
[null,"Typ","d (mm)","länge Lsch (mm)","Gewinde länge (mm)","Kopftdurchemesser dk (mm)","Fließmoment My,k (Nmm)","Zugtragfähigkeit Rt,u,k (N)",null,"Typ","d (mm)","länge Lsch (mm)","Gewinde länge (mm)","Kopftdurchemesser dk (mm)","Fließmoment My,k (Nmm)","Zugtragfähigkeit Rt,u,k (N)",null,null,"10.0 x 440",null,null,null,null,null,null,"10,0 x 380","8,0 x 220",null,null,null,"10,0 x 380",10,380,120,25,35829.599999999999,31400,null,null,"8,0 x 240",8,240,80,14.5,20057,20100]
[null,"6,0 x 80",6,80,50,14,10000,12500,null,"6,0 x 80",6,80,67,8.1999999999999993,10000,12500,null,null,"10.0 x 460",null,null,null,null,null,null,"10,0 x 400","8,0 x 240",null,null,null,"10,0 x 400",10,400,120,25,35829.599999999999,31400,null,null,"8,0 x 260",8,260,80,14.5,20057,20100]
[null,"6,0 x 100",6,100,60,14,10000,12500,null,"6,0 x 100",6,100,87,8.1999999999999993,10000,12500,null,null,"10.0 x 480",null,null,null,null,null,null,"10,0 x 440","8,0 x 260",null,null,null,"10,0 x 440",10,440,120,25,35829.599999999999,31400,null,null,"8,0 x 280",8,280,80,14.5,20057,20100]
[null,"6,0 x 120",6,120,70,14,10000,12500,null,"6,0 x 120",6,120,107,8.1999999999999993,10000,12500,null,null,"10.0 x 500",null,null,null,null,null,null,"10,0 x 480","8,0 x 280",null,null,null,"10,0 x 480",10,480,120,25,35829.599999999999,31400,null,null,"8,0 x 300",8,300,100,14.5,20057,20100]
[null,"6,0 x 140",6,140,70,14,10000,12500,null,"6,0 x 140",6,140,123,8.1999999999999993,10000,12500,null,null,"10.0 x 520",null,null,null,null,null,null,"10,0 x 520","8,0 x 300",null,null,null,"10,0 x 520",10,520,120,25,35829.599999999999,31400,null,null,"8,0 x 320",8,320,100,14.5,20057,20100]
[null,"6,0 x 160",6,160,70,14,10000,12500,null,"6,0 x 160",6,160,143,8.1999999999999993,10000,12500,null,null,"10.0 x 540",null,null,null,null,null,null,null,"8,0 x 320",null,null,null,null,null,null,null,null,null,null,null,null,"8,0 x 340",8,340,100,14.5,20057,20100]
[null,"6,0 x 180",6,180,70,14,10000,12500,null,"6,0 x 180",6,180,163,8.1999999999999993,10000,12500,null,null,"10.0 x 560",null,null,null,null,null,null,null,"8,0 x 340",null,null,null,null,null,null,null,null,null,null,null,null,"8,0 x 360",8,360,100,14.5,20057,20100]
[null,"6,0 x 200",6,200,70,14,10000,12500,null,"6,0 x 200",6,200,183,8.1999999999999993,10000,12500,null,null,"10.0 x 580",null,null,null,null,null,null,null,"8,0 x 360",null,null,null,null,null,null,null,null,null,null,null,null,"8,0 x 380",8,380,100,14.5,20057,20100]
[null,"6,0 x 220",6,220,70,14,10000,12500,null,"6,0 x 220",6,220,203,8.1999999999999993,10000,12500,null,null,"10.0 x 600",null,null,null,null,null,null,null,"8,0 x 380",null,null,null,null,null,null,null,null,null,null,null,null,"8,0 x 400",8,400,100,14.5,20057,20100]
[null,"6,0 x 240",6,240,70,14,10000,12500,null,"6,0 x 240",6,240,223,8.1999999999999993,10000,12500,null,null,"12.0 x 320",null,null,null,null,null,null,null,"8,0 x 400",null,null,null,null,null,null,null,null,null,null,null,null,"8,0 x 440",8,440,100,14.5,20057,20100]
[null,"6,0 x 260",6,260,70,14,10000,12500,null,"6,0 x 260",6,260,243,8.1999999999999993,10000,12500,null,null,null,null,null,null,null,null,null,null,"8,0 x 440",null,null,null,null,null,null,null,null,null,null,null,null,"8,0 x 480",8,480,100,14.5,20057,20100]
[null,"6,0 x 280",6,280,70,14,10000,12500,null,"8,0 x 120",8,120,101,10,23000,22000,null,null,null,null,null,null,null,null,null,null,"8,0 x 480",null,null,null,null,null,null,null,null,null,null,null,null,"8,0 x 520",8,520,100,14.5,20057,20100]
[null,"6,0 x 300",6,300,70,14,10000,12500,null,"8,0 x 140",8,140,121,10,23000,22000,null,null,null,null,null,null,null,null,null,null,"8,0 x 520",null,null,null,null,null,null,null,null,null,null,null,null,"10,0 x 80",10,80,52,18.25,35830,31400]
[null,"8,0 x 100",8,100,60,22,23000,21500,null,"8,0 x 160",8,160,141,10,23000,22000,null,null,null,null,null,null,null,null,null,null,"10,0 x 80",null,null,null,null,null,null,null,null,null,null,null,null,"10,0 x 100",10,100,52,18.25,35830,31400]
[null,"8,0 x 120",8,120,80,22,23000,21500,null,"8,0 x 180",8,180,161,10,23000,22000,null,null,null,null,null,null,null,null,null,null,"10,0 x 100",null,null,null,null,null,null,null,null,null,null,null,null,"10,0 x 120",10,120,60,18.25,35830,31400]
[null,"8,0 x 140",8,140,80,22,23000,21500,null,"8,0 x 200",8,200,181,10,23000,22000,null,null,null,null,null,null,null,null,null,null,"10,0 x 120",null,null,null,null,null,null,null,null,null,null,null,null,"10,0 x 140",10,140,60,18.25,35830,31400]
[null,"8,0 x 160",8,160,80,22,23000,21500,null,"8,0 x 220",8,220,201,10,23000,22000,null,null,null,null,null,null,null,null,null,null,"10,0 x 140",null,null,null,null,null,null,null,null,null,null,null,null,"10,0 x 160",10,160,80,18.25,35830,31400]
[null,"8,0 x 180",8,180,80,22,23000,21500,null,"8,0 x 240",8,240,221,10,23000,22000,null,null,null,null,null,null,null,null,null,null,"10,0 x 160",null,null,null,null,null,null,null,null,null,null,null,null,"10,0 x 180",10,180,80,18.25,35830,31400]
[null,"8,0 x 200",8,200,80,22,23000,21500,null,"8,0 x 260",8,260,241,10,23000,22000,null,null,null,null,null,null,null,null,null,null,"10,0 x 180",null,null,null,null,null,null,null,null,null,null,null,null,"10,0 x 200",10,200,80,18.25,35830,31400]
[null,"8,0 x 220",8,220,100,22,23000,21500,null,"8,0 x 280",8,280,261,10,23000,22000,null,null,null,null,null,null,null,null,null,null,"10,0 x 200",null,null,null,null,null,null,null,null,null,null,null,null,"10,0 x 220",10,220,80,18.25,35830,31400]
[null,"8,0 x 240",8,240,100,22,23000,21500,null,"8,0 x 300",8,300,275,10,23000,22000,null,null,null,null,null,null,null,null,null,null,"10,0 x 220",null,null,null,null,null,null,null,null,null,null,null,null,"10,0 x 240",10,240,80,18.25,35830,31400]
[null,"8,0 x 260",8,260,100,22,23000,21500,null,"8,0 x 320",8,320,295,10,23000,22000,null,null,null,null,null,null,null,null,null,null,"10,0 x 240",null,null,null,null,null,null,null,null,null,null,null,null,"10,0 x 260",10,260,80,18.25,35830,31400]
[null,"8,0 x 280",8,280,100,22,23000,21500,null,"8,0 x 330",8,330,305,10,23000,22000,null,null,null,null,null,null,null,null,null,null,"10,0 x 260",null,null,null,null,null,null,null,null,null,null,null,null,"10,0 x 280",10,280,80,18.25,35830,31400]
[null,"8,0 x 300",8,300,100,22,23000,21500,null,"8,0 x 340",8,340,315,10,23000,22000,null,null,null,null,null,null,null,null,null,null,"10,0 x 280",null,null,null,null,null,null,null,null,null,null,null,null,"10,0 x 300",10,300,100,18.25,35830,31400]
[null,"8,0 x 320",8,320,100,22,23000,21500,null,"8,0 x 360",8,360,335,10,23000,22000,null,null,null,null,null,null,null,null,null,null,"10,0 x 300",null,null,null,null,null,null,null,null,null,null,null,null,"10,0 x 320",10,320,100,18.25,35830,31400]
[null,"8,0 x 330",8,330,100,22,23000,21500,null,"8,0 x 380",8,380,355,10,23000,22000,null,null,null,null,null,null,null,null,null,null,"10,0 x 320",null,null,null,null,null,null,null,null,null,null,null,null,"10,0 x 340",10,340,100,18.25,35830,31400]
[null,"8,0 x 340",8,340,100,22,23000,21500,null,"8,0 x 400",8,400,375,10,23000,22000,null,null,null,null,null,null,null,null,null,null,"10,0 x 340",null,null,null,null,null,null,null,null,null,null,null,null,"10,0 x 360",10,360,100,18.25,35830,31400]
[null,"8,0 x 360",8,360,100,22,23000,21500,null,"8,0 x 430",8,430,405,10,23000,22000,null,null,null,null,null,null,null,null,null,null,"10,0 x 360",null,null,null,null,null,null,null,null,null,null,null,null,"10,0 x 380",10,380,100,18.25,35830,31400]
[null,"8,0 x 380",8,380,100,22,23000,21500,null,"8,0 x 450",8,450,425,10,23000,22000,null,null,null,null,null,null,null,null,null,null,"10,0 x 380",null,null,null,null,null,null,null,null,null,null,null,null,"10,0 x 400",10,400,100,18.25,35830,31400]
[null,"8,0 x 400",8,400,100,22,23000,21500,null,"8,0 x 480",8,480,445,10,23000,22000,null,null,null,null,null,null,null,null,null,null,"10,0 x 400",null,null,null,null,null,null,null,null,null,null,null,null,"12,0 x 120",12,120,80,20.75,47966,33900]
[null,"8,0 x 420",8,420,100,22,23000,21500,null,"8,0 x 530",8,530,495,10,23000,22000,null,null,null,null,null,null,null,null,null,null,"12,0 x 120",null,null,null,null,null,null,null,null,null,null,null,null,"12,0 x 160",12,160,80,20.75,47966,33900]
[null,"8,0 x 440",8,440,100,22,23000,21500,null,"8,0 x 580",8,580,545,10,23000,22000,null,null,null,null,null,null,null,null,null,null,"12,0 x 160",null,null,null,null,null,null,null,null,null,null,null,null,"12,0 x 200",12,200,80,20.75,47966,33900]
[null,"8,0 x 460",8,460,100,22,23000,21500,null,"10,0 x 120",10,120,97,13.4,36000,33000,null,null,null,null,null,null,null,null,null,null,"12,0 x 200",null,null,null,null,null,null,null,null,null,null,null,null,"12,0 x 240",12,240,80,20.75,47966,33900]
[null,"8,0 x 480",8,480,100,22,23000,21500,null,"10,0 x 140",10,140,117,13.4,36000,33000,null,null,null,null,null,null,null,null,null,null,"12,0 x 240",null,null,null,null,null,null,null,null,null,null,null,null,"12,0 x 280",12,280,80,20.75,47966,33900]
[null,"8,0 x 500",8,500,100,22,23000,21500,null,"10,0 x 160",10,160,137,13.4,36000,33000,null,null,null,null,null,null,null,null,null,null,"12,0 x 280",null,null,null,null,null,null,null,null,null,null,null,null,"12,0 x 320",12,320,120,20.75,47966,33900]
[null,"8,0 x 520",8,520,100,22,23000,21500,null,"10,0 x 180",10,180,157,13.4,36000,33000,null,null,null,null,null,null,null,null,null,null,"12,0 x 320",null,null,null,null,null,null,null,null,null,null,null,null,"12,0 x 360",12,360,120,20.75,47966,33900]
[null,"8,0 x 540",8,540,100,22,23000,21500,null,"10,0 x 200",10,200,177,13.4,36000,33000,null,null,null,null,null,null,null,null,null,null,"12,0 x 360",null,null,null,null,null,null,null,null,null,null,null,null,"12,0 x 400",12,400,120,20.75,47966,33900]
[null,"8,0 x 560",8,560,100,22,23000,21500,null,"10,0 x 220",10,220,197,13.4,36000,33000,null,null,null,null,null,null,null,null,null,null,"12,0 x 400",null,null,null,null,null,null,null,null,null,null,null,null,"12,0 x 440",12,440,120,20.75,47966,33900]
[null,"10.0 x 100",10,100,60,25.2,36000,26000,null,"10,0 x 240",10,240,217,13.4,36000,33000,null,null,null,null,null,null,null,null,null,null,"12,0 x 440",null,null,null,null,null,null,null,null,null,null,null,null,"12,0 x 480",12,480,120,20.75,47966,33900]
[null,"10.0 x 120",10,120,80,25.2,36000,26000,null,"10,0 x 260",10,260,237,13.4,36000,33000,null,null,null,null,null,null,null,null,null,null,"12,0 x 480",null,null,null,null,null,null,null,null,null,null,null,null,"12,0 x 520",12,520,120,20.75,47966,33900]
[null,"10.0 x 140",10,140,80,25.2,36000,26000,null,"10,0 x 280",10,280,257,13.4,36000,33000,null,null,null,null,null,null,null,null,null,null,"12,0 x 520",null,null,null,null,null,null,null,null,null,null,null,null,"12,0 x 560",12,560,120,20.75,47966,33900]
[null,"10.0 x 160",10,160,100,25.2,36000,26000,null,"10,0 x 300",10,300,272,13.4,36000,33000,null,null,null,null,null,null,null,null,null,null,"12,0 x 560",null,null,null,null,null,null,null,null,null,null,null,null,"12,0 x 600",12,600,120,20.75,47966,33900]
[null,"10.0 x 180",10,180,100,25.2,36000,26000,null,"10,0 x 320",10,320,292,13.4,36000,33000,null,null,null,null,null,null,null,null,null,null,"12,0 x 600"]
[null,"10.0 x 200",10,200,100,25.2,36000,26000,null,"10,0 x 340",10,340,312,13.4,36000,33000]
[null,"10.0 x 220",10,220,100,25.2,36000,26000,null,"10,0 x 360",10,360,332,13.4,36000,33000]
[null,"10.0 x 240",10,240,100,25.2,36000,26000,null,"10,0 x 380",10,380,352,13.4,36000,33000]
[null,"10.0 x 260",10,260,100,25.2,36000,26000,null,"10,0 x 400",10,400,372,13.4,36000,33000]
[null,"10.0 x 280",10,280,100,25.2,36000,26000,null,"10,0 x 430",10,430,402,13.4,36000,33000]
[null,"10.0 x 300",10,300,100,25.2,36000,26000,null,"10,0 x 450",10,450,422,13.4,36000,33000]
[null,"10.0 x 320",10,320,120,25.2,36000,26000,null,"10,0 x 480",10,480,442,13.4,36000,33000]
[null,"10.0 x 340",10,340,120,25.2,36000,26000,null,"10,0 x 530",10,530,492,13.4,36000,33000]
[null,"10.0 x 360",10,360,120,25.2,36000,26000,null,"10,0 x 580",10,580,542,13.4,36000,33000]
[null,"10.0 x 380",10,380,120,25.2,36000,26000,null,null,null,null,null,null,null,null,null,null,null,null,"TeilgewindeSenkkopf_S"]
[null,"10.0 x 400",10,400,120,25.2,36000,26000]
[null,"10.0 x 420",10,420,120,25.2,36000,26000]
[null,"10.0 x 440",10,440,120,25.2,36000,26000]
[null,"10.0 x 460",10,460,120,25.2,36000,26000]
[null,"10.0 x 480",10,480,120,25.2,36000,26000]
[null,"10.0 x 500",10,500,120,25.2,36000,26000]
[null,"10.0 x 520",10,520,120,25.2,36000,26000]
[null,"10.0 x 540",10,540,120,25.2,36000,26000]
[null,"10.0 x 560",10,560,120,25.2,36000,26000]
[null,"10.0 x 580",10,580,120,25.2,36000,26000]
[null,"10.0 x 600",10,600,120,25.2,36000,26000]
[null,"12.0 x 320",12,320,120,29.4,58000,41000]
[]
[]
[]
[]
[]
[]
[]
[]
[]
[]
[]
[]
[]
[]
[]
[]
[]
[]
[]
[]
[]
[]
[]
[]
[]
[]
[]
[]
[]
[]
[]
[null,"Spax T-STAR plus"]
[]
[]
[null,"TeilgewindeSenkkopf_S",null,null,null,null,null,null,null,"TeilgewindeTellerkopf_S"]
[null,"Typ","d (mm)","länge Lsch (mm)","Gewinde länge (mm)","Kopftdurchemesser dk (mm)","Fließmoment My,k (Nmm)","Zugtragfähigkeit Rt,u,k (N)",null,"Typ","d (mm)","länge Lsch (mm)","Gewinde länge (mm)","Kopftdurchemesser dk (mm)","Fließmoment My,k (Nmm)","Zugtragfähigkeit Rt,u,k (N)"]
[null,"8,0 x 80",8,80,47,15.1,20057,17000,null,"6,0 x 40",6,40,37,13.6,9493,11000,null,"Spax T-STAR plus"]
[null,"8,0 x 100",8,100,57,15.1,20057,17000,null,"6,0 x 60",6,60,56,13.6,9493,11000,null,"TeilgewindeSenkkopf_S","TeilgewindeTellerkopf_S"]
[null,"8,0 x 120",8,120,70,15.1,20057,17000,null,"6,0 x 80",6,80,61,13.6,9493,11000,null,"8,0 x 80","6,0 x 40"]
[null,"8,0 x 140",8,140,80,15.1,20057,17000,null,"6,0 x 100",6,100,61,13.6,9493,11000,null,"8,0 x 100","6,0 x 60"]
[null,"8,0 x 160",8,160,80,15.1,20057,17000,null,"6,0 x 120",6,120,68,13.6,9493,11000,null,"8,0 x 120","6,0 x 80"]
[null,"8,0 x 180",8,180,80,15.1,20057,17000,null,"6,0 x 140",6,140,68,13.6,9493,11000,null,"8,0 x 140","6,0 x 100"]
[null,"8,0 x 200",8,200,80,15.1,20057,17000,null,"6,0 x 160",6,160,65,13.6,9493,11000,null,"8,0 x 160","6,0 x 120"]
[null,"8,0 x 220",8,220,80,15.1,20057,17000,null,"6,0 x 180",6,180,65,13.6,9493,11000,null,"8,0 x 180","6,0 x 140"]
[null,"8,0 x 240",8,240,80,15.1,20057,17000,null,"6,0 x 200",6,200,65,13.6,9493,11000,null,"8,0 x 200","6,0 x 160"]
[null,"8,0 x 260",8,260,80,15.1,20057,17000,null,"6,0 x 220",6,220,65,13.6,9493,11000,null,"8,0 x 220","6,0 x 180"]
[null,"8,0 x 280",8,280,80,15.1,20057,17000,null,"6,0 x 250",6,250,65,13.6,9493,11000,null,"8,0 x 240","6,0 x 200"]
[null,"8,0 x 300",8,300,80,15.1,20057,17000,null,"6,0 x 280",6,280,65,13.6,9493,11000,null,"8,0 x 260","6,0 x 220"]
[null,"8,0 x 320",8,320,80,15.1,20057,17000,null,"6,0 x 300",6,300,65,13.6,9493,11000,null,"8,0 x 280","6,0 x 250"]
[null,"8,0 x 340",8,340,80,15.1,20057,17000,null,"8,0 x 80",8,80,70,20,20057,17000,null,"8,0 x 300","6,0 x 280"]
[null,"8,0 x 360",8,360,80,15.1,20057,17000,null,"8,0 x 100",8,100,80,20,20057,17000,null,"8,0 x 320","6,0 x 300"]
[null,"8,0 x 380",8,380,80,15.1,20057,17000,null,"8,0 x 120",8,120,80,20,20057,17000,null,"8,0 x 340","8,0 x 80"]
[null,"8,0 x 400",8,400,80,15.1,20057,17000,null,"8,0 x 140",8,140,80,20,20057,17000,null,"8,0 x 360","8,0 x 100"]
[null,"8,0 x 450",8,450,80,15.1,20057,17000,null,"8,0 x 160",8,160,80,20,20057,17000,null,"8,0 x 380","8,0 x 120"]
[null,"10,0 x 80",10,80,50,18.600000000000001,35829,28000,null,"8,0 x 180",8,180,80,20,20057,17000,null,"8,0 x 400","8,0 x 140"]
[null,"10,0 x 100",10,100,60,18.600000000000001,35829,28000,null,"8,0 x 200",8,200,80,20,20057,17000,null,"8,0 x 450","8,0 x 160"]
[null,"10,0 x 120",10,120,80,18.600000000000001,35829,28000,null,"8,0 x 220",8,220,80,20,20057,17000,null,"10,0 x 80","8,0 x 180"]
[null,"10,0 x 140",10,140,80,18.600000000000001,35829,28000,null,"8,0 x 240",8,240,80,20,20057,17000,null,"10,0 x 100","8,0 x 200"]
[null,"10,0 x 160",10,160,80,18.600000000000001,35829,28000,null,"8,0 x 260",8,260,80,20,20057,17000,null,"10,0 x 120","8,0 x 220"]
[null,"10,0 x 180",10,180,80,18.600000000000001,35829,28000,null,"8,0 x 280",8,280,80,20,20057,17000,null,"10,0 x 140","8,0 x 240"]
[null,"10,0 x 200",10,200,80,18.600000000000001,35829,28000,null,"8,0 x 300",8,300,80,20,20057,17000,null,"10,0 x 160","8,0 x 260"]
[null,"10,0 x 220",10,220,80,18.600000000000001,35829,28000,null,"8,0 x 320",8,320,80,20,20057,17000,null,"10,0 x 180","8,0 x 280"]
[null,"10,0 x 240",10,240,80,18.600000000000001,35829,28000,null,"8,0 x 340",8,340,80,20,20057,17000,null,"10,0 x 200","8,0 x 300"]
[null,"10,0 x 260",10,260,80,18.600000000000001,35829,28000,null,"8,0 x 360",8,360,80,20,20057,17000,null,"10,0 x 220","8,0 x 320"]
[null,"10,0 x 280",10,280,80,18.600000000000001,35829,28000,null,"8,0 x 380",8,380,80,20,20057,17000,null,"10,0 x 240","8,0 x 340"]
[null,"10,0 x 300",10,300,80,18.600000000000001,35829,28000,null,"8,0 x 400",8,400,80,20,20057,17000,null,"10,0 x 260","8,0 x 360"]
[null,"10,0 x 320",10,320,80,18.600000000000001,35829,28000,null,"8,0 x 450",8,450,80,20,20057,17000,null,"10,0 x 280","8,0 x 380"]
[null,"10,0 x 340",10,340,80,18.600000000000001,35829,28000,null,"8,0 x 500",8,500,80,20,20057,17000,null,"10,0 x 300","8,0 x 400"]
[null,"10,0 x 360",10,360,80,18.600000000000001,35829,28000,null,"8,0 x 550",8,550,80,20,20057,17000,null,"10,0 x 320","8,0 x 450"]
[null,"10,0 x 380",10,380,80,18.600000000000001,35829,28000,null,"10,0 x 80",10,80,70,25,35829,28000,null,"10,0 x 340","8,0 x 500"]
[null,"10,0 x 400",10,400,80,18.600000000000001,35829,28000,null,"10,0 x 100",10,100,80,25,35829,28000,null,"10,0 x 360","8,0 x 550"]
[null,"10,0 x 450",10,450,80,18.600000000000001,35829,28000,null,"10,0 x 120",10,120,80,25,35829,28000,null,"10,0 x 380","10,0 x 80"]
[null,null,null,null,null,null,null,null,null,"10,0 x 140",10,140,80,25,35829,28000,null,"10,0 x 400","10,0 x 100"]
[null,null,null,null,null,null,null,null,null,"10,0 x 160",10,160,80,25,35829,28000,null,"10,0 x 450","10,0 x 120"]
[null,null,null,null,null,null,null,null,null,"10,0 x 180",10,180,80,25,35829,28000,null,null,"10,0 x 140"]
[null,null,null,null,null,null,null,null,null,"10,0 x 200",10,200,80,25,35829,28000,null,null,"10,0 x 160"]
[null,null,null,null,null,null,null,null,null,"10,0 x 220",10,220,80,25,35829,28000,null,null,"10,0 x 180"]
[null,null,null,null,null,null,null,null,null,"10,0 x 240",10,240,80,25,35829,28000,null,null,"10,0 x 200"]
[null,null,null,null,null,null,null,null,null,"10,0 x 260",10,260,80,25,35829,28000,null,null,"10,0 x 220"]
[null,null,null,null,null,null,null,null,null,"10,0 x 280",10,280,80,25,35829,28000,null,null,"10,0 x 240"]
[null,null,null,null,null,null,null,null,null,"10,0 x 300",10,300,80,25,35829,28000,null,null,"10,0 x 260"]
[null,null,null,null,null,null,null,null,null,"10,0 x 320",10,320,80,25,35829,28000,null,null,"10,0 x 280"]
[null,null,null,null,null,null,null,null,null,"10,0 x 340",10,340,80,25,35829,28000,null,null,"10,0 x 300"]
[null,null,null,null,null,null,null,null,null,"10,0 x 360",10,360,80,25,35829,28000,null,null,"10,0 x 320"]
[null,null,null,null,null,null,null,null,null,"10,0 x 380",10,380,80,25,35829,28000,null,null,"10,0 x 340"]
[null,null,null,null,null,null,null,null,null,"10,0 x 400",10,400,80,25,35829,28000,null,null,"10,0 x 360"]
[null,null,null,null,null,null,null,null,null,"10,0 x 450",10,450,80,25,35829,28000,null,null,"10,0 x 380"]
[null,null,null,null,null,null,null,null,null,null,null,null,null,null,null,null,null,null,"10,0 x 400"]
[null,null,null,null,null,null,null,null,null,null,null,null,null,null,null,null,null,null,"10,0 x 450"]
[]
[]
[]
[]
[null,"Würth Assy plus",null,null,null,null,null,null,null,null,null,null,null,null,null,null,null,"Würth Assy plus"]
[]
[null,"Teilgewinde",null,null,null,null,null,null,null,"Vollgewinde",null,null,null,null,null,null,null,"Teilgewinde",null,null,null,null,"Vollgewinde"]
[null,"Typ","d (mm)","länge Lsch (mm)","Gewinde länge (mm)","Kopftdurchemesser dk (mm)",null,null,null,"Typ","d (mm)","länge Lsch (mm)","Gewinde länge (mm)","Kopftdurchemesser dk (mm)",null,null,null,"Produit","d (mm)","longueur Lsch (mm)","Longueur filetée (mm)",null,"Produit","d (mm)","longueur Lsch (mm)","Longueur filetée (mm)","Diamètre de la tête (mm)"]
[null,"8,0 x 140 ",8,140,80,14.5,null,null,null,"8,0 x 160",8,160,{"$f":"L222","v":160},10,null,null,null,"8,0 x 140 ",8,140,80,null,"8,0 x 160",8,160,{"$f":"Y222","v":160},10]
[null,"8,0 x 160",8,160,80,14.5,null,null,null,"8,0 x 180",8,180,{"$f":"L223","v":180},10,null,null,null,"8,0 x 160",8,160,80,null,"8,0 x 180",8,180,{"$f":"Y223","v":180},10]
[null,"8,0 x 180",8,180,80,14.5,null,null,null,"8,0 x 200",8,200,200,10,null,null,null,"8,0 x 180",8,180,80,null,"8,0 x 200",8,200,200,10]
[null,"8,0 x 200",8,200,80,14.5,null,null,null,"8,0 x 220",8,220,220,10,null,null,null,"8,0 x 200",8,200,80,null,"8,0 x 220",8,220,220,10]
[null,"8,0 x 220",8,220,80,14.5,null,null,null,"8,0 x 240",8,240,240,10,null,null,null,"8,0 x 220",8,220,80,null,"8,0 x 240",8,240,240,10]
[null,"8,0 x 240",8,240,100,14.5,null,null,null,"8,0 x 260",8,260,260,10,null,null,null,"8,0 x 240",8,240,100,null,"8,0 x 260",8,260,260,10]
[null,"8,0 x 260",8,260,100,14.5,null,null,null,"8,0 x 280",8,280,280,10,null,null,null,"8,0 x 260",8,260,100,null,"8,0 x 280",8,280,280,10]
[null,"8,0 x 280",8,280,100,14.5,null,null,null,"8,0 x 300",8,300,300,10,null,null,null,"8,0 x 280",8,280,100,null,"8,0 x 300",8,300,300,10]
[null,"8,0 x 300",8,300,100,14.5,null,null,null,"8,0 x 330",8,330,330,10,null,null,null,"8,0 x 300",8,300,100,null,"8,0 x 330",8,330,330,10]
[null,null,null,null,null,null,null,null,null,"8,0 x 380",8,380,380,10,null,null,null,null,null,null,null,null,"8,0 x 380",8,380,380,10]
[null,null,null,null,null,null,null,null,null,"8,0 x 430",8,430,430,10,null,null,null,null,null,null,null,null,"8,0 x 430",8,430,430,10]
[null,null,null,null,null,null,null,null,null,"8,0 x 480",8,480,480,10,null,null,null,null,null,null,null,null,"8,0 x 480",8,480,480,10]
[null,null,null,null,null,null,null,null,null,"8,0 x 530",8,530,530,10,null,null,null,null,null,null,null,null,"8,0 x 530",8,530,530,10]
[null,null,null,null,null,null,null,null,null,"8,0 x 580",8,580,580,10,null,null,null,null,null,null,null,null,"8,0 x 580",8,580,580,10]
[]
[]
[]
[]
[]
[]
[null,"Spax T-STAR plus",null,null,null,null,null,null,null,null,null,null,null,null,null,null,null,"Spax T-STAR plus"]
[]
[]
[null,"Teilgewinde",null,null,null,null,null,null,null,"Vollgewinde",null,null,null,null,null,null,null,"Teilgewinde",null,null,null,null,"Vollgewinde"]
[null,"Typ","d (mm)","länge Lsch (mm)","Gewinde länge (mm)","Kopftdurchemesser dk (mm)",null,null,null,"Typ","d (mm)","länge Lsch (mm)","Gewinde länge (mm)","Kopftdurchemesser dk (mm)",null,null,null,"Produit","d (mm)","longueur Lsch (mm)","Longueur filetée (mm)",null,"Produit","d (mm)","longueur Lsch (mm)","Longueur filetée (mm)","Diamètre de la tête (mm)"]
[null,"8,0 x 100 ",8,100,57,14.5,null,null,null,"8,0 x 160",8,160,{"$f":"L247","v":160},10,null,null,null,"8,0 x 100 ",8,100,57,null,"8,0 x 160",8,160,{"$f":"Y247","v":160},10]
[null,"8,0 x 120 ",8,120,70,14.5,null,null,null,"8,0 x 180",8,180,{"$f":"L248","v":180},10,null,null,null,"8,0 x 120 ",8,120,70,null,"8,0 x 180",8,180,{"$f":"Y248","v":180},10]
[null,"8,0 x 140 ",8,140,80,14.5,null,null,null,"8,0 x 200",8,200,200,10,null,null,null,"8,0 x 140 ",8,140,80,null,"8,0 x 200",8,200,200,10]
[null,"8,0 x 160",8,160,80,14.5,null,null,null,"8,0 x 220",8,220,220,10,null,null,null,"8,0 x 160",8,160,80,null,"8,0 x 220",8,220,220,10]
[null,"8,0 x 180",8,180,80,14.5,null,null,null,"8,0 x 240",8,240,240,10,null,null,null,"8,0 x 180",8,180,80,null,"8,0 x 240",8,240,240,10]
[null,"8,0 x 200",8,200,80,14.5,null,null,null,"8,0 x 260",8,260,260,10,null,null,null,"8,0 x 200",8,200,80,null,"8,0 x 260",8,260,260,10]
[null,"8,0 x 220",8,220,80,14.5,null,null,null,"8,0 x 280",8,280,280,10,null,null,null,"8,0 x 220",8,220,80,null,"8,0 x 280",8,280,280,10]
[null,"8,0 x 240",8,240,80,14.5,null,null,null,"8,0 x 300",8,300,300,10,null,null,null,"8,0 x 240",8,240,80,null,"8,0 x 300",8,300,300,10]
[null,"8,0 x 260",8,260,80,14.5,null,null,null,"8,0 x 350",8,350,350,10,null,null,null,"8,0 x 260",8,260,80,null,"8,0 x 350",8,350,350,10]
[null,"8,0 x 280",8,280,80,14.5,null,null,null,"8,0 x 400",8,400,400,10,null,null,null,"8,0 x 280",8,280,80,null,"8,0 x 400",8,400,400,10]
[null,null,null,null,null,null,null,null,null,"8,0 x 450",8,450,450,10,null,null,null,null,null,null,null,null,"8,0 x 450",8,450,450,10]
[null,null,null,null,null,null,null,null,null,"8,0 x 500",8,500,500,10,null,null,null,null,null,null,null,null,"8,0 x 500",8,500,500,10]
[null,null,null,null,null,null,null,null,null,"8,0 x 550",8,550,550,10,null,null,null,null,null,null,null,null,"8,0 x 550",8,550,550,10]
[null,null,null,null,null,null,null,null,null,"8,0 x 600",8,600,600,10,null,null,null,null,null,null,null,null,"8,0 x 600",8,600,600,10]

{"sheet":"Stab Kombinationlasten","index":9,"n_rows":46,"n_cols":13,"rows_kept":46,"cut":false,"hidden":true,"merged":[[45,3,45,4],[25,3,25,4],[40,0,40,1],[40,2,40,3],[40,7,40,8],[42,0,42,3],[44,3,44,4],[39,0,39,1],[39,2,39,3],[39,7,39,8],[35,2,35,3],[35,7,35,8],[33,0,33,1],[33,2,33,3],[33,7,33,8],[34,0,34,1],[34,2,34,3],[34,7,34,8],[35,0,35,1],[38,0,38,1],[38,2,38,3],[38,7,38,8],[36,0,36,1],[36,2,36,3],[36,7,36,8],[37,0,37,1],[37,2,37,3],[37,7,37,8],[31,0,31,5],[19,0,19,1],[19,2,19,3],[15,0,15,1],[15,2,15,3],[27,0,27,2],[16,0,16,1],[16,2,16,3],[18,2,18,3],[24,3,24,4],[19,7,19,8],[20,0,20,1],[20,2,20,3],[20,7,20,8],[17,0,17,1],[17,2,17,3],[17,7,17,8],[18,0,18,1],[5,0,5,3],[11,0,11,5],[22,0,22,3],[7,0,7,3],[13,0,13,1],[13,2,13,3],[15,12,15,13],[15,7,15,8],[18,7,18,8],[13,7,13,8],[14,0,14,1],[14,2,14,3],[14,7,14,8],[16,7,16,8]]}
[]
[]
[]
[]
[]
["Lastfallkombination"]
[]
["Lasten rechwinkling"]
[]
["gk",{"$f":"'Eingabe und Ergebnis'!BA43","v":0},"[kN/m]",null,"pk",{"$f":"'Eingabe und Ergebnis'!BA45","v":0},"[kN/m]",null,"sk",{"$f":"'Eingabe und Ergebnis'!BA44","v":0},"[kN/m]"]
[]
["Lastfallkombinationen für den Nachweis der Tragfähigkeit"]
[]
["LFK",null,"qd",null,"y0","KLED","kmod","qd/kmod"]
["gd",null,{"$f":"1.35*B10","v":0},null,1,"ständig",0.6,{"$f":"IF(C15=0,0,C15/G15)","v":0}]
["pd",null,{"$f":"1.5*F10","v":0},null,0.7,"mittel",{"$f":"IF(F16=\"lang\",0.7,IF(F16=\"mittel\",0.8,IF(F16=\"kurz\",0.9,IF(F16=\"sehr kurz\",1.1,0))))","v":0.8},null,null,null,null,"γM = 1,25","[Brettschichtholz]"]
["sd",null,{"$f":"1.5*J10","v":0},null,0.5,"kurz",{"$f":"IF(F17=\"lang\",0.7,IF(F17=\"mittel\",0.8,IF(F17=\"kurz\",0.9,IF(F17=\"sehr kurz\",1.1,0))))","v":0.9}]
["gd + pd",null,{"$f":"IF(C16=0,0,C15+C16)","v":0},null,null,{"$f":"IF(MAXA($G$16:$G$17)=1.1,\"sehr kurz\",IF(MAXA($G$16:$G$17)=0.9,\"kurz\",IF(MAXA($G$16:$G$17)=0.8,\"mittel\",IF(MAXA($G$16:$G$17)=0.7,\"lang\"))))","v":"kurz"},0.9,{"$f":"IF(C18=0,0,IF(G18=0,0,C18/G18))","v":0}]
["gd + sd",null,{"$f":"IF(C17=0,0,C15+C17)","v":0},null,null,{"$f":"IF(MAXA($G$16,$G$18)=1.1,\"sehr kurz\",IF(MAXA($G$16,$G$18)=0.9,\"kurz\",IF(MAXA($G$16,$G$18)=0.8,\"mittel\",IF(MAXA($G$16,$G$18)=0.7,\"lang\"))))","v":"kurz"},0.9,{"$f":"IF(C19=0,0,IF(G19=0,0,C19/G19))","v":0}]
["gd + pd + sd ",null,{"$f":"IF(C17=0,0,IF(C16=0,0,C15+C16+E17*C17))","v":0},null,null,{"$f":"IF(MAXA($G$16:$G$18)=1.1,\"sehr kurz\",IF(MAXA($G$16:$G$18)=0.9,\"kurz\",IF(MAXA($G$16:$G$18)=0.8,\"mittel\",IF(MAXA($G$16:$G$18)=0.7,\"lang\"))))","v":"kurz"},0.9,{"$f":"IF(C20=0,0,IF(G20=0,0,C20/G20))","v":0}]
["gd + sd + pd",null,{"$f":"IF(C17=0,0,IF(C16=0,0,C15+C17+E17*C17))","v":0},null,null,{"$f":"IF(MAXA($G$16:$G$18)=1.1,\"sehr kurz\",IF(MAXA($G$16:$G$18)=0.9,\"kurz\",IF(MAXA($G$16:$G$18)=0.8,\"mittel\",IF(MAXA($G$16:$G$18)=0.7,\"lang\"))))","v":"kurz"},0.9,{"$f":"IF(C21=0,0,IF(G21=0,0,C21/G21))","v":0},null,{"$f":"MAXA(H15:I21)","v":0}]
[]
["Maßgebende Lastfallkombination:",null,null,null,null,{"$f":"IF(J21=H21,A21,IF(J21=H20,A20,IF(H19=J21,A19,IF(H18=J21,A18,IF(J21=H15,A15,Fehler)))))","v":"gd + sd + pd"}]
[]
[null,"qd","=",{"$f":"IF(J21=H21,C21,IF(J21=H20,C20,IF(H19=J21,C19,IF(H18=J21,C18,IF(J21=H15,C15,Fehler)))))","v":0},null,"[kN/m]","mit",null,"kmod",{"$f":"IF(J21=H21,G21,IF(J21=H20,G20,IF(H19=J21,G19,IF(H18=J21,G18,IF(J21=H15,G15,Fehler)))))","v":0.9}]
[null,"qk","=",{"$f":"(D25*1.25)/J25","v":0},null,"[kN/m]"]
[]
["Lasten parallen"]
[]
["gk",{"$f":"'Eingabe und Ergebnis'!#REF!","v":{"$error":"#REF!"}},"[kN/m]",null,"pk",{"$f":"'Eingabe und Ergebnis'!#REF!","v":{"$error":"#REF!"}},"[kN/m]",null,"sk",{"$f":"'Eingabe und Ergebnis'!#REF!","v":{"$error":"#REF!"}},"[kN/m]"]
[]
["Lastfallkombinationen für den Nachweis der Tragfähigkeit"]
[]
["LFK",null,"qd",null,"y0","KLED","kmod","qd/kmod"]
["gd",null,{"$f":"1.35*B30","v":{"$error":"#REF!"}},null,1,"ständig",0.6,{"$f":"IF(C35=0,0,C35/G35)","v":{"$error":"#REF!"}}]
["pd",null,{"$f":"1.5*F30","v":{"$error":"#REF!"}},null,0.7,"mittel",{"$f":"IF(F36=\"lang\",0.7,IF(F36=\"mittel\",0.8,IF(F36=\"kurz\",0.9,IF(F36=\"sehr kurz\",1.1,0))))","v":0.8}]
["sd",null,{"$f":"1.5*J30","v":{"$error":"#REF!"}},null,0.5,"kurz",{"$f":"IF(F37=\"lang\",0.7,IF(F37=\"mittel\",0.8,IF(F37=\"kurz\",0.9,IF(F37=\"sehr kurz\",1.1,0))))","v":0.9}]
["gd + pd",null,{"$f":"IF(C36=0,0,C35+C36)","v":{"$error":"#REF!"}},null,null,{"$f":"IF(MAXA($G$16:$G$17)=1.1,\"sehr kurz\",IF(MAXA($G$16:$G$17)=0.9,\"kurz\",IF(MAXA($G$16:$G$17)=0.8,\"mittel\",IF(MAXA($G$16:$G$17)=0.7,\"lang\"))))","v":"kurz"},0.9,{"$f":"IF(C38=0,0,IF(G38=0,0,C38/G38))","v":{"$error":"#REF!"}}]
["gd + sd",null,{"$f":"IF(C37=0,0,C35+C37)","v":{"$error":"#REF!"}},null,null,{"$f":"IF(MAXA($G$16,$G$18)=1.1,\"sehr kurz\",IF(MAXA($G$16,$G$18)=0.9,\"kurz\",IF(MAXA($G$16,$G$18)=0.8,\"mittel\",IF(MAXA($G$16,$G$18)=0.7,\"lang\"))))","v":"kurz"},0.9,{"$f":"IF(C39=0,0,IF(G39=0,0,C39/G39))","v":{"$error":"#REF!"}}]
["gd + pd + sd ",null,{"$f":"IF(C37=0,0,IF(C36=0,0,C35+C36+E37*C37))","v":{"$error":"#REF!"}},null,null,{"$f":"IF(MAXA($G$16:$G$18)=1.1,\"sehr kurz\",IF(MAXA($G$16:$G$18)=0.9,\"kurz\",IF(MAXA($G$16:$G$18)=0.8,\"mittel\",IF(MAXA($G$16:$G$18)=0.7,\"lang\"))))","v":"kurz"},0.9,{"$f":"IF(C40=0,0,IF(G40=0,0,C40/G40))","v":{"$error":"#REF!"}}]
["gd + sd + pd",null,{"$f":"IF(C37=0,0,IF(C36=0,0,C35+C37+E37*C37))","v":{"$error":"#REF!"}},null,null,{"$f":"IF(MAXA($G$16:$G$18)=1.1,\"sehr kurz\",IF(MAXA($G$16:$G$18)=0.9,\"kurz\",IF(MAXA($G$16:$G$18)=0.8,\"mittel\",IF(MAXA($G$16:$G$18)=0.7,\"lang\"))))","v":"kurz"},0.9,{"$f":"IF(C41=0,0,IF(G41=0,0,C41/G41))","v":{"$error":"#REF!"}},null,{"$f":"MAXA(H35:I41)","v":{"$error":"#REF!"}}]
[]
["Maßgebende Lastfallkombination:",null,null,null,null,{"$f":"IF(J41=H41,A41,IF(J41=H40,A40,IF(H39=J41,A39,IF(H38=J41,A38,IF(J41=H35,A35,Fehler)))))","v":{"$error":"#REF!"}}]
[]
[null,"qd","=",{"$f":"IF(J41=H41,C41,IF(J41=H40,C40,IF(H39=J41,C39,IF(H38=J41,C38,IF(J41=H35,C35,Fehler)))))","v":{"$error":"#REF!"}},null,"[kN/m]","mit",null,"kmod",{"$f":"IF(J41=H41,G41,IF(J41=H40,G40,IF(H39=J41,G39,IF(H38=J41,G38,IF(J41=H35,G35,Fehler)))))","v":{"$error":"#REF!"}}]
[null,"qk","=",{"$f":"(D45*1.25)/J45","v":{"$error":"#REF!"}},null,"[kN/m]"]

{"sheet":"Eingabe und Ergebnis","index":10,"n_rows":58,"n_cols":121,"rows_kept":58,"cut":false,"hidden":false,"merged":[[53,38,53,42],[54,38,54,42],[50,43,51,50],[50,51,51,58],[151,110,151,111],[20,90,20,97],[20,108,20,115],[21,74,21,81],[21,82,21,89],[21,90,21,97],[21,108,21,115],[51,75,52,107],[52,43,52,50],[53,43,53,50],[54,43,54,50],[52,51,52,58],[53,51,53,58],[54,51,54,58],[37,52,37,56],[40,52,40,56],[39,60,39,61],[42,52,42,56],[45,52,45,56],[23,52,23,56],[26,13,26,17],[27,13,27,17],[28,13,28,17],[95,116,95,120],[104,114,104,115],[104,117,104,118],[104,120,104,121],[28,84,28,86],[28,89,28,91],[86,116,86,120],[87,116,87,120],[88,116,88,120],[89,116,89,120],[90,116,90,120],[94,116,94,120],[43,75,44,107],[45,75,46,107],[47,75,48,107],[49,75,50,107],[52,29,52,33],[51,74,52,74],[33,52,33,56],[45,28,45,33],[52,38,52,42],[14,53,14,55],[15,53,15,55],[24,52,24,56],[25,52,25,56],[28,52,28,56],[29,52,29,56],[30,52,30,56],[35,52,35,56],[14,120,14,123],[16,108,16,115],[17,74,17,81],[17,82,17,89],[17,90,17,97],[17,108,17,115],[14,108,14,115],[15,74,15,81],[15,82,15,89],[15,90,15,97],[15,108,15,115],[12,51,12,57],[18,74,18,81],[18,82,18,89],[18,90,18,97],[18,108,18,115],[19,108,19,115],[53,29,53,33],[48,29,48,33],[52,16,52,20],[51,16,51,20],[42,16,42,20],[45,16,45,20],[40,29,40,33],[43,16,43,20],[46,16,46,20],[47,16,47,20],[50,16,50,20],[51,29,51,33],[29,13,29,17],[32,13,32,17],[33,13,33,17],[50,29,50,33],[46,28,46,33],[47,28,47,33],[11,74,11,81],[11,82,11,89],[0,91,0,107],[1,91,1,107],[2,72,2,84],[2,95,2,107],[3,95,3,107],[0,36,1,48],[0,55,0,71],[1,55,1,71],[2,36,2,48],[0,72,1,84],[12,74,12,81],[12,82,12,89],[0,19,0,35],[20,74,20,81],[16,82,16,89],[20,82,20,89],[14,74,14,81],[14,82,14,89],[0,0,1,13],[13,74,13,81],[13,82,13,89],[2,23,2,35],[3,23,3,35],[2,59,2,71],[11,13,11,17],[12,13,12,17],[13,13,13,17],[14,13,14,17],[3,59,3,71],[19,13,19,17],[20,13,20,17],[16,74,16,81],[19,74,19,81],[19,82,19,89],[19,20,22,24],[4,19,6,35],[153,117,153,118],[2,0,2,12],[12,108,12,115],[13,108,13,115],[11,108,11,115],[37,16,37,20],[38,16,38,20],[39,16,39,20],[30,13,30,17],[21,60,21,61],[32,60,32,61],[40,16,40,20],[41,16,41,20],[21,13,21,17],[22,13,22,17],[29,10,29,11],[12,90,12,97],[14,90,14,97],[19,90,19,97],[16,90,16,97],[13,90,13,97],[11,90,11,97]]}
["Statik Dachscheibe",null,null,null,null,null,null,null,null,null,null,null,null,null,null,null,null,null,null,{"$f":"TODAY()","v":"2023-11-20"},null,null,null,null,null,null,null,null,null,null,null,null,null,null,null,null,"Statik Dachscheibe",null,null,null,null,null,null,null,null,null,null,null,null,null,null,null,null,null,null,{"$f":"TODAY()","v":"2023-11-20"},null,null,null,null,null,null,null,null,null,null,null,null,null,null,null,null,"Statik Dachscheibe",null,null,null,null,null,null,null,null,null,null,null,null,null,null,null,null,null,null,{"$f":"TODAY()","v":"2023-11-20"}]
[null,null,null,null,null,null,null,null,null,null,null,null,null,null,null,null,null,null,null,null,null,null,null,null,null,null,null,null,null,null,null,null,null,null,null,"Seite 1/3",null,null,null,null,null,null,null,null,null,null,null,null,null,null,null,null,null,null,null,"Seite 2/3",null,null,null,null,null,null,null,null,null,null,null,null,null,null,null,null,null,null,null,null,null,null,null,null,null,null,null,null,null,null,null,null,null,null,null,"Seite 3/3"]
["4 - Seitig gelagert",null,null,null,null,null,null,null,null,null,null,null,null,null,null,null,null,null,null,"Bauvorhaben:",null,null,null,"Beispiel Holzhaus",null,null,null,null,null,null,null,null,null,null,null,null,"4 - Seitig gelagert",null,null,null,null,null,null,null,null,null,null,null,null,null,null,null,null,null,null,"Bauvorhaben:",null,null,null,{"$f":"IF(X3=\"\",\"\",X3)","v":"Beispiel Holzhaus"},null,null,null,null,null,null,null,null,null,null,null,null,"4 - Seitig gelagert",null,null,null,null,null,null,null,null,null,null,null,null,null,null,null,null,null,null,"Bauvorhaben:",null,null,null,{"$f":"IF(X3=\"\",\"\",X3)","v":"Beispiel Holzhaus"}]
[null,null,null,null,null,null,null,null,null,null,null,null,null,null,null,null,null,null,null,"Position:",null,null,null,"Beispiel 3. Stock Küche",null,null,null,null,null,null,null,null,null,null,null,null,null,null,null,null,null,null,null,null,null,null,null,null,null,null,null,null,null,null,null,"Position:",null,null,null,{"$f":"IF(X4=\"\",\"\",X4)","v":"Beispiel 3. Stock Küche"},null,null,null,null,null,null,null,null,null,null,null,null,null,null,null,null,null,null,null,null,null,null,null,null,null,null,null,null,null,null,null,"Position:",null,null,null,{"$f":"IF(X4=\"\",\"\",X4)","v":"Beispiel 3. Stock Küche"}]
[null,null,null,null,null,null,null,null,null,null,null,null,null,null,null,null,null,null,null,"Beim Verwenden von Versionen älter 2021 oder Office 365 kann es zu Fehlermeldungen kommen."]
["Landstraße 25, D - 79809 Weilheim - Bannholz",null,null,null,null,null,null,null,null,null,null,null,null,null,null,null,null,null,null,null,null,null,null,null,null,null,null,null,null,null,null,null,null,null,null,null,"Landstraße 25, D - 79809 Weilheim - Bannholz",null,null,null,null,null,null,null,null,null,null,null,null,null,null,null,null,null,null,null,null,null,null,null,null,null,null,null,null,null,null,null,null,null,null,null,"Landstraße 25, D - 79809 Weilheim - Bannholz"]
[]
[null,null,"Berechnung Dachscheibe nach Eurocode 5 - EN 1995 (März 2013)",null,null,null,null,null,null,null,null,null,null,null,null,null,null,null,null,null,null,null,null,null,null,null,null,null,null,null,null,null,null,null,null,null,null,null,{"$f":"C8","v":"Berechnung Dachscheibe nach Eurocode 5 - EN 1995 (März 2013)"},null,null,null,null,null,null,null,null,null,null,null,null,null,null,null,null,null,null,null,null,null,null,null,null,null,null,null,null,null,null,null,null,null,null,null,{"$f":"C8","v":"Berechnung Dachscheibe nach Eurocode 5 - EN 1995 (März 2013)"}]
[]
[]
[null,null,"Geometrie",null,null,null,null,null,null,null,null,null,null,null,null,null,null,null,null,null,null,null,null,null,null,null,null,null,null,null,null,null,null,null,null,null,null,null,"Zwischenschicht"]
[null,null,"Scheibenbreite: ",null,null,null,null,null,null,null,null,"bs","=",10,null,null,null,null,null,null,null,null,null,null,null,null,null,null,null,null,null,null,null,null,null,null,null,null,null,null,null,null,null,null,null,null,null,null,null,null,null,null,null,null,null,null,null,null,null,null,null,null,null,null,null,null,null,null,null,null,null,null,null,null,"Nachweiss η *",null,null,null,null,null,null,null,"Fall 1 : Wind + Stabilisierung",null,null,null,null,null,null,null,"Fall 2 : Erdbeben + Stabilisierung"]
[null,null,"Scheibenlänge: ",null,null,null,null,null,null,null,null,"ls","=",6,null,null,null,null,null,null,null,null,null,null,null,null,null,null,null,null,null,null,null,null,null,null,null,null,"Wie liegt das Element auf?",null,null,null,null,null,null,null,null,null,null,null,null,"Element liegt direkt auf",null,null,null,null,null,null,null,null,null,null,null,null,null,null,null,null,null,null,null,null,null,null,"Quertragfähigkeit",null,null,null,null,null,null,null,{"$f":"'Fall 1. Wind'!V192+'Fall 3. Stabilisierung'!AR192","v":5.1817602040816327E-2},null,null,null,null,null,null,null,{"$f":"'Fall 2. Erdbeben'!V192+'Fall 3. Stabilisierung'!AV192","v":0}]
[null,null,"Elementbreite: ",null,null,null,null,null,null,null,"bElement",null,"=",0.625,null,null,null,null,null,null,null,null,null,null,null,null,null,null,null,null,null,null,null,null,null,null,null,null,null,null,null,null,null,null,null,null,null,null,null,null,null,null,null,null,null,null,null,null,null,null,null,null,null,null,null,null,null,null,null,null,null,null,null,null,"Momenttragfähigkeit LF1",null,null,null,null,null,null,null,{"$f":"'Fall 1. Wind'!V195+'Fall 3. Stabilisierung'!AR195","v":2.6908975137770946E-2},null,null,null,null,null,null,null,{"$f":"'Fall 2. Erdbeben'!V195+'Fall 3. Stabilisierung'!AV195","v":0},null,null,null,null,null,null,null,null,null,null,null,null,null,null,null,null,null,null,null,null,null,null,null,null,null,null,null,null,null,"Sonderhilfszelle Rippe_Q2i"]
[null,null,"Nutzungsklasse Element",null,null,null,null,null,null,null,null,null,null,1,null,null,null,null,null,null,null,null,null,null,null,null,null,null,null,null,null,null,null,null,null,null,null,null,"Dicke der Zwischenschicht",null,null,null,null,null,null,null,null,null,null,null,null,"tzw","=",{"$f":"IF(AZ13=\"Element liegt direkt auf\",0,32)","v":0},null,null,"mm",null,null,null,null,null,null,null,null,null,null,null,null,null,null,null,null,null,"Momenttragfähigkeit LF2",null,null,null,null,null,null,null,{"$f":"'Fall 1. Wind'!V207+'Fall 3. Stabilisierung'!AR207","v":2.5647095959595963E-2},null,null,null,null,null,null,null,{"$f":"'Fall 2. Erdbeben'!V207+'Fall 3. Stabilisierung'!AV207","v":0},null,null,null,null,null,null,null,null,null,null,null,null,null,null,null,null,null,null,null,null,null,null,null,null,null,"Hilfszellen",null,null,null,{"$f":"IF(N20=\"Rippe_Q2i\", \"Rippe_Q2i\", \"standard\")","v":"standard"}]
[null,null,"Baustoff:",null,null,null,null,null,null,null,null,null,null,"Brettschichtholz",null,null,null,null,null,null,null,null,null,null,null,null,null,null,null,null,null,null,null,null,null,null,null,null,"Rohdichte der Zwischenschicht",null,null,null,null,null,null,null,null,null,null,null,null,"ρkzw","=",{"$f":"IF(AZ13=\"Akustiklage liegt auf\",0,IF(AZ13=\"Element liegt direkt auf\",380,350))","v":380},null,null,"kg/m³",null,null,null,null,null,null,null,null,null,null,null,null,null,null,null,null,null,"Schubtrag. des Koppelbretts",null,null,null,null,null,null,null,{"$f":"'Fall 1. Wind'!AE241+'Fall 3. Stabilisierung'!AR242","v":4.4642857142857144E-2},null,null,null,null,null,null,null,{"$f":"'Fall 2. Erdbeben'!AE241+'Fall 3. Stabilisierung'!AV242","v":0},null,null,null,null,null,null,null,null,null,null,null,null,null,null,null,null,null,null,null,null,null,null,null,null,null,{"$f":"N20","v":"Rippe_Q3"}]
[null,null,"Festigkeitsklasse:",null,null,null,null,null,null,null,null,null,null,"GL 24h",null,null,null,null,null,null,null,null,null,null,null,null,null,null,null,null,null,null,null,null,null,null,null,null,null,null,null,null,null,null,null,null,null,null,null,null,null,null,null,null,null,null,null,null,null,null,null,null,null,null,null,null,null,null,null,null,null,null,null,null,"Klammern in Koppelbrett",null,null,null,null,null,null,null,{"$f":"'Fall 1. Wind'!AE251+'Fall 3. Stabilisierung'!AQ252","v":0.56423611111111116},null,null,null,null,null,null,null,{"$f":"'Fall 2. Erdbeben'!AE251+'Fall 3. Stabilisierung'!AU252","v":0},null,null,null,null,null,null,null,null,null,null,null,null,null,null,null,null,null,null,null,null,null,null,null,null,null,{"$f":"N22","v":"Z26P0"}]
[null,null,null,null,null,null,null,null,null,null,null,null,null,null,null,null,null,null,null,null,null,null,null,null,null,null,null,null,null,null,null,null,null,null,null,null,null,null,null,null,null,null,null,null,null,null,null,null,null,null,null,null,null,null,null,null,null,null,null,null,null,null,null,null,null,null,null,null,null,null,null,null,null,null,"Verbindungsmittel Randgurt ",null,null,null,null,null,null,null,{"$f":"'Fall 1. Wind'!Y360+'Fall 3. Stabilisierung'!Y360","v":0.4256205260257323},null,null,null,null,null,null,null,{"$f":"'Fall 2. Erdbeben'!Y360+'Fall 3. Stabilisierung'!Y360","v":0},null,null,null,null,null,null,null,null,null,null,null,null,null,null,null,null,null,null,null,null,null,null,null,null,null,{"$f":"N23","v":190}]
[null,null,"Lignotrend Element",null,null,null,null,null,null,null,null,null,null,null,null,null,null,null,null,null,null,null,null,null,null,null,null,null,null,null,null,null,null,null,null,null,null,null,null,null,null,null,null,null,null,null,null,null,null,null,null,null,null,null,null,null,null,null,null,null,null,null,null,null,null,null,null,null,null,null,null,null,null,null,"Verbindungsmittel Randgurt b=ls",null,null,null,null,null,null,null,{"$f":"'Fall 1. Wind'!Y373+'Fall 3. Stabilisierung'!Y373","v":0.4256205260257323},null,null,null,null,null,null,null,{"$f":"'Fall 2. Erdbeben'!Y373+'Fall 3. Stabilisierung'!Y373","v":0}]
[null,null,"Element",null,null,null,null,null,null,null,null,null,null,"Rippe_Q3",null,null,null,null,null,null,"Elementkonfiguration immer von oben nach unten vollständig durchgehen um Fehlermeldungen zu vermeiden!",null,null,null,null,null,null,null,null,null,null,null,null,null,null,null,null,null,"Lasten",null,null,"(Charakteristisch)",null,null,null,null,null,null,null,null,null,null,null,null,null,null,null,null,null,null,null,null,null,null,null,null,null,null,null,null,null,null,null,null,"Verbindung Randgurt quer",null,null,null,null,null,null,null,{"$f":"'Fall 1. Wind'!Y398+'Fall 3. Stabilisierung'!Y398","v":0.25607759618446557},null,null,null,null,null,null,null,{"$f":"'Fall 2. Erdbeben'!Y398+'Fall 3. Stabilisierung'!Y398","v":0}]
[null,null,"Profiluntersicht",null,null,null,null,null,null,null,null,null,null,"akustik",null,null,null,null,null,null,null,null,null,null,null,null,null,null,null,null,null,null,null,null,null,null,null,null,null,null,null,null,null,null,null,null,null,null,null,null,null,null,null,null,null,null,null,null,null,null,null,null,null,null,null,null,null,null,null,null,null,null,null,null,"Verformung LF1",null,null,null,null,null,null,null,{"$f":"'Fall 1. Wind'!Y458+'Fall 3. Stabilisierung'!Y458","v":3.5462408795938261E-3},null,null,null,null,null,null,null,{"$f":"'Fall 2. Erdbeben'!Y458+'Fall 3. Stabilisierung'!Y458","v":0},null,null,null,null,null,null,null,null,null,null,null,null,null,null,null,null,null,null,null,null,null,null,null,null,null,"für Ausführungszeichungen"]
[null,null,"Zusatzlage",null,null,null,null,null,null,null,null,null,null,"Z26P0",null,null,null,null,null,null,null,null,null,null,null,null,null,null,null,null,null,null,null,null,null,null,null,null,"Fall 1 :Wind",null,null,null,null,null,null,null,null,null,null,null,null,null,null,null,null,null,null,null,"kmod","=",{"$f":"'Fall 1. Wind'!S63","v":1},null,null,null,null,null,null,null,null,null,null,null,null,null,"Verformung LF2",null,null,null,null,null,null,null,{"$f":"'Fall 1. Wind'!Y486+'Fall 3. Stabilisierung'!Y486","v":0.52213238361865244},null,null,null,null,null,null,null,{"$f":"'Fall 2. Erdbeben'!Y486+'Fall 3. Stabilisierung'!Y486","v":0}]
[null,null,"Höhe",null,null,null,null,null,null,null,null,null,null,190,null,null,null,null,null,null,null,null,null,null,null,null,null,null,null,null,null,null,null,null,null,null,null,null,"Wind rechtwinkling zur Elementspannrichtung",null,null,null,null,null,null,null,null,null,null,null,null,null,null,null,null,null,null,null,null,null,null,null,null,null,null,null,null,null,null,null,null,null,null,null,"* Ein Nachweis des Dachschubs muss gesondert geführt werden",null,null,null,null,null,null,null,null,null,null,null,null,null,null,null,null,null,null,null,null,null,null,null,null,null,null,null,null,null,null,null,null,null,null,null,null,null,null,null,null,null,{"$f":"IF(OR(N20=\"Block_Q3\",N20=\"Block_Q\"),\"Block\",IF(OR(N20=\"Rippe_Q3\",N20=\"Rippe_Q3_r25\",N20=\"Rippe_Q3_r50\"),\"Rippe\",IF(N20=\"Rippe_Q2i\",\"Rippe Q2i\",\"Akustik\")))","v":"Rippe"},null,{"$f":"DM23&\" \"&DM24&IF(AND(DM25=\"\",DM26=\"\"),\"\",\" \"&DM25&DM26)","v":"Rippe 3S Ausklinkung"}]
[null,null,"Element:",null,null,null,null,null,null,null,{"$f":"SUBSTITUTE(\"LIGNO \"&$N$20&\" \"&IF($N$21=\"geschlossen\",\"\",\"Akustik\")&\" WT\"&\" \"&$N$22&\" - \"&$N$23,\"_\",\" \")","v":"LIGNO Rippe Q3 Akustik WT Z26P0 - 190"},null,null,null,null,null,null,null,null,null,null,null,null,null,null,null,null,null,null,null,null,null,null,null,null,null,null,null,"Winddruck",null,null,null,null,null,null,null,null,null,null,null,"Wk,D,1","=",4,null,null,null,null,null,null,null,null,null,null,null,null,null,null,null,null,null,null,null,null,null,null,null,null,null,null,null,null,null,null,null,null,null,null,null,null,null,null,null,null,null,null,null,null,null,null,null,null,null,null,null,null,null,null,null,null,null,null,null,null,null,null,null,{"$f":"Q42&\"S\"","v":"3S"}]
[null,null,null,null,null,null,null,null,null,null,null,null,null,null,null,null,null,null,null,null,null,null,null,null,null,null,null,null,null,null,null,null,null,null,null,null,null,null,"Windsog",null,null,null,null,null,null,null,null,null,null,null,"Wk,S,1","=",0.5,null,null,null,null,null,null,null,null,null,null,null,null,null,null,null,null,null,null,null,null,null,null,null,null,null,null,null,null,null,null,null,null,null,null,null,null,null,null,null,null,null,null,null,null,null,null,null,null,null,null,null,null,null,null,null,null,null,null,null,null,null,null,null,{"$f":"IF(AZ13=DM31,\"Füllholz\",\"\")","v":""}]
[null,null,"Element Eigenschaften",null,null,null,null,null,null,null,null,null,null,null,null,null,null,null,null,null,null,null,null,null,null,null,null,null,null,null,null,null,null,null,null,null,null,null,null,null,null,null,null,null,null,null,null,null,null,null,"qk,1 = Wk,D,1 + Wk,S,1","=",{"$f":"BA25+BA24","v":4.5},null,null,null,null,null,null,null,null,null,null,null,null,null,null,null,null,null,null,null,null,null,null,null,null,null,null,null,null,null,null,null,null,null,null,null,null,null,null,null,null,null,null,null,null,null,null,null,null,null,null,null,null,null,null,null,null,null,null,null,null,null,null,null,{"$f":"IF(AZ13=DM30,IF(OR(N22=\"Z0P0Nsi\",N21=\"geschlossen\"),\"\",\"Ausklinkung\"),\"\")","v":"Ausklinkung"}]
[null,null,"Koppelbrett",null,null,null,null,null,null,"Material:",null,null,null,"Sperrholz"]
[null,null,"Dicke",null,null,null,null,null,null,null,"dkop",null,"=",26,null,null,null,null,null,null,null,null,null,null,null,null,null,null,null,null,null,null,null,null,null,null,null,null,"Wind parallel zur Elementspannrichtung",null,null,null,null,null,null,null,null,null,null,null,null,null,null,null,null,null,null,null,null,null,null,null,null,null,null,null,null,null,null,null,null,null,null,null,null,null,null,null,null,null,null,null,null,null,null,null,null,null,null,null,null,null,null,null,null,null,null,null,null,null,null,null,null,null,null,null,null,null,null,null,null,null,null,null,null,null,"TabZw3",null,{"$f":"IF(OR(N20=\"Akustik_klassik_Q\",N20=\"Akustik_klassik_Q3\"),\"TabZw2\",IF(N20=\"Rippe_Q2i\",\"TabZw1\",\"TabZw3\"))","v":"TabZw3"}]
[null,null,"Klammern",null,null,null,null,null,null,"Klammertyp:",null,null,null,"1,83 x 63mm",null,null,null,null,null,null,null,null,null,null,null,null,null,null,null,null,null,null,null,null,null,null,null,null,"Winddruck",null,null,null,null,null,null,null,null,null,null,null,"Wk,D,2","=",2,null,null,null,null,null,null,null,null,null,null,null,null,null,null,null,null,null,null,null,null,null,null,null,null,null,null,null,null,null,null,null,null,null,null,null,null,null,null,null,null,null,null,null,null,null,null,null,null,null,null,null,null,null,null,null,null,null,null,null,null,null,null,null,"Akustiklage liegt auf"]
[null,null,null,null,null,null,null,null,null,null,"ek",null,"=",100,null,null,null,null,null,null,null,null,null,null,null,null,null,null,null,null,null,null,null,null,null,null,null,null,"Windsog",null,null,null,null,null,null,null,null,null,null,null,"Wk,S,2","=",0.5,null,null,null,null,null,null,null,null,null,null,null,null,null,null,null,null,null,null,null,null,null,null,null,null,null,null,null,null,null,null,null,null,null,null,null,null,null,null,null,null,null,null,null,null,null,null,null,null,null,null,null,null,null,null,null,null,null,null,null,null,null,null,null,"Element liegt direkt auf"]
[null,null,null,"EC  5, Tabelle 8.3",null,null,null,null,null,"ek,min = 10d ",null,null,"=",{"$f":"10*IF(N29=\"1,83 x 63mm\",1.83,1.53)","v":18.3},null,null,null,null,null,null,null,null,null,null,null,null,null,null,null,null,null,null,null,null,null,null,null,null,null,null,null,null,null,null,null,null,null,null,null,null,"qk,2 = Wk,D,2 + Wk,S,2","=",{"$f":"BA30+BA29","v":2.5},null,null,null,null,null,null,null,null,null,null,null,null,null,null,null,null,null,null,null,null,null,null,null,null,null,null,null,null,null,null,null,null,null,null,null,null,null,null,null,null,null,null,null,null,null,null,null,null,null,null,null,null,null,null,null,null,null,null,null,null,null,null,null,"Füllholz liegt auf"]
[]
[null,null,"Randgurt",null,null,null,null,null,null,null,null,"b","=",100,null,null,null,null,null,null,null,null,null,null,null,null,null,null,null,null,null,null,null,null,null,null,null,null,"Fall 2 :Erdbeben",null,null,null,null,null,null,null,null,null,null,null,null,null,null,null,null,null,null,null,"kmod","=",{"$f":"'Fall 2. Erdbeben'!T63","v":1.1000000000000001},null,null,null,null,null,null,null,null,null,null,null,null,null,null,null,null,null,null,null,null,null,null,null,null,null,null,null,null,null,null,null,null,null,null,null,null,null,null,null,null,null,null,null,null,null,null,null,null,null,null,null,null,null,null,null,"TabZw2"]
[null,"(Schwelle quer zur Elemenspannrichtung)",null,null,null,null,null,null,null,null,null,"h","=",240,null,null,null,null,null,null,null,null,null,null,null,null,null,null,null,null,null,null,null,null,null,null,null,null,"Erdbeben kraft ",null,null,null,null,null,null,null,null,null,null,null,"Aek","=",0,null,null,null,null,null,null,null,null,null,null,null,null,null,null,null,null,null,null,null,null,null,{"$f":"IF(AND(BW33<>\"\",BW33<$DG$124),BW33+1,\"\")","v":""},{"$f":"IF(BW34<>\"\",DL138,\"\")","v":""},null,null,null,null,null,null,null,null,null,null,null,null,null,null,null,null,null,null,null,null,null,null,null,null,null,null,null,null,null,null,null,null,null,null,null,null,null,null,null,null,"Element liegt direkt auf",null,"Element liegt direkt auf "]
[null,null,null,null,null,null,null,null,null,null,null,null,null,null,null,null,null,null,null,null,null,null,null,null,null,null,null,null,null,null,null,null,null,null,null,null,null,null,"Kraft rechtwinkling zur Elementspannrichtung",null,null,null,null,null,null,null,null,null,null,null,null,null,null,null,null,null,null,null,null,null,null,null,null,null,null,null,null,null,null,null,null,null,null,null,"","",null,null,null,null,null,null,null,null,null,null,null,null,null,null,null,null,null,null,null,null,null,null,null,null,null,null,null,null,null,null,null,null,null,null,null,null,null,null,null,null,"Füllholz liegt auf"]
[null,null,null,null,null,null,null,null,null,null,null,null,null,null,null,null,null,null,null,null,null,null,null,null,null,null,null,null,null,null,null,null,null,null,null,null,null,null,null,null,null,null,null,null,null,null,null,null,null,null,"(Aek/ls) Aek,1","=",{"$f":"BA34/ls","v":0},null,null,null,null,null,null,null,null,null,null,null,null,null,null,null,null,null,null,null,null,null,"",""]
[null,null,"Verbindungsmittel Deckenscheibe an Randgurt",null,null,null,null,null,null,null,null,null,null,null,null,null,null,null,null,null,null,null,null,null,null,null,null,null,null,null,null,null,null,null,null,null,null,null,"Kraft parallel zur Elementspannrichtung",null,null,null,null,null,null,null,null,null,null,null,null,null,null,null,null,null,null,null,null,null,null,null,null,null,null,null,null,null,null,null,null,null,null,null,"",""]
[null,null,"Standard VM wählen:",null,null,null,null,null,null,null,null,null,null,null,null,null,"Ja ",null,null,null,null,null,{"$f":"IF(Q38=\"Ja \",\"Standard Verbindungsmittel mit Schrauben \",\"Personalisierte Verbindungsmittel mit Schrauben \")","v":"Standard Verbindungsmittel mit Schrauben "},null,null,null,null,null,null,null,null,null,null,null,null,null,null,null,null,null,null,null,null,null,null,null,null,null,null,null,"(Aek/bs) Aek,2","=",{"$f":"BA34/bs","v":0},null,null,null,null,null,null,null,null,null,null,null,null,null,null,null,null,null,null,null,null,null,"",""]
[null,null,"Verbindung Tragfähigkeit",null,null,null,null,null,null,null,null,null,null,null,"Rlat,d","=",null,null,null,null,null,null,null,null,null,null,null,null,null,null,null,null,null,null,null,null,null,null,null,null,null,null,null,null,null,null,null,null,null,null,null,null,null,null,null,null,null,null,null,null,null,null,null,null,null,null,null,null,null,null,null,null,null,null,"",""]
[null,null,"Durchmesser Schrauben",null,null,null,null,null,null,null,null,null,null,null,"dschr","=",null,null,null,null,null,null,null,null,null,null,null,null,null,null,null,null,null,null,null,null,null,null,"Fall 3 :Stabilisierung",null,null,null,null,null,null,null,null,null,null,null,null,null,null,null,null,null,null,null,"kmod","=",{"$f":"'Fall 3. Stabilisierung'!T63","v":0.9},null,null,null,null,null,null,null,null,null,null,null,null,null,"",""]
[null,null,"Randgurt länge parallel 1)",null,null,null,null,null,null,null,null,null,null,null,"lr,ll","=",6,null,null,null,null,null,"VM Tragfähig.",null,null,null,null,"Rlat,d","=",{"$f":"'Fall 1. Wind'!AO323","v":3524.2661203546195},null,null,null,null,null,null,null,null,"Klasse der Lasteinwirkungsdauer",null,null,null,null,null,null,null,null,null,null,null,null,null,"Kurz"]
[null,null,"Anzahl VM/Element",null,null,null,null,null,null,null,null,null,null,null,"η","=",3,null,null,null,null,null,{"$f":"IF(Q42=4,\"Randabstände prüfen!\",\" \")","v":" "},null,null,null,null,null,null,null,null,null,null,null,null,null,null,null,"Kraft rechtwinkling zur Elementspannrichtung",null,null,null,null,null,null,null,null,null,null,null,null,null,null,null,null,null,null,null,null,null,null,null,null,null,null,null,null,null,null,null,null,null,null,null,{"$f":"IF(DG123>0,\"- Mögliche Lösung:\",\"\")","v":""}]
[null,null,"Abstand VM",null,null,null,null,null,null,null,null,null,null,null,"ev","=",0.25,null,null,null,null,null,null,null,null,null,null,null,null,null,null,null,null,null,null,null,null,null,"Stabilisierungslast",null,null,null,null,null,null,null,null,null,null,null,"qd,1","=",0]
[null,null,null,null,null,null,null,null,null,null,null,"EC  5, Tabelle 8.6",null,null,"ev,min = 5d","=",{"$f":"IF(Q38=\"Nein\",(Q40*5)/1000,(5*8)/1000)","v":0.04},null,null,null,null,null,null,null,null,null,null,null,null,null,null,null,null,null,null,null,null,null,null,null,null,null,null,null,null,null,null,null,null,null,null,null,null,null,null,null,null,null,null,null,null,null,null,null,null,null,null,null,null,null,null,null,null,null,null,{"$f":"IF(BX31=\"\",\"\",IF(BX31=Lösung!$B$3,Lösung!$B$5,IF(BX31=Lösung!$B$7,Lösung!$B$9,IF(BX31=Lösung!$B$11,Lösung!$B$13,IF(BX31=Lösung!$B$15,Lösung!$B$16,IF(BX31=Lösung!$B$15,Lösung!$B$16,IF(BX31=Lösung!$B$19,Lösung!$B$20,IF(BX31=Lösung!$B$27,Lösung!$B$28,IF(BX31=Lösung!$B$31,Lösung!$B$32,IF(BX31=Lösung!$B$23,Lösung!$B$24,Lösung!$B$36 ))))))))))","v":""}]
[null,null,"Seitenholz 1:Element",null,null,null,null,null,null,null,null,null,null,null,null,null,null,null,null,null,null,null,"Schrauben:",null,null,null,null,null,null,null,null,null,null,null,null,null,null,null,"Kraft parallel zur Elementspannrichtung"]
[null,null,"Dicke ",null,null,null,null,null,null,null,null,null,null,null,"t1","=",{"$f":"IF(N23=\"302 BV\",302,IF(N23=\"309 BV\",309,IF(N23=\"335 BV\",335,IF(N23=\"355 BV\",355,IF(N23=\"375 BV\",375,IF(N23=\"395 BV\",395,IF(N23=\"415 BV\",415,IF(N23=\"435 BV\",435,N23))))))))-BB15","v":190},null,null,null,null,null,"Firma:",null,null,null,null,null,"Würth",null,null,null,null,null,null,null,null,null,"Stabilisierungslast",null,null,null,null,null,null,null,null,null,null,null,"qs,2","=",0,null,null,null,null,null,null,null,null,null,null,null,null,null,null,null,null,null,null,null,null,null,null,{"$f":"IF(BX32=\"\",\"\",IF(BX32=Lösung!$B$3,Lösung!$B$5,IF(BX32=Lösung!$B$7,Lösung!$B$9,IF(BX32=Lösung!$B$11,Lösung!$B$13,IF(BX32=Lösung!$B$15,Lösung!$B$16,IF(BX32=Lösung!$B$15,Lösung!$B$16,IF(BX32=Lösung!$B$19,Lösung!$B$20,IF(BX32=Lösung!$B$27,Lösung!$B$28,IF(BX32=Lösung!$B$31,Lösung!$B$32,IF(BX32=Lösung!$B$23,Lösung!$B$24,Lösung!$B$36 ))))))))))","v":""}]
[null,null,"Rohdichte",null,null,null,null,null,null,null,null,null,null,null,"ρk1","=",380,null,null,null,null,null,"Art:",null,null,null,null,null,"TeilgewindeScheibenkopf",null,null,null,null,null,null,null,null,null,null,null,null,null,null,null,null,null,null,null,null,null,null,null,null,null,null,null,null,null,null,null,"Stabilisierungslast"]
[null,null,"Dicke minimum",null,null,null,null,null,null,null,null,null,null,null,"t1 min","=",{"$f":"1.15*(2*(beta0/(beta0+1))^0.5+2)*(Myk/(fh1vk*d))^0.5","v":51.519569049624963},null,null,null,null,null,"Typ:",null,null,null,null,null,"8,0 x 300",null,null,null,null,null,null,null,null,null,null,null,null,null,null,null,null,null,null,null,null,null,null,null,null,null,null,null,null,null,null,null," z.B. aus kippgefährdeten Unterzügen.",null,null,null,null,null,null,null,null,null,null,null,null,null,null,{"$f":"IF(BX33=\"\",\"\",IF(BX33=Lösung!$B$3,Lösung!$B$5,IF(BX33=Lösung!$B$7,Lösung!$B$9,IF(BX33=Lösung!$B$11,Lösung!$B$13,IF(BX33=Lösung!$B$15,Lösung!$B$16,IF(BX33=Lösung!$B$15,Lösung!$B$16,IF(BX33=Lösung!$B$19,Lösung!$B$20,IF(BX33=Lösung!$B$27,Lösung!$B$28,IF(BX33=Lösung!$B$31,Lösung!$B$32,IF(BX33=Lösung!$B$23,Lösung!$B$24,Lösung!$B$36 ))))))))))","v":""}]
[null,null,null,null,null,null,null,null,null,null,null,null,null,null,null,null,null,null,null,null,null,null,{"$f":"IF(Q38=\"Ja \",\"Produkt:\",\"\")","v":"Produkt:"},null,null,null,null,null,null,{"$f":"IF(Q38=\"Ja \",IF(AC46=\"Spax\",\"STAR Plus\",IF(AC46=\"Würth\",\"Assy Plus\",\"\")))","v":"Assy Plus"}]
[null,null,"Seitenholz 2:Randgurt",null,null,null,null,null,"(Schwelle in Elementspannrichtung)",null,null,null,null,null,null,null,null,null,null,null,null,null,null,null,null,null,null,{"$f":"IF(dicket2<0,\"Achtung Schraube zu kurz !\",IF(dicket1+dicket+dicket2H<lSch,\"Achtung Schraube zu lang !\",\"\"))","v":""},null,null,null,null,null,null,null,null,null,null,null,null,null,null,null,null,null,null,null,null,null,null,null,null,null,null,null,null,null,null,null,null,null,null,null,null,null,null,null,null,null,null,null,null,null,null,{"$f":"BW34","v":""},{"$f":"IF(BX34=\"\",\"\",IF(BX34=Lösung!$B$3,Lösung!$B$5,IF(BX34=Lösung!$B$7,Lösung!$B$9,IF(BX34=Lösung!$B$11,Lösung!$B$13,IF(BX34=Lösung!$B$15,Lösung!$B$16,IF(BX34=Lösung!$B$15,Lösung!$B$16,IF(BX34=Lösung!$B$19,Lösung!$B$20,IF(BX34=Lösung!$B$27,Lösung!$B$28,IF(BX34=Lösung!$B$31,Lösung!$B$32,IF(BX34=Lösung!$B$23,Lösung!$B$24,Lösung!$B$36 ))))))))))","v":""}]
[null,null,"Dicke ",null,null,null,null,null,null,null,null,null,null,null,"t2","=",240,null,null,null,null,null,"Durchmesser:",null,null,null,null,null,null,{"$f":"IF(AND(AC46=\"Würth\",AC47=\"TeilgewindeSenkkopf\"),VLOOKUP(AC48,'Verbindung Schrauben'!B6:H50,2,FALSE),IF(AND(AC46=\"Würth\",AC47=\"TeilgewindeScheibenkopf\"),VLOOKUP(AC48,'Verbindung Schrauben'!B61:H124,2,FALSE),IF(AND(AC46=\"Würth\",AC47=\"VollgewindeSenkkopf\"),VLOOKUP(AC48,'Verbindung Schrauben'!J6:P46,2,FALSE),IF(AND(AC46=\"Würth\",AC47=\"VollgewindeZylinderkopf\"),VLOOKUP(AC48,'Verbindung Schrauben'!J61:P111,2,FALSE),IF(AND(AC46=\"Spax\",AC47=\"TeilgewindeSenkkopf_S\"),VLOOKUP(AC48,'Verbindung Schrauben'!B161:H196,2,FALSE),IF(AND(AC46=\"Spax\",AC47=\"TeilgewindeTellerkopf_S\"),VLOOKUP(AC48,'Verbindung Schrauben'!J161:P211,2,FALSE),IF(AND(AC46=\"Rothoblaas\",AC47=\"TeilgewindeTellerkopf_R\"),VLOOKUP(AC48,'Verbindung Schrauben'!AE6:AK64,2,FALSE),IF(AND(AC46=\"Rothoblaas\",AC47=\"TeilgewindeSenkkopf_R\"),VLOOKUP(AC48,'Verbindung Schrauben'!AN6:AT101,2,FALSE),IF(AND(AC46=\"Rothoblaas\",AC47=\"VollgewindeZylinderkopf_R\"),VLOOKUP(AC48,'Verbindung Schrauben'!AW6:BC48,2,FALSE))))))))))","v":8},null,null,null,null,null,null,null,null,null,null,null,null,null,"Rechtwinkling zur Elementspannrichtung (LF1)",null,null,null,null,null,null,null,"Parallel zur Elementspannrichtung (LF2)"]
[null,null,"Rohdichte",null,null,null,null,null,null,null,null,null,null,null,"ρk2","=",380,null,null,null,null,null,"Länge:",null,null,null,null,null,null,{"$f":"IF(AND(AC46=\"Würth\",AC47=\"TeilgewindeSenkkopf\"),VLOOKUP(AC48,'Verbindung Schrauben'!B6:H50,3,FALSE),IF(AND(AC46=\"Würth\",AC47=\"TeilgewindeScheibenkopf\"),VLOOKUP(AC48,'Verbindung Schrauben'!B61:H124,3,FALSE),IF(AND(AC46=\"Würth\",AC47=\"VollgewindeSenkkopf\"),VLOOKUP(AC48,'Verbindung Schrauben'!J6:P46,3,FALSE),IF(AND(AC46=\"Würth\",AC47=\"VollgewindeZylinderkopf\"),VLOOKUP(AC48,'Verbindung Schrauben'!J61:P111,3,FALSE),IF(AND(AC46=\"Spax\",AC47=\"TeilgewindeSenkkopf_S\"),VLOOKUP(AC48,'Verbindung Schrauben'!B161:H196,3,FALSE),IF(AND(AC46=\"Spax\",AC47=\"TeilgewindeTellerkopf_S\"),VLOOKUP(AC48,'Verbindung Schrauben'!J161:P211,3,FALSE),IF(AND(AC46=\"Rothoblaas\",AC47=\"TeilgewindeTellerkopf_R\"),VLOOKUP(AC48,'Verbindung Schrauben'!AE6:AK64,3,FALSE),IF(AND(AC46=\"Rothoblaas\",AC47=\"TeilgewindeSenkkopf_R\"),VLOOKUP(AC48,'Verbindung Schrauben'!AN6:AT101,3,FALSE),IF(AND(AC46=\"Rothoblaas\",AC47=\"VollgewindeZylinderkopf_R\"),VLOOKUP(AC48,'Verbindung Schrauben'!AW6:BC48,3,FALSE))))))))))","v":300},null,null,null,null,null,null,null,null,null,null,null,null,null,null,null,null,null,null,null,null,null,null,null,null,null,null,null,null,null,null,null,null,null,null,null,null,null,null,null,null,null,null,null,null,{"$f":"BW35","v":""},{"$f":"IF(BX35=\"\",\"\",IF(BX35=Lösung!$B$3,Lösung!$B$5,IF(BX35=Lösung!$B$7,Lösung!$B$9,IF(BX35=Lösung!$B$11,Lösung!$B$13,IF(BX35=Lösung!$B$15,Lösung!$B$16,IF(BX35=Lösung!$B$15,Lösung!$B$16,IF(BX35=Lösung!$B$19,Lösung!$B$20,IF(BX35=Lösung!$B$27,Lösung!$B$28,IF(BX35=Lösung!$B$31,Lösung!$B$32,IF(BX35=Lösung!$B$23,Lösung!$B$24,Lösung!$B$36 ))))))))))","v":""}]
[null,null,"Dicke minimum",null,null,null,null,null,null,null,null,null,null,null,"t2 min","=",{"$f":"1.15*(2*(beta0/(beta0+1))^0.5+2)*(Myk/(fh2vk*d))^0.5","v":51.519569049624963},null,null,null,null,null,"Gewinde:",null,null,null,null,null,null,{"$f":"IF(AND(AC46=\"Würth\",AC47=\"TeilgewindeSenkkopf\"),VLOOKUP(AC48,'Verbindung Schrauben'!B6:H50,4,FALSE),IF(AND(AC46=\"Würth\",AC47=\"TeilgewindeScheibenkopf\"),VLOOKUP(AC48,'Verbindung Schrauben'!B61:H124,4,FALSE),IF(AND(AC46=\"Würth\",AC47=\"VollgewindeSenkkopf\"),VLOOKUP(AC48,'Verbindung Schrauben'!J6:P46,4,FALSE),IF(AND(AC46=\"Würth\",AC47=\"VollgewindeZylinderkopf\"),VLOOKUP(AC48,'Verbindung Schrauben'!J61:P111,4,FALSE),IF(AND(AC46=\"Spax\",AC47=\"TeilgewindeSenkkopf_S\"),VLOOKUP(AC48,'Verbindung Schrauben'!B161:H196,4,FALSE),IF(AND(AC46=\"Spax\",AC47=\"TeilgewindeTellerkopf_S\"),VLOOKUP(AC48,'Verbindung Schrauben'!J161:P211,4,FALSE),IF(AND(AC46=\"Rothoblaas\",AC47=\"TeilgewindeTellerkopf_R\"),VLOOKUP(AC48,'Verbindung Schrauben'!AE6:AK64,4,FALSE),IF(AND(AC46=\"Rothoblaas\",AC47=\"TeilgewindeSenkkopf_R\"),VLOOKUP(AC48,'Verbindung Schrauben'!AN6:AT101,4,FALSE),IF(AND(AC46=\"Rothoblaas\",AC47=\"VollgewindeZylinderkopf_R\"),VLOOKUP(AC48,'Verbindung Schrauben'!AW6:BC48,4,FALSE))))))))))","v":100},null,null,null,null,null,null,null,null,"Wind",null,null,null,null,{"$f":"BA26","v":4.5},null,null,null,null,null,null,null,{"$f":"BA31","v":2.5}]
[null,null,null,null,null,null,null,null,null,null,null,null,null,null,null,null,null,null,null,null,null,null,"Kopfdurchmesser:",null,null,null,null,null,null,{"$f":"IF(AND(AC46=\"Würth\",AC47=\"TeilgewindeSenkkopf\"),VLOOKUP(AC48,'Verbindung Schrauben'!B6:H50,5,FALSE),IF(AND(AC46=\"Würth\",AC47=\"TeilgewindeScheibenkopf\"),VLOOKUP(AC48,'Verbindung Schrauben'!B61:H124,5,FALSE),IF(AND(AC46=\"Würth\",AC47=\"VollgewindeSenkkopf\"),VLOOKUP(AC48,'Verbindung Schrauben'!J6:P46,5,FALSE),IF(AND(AC46=\"Würth\",AC47=\"VollgewindeZylinderkopf\"),VLOOKUP(AC48,'Verbindung Schrauben'!J61:P111,5,FALSE),IF(AND(AC46=\"Spax\",AC47=\"TeilgewindeSenkkopf_S\"),VLOOKUP(AC48,'Verbindung Schrauben'!B161:H196,5,FALSE),IF(AND(AC46=\"Spax\",AC47=\"TeilgewindeTellerkopf_S\"),VLOOKUP(AC48,'Verbindung Schrauben'!J161:P211,5,FALSE),IF(AND(AC46=\"Rothoblaas\",AC47=\"TeilgewindeTellerkopf_R\"),VLOOKUP(AC48,'Verbindung Schrauben'!AE6:AK64,5,FALSE),IF(AND(AC46=\"Rothoblaas\",AC47=\"TeilgewindeSenkkopf_R\"),VLOOKUP(AC48,'Verbindung Schrauben'!AN6:AT101,5,FALSE),IF(AND(AC46=\"Rothoblaas\",AC47=\"VollgewindeZylinderkopf_R\"),VLOOKUP(AC48,'Verbindung Schrauben'!AW6:BC48,5,FALSE))))))))))","v":22},null,null,null,null,null,null,null,null,"Erdbeben",null,null,null,null,{"$f":"BA36","v":0},null,null,null,null,null,null,null,{"$f":"BA38","v":0},null,null,null,null,null,null,null,null,null,null,null,null,null,null,null,null,null,null,null,null,null,null,{"$f":"BW36","v":""},{"$f":"IF(BX36=\"\",\"\",IF(BX36=Lösung!$B$3,Lösung!$B$5,IF(BX36=Lösung!$B$7,Lösung!$B$9,IF(BX36=Lösung!$B$11,Lösung!$B$13,IF(BX36=Lösung!$B$15,Lösung!$B$16,IF(BX36=Lösung!$B$15,Lösung!$B$16,IF(BX36=Lösung!$B$19,Lösung!$B$20,IF(BX36=Lösung!$B$27,Lösung!$B$28,IF(BX36=Lösung!$B$31,Lösung!$B$32,IF(BX36=Lösung!$B$23,Lösung!$B$24,Lösung!$B$36 ))))))))))","v":""}]
[null,null,null,null,null,null,null,null,null,null,null,null,null,null,null,null,null,null,null,null,null,null,null,null,null,null,null,null,null,null,null,null,null,null,null,null,null,null,"Stabilisierung",null,null,null,null,{"$f":"BA43","v":0},null,null,null,null,null,null,null,{"$f":"BA46","v":0},null,null,null,null,null,null,null,null,null,null,null,null,null,null,null,null,null,null,null,null,null,null,{"$f":"BW37","v":""},{"$f":"IF(BX37=\"\",\"\",IF(BX37=Lösung!$B$3,Lösung!$B$5,IF(BX37=Lösung!$B$7,Lösung!$B$9,IF(BX37=Lösung!$B$11,Lösung!$B$13,IF(BX37=Lösung!$B$15,Lösung!$B$16,IF(BX37=Lösung!$B$15,Lösung!$B$16,IF(BX37=Lösung!$B$19,Lösung!$B$20,IF(BX37=Lösung!$B$27,Lösung!$B$28,IF(BX37=Lösung!$B$31,Lösung!$B$32,IF(BX37=Lösung!$B$23,Lösung!$B$24,Lösung!$B$36 ))))))))))","v":""}]
[null,null,null,null,null,null,null,null,null,null,null,null,null,null,null,null,null,null,null,null,null,null,null,null,null,null,null,null,null,null,null,null,null,null,null,null,null,null,null,null,null,null,null,null,null,null,null,null,null,null,null,null,null,null,null,null,null,null,null,null,null,null,null,null,null,null,null,null,null,null,null,null,null,null,{"$f":"BW38","v":""},{"$f":"IF(BX38=\"\",\"\",IF(BX38=Lösung!$B$3,Lösung!$B$5,IF(BX38=Lösung!$B$7,Lösung!$B$9,IF(BX38=Lösung!$B$11,Lösung!$B$13,IF(BX38=Lösung!$B$15,Lösung!$B$16,IF(BX38=Lösung!$B$15,Lösung!$B$16,IF(BX38=Lösung!$B$19,Lösung!$B$20,IF(BX38=Lösung!$B$27,Lösung!$B$28,IF(BX38=Lösung!$B$31,Lösung!$B$32,IF(BX38=Lösung!$B$23,Lösung!$B$24,Lösung!$B$36 ))))))))))","v":""}]
[null,null,null,null,null,null,null,null,null,null,null,null,null,null,null,null,null,null,null,null,null,null,null,null,null,null,null,null,null,null,null,null,null,null,null,null,null,null,null,null,null,null,null,null,null,null,null,null,null,null,null,null,null,null,null,null,null,null,null,null,null,null,null,null,null,null,null,null,null,null,null,null,null,null,{"$f":"BW39","v":""},{"$f":"IF(BX39=\"\",\"\",IF(BX39=Lösung!$B$3,Lösung!$B$5,IF(BX39=Lösung!$B$7,Lösung!$B$9,IF(BX39=Lösung!$B$11,Lösung!$B$13,IF(BX39=Lösung!$B$15,Lösung!$B$16,IF(BX39=Lösung!$B$15,Lösung!$B$16,IF(BX39=Lösung!$B$19,Lösung!$B$20,IF(BX39=Lösung!$B$27,Lösung!$B$28,IF(BX39=Lösung!$B$31,Lösung!$B$32,IF(BX39=Lösung!$B$23,Lösung!$B$24,Lösung!$B$36 ))))))))))","v":""}]
[null,null,"1) Falls die Rangurtlänge kürzer als die Scheibenlänge ist!",null,null,null,null,null,null,null,null,null,null,null,null,null,null,null,null,null,null,null,null,null,null,null,null,null,null,null,null,null,null,null,null,null,null,null,null,null,null,null,null,null,null,null,null,null,null,null,null,null,null,null,null,null,null,null,null,null,null,null,null,null,null,null,null,null,null,null,null,null,null,null,{"$f":"BW40","v":""},{"$f":"IF(BX40=\"\",\"\",IF(BX40=Lösung!$B$3,Lösung!$B$5,IF(BX40=Lösung!$B$7,Lösung!$B$9,IF(BX40=Lösung!$B$11,Lösung!$B$13,IF(BX40=Lösung!$B$15,Lösung!$B$16,IF(BX40=Lösung!$B$15,Lösung!$B$16,IF(BX40=Lösung!$B$19,Lösung!$B$20,IF(BX40=Lösung!$B$27,Lösung!$B$28,IF(BX40=Lösung!$B$31,Lösung!$B$32,IF(BX40=Lösung!$B$23,Lösung!$B$24,Lösung!$B$36 ))))))))))","v":""}]

{"sheet":"Rippe Q2i","index":11,"n_rows":43,"n_cols":14,"rows_kept":43,"cut":false,"hidden":true,"merged":[[6,0,6,5]]}
["Scheibenkennwerte Rippe Q2i"]
[]
[]
["Anmerkung: ",null,"Die Scheibenkennwerte beziehen sich auf einen Laufmeter Element. Die Elementbreite bE = 0,625m"]
[]
[]
["Elementhöhe",null,null,null,null,null,170,190,210,230,250,270,290,"[mm]"]
["Rippe","Q2i","Z26P0_i120",null,null,"VR,k,xy",96.98,96.98,96.98,96.98,96.98,96.98,96.98,"[kN]"]
[null,null,"GA Z26P0_i120",null,null,"GAef",47442,47442,47442,47442,47442,47442,47442,"[kN]"]
[null,null,null,null,null,"Iz",193.94499999999999,203.83799999999999,213.73,223.62299999999999,233.51499999999999,243.40799999999999,253.3,"[10^3*cm4]"]
[null,null,"M Z26P0_i120",null,null,"MR,k,z",126.29,132.72999999999999,139.16999999999999,145.62,152.06,158.5,164.94,"[kNm]"]
[null,null,"Z26P0_i160",null,null,"VR,k,xy",96.98,96.98,96.98,96.98,96.98,96.98,96.98,"[kN]"]
[null,null,"GA Z26P0_i160",null,null,"GAef",47442,47442,47442,47442,47442,47442,47442,"[kN]"]
[null,null,null,null,null,"Iz",214.20500000000001,224.09800000000001,233.99100000000001,243.88300000000001,253.77600000000001,263.66800000000001,273.56099999999998,"[10^3*cm4]"]
[null,null,"M Z26P0_i160",null,null,"MR,k,z",139.47999999999999,145.91999999999999,152.37,158.81,165.25,171.69,178.13,"[kNm]"]
[null,null,"Z26P0_i200",null,null,"VR,k,xy",null,null,96.98,96.98,96.98,96.98,96.98,"[kN]"]
[null,null,"GA Z26P0_i200",null,null,"GAef",null,null,47442,47442,47442,47442,47442,"[kN]"]
[null,null,null,null,null,"Iz",null,null,254.251,264.14400000000001,274.036,283.92899999999997,293.82100000000003,"[10^3*cm4]"]
[null,null,"M Z26P0_i200",null,null,"MR,k,z",null,null,165.56,172,178.44,184.88,191.33,"[kNm]"]
["Rippe","Q2i","Z53P0_i120",null,null,"VR,k,xy",null,104.19,104.19,104.19,104.19,104.19,104.19,"[kN]"]
[null,null,"GA Z53P0_i120",null,null,"GAef",null,58724,58724,58724,58724,58724,58724,"[kN]"]
[null,null,null,null,null,"Iz",null,242.6,252.49299999999999,262.38600000000002,272.27800000000002,282.17099999999999,292.06299999999999,"[10^3*cm4]"]
[null,null,"M Z53P0_i120",null,null,"MR,k,z",null,157.97,164.41,170.86,177.3,183.74,190.18,"[kNm]"]
[null,null,"Z53P0_i160",null,null,"VR,k,xy",null,104.19,104.19,104.19,104.19,104.19,104.19,"[kN]"]
[null,null,"GA Z53P0_i160",null,null,"GAef",null,58724,58724,58724,58724,58724,58724,"[kN]"]
[null,null,null,null,null,"Iz",null,262.86099999999999,272.75299999999999,282.64600000000002,292.53899999999999,302.43099999999998,312.32400000000001,"[10^3*cm4]"]
[null,null,"M Z53P0_i160",null,null,"MR,k,z",null,171.17,177.61,184.05,190.49,196.93,203.37,"[kNm]"]
[null,null,"Z53P0_i200",null,null,"VR,k,xy",null,null,104.19,104.19,104.19,104.19,104.19,"[kN]"]
[null,null,"GA Z53P0_i200",null,null,"GAef",null,null,58724,58724,58724,58724,58724,"[kN]"]
[null,null,null,null,null,"Iz",null,null,293.01400000000001,302.90600000000001,312.79899999999998,322.69200000000001,332.584,"[10^3*cm4]"]
[null,null,"M Z53P0_i200",null,null,"MR,k,z",null,null,190.8,197.24,203.68,210.13,216.57,"[kNm]"]
["Rippe","Q2i","Z80P0_i120",null,null,"VR,k,xy",null,null,null,104.19,104.19,104.19,104.19,"[kN]"]
[null,null,"GA Z80P0_i120",null,null,"GAef",null,null,null,70219,70219,70219,70219,"[kN]"]
[null,null,null,null,null,"Iz",null,null,null,301.88,311.77199999999999,321.66500000000002,331.55700000000002,"[10^3*cm4]"]
[null,null,"M Z80P0_i120",null,null,"MR,k,z",null,null,null,196.57,203.01,209.46,215.9,"[kNm]"]
[null,null,"Z80P0_i160",null,null,"VR,k,xy",null,null,null,104.19,104.19,104.19,104.19,"[kN]"]
[null,null,"GA Z80P0_i160",null,null,"GAef",null,null,null,70219,70219,70219,70219,"[kN]"]
[null,null,null,null,null,"Iz",null,null,null,322.14,332.03300000000002,341.92500000000001,351.81799999999998,"[10^3*cm4]"]
[null,null,"M Z80P0_i160",null,null,"MR,k,z",null,null,null,209.77,216.21,222.65,229.09,"[kNm]"]
[null,null,"Z80P0_i200",null,null,"VR,k,xy",null,null,null,104.19,104.19,104.19,104.19,"[kN]"]
[null,null,"GA Z80P0_i200",null,null,"GAef",null,null,null,70219,70219,70219,70219,"[kN]"]
[null,null,null,null,null,"Iz",null,null,null,342.40100000000001,352.29300000000001,362.18599999999998,372.07799999999997,"[10^3*cm4]"]
[null,null,"M Z80P0_i200",null,null,"MR,k,z",null,null,null,222.96,229.4,235.84,242.28,"[kNm]"]

{"sheet":"Fall 1. Wind","index":12,"n_rows":486,"n_cols":60,"rows_kept":486,"cut":false,"hidden":false,"merged":[[150,21,150,26],[126,0,127,19],[126,20,128,35],[126,37,126,54],[127,37,127,54],[128,0,129,12],[128,37,128,42],[128,43,128,54],[129,37,129,42],[129,43,129,54],[150,46,150,51],[0,20,2,35],[0,0,1,19],[2,0,3,12],[2,37,2,42],[3,37,3,42],[60,3,61,12],[36,21,36,26],[27,21,27,26],[28,21,28,26],[29,21,29,26],[30,21,30,26],[60,13,61,22],[54,3,55,12],[54,13,55,22],[56,3,57,12],[56,13,57,22],[58,3,59,12],[58,13,59,22],[16,46,16,51],[17,46,17,51],[18,46,18,51],[23,46,23,51],[24,46,24,51],[2,43,2,54],[3,43,3,54],[1,37,1,54],[0,37,0,54],[25,46,25,51],[42,0,43,19],[42,20,44,35],[42,37,42,54],[43,37,43,54],[44,0,45,12],[44,37,44,42],[44,43,44,54],[45,37,45,42],[45,43,45,54],[37,21,37,26],[38,21,38,26],[39,21,39,26],[34,21,34,26],[35,21,35,26],[87,43,87,54],[104,21,104,26],[104,46,104,51],[62,13,63,17],[62,18,63,22],[84,0,85,19],[84,20,86,35],[84,37,84,54],[85,37,85,54],[86,0,87,12],[86,37,86,42],[86,43,86,54],[87,37,87,42],[62,3,63,12],[156,21,156,26],[156,46,156,51],[162,4,162,8],[151,21,151,26],[151,46,151,51],[154,21,154,26],[153,21,153,26],[153,46,153,51],[154,46,154,51],[182,21,182,26],[183,21,183,26],[166,19,166,23],[159,29,160,53],[162,46,162,51],[168,0,169,19],[168,20,170,35],[168,37,168,54],[169,37,169,54],[170,0,171,12],[170,37,170,42],[170,43,170,54],[171,37,171,42],[171,43,171,54],[179,21,179,38],[202,21,202,30],[203,21,203,30],[204,21,204,30],[184,21,184,26],[185,21,185,26],[191,21,191,26],[191,33,191,38],[194,21,194,26],[194,33,194,38],[236,30,236,35],[234,30,234,34],[237,30,237,34],[240,30,240,34],[235,30,235,35],[233,28,233,34],[206,33,206,38],[210,0,211,19],[210,20,212,35],[210,37,210,54],[211,37,211,54],[212,0,213,12],[212,37,212,42],[212,43,212,54],[213,37,213,42],[213,43,213,54],[206,21,206,26],[281,48,281,53],[282,48,282,53],[283,48,283,53],[247,30,247,34],[250,30,250,34],[250,41,250,46],[245,30,245,34],[246,30,246,34],[240,41,240,46],[243,28,243,34],[244,30,244,34],[252,0,253,19],[252,20,254,35],[252,37,252,54],[253,37,253,54],[254,0,255,12],[254,37,254,42],[254,43,254,54],[255,37,255,42],[255,43,255,54],[285,32,286,53],[292,21,292,26],[293,21,293,26],[264,48,264,53],[265,48,265,53],[266,48,266,53],[267,48,267,53],[268,48,268,53],[269,48,269,53],[270,48,270,53],[271,48,271,53],[272,48,272,53],[273,48,273,53],[274,48,274,53],[275,48,275,53],[285,21,285,26],[288,21,288,26],[289,21,289,26],[290,21,290,26],[291,21,291,26],[281,21,281,26],[282,21,282,26],[283,21,283,26],[284,21,284,26],[294,0,295,19],[294,20,296,35],[294,37,294,54],[295,37,295,54],[296,0,297,12],[296,37,296,42],[296,43,296,54],[297,37,297,42],[297,43,297,54],[306,40,306,45],[307,40,307,45],[308,40,308,45],[309,40,309,45],[306,46,306,49],[306,50,306,53],[307,46,307,49],[307,50,307,53],[308,46,308,49],[308,50,308,53],[309,46,309,49],[309,50,309,53],[310,24,310,29],[311,24,311,29],[312,24,312,29],[313,24,313,29],[314,24,314,29],[315,24,315,29],[310,40,310,45],[311,40,311,45],[312,40,312,45],[313,40,313,45],[314,40,314,45],[305,38,305,45],[317,24,317,29],[321,24,321,29],[322,24,322,29],[323,24,323,29],[305,46,305,49],[305,50,305,53],[313,46,313,49],[313,50,313,53],[314,46,314,49],[314,50,314,53],[315,46,315,49],[315,50,315,53],[310,46,310,49],[310,50,310,53],[311,46,311,49],[311,50,311,53],[312,46,312,49],[312,50,312,53],[315,40,315,45],[306,24,306,29],[307,24,307,29],[308,24,308,29],[309,24,309,29],[331,24,331,29],[332,24,332,29],[334,24,334,29],[323,50,323,53],[322,40,322,45],[324,24,324,29],[325,24,325,29],[328,24,328,29],[329,24,329,29],[330,24,330,29],[348,24,348,29],[350,24,350,29],[351,24,351,29],[336,0,337,19],[336,20,338,35],[336,37,336,54],[337,37,337,54],[338,0,339,12],[338,37,338,42],[338,43,338,54],[339,37,339,42],[339,43,339,54],[359,35,359,40],[363,24,363,29],[364,24,364,29],[366,24,366,29],[367,24,367,29],[353,24,353,29],[354,24,354,29],[355,24,355,29],[356,24,356,29],[359,24,359,29],[390,24,390,30],[391,24,391,30],[392,24,392,30],[393,24,393,30],[368,24,368,29],[369,24,369,29],[372,24,372,29],[372,35,372,40],[378,0,379,19],[378,20,380,35],[378,37,378,54],[379,37,379,54],[380,0,381,12],[380,37,380,42],[380,43,380,54],[381,37,381,42],[381,43,381,54],[397,35,397,40],[420,0,421,19],[420,20,422,35],[420,37,420,54],[421,37,421,54],[422,0,423,12],[422,37,422,42],[422,43,422,54],[423,37,423,42],[423,43,423,54],[462,0,463,19],[462,20,464,35],[462,37,462,54],[463,37,463,54],[464,0,465,12],[464,37,464,42],[464,43,464,54],[465,37,465,42],[465,43,465,54],[198,61,198,64],[485,24,485,29],[485,35,485,40],[474,24,474,29],[475,24,475,29],[476,24,476,29],[482,24,482,29],[477,24,477,29],[480,24,480,29],[457,35,457,40],[451,24,451,29],[452,24,452,29],[453,24,453,29],[454,24,454,29],[457,24,457,29],[439,24,439,29],[440,24,440,29],[443,24,443,29],[444,24,444,29],[447,24,447,29],[437,24,437,29],[438,24,438,29],[394,24,394,29],[397,24,397,29]]}
["Statik Dachscheibe",null,null,null,null,null,null,null,null,null,null,null,null,null,null,null,null,null,null,null,"Fall 1 : Wind",null,null,null,null,null,null,null,null,null,null,null,null,null,null,null,null,{"$f":"TODAY()","v":"2023-11-20"}]
[null,null,null,null,null,null,null,null,null,null,null,null,null,null,null,null,null,null,null,null,null,null,null,null,null,null,null,null,null,null,null,null,null,null,null,null,null,"Seite 1/12"]
["4 - Seitig gelagert",null,null,null,null,null,null,null,null,null,null,null,null,null,null,null,null,null,null,null,null,null,null,null,null,null,null,null,null,null,null,null,null,null,null,null,null,"Bauvorhaben:",null,null,null,null,null,{"$f":"'Eingabe und Ergebnis'!X3","v":"Beispiel Holzhaus"}]
[null,null,null,null,null,null,null,null,null,null,null,null,null,null,null,null,null,null,null,null,null,null,null,null,null,null,null,null,null,null,null,null,null,null,null,null,null,"Position:",null,null,null,null,null,{"$f":"'Eingabe und Ergebnis'!X4","v":"Beispiel 3. Stock Küche"}]
[]
[]
["Landstraße 25, D - 79809 Weilheim - Bannholz"]
[]
[null,null,"Berechnung nach Eurocode 5 - EN 1995"]
[]
[]
[null,null,1,"Geometrie"]
[null,null,null,null,null,null,null,null,null,null,null,null,null,null,null,null,null,null,null,null,null,null,null,null,null,null,null,null,null,null,null,null,null,null,3,"Lastfall"]
[]
[null,null,null,null,null,null,null,null,null,null,null,null,null,null,null,null,null,null,null,null,null,null,null,null,null,null,null,null,null,null,null,null,null,"Wind rechtwinklig zur Elementspannrichtung"]
[]
[null,null,null,null,null,null,null,null,null,null,null,null,null,null,null,null,null,null,null,null,null,null,null,null,null,null,null,null,null,null,null,null,null,"Winddruck ",null,null,null,null,null,null,null,null,null,null,"Wk,D,1","=",{"$f":"'Eingabe und Ergebnis'!BA24","v":4}]
[null,null,null,null,null,null,null,null,null,null,null,null,null,null,null,null,null,null,null,null,null,null,null,null,null,null,null,null,null,null,null,null,null,"Windsog",null,null,null,null,null,null,null,null,null,null,"Wk,S,1","=",{"$f":"'Eingabe und Ergebnis'!BA25","v":0.5}]
[null,null,null,null,null,null,null,null,null,null,null,null,null,null,null,null,null,null,null,null,null,null,null,null,null,null,null,null,null,null,null,null,null,"qk,1 = ",null,null,null,null,null,null,null,null,null,null,"Wk,D,1 + Wk,S,1","=",{"$f":"AU18+AU17","v":4.5}]
[]
[]
[null,null,null,null,null,null,null,null,null,null,null,null,null,null,null,null,null,null,null,null,null,null,null,null,null,null,null,null,null,null,null,null,null,"Wind parallel zur Elementspannrichtung"]
[]
[null,null,null,null,null,null,null,null,null,null,null,null,null,null,null,null,null,null,null,null,null,null,null,null,null,null,null,null,null,null,null,null,null,"Winddruck ",null,null,null,null,null,null,null,null,null,null,"Wk,D,2","=",{"$f":"'Eingabe und Ergebnis'!BA29","v":2}]
[null,null,null,null,null,null,null,null,null,null,null,null,null,null,null,null,null,null,null,null,null,null,null,null,null,null,null,null,null,null,null,null,null,"Windsog",null,null,null,null,null,null,null,null,null,null,"Wk,S,2","=",{"$f":"'Eingabe und Ergebnis'!BA30","v":0.5}]
[null,null,null,null,null,null,null,null,null,null,null,null,null,null,null,null,null,null,null,null,null,null,null,null,null,null,null,null,null,null,null,null,null,"qk,2 = ",null,null,null,null,null,null,null,null,null,null,"Wk,D,2 + Wk,S,2","=",{"$f":"AU25+AU24","v":2.5}]
[]
[null,null,"Scheibenbreite ",null,null,null,null,null,null,null,null,null,null,null,null,null,null,null,null,"bs ","=",{"$f":"'Eingabe und Ergebnis'!N12","v":10}]
[null,null,"Scheibenlänge ",null,null,null,null,null,null,null,null,null,null,null,null,null,null,null,null,"ls ","=",{"$f":"'Eingabe und Ergebnis'!N13","v":6}]
[null,null,"Elementbreite ",null,null,null,null,null,null,null,null,null,null,null,null,null,null,null,null,"bElement","=",{"$f":"'Eingabe und Ergebnis'!N14","v":0.625}]
[null,null,"Anzahl der Elemente ",null,null,null,null,null,null,null,null,null,null,null,null,null,null,null,null,"nElement","=",{"$f":"V28/V30","v":16}]
[]
[null,null,2,"Holzeigenschaft"]
[]
[null,null,"Baustoff:",null,null,null,null,null,null,null,null,null,null,null,null,null,null,null,null,null,null,{"$f":"'Eingabe und Ergebnis'!N16","v":"Brettschichtholz"}]
[null,null,"Festigkeitsklasse:",null,null,null,null,null,null,null,null,null,null,null,null,null,null,null,null,null,null,{"$f":"'Eingabe und Ergebnis'!N17","v":"GL 24h"}]
[null,null,"Modifikationsbeiwert",null,null,null,null,null,null,null,null,null,null,null,null,null,null,null,null,"kmod","=",{"$f":"IF(AND('Eingabe und Ergebnis'!BA43:BE43=0,'Eingabe und Ergebnis'!BA46:BE46=0),'Eingabe und Ergebnis'!BI22,IF(MIN('Eingabe und Ergebnis'!BI22,'Eingabe und Ergebnis'!BI40)=0,MAX('Eingabe und Ergebnis'!BI22,'Eingabe und Ergebnis'!BI40),MIN('Eingabe und Ergebnis'!BI22,'Eingabe und Ergebnis'!BI40)))","v":1}]
[null,null,"Teilsicherheitsbeiwert ",null,null,null,null,null,null,null,null,null,null,null,null,null,null,null,null,"γm","=",1.3]
[null,null,null,null,null,null,null,null,null,null,null,null,null,null,null,null,null,null,null,"γG","=",1.35]
[null,null,null,null,null,null,null,null,null,null,null,null,null,null,null,null,null,null,null,"γQ","=",1.5]
[]
[]
["Statik Dachscheibe",null,null,null,null,null,null,null,null,null,null,null,null,null,null,null,null,null,null,null,"Fall 1 : Wind",null,null,null,null,null,null,null,null,null,null,null,null,null,null,null,null,{"$f":"TODAY()","v":"2023-11-20"}]
[null,null,null,null,null,null,null,null,null,null,null,null,null,null,null,null,null,null,null,null,null,null,null,null,null,null,null,null,null,null,null,null,null,null,null,null,null,"Seite 2/12"]
["4 - Seitig gelagert",null,null,null,null,null,null,null,null,null,null,null,null,null,null,null,null,null,null,null,null,null,null,null,null,null,null,null,null,null,null,null,null,null,null,null,null,"Bauvorhaben:",null,null,null,null,null,{"$f":"AR3","v":"Beispiel Holzhaus"}]
[null,null,null,null,null,null,null,null,null,null,null,null,null,null,null,null,null,null,null,null,null,null,null,null,null,null,null,null,null,null,null,null,null,null,null,null,null,"Position:",null,null,null,null,null,{"$f":"AR4","v":"Beispiel 3. Stock Küche"}]
[]
[]
["Landstraße 25, D - 79809 Weilheim - Bannholz"]
[]
[null,null,"Berechnung nach Eurocode 5 - EN 1995"]
[]
[]
[]
[null,null,null,"Nutzungsklasse",null,null,null,null,null,null,null,null,null,{"$f":"'Eingabe und Ergebnis'!N15","v":1}]
[]
[null,null,null,"Klasse der Lasteinwirkungsdauer",null,null,null,null,null,null,null,null,null,"Kurz / sehr kurz"]
[null,null,null,null,null,null,null,null,null,null,null,null,null,null,null,null,null,null,null,null,null,null,null,null,null,null,null,null,"EC  5, Tabelle 3.1"]
[null,null,null,"Zeit ",null,null,null,null,null,null,null,null,null,{"$f":"VLOOKUP(N57,'kmod+gamma+Trag.keit'!C26:H31,2,FALSE)","v":"/"}]
[]
[null,null,null,"Beispiel ",null,null,null,null,null,null,null,null,null,{"$f":"VLOOKUP(N57,'kmod+gamma+Trag.keit'!C26:H31,3,FALSE)","v":"Wind"}]
[]
[null,null,null,"Widerstandabänderung Koeffizient",null,null,null,null,null,null,null,null,null,"kmod =",null,null,null,null,{"$f":"IF(N55=3,VLOOKUP(N57,'kmod+gamma+Trag.keit'!C26:H31,6,FALSE),VLOOKUP(N57,'kmod+gamma+Trag.keit'!C26:H31,5,FALSE))","v":1}]
[]
[]
[]
[]
[]
[]
[]
[]
[]
[]
[]
[]
[]
[]
[]
[]
[]
[]
[]
[]
[]
["Statik Dachscheibe",null,null,null,null,null,null,null,null,null,null,null,null,null,null,null,null,null,null,null,"Fall 1 : Wind",null,null,null,null,null,null,null,null,null,null,null,null,null,null,null,null,{"$f":"TODAY()","v":"2023-11-20"}]
[null,null,null,null,null,null,null,null,null,null,null,null,null,null,null,null,null,null,null,null,null,null,null,null,null,null,null,null,null,null,null,null,null,null,null,null,null,"Seite 3/12"]
["4 - Seitig gelagert",null,null,null,null,null,null,null,null,null,null,null,null,null,null,null,null,null,null,null,null,null,null,null,null,null,null,null,null,null,null,null,null,null,null,null,null,"Bauvorhaben:",null,null,null,null,null,{"$f":"AR45","v":"Beispiel Holzhaus"}]
[null,null,null,null,null,null,null,null,null,null,null,null,null,null,null,null,null,null,null,null,null,null,null,null,null,null,null,null,null,null,null,null,null,null,null,null,null,"Position:",null,null,null,null,null,{"$f":"AR46","v":"Beispiel 3. Stock Küche"}]
[]
[]
["Landstraße 25, D - 79809 Weilheim - Bannholz"]
[]
[null,null,"Berechnung nach Eurocode 5 - EN 1995"]
[]
[]
[null,null,4,"Ermittlung der Schittgrößen"]
[]
[null,null,"Kombinationen :",null,null,null,null,null,null,null,null,null,null,null,null,null,null,null,null,null,null,null,null,null,null,null,null,null,null,null,null,null,null,null,"dabei",null,null,"γG = 1,35"]
[null,null,null,null,null,null,null,null,null,null,null,null,null,null,null,null,null,null,null,null,null,null,null,null,null,null,null,null,null,null,null,null,null,null,null,null,null,"γQ = 1,50"]
[]
[null,null,"Horizontallasten: 1,50Qk"]
[]
[null,null,null,"Lastfall 1 (Rechtwinklig zur Elementspannrichtung)",null,null,null,null,null,null,null,null,null,null,null,null,null,null,null,null,null,null,null,null,null,null,null,null,null,"Lastfall 2 (Parallel zur Elementspannrichtung)"]
[]
[null,null,"Horizontallasten ",null,null,null,null,null,null,null,null,null,null,null,null,null,null,null,null,"qk,1","=",{"$f":"AU19","v":4.5},null,null,null,null,null,null,null,"Horizontallasten ",null,null,null,null,null,null,null,null,null,null,null,null,null,null,"qk,2","=",{"$f":"AU26","v":2.5}]
[]
[]
[]
[]
[]
[]
[]
[]
[]
[]
[]
[]
[]
[]
[]
[]
[]
[]
[]
[]
[]
["Statik Dachscheibe",null,null,null,null,null,null,null,null,null,null,null,null,null,null,null,null,null,null,null,"Fall 1 : Wind",null,null,null,null,null,null,null,null,null,null,null,null,null,null,null,null,{"$f":"TODAY()","v":"2023-11-20"}]
[null,null,null,null,null,null,null,null,null,null,null,null,null,null,null,null,null,null,null,null,null,null,null,null,null,null,null,null,null,null,null,null,null,null,null,null,null,"Seite 4/12"]
["4 - Seitig gelagert",null,null,null,null,null,null,null,null,null,null,null,null,null,null,null,null,null,null,null,null,null,null,null,null,null,null,null,null,null,null,null,null,null,null,null,null,"Bauvorhaben:",null,null,null,null,null,{"$f":"AR87","v":"Beispiel Holzhaus"}]
[null,null,null,null,null,null,null,null,null,null,null,null,null,null,null,null,null,null,null,null,null,null,null,null,null,null,null,null,null,null,null,null,null,null,null,null,null,"Position:",null,null,null,null,null,{"$f":"AR88","v":"Beispiel 3. Stock Küche"}]
[]
[]
["Landstraße 25, D - 79809 Weilheim - Bannholz"]
[]
[null,null,"Berechnung nach Eurocode 5 - EN 1995"]
[]
[]
[]
[null,null,null,null,null,null,null,null,null,null,null,null,null,null,null,null,null,null,null,null,null,null,null,null,null,null,null,null,null,null,null,null,null,null,null,null,null,null,null,null,null,null,null,null,null,"dabei",null,"a =","bs"]
[null,null,null,null,null,null,null,null,null,null,null,null,null,null,null,null,null,null,null,null,null,null,null,null,null,null,null,null,null,null,null,null,null,null,null,null,null,null,null,null,null,null,null,null,null,null,null,"b =","l,r,||*"]
[null,null,null,null,null,null,null,null,null,null,null,null,null,null,null,null,null,null,null,null,null,null,null,null,null,null,null,null,null,null,null,null,null,null,null,null,null,null,null,null,null,null,null,null,null,null,null,"c =","bs"]
[null,null,null,null,null,null,null,null,null,null,null,null,null,null,null,null,null,null,null,null,null,null,null,null,null,null,null,null,null,null,null,null,null,null,null,null,null,null,null,null,null,null,null,null,null,null,null,"d =","ls"]
[]
[]
[]
[]
[]
[]
[null,null,"Horizontale Belastungen"]
[]
[null,null,"Moment Lastfall 1",null,null,null,null,null,null,null,null,null,null,null,null,null,null,null,null,"Md,z,1","=",{"$f":"gammaqw*(qk1w*(ls*ls)/8)","v":30.375},null,null,null,null,null,null,null,"Moment Lastfall 2",null,null,null,null,null,null,null,null,null,null,null,null,null,null,"Md,z,2","=",{"$f":"gammaqw*(qk2w*(bs*bs)/8)","v":46.875}]
[null,null,"Schub Lastfall 1",null,null,null,null,null,null,null,null,null,null,null,null,null,null,null,null,"Vd,z,1","=",{"$f":"gammaqw*(qk1w*(ls)/2)","v":20.25},null,null,null,null,null,null,null,"Schub Lastfall 2",null,null,null,null,null,null,null,null,null,null,null,null,null,null,"Vd,z,2","=",{"$f":"gammaqw*(qk2w*(bs)/2)","v":18.75}]
[]
[null,null,"Aufgerkraft charakteristisch ",null,null,null,null,null,null,null,null,null,null,null,null,null,null,null,null,"ak,1 ","=",{"$f":"V155/gammaqw","v":1.3499999999999999},null,null,null,null,null,null,null,"Aufgerkraft charakteristisch ",null,null,null,null,null,null,null,null,null,null,null,null,null,null,"bk,2","=",{"$f":"AU155/gammaqw","v":2.0833333333333335}]
[null,null,"Auflagerkraft Design",null,null,null,null,null,null,null,null,null,null,null,null,null,null,null,null,"ad,1","=",{"$f":"vdz1w/bs","v":2.0249999999999999},null,null,null,null,null,null,null,"Auflagerkraft Design",null,null,null,null,null,null,null,null,null,null,null,null,null,null,"bd,2","=",{"$f":"vdz2w/ls","v":3.125}]
[]
[null,null,"Schubfluss   [ Vd,z,1 / bs ]",null,null,null,null,null,null,null,null,null,null,null,null,null,null,null,null,"td,1","=",{"$f":"vdz1w/bs","v":2.0249999999999999},null,null,null,null,null,null,null,"Schubfluss   [ Vd,z,2 / ls ]",null,null,null,null,null,null,null,null,null,null,null,null,null,null,"td,2","=",{"$f":"vdz2w/ls","v":3.125}]
[]
[]
[null,null,"Lastfall 1",null,null,null,null,null,null,null,null,null,null,null,null,null,null,null,null,null,null,null,null,null,null,null,null,null,null,"Zugkraft beziehungsweise Druckkraft in den Randgurten quer zur Elementspannrichtung:"]
[]
[]
[null,null,null,"ad,1 =",{"$f":"V155","v":2.0249999999999999},null,null,null,null,null,null,null,null,null,null,null,null,null,null,null,null,null,null,null,null,null,null,null,null,"Max Zd",null,null,null,null,null,null,null,null,null,null,null,null,null,null,"Zd","=",{"$f":"mdz2w/ls","v":7.8125}]
[]
[null,null,"Lastfall 2"]
[]
[null,null,null,null,null,null,null,null,null,null,null,null,null,null,null,null,null,null,"bd,2 =",{"$f":"AU155","v":3.125}]
[null,null,null,null,null,null,null,null,null,null,null,null,null,null,null,null,null,null,null,null,null,null,null,null,null,null,null,null,null,null,null,"* Falls die Rangurtlänge kürzer als die Scheibenlänge ist!"]
["Statik Dachscheibe",null,null,null,null,null,null,null,null,null,null,null,null,null,null,null,null,null,null,null,"Fall 1 : Wind",null,null,null,null,null,null,null,null,null,null,null,null,null,null,null,null,{"$f":"TODAY()","v":"2023-11-20"}]
[null,null,null,null,null,null,null,null,null,null,null,null,null,null,null,null,null,null,null,null,null,null,null,null,null,null,null,null,null,null,null,null,null,null,null,null,null,"Seite 5/12"]
["4 - Seitig gelagert",null,null,null,null,null,null,null,null,null,null,null,null,null,null,null,null,null,null,null,null,null,null,null,null,null,null,null,null,null,null,null,null,null,null,null,null,"Bauvorhaben:",null,null,null,null,null,{"$f":"AR129","v":"Beispiel Holzhaus"}]
[null,null,null,null,null,null,null,null,null,null,null,null,null,null,null,null,null,null,null,null,null,null,null,null,null,null,null,null,null,null,null,null,null,null,null,null,null,"Position:",null,null,null,null,null,{"$f":"AR130","v":"Beispiel 3. Stock Küche"}]
[]
[]
["Landstraße 25, D - 79809 Weilheim - Bannholz"]
[]
[null,null,"Berechnung nach Eurocode 5 - EN 1995"]
[]
[]
[null,null,"Lignotrend Element:",null,null,null,null,null,null,null,null,null,null,null,null,null,null,null,null,null,null,{"$f":"'Eingabe und Ergebnis'!K24","v":"LIGNO Rippe Q3 Akustik WT Z26P0 - 190"}]
[]
[null,null,"Elementtragfähigkeit"]
[null,null,"Schubtragfähigkeit charakteristisch",null,null,null,null,null,null,null,null,null,null,null,null,null,null,null,null,"VR,k,y","=",{"$f":"_xlfn.XLOOKUP('Eingabe und Ergebnis'!DM18,INDIRECT(\"tab_H1\"&'Eingabe und Ergebnis'!DM16),(_xlfn.XLOOKUP('Eingabe und Ergebnis'!DM17,INDIRECT(\"tab_Z1\"&'Eingabe und Ergebnis'!DM16),INDIRECT(\"tab_\"&'Eingabe und Ergebnis'!DM16))))","v":49}]
[null,null,"Schubtragfähigkeit design",null,null,null,null,null,null,null,null,null,null,null,null,null,null,null,null,"VR,d,y","=",{"$f":"V183*V37/gammam","v":37.692307692307693},null,null,null,null,null,null,null,null,null,"(~gl Technishe Daten)"]
[null,null,"Momenttragfähigkeit charasteristisch",null,null,null,null,null,null,null,null,null,null,null,null,null,null,null,null,"MR,k,z","=",{"$f":"_xlfn.XLOOKUP('Eingabe und Ergebnis'!DM18,INDIRECT(\"tab_H1\"&'Eingabe und Ergebnis'!DM16),(_xlfn.XLOOKUP(\"M \"&'Eingabe und Ergebnis'!DM17,INDIRECT(\"tab_Z1\"&'Eingabe und Ergebnis'!DM16),INDIRECT(\"tab_\"&'Eingabe und Ergebnis'!DM16))))","v":91.715449487179498}]
[null,null,"Momenttragfähigkeit design",null,null,null,null,null,null,null,null,null,null,null,null,null,null,null,null,"MR,d,z","=",{"$f":"MRky*V37/gammam","v":70.550345759368838}]
[]
[]
[null,null,5,"Nachweis"]
[]
[null,null,null,"Nachweis der Quertragfähigkeit"]
[null,null,null,"ηv",null,null,null,null,null,null,null,null,null,null,null,null,null,null,null,"[ MAX(td1;td2)/(Vrdy/belement) ]","=",{"$f":"MAX(tdein,tdzwei)/(Vrdy/belement)","v":5.1817602040816327E-2},null,null,null,null,null,null,null,null,null,null,null,{"$f":"IF(V192>1,\"> 1 NEIN !\",\"< 1    OK !\")","v":"< 1    OK !"}]
[]
[null,null,null,"Nachweis der Momenttragfähigkeit beim Lastfall 1"]
[null,null,null,"ηM1 ",null,null,null,null,null,null,null,null,null,null,null,null,null,null,null,"[ Md,z,1/(nelement*MR,d,z) ]","=",{"$f":"mdz1w/(nelement*MRdz)","v":2.6908975137770946E-2},null,null,null,null,null,null,null,null,null,null,null,{"$f":"IF(V195>1,\"> 1 NEIN !\",\"< 1    OK !\")","v":"< 1    OK !"}]
[]
[null,null,null,"Nachweis der Momenttragfähigkeit beim Lastfall 2"]
[]
[null,null,null,"Zur Aufnahme des Momentes aus LF 2 dient der Randgurt quer zur Elementspannrichtung."]
[]
[null,null,null,"Randgurt: ",null,null,null,null,"BSH 24h "]
[]
[null,null,null,"Querschnittsfläche Randgurt",null,null,null,null,null,null,null,null,null,null,null,null,null,null,null,"Aef","=",{"$f":"('Eingabe und Ergebnis'!N33*'Eingabe und Ergebnis'!N34)/100","v":240}]
[null,null,null,"Charakteristischer Wert der Zugfestigkeit",null,null,null,null,null,null,null,null,null,null,null,null,null,null,null,"ft,k","=",1.65]
[null,null,null,"Bemessungswert der Zugfestigkeit",null,null,null,null,null,null,null,null,null,null,null,null,null,null,null,"ft,d","=",{"$f":"ftk*V37/gammam","v":1.2692307692307692}]
[]
[null,null,null,"ηM2",null,null,null,null,null,null,null,null,null,null,null,null,null,null,null," [ Zd/(Aef*ft,d) ]","=",{"$f":"Zd/(Aef*(ftd))","v":2.5647095959595963E-2},null,null,null,null,null,null,null,null,null,null,null,{"$f":"IF(V207>1,\"> 1 NEIN !\",\"< 1    OK !\")","v":"< 1    OK !"}]
[]
[]
[]
["Statik Dachscheibe",null,null,null,null,null,null,null,null,null,null,null,null,null,null,null,null,null,null,null,"Fall 1 : Wind",null,null,null,null,null,null,null,null,null,null,null,null,null,null,null,null,{"$f":"TODAY()","v":"2023-11-20"}]
[null,null,null,null,null,null,null,null,null,null,null,null,null,null,null,null,null,null,null,null,null,null,null,null,null,null,null,null,null,null,null,null,null,null,null,null,null,"Seite 6/12"]
["4 - Seitig gelagert",null,null,null,null,null,null,null,null,null,null,null,null,null,null,null,null,null,null,null,null,null,null,null,null,null,null,null,null,null,null,null,null,null,null,null,null,"Bauvorhaben:",null,null,null,null,null,{"$f":"AR171","v":"Beispiel Holzhaus"}]
[null,null,null,null,null,null,null,null,null,null,null,null,null,null,null,null,null,null,null,null,null,null,null,null,null,null,null,null,null,null,null,null,null,null,null,null,null,"Position:",null,null,null,null,null,{"$f":"AR172","v":"Beispiel 3. Stock Küche"}]
[]
[]
["Landstraße 25, D - 79809 Weilheim - Bannholz"]
[]
[null,null,"Berechnung nach Eurocode 5 - EN 1995"]
[]
[]
[null,null,"Nachweis der Koppelfuge"]
[]
[]
[]
[]
[]
[]
[]
[]
[]
[]
[null,null,"Nachweis der Schubtragfähigkeit des Koppelbretts"]
[null,null,null,"Material :",null,null,null,null,null,null,null,null,null,null,null,null,null,null,null,null,null,null,null,null,null,null,null,null,{"$f":"'Eingabe und Ergebnis'!N27","v":"Sperrholz"}]
[null,null,null,"Dicke Koppelbrett",null,null,null,null,null,null,null,null,null,null,null,null,null,null,null,null,null,null,null,null,null,null,null,null,"d","=",{"$f":"'Eingabe und Ergebnis'!N28","v":26}]
[null,null,null,"Charakteristischswert der Schubfestigkeit",null,null,null,null,null,null,null,null,null,null,null,null,null,null,null,null,null,null,null,null,null,null,null,null,"fv,k","=",{"$f":"IF(AC234=\"Nadelholz C 24\",2,IF(AC234=\"Sperrholz\",3.5,2.7))","v":3.5}]
[null,null,null,"Bemessungswert der Schubfestigkeit",null,null,null,null,null,null,null,null,null,null,null,null,null,null,null,null,null,null,null,null,null,null,null,null,"fv,d","=",{"$f":"fvk*V37/gammam","v":2.6923076923076921}]
[null,null,null,"Schubfluss in der Koppelbrett",null,null,null,null,null,null,null,null,null,null,null,null,null,null,null,null,null,null,null,null,null,null,null,null,"tR,d,Koppelbrett","=",{"$f":"fvd*dbrett","v":70}]
[]
[null,null,"Nachweis"]
[null,null,null,"ηKoppelbrett",null,null,null,null,null,null,null,null,null,null,null,null,null,null,null,null,null,null,null,null,null,null,null,null,"[ td,2 / tR,d,Koppelbrett ]","=",{"$f":"tdzwei/AE238","v":4.4642857142857144E-2},null,null,null,null,null,null,null,null,null,null,{"$f":"IF(AE241>1,\"> 1 NEIN !\",\"< 1    OK !\")","v":"< 1    OK !"}]
[]
[null,null,"Nachweis der Klammern im Koppelbretts"]
[null,null,null,"Gewählter Klammetyp :",null,null,null,null,null,null,null,null,null,null,null,null,null,null,null,null,null,null,null,null,null,null,null,null,{"$f":"'Eingabe und Ergebnis'!N29","v":"1,83 x 63mm"}]
[null,null,null,"Gewählter Klammerabstand ",null,null,null,null,null,null,null,null,null,null,null,null,null,null,null,null,null,null,null,null,null,null,null,null,"eKlammer","=",{"$f":"'Eingabe und Ergebnis'!N30","v":100}]
[null,null,null,"Durchmesser",null,null,null,null,null,null,null,null,null,null,null,null,null,null,null,null,null,null,null,null,null,null,null,null,"dKl","=",{"$f":"IF(AC244=\"1,83 x 63mm\",1.83,1.53)","v":1.83}]
[null,null,null,"Characteristische Wert der Klammerntragfähigkeit",null,null,null,null,null,null,null,null,null,null,null,null,null,null,null,null,null,null,null,null,null,null,null,null,"Rk,klammer","=",{"$f":"IF(AC244=\"1,83 x 63mm\",0.72,0.55)","v":0.72}]
[null,null,null,"Bemessung Wert der Klammerntragfähigkeit",null,null,null,null,null,null,null,null,null,null,null,null,null,null,null,null,null,null,null,null,null,null,null,null,"Rd,klammer","=",{"$f":"AE247*V37/gammam","v":0.55384615384615377}]
[]
[null,null,"Nachweis"]
[null,null,null,"ηKlammer",null,null,null,null,null,null,null,null,null,null,null,null,null,null,null,null,null,null,null,null,null,null,null,null,"[ td,2 /((Rd,Klammer* 1000)/eKlammer) ]","=",{"$f":"tdzwei/((Rdklammerw*1000)/eklammerw)","v":0.56423611111111116},null,null,null,null,null,null,null,null,null,null,{"$f":"IF(AE251>1,\"> 1 NEIN !\",\"< 1    OK !\")","v":"< 1    OK !"}]
[]
["Statik Dachscheibe",null,null,null,null,null,null,null,null,null,null,null,null,null,null,null,null,null,null,null,"Fall 1 : Wind",null,null,null,null,null,null,null,null,null,null,null,null,null,null,null,null,{"$f":"TODAY()","v":"2023-11-20"}]
[null,null,null,null,null,null,null,null,null,null,null,null,null,null,null,null,null,null,null,null,null,null,null,null,null,null,null,null,null,null,null,null,null,null,null,null,null,"Seite 7/12"]
["4 - Seitig gelagert",null,null,null,null,null,null,null,null,null,null,null,null,null,null,null,null,null,null,null,null,null,null,null,null,null,null,null,null,null,null,null,null,null,null,null,null,"Bauvorhaben:",null,null,null,null,null,{"$f":"AR213","v":"Beispiel Holzhaus"}]
[null,null,null,null,null,null,null,null,null,null,null,null,null,null,null,null,null,null,null,null,null,null,null,null,null,null,null,null,null,null,null,null,null,null,null,null,null,"Position:",null,null,null,null,null,{"$f":"AR214","v":"Beispiel 3. Stock Küche"}]
[]
[]
["Landstraße 25, D - 79809 Weilheim - Bannholz"]
[]
[null,null,"Berechnung nach Eurocode 5 - EN 1995"]
[]
[]
[null,null,null,"Nachweis der Verbindunggsmittel Deckenscheibe an Randgurt",null,null,null,null,null,null,null,null,null,null,null,null,null,null,null,null,null,null,null,null,null,null,null,null,null,null,null,null,"Angaben zur Schraube laut"]
[null,null,null,null,null,null,null,null,null,null,null,null,null,null,null,null,null,null,null,null,null,null,null,null,null,null,null,null,null,null,null,null,"Firma",null,null,null,null,null,null,null,null,null,null,null,null,null,null,"=",{"$f":"'Eingabe und Ergebnis'!AC46","v":"Würth"}]
[null,null,null,null,null,null,null,null,null,null,null,null,null,null,null,null,null,null,null,null,null,null,null,null,null,null,null,null,null,null,null,null,"Art",null,null,null,null,null,null,null,null,null,null,null,null,null,null,"=",{"$f":"'Eingabe und Ergebnis'!AC47","v":"TeilgewindeScheibenkopf"}]
[null,null,null,null,null,null,null,null,null,null,null,null,null,null,null,null,null,null,null,null,null,null,null,null,null,null,null,null,null,null,null,null,"Typ",null,null,null,null,null,null,null,null,null,null,null,null,null,null,"=",{"$f":"'Eingabe und Ergebnis'!AC48","v":"8,0 x 300"}]
[null,null,null,null,null,null,null,null,null,null,null,null,null,null,null,null,null,null,null,null,null,null,null,null,null,null,null,null,null,null,null,null,"Produkt",null,null,null,null,null,null,null,null,null,null,null,null,null,null,"=",{"$f":"'Eingabe und Ergebnis'!AD49","v":"Assy Plus"}]
[null,null,null,null,null,null,null,null,null,null,null,null,null,null,null,null,null,null,null,null,null,null,null,null,null,null,null,null,null,null,null,null,"Durchmesser",null,null,null,null,null,null,null,null,null,null,null,null,null,"d","=",{"$f":"'Eingabe und Ergebnis'!AD51","v":8}]
[null,null,null,null,null,null,null,null,null,null,null,null,null,null,null,null,null,null,null,null,null,null,null,null,null,null,null,null,null,null,null,null,"Länge",null,null,null,null,null,null,null,null,null,null,null,null,null,"lSch","=",{"$f":"'Eingabe und Ergebnis'!AD52","v":300}]
[null,null,null,null,null,null,null,null,null,null,null,null,null,null,null,null,null,null,null,null,null,null,null,null,null,null,null,null,null,null,null,null,"Gewinde",null,null,null,null,null,null,null,null,null,null,null,null,null,"lG","=",{"$f":"'Eingabe und Ergebnis'!AD53","v":100}]
[null,null,null,null,null,null,null,null,null,null,null,null,null,null,null,null,null,null,null,null,null,null,null,null,null,null,null,null,null,null,null,null,"Kopfdurchmesser",null,null,null,null,null,null,null,null,null,null,null,null,null,"dK","=",{"$f":"'Eingabe und Ergebnis'!AD54","v":22}]
[null,null,null,null,null,null,null,null,null,null,null,null,null,null,null,null,null,null,null,null,null,null,null,null,null,null,null,null,null,null,null,null,"Zugtragfähigkeit",null,null,null,null,null,null,null,null,null,null,null,null,null,"Rt,u,k","=",{"$f":"IF(AND(AW265=\"Würth\",AW266=\"TeilgewindeSenkkopf\"),VLOOKUP(AW267,'Verbindung Schrauben'!B6:H50,7,FALSE),IF(AND(AW265=\"Würth\",AW266=\"TeilgewindeScheibenkopf\"),VLOOKUP(AW267,'Verbindung Schrauben'!B61:H124,7,FALSE),IF(AND(AW265=\"Würth\",AW266=\"VollgewindeSenkkopf\"),VLOOKUP(AW267,'Verbindung Schrauben'!J6:P46,7,FALSE),IF(AND(AW265=\"Würth\",AW266=\"VollgewindeZylinderkopf\"),VLOOKUP(AW267,'Verbindung Schrauben'!J61:P111,7,FALSE),IF(AND(AW265=\"Spax\",AW266=\"TeilgewindeSenkkopf_S\"),VLOOKUP(AW267,'Verbindung Schrauben'!B161:H196,7,FALSE),IF(AND(AW265=\"Spax\",AW266=\"TeilgewindeTellerkopf_S\"),VLOOKUP(AW267,'Verbindung Schrauben'!J161:P211,7,FALSE),IF(AND(AW265=\"Rothoblaas\",AW266=\"TeilgewindeTellerkopf_R\"),VLOOKUP(AW267,'Verbindung Schrauben'!AE6:AK64,7,FALSE),IF(AND(AW265=\"Rothoblaas\",AW266=\"TeilgewindeSenkkopf_R\"),VLOOKUP(AW267,'Verbindung Schrauben'!AN6:AT101,7,FALSE),IF(AND(AW265=\"Rothoblaas\",AW266=\"VollgewindeZylinderkopf_R\"),VLOOKUP(AW267,'Verbindung Schrauben'!AW6:BC48,7,FALSE))))))))))","v":21500}]
[null,null,null,null,null,null,null,null,null,null,null,null,null,null,null,null,null,null,null,null,null,null,null,null,null,null,null,null,null,null,null,null,"Fließmoiment",null,null,null,null,null,null,null,null,null,null,null,null,null,"My,k","=",{"$f":"IF(AND(AW265=\"Würth\",AW266=\"TeilgewindeSenkkopf\"),VLOOKUP(AW267,'Verbindung Schrauben'!B6:H50,6,FALSE),IF(AND(AW265=\"Würth\",AW266=\"TeilgewindeScheibenkopf\"),VLOOKUP(AW267,'Verbindung Schrauben'!B61:H124,6,FALSE),IF(AND(AW265=\"Würth\",AW266=\"VollgewindeSenkkopf\"),VLOOKUP(AW267,'Verbindung Schrauben'!J6:P46,6,FALSE),IF(AND(AW265=\"Würth\",AW266=\"VollgewindeZylinderkopf\"),VLOOKUP(AW267,'Verbindung Schrauben'!J61:P111,6,FALSE),IF(AND(AW265=\"Spax\",AW266=\"TeilgewindeSenkkopf_S\"),VLOOKUP(AW267,'Verbindung Schrauben'!B161:H196,6,FALSE),IF(AND(AW265=\"Spax\",AW266=\"TeilgewindeTellerkopf_S\"),VLOOKUP(AW267,'Verbindung Schrauben'!J161:P211,6,FALSE),IF(AND(AW265=\"Rothoblaas\",AW266=\"TeilgewindeTellerkopf_R\"),VLOOKUP(AW267,'Verbindung Schrauben'!AE6:AK64,6,FALSE),IF(AND(AW265=\"Rothoblaas\",AW266=\"TeilgewindeSenkkopf_R\"),VLOOKUP(AW267,'Verbindung Schrauben'!AN6:AT101,6,FALSE),IF(AND(AW265=\"Rothoblaas\",AW266=\"VollgewindeZylinderkopf_R\"),VLOOKUP(AW267,'Verbindung Schrauben'!AW6:BC48,6,FALSE))))))))))","v":23000}]
[null,null,null,null,null,null,null,null,null,null,null,null,null,null,null,null,null,null,null,null,null,null,null,null,null,null,null,null,null,null,null,null,"Tragfähigkeitsklasse Kopf",null,null,null,null,null,null,null,null,null,null,null,null,null,null,"=",3]
[null,null,null,null,null,null,null,null,null,null,null,null,null,null,null,null,null,null,null,null,null,null,null,null,null,null,null,null,null,null,null,null,"Tragfähigkeitsklasse Schaft",null,null,null,null,null,null,null,null,null,null,null,null,null,null,"=","B"]
[]
[null,null,null,null,null,null,null,null,null,null,null,null,null,null,null,null,null,null,null,null,null,null,null,null,null,null,null,null,null,null,null,null,"(Zulassung Würth und Zulassung Z-9.1-614)"]
[null,null,null,null,null,null,null,null,null,null,null,null,null,null,null,null,null,null,null,null,null,null,null,null,null,null,null,null,null,null,null,null,"(Zulassung Spax und Zulassung Z-9.1-519)"]
[null,null,null,null,null,null,null,null,null,null,null,null,null,null,null,null,null,null,null,null,null,null,null,null,null,null,null,null,null,null,null,null,"(Zulassung Rothoblass ETA-11/0030)"]
[null,null,"Angaben zum Seitenholz 1: Element",null,null,null,null,null,null,null,null,null,null,null,null,null,null,null,null,null,null,null,null,null,null,null,null,null,null,null,null,null,"Angaben zur Zwischenschicht [Blaß]"]
[null,null,"Dicke",null,null,null,null,null,null,null,null,null,null,null,null,null,null,null,null,"t1","=",{"$f":"'Eingabe und Ergebnis'!Q46","v":190},null,null,null,null,null,null,null,null,null,null,"Dicke",null,null,null,null,null,null,null,null,null,null,null,null,null,"tzw","=",{"$f":"'Eingabe und Ergebnis'!BB15","v":0}]
[null,null,"Rohdichte",null,null,null,null,null,null,null,null,null,null,null,null,null,null,null,null,"ρk1","=",{"$f":"'Eingabe und Ergebnis'!Q47","v":380},null,null,null,null,null,null,null,null,null,null,"Rohdichte",null,null,null,null,null,null,null,null,null,null,null,null,null,"ρkzw","=",{"$f":"'Eingabe und Ergebnis'!BB16","v":380}]
[null,null,"Dicke minimum",null,null,null,null,null,null,null,null,null,null,null,null,null,null,null,null,"t1 min","=",{"$f":"'Eingabe und Ergebnis'!Q48","v":51.519569049624963},null,null,null,null,null,null,null,null,null,null,"Kraft-Faser-Winkel",null,null,null,null,null,null,null,null,null,null,null,null,null," αzw","=",90]
[null,null,"Kraft-Faser-Winkel",null,null,null,null,null,null,null,null,null,null,null,null,null,null,null,null," α1","=",90]
[null,null,"Eindringtiefe Gewinde [t1 - (lSch - lG) ]",null,null,null,null,null,null,null,null,null,null,null,null,null,null,null,null,"lef,1","=",{"$f":"IF((dicket1-(lSch-lG))<=0,0,dicket1-(lSch-lG))","v":0},null,null,null,null,null,null,null,null,null,null,"bei Elementen mit Akustiklage muss die Abminderung durch eine Zwischenschicht nach Blaß berücksichtigt werden"]
[]
[null,null,"Angaben zum Seitenholz 2: Randgurt",null,null,null,null,null,null,null,null,null,null,null,null,null,null,null,null,null,null,null,null,null,null,null,null,null,null,null,null,null,null,null,null,null,null,null,null,null,null,null,null,null,null,null,null,"EC 5,  N. Anhang (NA.103) & (NA.104)"]
[null,null,"Dicke",null,null,null,null,null,null,null,null,null,null,null,null,null,null,null,null,"t2,H","=",{"$f":"'Eingabe und Ergebnis'!Q51","v":240}]
[null,null,"Rohdichte",null,null,null,null,null,null,null,null,null,null,null,null,null,null,null,null,"ρk2","=",{"$f":"'Eingabe und Ergebnis'!Q52","v":380}]
[null,null,"Dicke minimum",null,null,null,null,null,null,null,null,null,null,null,null,null,null,null,null,"t2 min","=",{"$f":"'Eingabe und Ergebnis'!Q53","v":51.519569049624963}]
[null,null,"Kraft-Faser-Winkel",null,null,null,null,null,null,null,null,null,null,null,null,null,null,null,null," α2","=",90]
[null,null,"Eindringtiefe Schraube [ lSch - t1 - tzw ]",null,null,null,null,null,null,null,null,null,null,null,null,null,null,null,null,"t2 ","=",{"$f":"lSch-(dicket1+dicket)","v":110}]
[null,null,"Eindringtiefe Gewinde [ Wenn (lG < t2; lG , t2 ) ]",null,null,null,null,null,null,null,null,null,null,null,null,null,null,null,null,"lef,2","=",{"$f":"IF(lG<dicket2,lG,dicket2)","v":100}]
["Statik Dachscheibe",null,null,null,null,null,null,null,null,null,null,null,null,null,null,null,null,null,null,null,"Fall 1 : Wind",null,null,null,null,null,null,null,null,null,null,null,null,null,null,null,null,{"$f":"TODAY()","v":"2023-11-20"}]
[null,null,null,null,null,null,null,null,null,null,null,null,null,null,null,null,null,null,null,null,null,null,null,null,null,null,null,null,null,null,null,null,null,null,null,null,null,"Seite 8/12"]
["4 - Seitig gelagert",null,null,null,null,null,null,null,null,null,null,null,null,null,null,null,null,null,null,null,null,null,null,null,null,null,null,null,null,null,null,null,null,null,null,null,null,"Bauvorhaben:",null,null,null,null,null,{"$f":"AR255","v":"Beispiel Holzhaus"}]
[null,null,null,null,null,null,null,null,null,null,null,null,null,null,null,null,null,null,null,null,null,null,null,null,null,null,null,null,null,null,null,null,null,null,null,null,null,"Position:",null,null,null,null,null,{"$f":"AR256","v":"Beispiel 3. Stock Küche"}]
[]
[]
["Landstraße 25, D - 79809 Weilheim - Bannholz"]
[]
[null,null,"Berechnung nach Eurocode 5 - EN 1995"]
[]
[]
[null,null,"Tragfähigkeit auf Abscheren je Scherfuge/ [Johannsengleichungen]",null,null,null,null,null,null,null,null,null,null,null,null,null,null,null,null,null,null,null,null,null,null,null,null,null,null,null,null,null,null,null,null,null,null,null,"Schubtragfähigkeit VM*2",null,null,null,null,null,null,null,"γm,lat",null,null,null,"Bruchtyp"]
[null,null,"Koeffizient",null,null,null,null,null,null,null,null,null,null,null,null,null,null,null,null,null,null,null,"k90","=",{"$f":"IF(d<8,1.35+0.015*d,1)","v":1},null,null,null,null,null,null,null,null,null,null,null,null,null,"R1","=",{"$f":"((fh2vk*beta0)/(1+beta0))*(-2*dicket-dicket1-dicket2+((4+delta+(delta/beta0))*dicket^2+(2+1/beta0)*dicket1^2+(2+beta0)*dicket2^2+4*dicket*dicket2+4*dicket*dicket1+2*dicket1*dicket2)^0.5)*d","v":8799.3438456115146},null,null,null,null,null,1.3,null,null,null,"Holz"]
[null,null,"Lochleibungsfestigkeit in Seitenholz 1",null,null,null,null,null,null,null,null,null,null,null,null,null,null,null,null,null,null,null,"fh,1,v,k","=",{"$f":"(0.082*d^-0.3*rohk1)/(koefficientk90*(SIN(RADIANS(V285))^2)+(COS(RADIANS(V285))^2))","v":16.698230546315447},null,null,null,null,null,null,null,null,null,null,null,null,null,"R2","=",{"$f":"fh2vk*d*dicket2","v":14694.442880757593},null,null,null,null,null,1.3,null,null,null,"Holz"]
[null,null,"Lochleibungsfestigkeit in Zwischenschicht",null,null,null,null,null,null,null,null,null,null,null,null,null,null,null,null,null,null,null,"fh,zw,v,k","=",{"$f":"(0.082*d^-0.3*rohkzw)/(koefficientk90*(SIN(alphazw)^2)+(COS(alphazw)^2))","v":16.698230546315447},null,null,null,null,null,null,null,null,null,null,null,null,null,"R3","=",{"$f":"fh1vk*d*dicket1","v":25381.310430399481},null,null,null,null,null,1.3,null,null,null,"Holz"]
[null,null,"Lochleibungsfestigkeit in Seitenholz 2",null,null,null,null,null,null,null,null,null,null,null,null,null,null,null,null,null,null,null,"fh,2,v,k","=",{"$f":"(0.082*d^-0.3*rohk2)/(koefficientk90*(SIN(RADIANS(V292))^2)+(COS(RADIANS(V292))^2))","v":16.698230546315447},null,null,null,null,null,null,null,null,null,null,null,null,null,"R4","=",{"$f":"fh2vk*(beta0/(0.5+beta0))*(-dicket-dicket2/2+(dicket^2+dicket*dicket2+dicket2^2/2+delta*dicket^2/(2*beta0)+dicket2^2/(2*beta0)+2*Myk/(fh2vk*d)+delta*dicket^2/4+Myk/(fh2vk*d))^0.5)*d","v":5105.0535237661525},null,null,null,null,null,1.2,null,null,null,"Holz/Stahl"]
[null,null,"Koeffizient beta0 = fh,1,k / fh,2,k",null,null,null,null,null,null,null,null,null,null,null,null,null,null,null,null,null,null,null,"β0 ","=",{"$f":"fh1vk/fh2vk","v":1},null,null,null,null,null,null,null,null,null,null,null,null,null,"R5","=",{"$f":"fh2vk*(beta0/(0.5+beta0))*(-dicket-dicket1/2+((1+delta/(4*beta0)+delta/2)*dicket^2+(0.5+0.5*beta0)*dicket1^2+dicket*dicket1+(Myk/(fh2vk*d*beta0))+(2*Myk/(fh2vk*d)))^0.5)*d","v":8581.0595042671903},null,null,null,null,null,1.2,null,null,null,"Holz/Stahl"]
[null,null,"Koeffizient beta1  = fh,2,k / fh,zw,k",null,null,null,null,null,null,null,null,null,null,null,null,null,null,null,null,null,null,null,"β1","=",{"$f":"IF(fhzwvk=0,0,fh2vk/fhzwvk)","v":1},null,null,null,null,null,null,null,null,null,null,null,null,null,"R6","=",{"$f":"fh2vk*1/(1+beta0)*(-beta0*dicket+(beta0^2*dicket^2+4*beta0*(beta0+1)*Myk/(fh2vk*d)+beta0*(beta0+1)/2*delta*dicket^2)^0.5)*d","v":2478.9007323900819},null,null,null,null,null,1.1000000000000001,null,null,null,"Stahl"]
[null,null,"Koeffizient beta2  = fh,zw,k / fh,1,k",null,null,null,null,null,null,null,null,null,null,null,null,null,null,null,null,null,null,null,"β2","=",{"$f":"fhzwvk/fh1vk","v":1},null,null,null,null,null,null,null,null,null,null,null,null,null,"R7","=",{"$f":"fh1vk*dicket1*d/(2+beta2)*(((2*beta2)*(1+beta2)+4*beta2*(2+beta2)*Myk/(fh1vk*dicket1^2*d))^0.5-beta2)","v":8581.0595042671903},null,null,null,null,null,1.2,null,null,null,"Holz/Stahl"]
[null,null,"Koeffizient delta  = fh,zw,k / fh,1,k",null,null,null,null,null,null,null,null,null,null,null,null,null,null,null,null,null,null,null,"δ","=",{"$f":"fhzwvk/fh1vk","v":1},null,null,null,null,null,null,null,null,null,null,null,null,null,"R8","=",{"$f":"(2*beta2/(1+beta2))^0.5*(2*Myk*fh1vk*d)^0.5","v":2478.9007323900819},null,null,null,null,null,1.1000000000000001,null,null,null,"Stahl"]
[null,null,"Modifikationsbeiwert VM",null,null,null,null,null,null,null,null,null,null,null,null,null,null,null,null,null,null,null,"kmod,lat","=",{"$f":"V37","v":1},null,null,null,null,null,null,null,null,null,null,null,null,null,"R9","=",{"$f":"fhzwvk*dicket2*d/(1+2*beta1)*((2*beta1^2*(1+beta1)+4*beta1*(1+2*beta1)*Myk/(dicket2^2*d*IF(fhzwvk=0,1,fhzwvk)))^0.5-beta1)","v":5105.0535237661534},null,null,null,null,null,1.2,null,null,null,"Holz/Stahl",null,null,null,null,null,null,null,"Rkmin","γm,lat"]
[null,null,"Teilsicherheitsbeiwert VM",null,null,null,null,null,null,null,null,null,null,null,null,null,null,null,null,null,null,null,"γm,lat","=",{"$f":"BH316","v":1.1000000000000001},null,null,null,null,null,null,null,null,null,null,null,null,null,"R10","=",{"$f":"(2*beta1/(1+beta1))^0.5*(2*Myk*fhzwvk*d)^0.5","v":2478.9007323900819},null,null,null,null,null,1.1000000000000001,null,null,null,"Stahl",null,null,null,null,null,null,null,{"$f":"IF(rohkzw=0,MIN(AO307:AT312),MIN(AO313:AT316))","v":2478.9007323900819},{"$f":"VLOOKUP(BG316,AO307:AX316,7,FALSE)","v":1.1000000000000001}]
[]
[null,null,"Schubtragfähigkeit = min(R1-R10)",null,null,null,null,null,null,null,null,null,null,null,null,null,null,null,null,null,null,null,"Rlat,k","=",{"$f":"IF(rohkzw=0,MIN(BG318:BG323),MIN(BG318:BG327))","v":2478.9007323900819},null,null,null,null,null,null,null,null,null,null,null,null,null,"*2 Hypothese: Verwendung von Holz vorgebohrt",null,null,null,null,null,null,null,null,null,null,null,null,null,null,null,null,null,null,null,{"$f":"ABS(AO307)","v":8799.3438456115146}]
[null,null,null,null,null,null,null,null,null,null,null,null,null,null,null,null,null,null,null,null,null,null,null,null,null,null,null,null,null,null,null,null,null,null,null,null,null,null,null,null,null,null,null,null,null,null,null,null,null,null,null,null,null,null,null,null,null,null,{"$f":"ABS(AO308)","v":14694.442880757593}]
[null,null,"Tragfähigkeit in Richtung der Stiftachse",null,null,null,null,null,null,null,null,null,null,null,null,null,null,null,null,null,null,null,null,null,null,null,null,null,null,null,null,null,null,null,null,null,null,null,null,null,null,null,null,null,null,null,null,null,null,null,null,null,null,null,null,null,null,null,25381.310430399481]
[null,null,"Seitenholz 1: Element",null,null,null,null,null,null,null,null,null,null,null,null,null,null,null,null,null,null,null,null,null,null,null,null,null,null,null,null,null,null,null,null,null,"Tragfähigkeit in Richtung der Scherfuge",null,null,null,null,null,null,null,null,null,null,null,null,null,null,null,null,null,null,null,null,null,5105.0535237661525]
[null,null,"Char. Wert des Ausziehparameters",null,null,null,null,null,null,null,null,null,null,null,null,null,null,null,null,null,null,null,"f1,k","=",{"$f":"80*10^-6*rohk1^2","v":11.552},null,null,null,null,null,null,null,null,null,null,null,"Char. Wert = (Rlat,k + ΔRk) . kmod,lat / γM,lat",null,null,null,null,null,null,null,null,null,null,null,null,null,null,null,null,null,null,null,null,null,8581.0595042671903]
[null,null,"Char. Wert des Kopfdurchziehparameters",null,null,null,null,null,null,null,null,null,null,null,null,null,null,null,null,null,null,null,"f2,k","=",{"$f":"80*10^-6*rohk1^2","v":11.552},null,null,null,null,null,null,null,null,null,null,null,null,null,"Rlat,d","=",{"$f":"(Rlatk+deltaRk)*(kmodlat/gammamlat)","v":3524.2661203546195},null,null,null,null,null,null,null,null,null,null,null,null,null,null,null,null,null,2478.9007323900819]
[null,null,"Schraubenkopf",null,null,null,null,null,null,null,null,null,null,null,null,null,null,null,null,null,null,null,"Rax,k,Kopf","=",{"$f":"f2k*dk^2","v":5591.1679999999997},null,null,null,null,null,null,null,null,null,null,null,null,null,null,null,null,null,null,null,null,null,null,null,null,null,null,null,null,null,null,null,null,null,8581.0595042671903]
[null,null,"Gewindeteil",null,null,null,null,null,null,null,null,null,null,null,null,null,null,null,null,null,null,null,"Rax,k,Gew","=",{"$f":"(f1k*langeef1*d)/((SIN(RADIANS(V285)))^2+(4/3)*(COS(RADIANS(V285)))^2)","v":0},null,null,null,null,null,null,null,null,null,null,"dabei:",null,null,null,null,null,null,null,null,null,null,null,null,null,null,null,null,null,null,null,null,null,null,2478.9007323900819]
[null,null,"Tragfähigkeit Seitenholz 1",null,null,null,null,null,null,null,null,null,null,null,null,null,null,null,null,null,null,null,"Rax,α,Rk,1","=",{"$f":"MAX(Y324:AD325)","v":5591.1679999999997},null,null,null,null,null,null,null,null,null,null,null,null,null,null,null,null,null,null,null,null,null,null,null,null,null,null,null,null,null,null,null,null,null,5105.0535237661534]
[null,null,null,null,null,null,null,null,null,null,null,null,null,null,null,null,null,null,null,null,null,null,null,null,null,null,null,null,null,null,null,null,null,null,null,null,null,null,null,null,null,null,null,null,null,null,null,null,null,null,null,null,null,null,null,null,null,null,2478.9007323900819]
[null,null,"Seitenholz 2: Randgurt"]
[null,null,"Char. Wert des Ausziehparameters",null,null,null,null,null,null,null,null,null,null,null,null,null,null,null,null,null,null,null,"f1,k","=",{"$f":"80*10^-6*rohk2^2","v":11.552}]
[null,null,"Char. Wert des Kopfdurchziehparameters",null,null,null,null,null,null,null,null,null,null,null,null,null,null,null,null,null,null,null,"f2,k","=",{"$f":"80*10^-6*rohk2^2","v":11.552}]
[null,null,"Tragfähigkeit Seitenholz 2",null,null,null,null,null,null,null,null,null,null,null,null,null,null,null,null,null,null,null,"Rax,α,Rk,2","=",{"$f":"f1k*langeef2*(d/(((SIN(RADIANS(V292)))^2)+(4/3)*((COS(RADIANS(V292)))^2)))","v":9241.6}]
[]
[null,null,"Tragfähigkeit in Richtung der Stiftachse",null,null,null,null,null,null,null,null,null,null,null,null,null,null,null,null,null,null,null,"Rax,α,Rk","=",{"$f":"MIN(Y326,Y331)","v":5591.1679999999997}]
[null,null,null,null,null,null,null,null,null,null,null,null,null,null,null,null,null,null,null,null,null,null,null,null,null,null,null,null,null,null,null,null,null,null,null,"EC 5,  8.7 formeln (8.40a) & (8.40b)"]
[null,null,"Seilwirkung  = MIN ( Rlat,k ; Rax,k/4*1 )",null,null,null,null,null,null,null,null,null,null,null,null,null,null,null,null,null,null,null,"ΔRk","=",{"$f":"MIN(Y318,Y333/4)","v":1397.7919999999999}]
[null,null,"*1 weil Φschrauben > 8mm"]
["Statik Dachscheibe",null,null,null,null,null,null,null,null,null,null,null,null,null,null,null,null,null,null,null,"Fall 1 : Wind",null,null,null,null,null,null,null,null,null,null,null,null,null,null,null,null,{"$f":"TODAY()","v":"2023-11-20"}]
[null,null,null,null,null,null,null,null,null,null,null,null,null,null,null,null,null,null,null,null,null,null,null,null,null,null,null,null,null,null,null,null,null,null,null,null,null,"Seite 9/12"]
["4 - Seitig gelagert",null,null,null,null,null,null,null,null,null,null,null,null,null,null,null,null,null,null,null,null,null,null,null,null,null,null,null,null,null,null,null,null,null,null,null,null,"Bauvorhaben:",null,null,null,null,null,{"$f":"AR297","v":"Beispiel Holzhaus"}]
[null,null,null,null,null,null,null,null,null,null,null,null,null,null,null,null,null,null,null,null,null,null,null,null,null,null,null,null,null,null,null,null,null,null,null,null,null,"Position:",null,null,null,null,null,{"$f":"AR298","v":"Beispiel 3. Stock Küche"}]
[]
[]
["Landstraße 25, D - 79809 Weilheim - Bannholz"]
[]
[null,null,"Berechnung nach Eurocode 5 - EN 1995"]
[]
[]
[null,null,"Nachweis der Verbindungsmittel Scheibe an Randgurt parallel zur Elementspannrichtung"]
[null,null,"Tragfähigkeit in Richtung der Scherfuge",null,null,null,null,null,null,null,null,null,null,null,null,null,null,null,null,null,null,null,"Rlat,d","=",{"$f":"AO323","v":3524.2661203546195}]
[]
[null,null,"Länge Rangurt parallel zur Elementspannrichtung*",null,null,null,null,null,null,null,null,null,null,null,null,null,null,null,null,null,null,null,"lr,||","=",{"$f":"'Eingabe und Ergebnis'!Q41","v":6}]
[null,null,"Abstand der Verbindungsmittel",null,null,null,null,null,null,null,null,null,null,null,null,null,null,null,null,null,null,null,"eV,||","=",{"$f":"'Eingabe und Ergebnis'!Q43","v":0.25}]
[]
[null,null,"Kraft = Max( Wk,D,1 ; Wk,S,1 )",null,null,null,null,null,null,null,null,null,null,null,null,null,null,null,null,null,null,null,"Wk,1 ","=",{"$f":"MAX(AU17:AZ18)","v":4}]
[null,null,"Auflagerlast = Max ( 1,5 * Wk,1 ; bd,2 ) ",null,null,null,null,null,null,null,null,null,null,null,null,null,null,null,null,null,null,null,"bd,res","=",{"$f":"MAX(1.5*wk1kraft,bd2auflagerk)","v":6}]
[null,null,"Längefaktor = ls / lr,||",null,null,null,null,null,null,null,null,null,null,null,null,null,null,null,null,null,null,null,"lf","=",{"$f":"ls/lrparallel","v":1}]
[null,null,"Kraft VM = bd,res * eV,|| * 1000 * lf",null,null,null,null,null,null,null,null,null,null,null,null,null,null,null,null,null,null,null,"Fv,b,d","=",{"$f":"bdres*evparallel*1000*lf","v":1500}]
[]
[null,null,"Nachweis",null,null,null,null,null,null,null,null,null,null,null,null,null,null,null,null,null,null,null,null,null,null,null,null,null,null,null,null,null,null,null,null,null,null,null,null,null,null,null,null,null,null,null,null,"dabei"]
[null,null,"ηVM,|| = Fv,d,b / Rlat,d",null,null,null,null,null,null,null,null,null,null,null,null,null,null,null,null,null,null,null,null,"=",{"$f":"Fvbd/IF('Eingabe und Ergebnis'!Q38=\"Nein\",'Eingabe und Ergebnis'!Q39,Rlatd)","v":0.4256205260257323},null,null,null,null,null,null,null,null,null,null,{"$f":"IF(Y360>1,\"> 1 NEIN !\",\"< 1    OK !\")","v":"< 1    OK !"},null,null,null,null,null,null,null,null,null,null,null,"a =","bs"]
[null,null,null,null,null,null,null,null,null,null,null,null,null,null,null,null,null,null,null,null,null,null,null,null,null,null,null,null,null,null,null,null,null,null,null,null,null,null,null,null,null,null,null,null,null,null,null,"b =","l,r,||"]
[null,null,null,null,null,null,null,null,null,null,null,null,null,null,null,null,null,null,null,null,null,null,null,null,null,null,null,null,null,null,null,null,null,null,null,null,null,null,null,null,null,null,null,null,null,null,null,"c =","bs"]
[null,null,null,null,null,null,null,null,null,null,null,null,null,null,null,null,null,null,null,null,null,null,null,null,null,null,null,null,null,null,null,null,null,null,null,null,null,null,null,null,null,null,null,null,null,null,null,"d =","ls"]
[null,null,"Länge Rangurt parallel zur Elementspannrichtung lr,|| = ls",null,null,null,null,null,null,null,null,null,null,null,null,null,null,null,null,null,null,null,"l","=",{"$f":"ls","v":6}]
[null,null,"Abstand der Verbindungsmittel",null,null,null,null,null,null,null,null,null,null,null,null,null,null,null,null,null,null,null,"eV,||","=",{"$f":"evparallel","v":0.25}]
[]
[]
[null,null,"Auflagerlast = Max ( 1,5 * Wk,1 ; bd,2 ) ",null,null,null,null,null,null,null,null,null,null,null,null,null,null,null,null,null,null,null,"bd,res = dd,res","=",{"$f":"MAX(1.5*wk1kraft,bd2auflagerk)","v":6}]
[null,null,"Längefaktor = ls / lr,||",null,null,null,null,null,null,null,null,null,null,null,null,null,null,null,null,null,null,null,"lf","=",{"$f":"ls/Y364","v":1}]
[null,null,"Kraft VM = bd,res * eV,|| * 1000 * lf",null,null,null,null,null,null,null,null,null,null,null,null,null,null,null,null,null,null,null,"Fv,b,d","=",{"$f":"bdres*evparallel*1000*Y369","v":1500}]
[]
[null,null,"Nachweis"]
[null,null,"ηVM,|| = Fv,d,b / Rlat,d",null,null,null,null,null,null,null,null,null,null,null,null,null,null,null,null,null,null,null,null,"=",{"$f":"Y370/IF('Eingabe und Ergebnis'!Q38=\"Nein\",'Eingabe und Ergebnis'!Q39,Rlatd)","v":0.4256205260257323},null,null,null,null,null,null,null,null,null,null,{"$f":"IF(Y373>1,\"> 1 NEIN !\",\"< 1    OK !\")","v":"< 1    OK !"}]
[]
[]
[]
[]
[null,null,"* Falls die Rangurtlänge kürzer als die Scheibenlänge ist!"]
["Statik Dachscheibe",null,null,null,null,null,null,null,null,null,null,null,null,null,null,null,null,null,null,null,"Fall 1 : Wind",null,null,null,null,null,null,null,null,null,null,null,null,null,null,null,null,{"$f":"TODAY()","v":"2023-11-20"}]
[null,null,null,null,null,null,null,null,null,null,null,null,null,null,null,null,null,null,null,null,null,null,null,null,null,null,null,null,null,null,null,null,null,null,null,null,null,"Seite 10/12"]
["4 - Seitig gelagert",null,null,null,null,null,null,null,null,null,null,null,null,null,null,null,null,null,null,null,null,null,null,null,null,null,null,null,null,null,null,null,null,null,null,null,null,"Bauvorhaben:",null,null,null,null,null,{"$f":"AR339","v":"Beispiel Holzhaus"}]
[null,null,null,null,null,null,null,null,null,null,null,null,null,null,null,null,null,null,null,null,null,null,null,null,null,null,null,null,null,null,null,null,null,null,null,null,null,"Position:",null,null,null,null,null,{"$f":"AR340","v":"Beispiel 3. Stock Küche"}]
[]
[]
["Landstraße 25, D - 79809 Weilheim - Bannholz"]
[]
[null,null,"Berechnung nach Eurocode 5 - EN 1995"]
[]
[]
[null,null,"Nachweis der Verbindungsmittel Scheibe an Randgurt quer zur Elementspan."]
[null,null,"Anzahl der Verbindungsmittel pro Element",null,null,null,null,null,null,null,null,null,null,null,null,null,null,null,null,null,null,null," ηV","=",{"$f":"'Eingabe und Ergebnis'!Q42","v":3}]
[null,null,"Elementbreite",null,null,null,null,null,null,null,null,null,null,null,null,null,null,null,null,null,null,null,"bElement","=",{"$f":"belement","v":0.625}]
[null,null,"Einwirkung = MAX( Wk,D,2 ; Wk,S,2 ) ",null,null,null,null,null,null,null,null,null,null,null,null,null,null,null,null,null,null,null,"Wk,2","=",{"$f":"MAX(AU24:AZ25)","v":2}]
[null,null,"Auflagerlast = MAX( ad,1 ; √(ad,2² + (1,5*Wk,2)²))",null,null,null,null,null,null,null,null,null,null,null,null,null,null,null,null,null,null,null,"ad,res","=",{"$f":"MAX(V155,(tdzwei^2+(1.5*Y393)^2)^0.5)","v":4.3319308627908644}]
[null,null,"Kraft VM = ad,res * belement * 1000 / ηV",null,null,null,null,null,null,null,null,null,null,null,null,null,null,null,null,null,null,null,"Fv,a,d","=",{"$f":"adres*belement/nv*1000","v":902.48559641476334}]
[]
[null,null,"Nachweis"]
[null,null,"ηVM,quer = Fv,a,d / Rlat,d",null,null,null,null,null,null,null,null,null,null,null,null,null,null,null,null,null,null,null,null,"=",{"$f":"Y395/IF('Eingabe und Ergebnis'!Q38=\"Nein\",'Eingabe und Ergebnis'!Q39,Rlatd)","v":0.25607759618446557},null,null,null,null,null,null,null,null,null,null,{"$f":"IF(Y398>1,\"> 1 NEIN !\",\"< 1    OK !\")","v":"< 1    OK !"}]
[]
[]
[]
[]
[]
[]
[]
[]
[]
[]
[]
[]
[]
[]
[]
[]
[]
[]
[]
[]
[]
[]
["Statik Dachscheibe",null,null,null,null,null,null,null,null,null,null,null,null,null,null,null,null,null,null,null,"Fall 1 : Wind",null,null,null,null,null,null,null,null,null,null,null,null,null,null,null,null,{"$f":"TODAY()","v":"2023-11-20"}]
[null,null,null,null,null,null,null,null,null,null,null,null,null,null,null,null,null,null,null,null,null,null,null,null,null,null,null,null,null,null,null,null,null,null,null,null,null,"Seite 11/12"]
["4 - Seitig gelagert",null,null,null,null,null,null,null,null,null,null,null,null,null,null,null,null,null,null,null,null,null,null,null,null,null,null,null,null,null,null,null,null,null,null,null,null,"Bauvorhaben:",null,null,null,null,null,{"$f":"AR381","v":"Beispiel Holzhaus"}]
[null,null,null,null,null,null,null,null,null,null,null,null,null,null,null,null,null,null,null,null,null,null,null,null,null,null,null,null,null,null,null,null,null,null,null,null,null,"Position:",null,null,null,null,null,{"$f":"AR382","v":"Beispiel 3. Stock Küche"}]
[]
[]
["Landstraße 25, D - 79809 Weilheim - Bannholz"]
[]
[null,null,"Berechnung nach Eurocode 5 - EN 1995"]
[]
[]
[null,null,6,"Gebrauchstauglichkeitsnachweis"]
[]
[null,null,"Nachweis der Scheibenverformung"]
[null,null,"Der Hauptanteil der Scheibenverformung resultiert aus der Verschiebung in der Koppelfugen und der Schubverzerrung im Element"]
[]
[null,null,null,"Berechnen der Steifigkeit der Koppelfuge"]
[null,null,null,"Rohdichte des Koppelbretts",null,null,null,null,null,null,null,null,null,null,null,null,null,null,null,null,null,null,"ρk,1","=",{"$f":"IF(AC234=\"Nadelholz C 24\",350,IF(AC234=\"Sperrholz\",480,430))","v":480}]
[null,null,null,"Rohdichte des Element",null,null,null,null,null,null,null,null,null,null,null,null,null,null,null,null,null,null,"ρk,2","=",350]
[null,null,null,"Mittlere Rohdichte Element",null,null,null,null,null,null,null,null,null,null,null,null,null,null,null,null,null,null,"ρk","=",{"$f":"AVERAGE(Y438:AD439)","v":415}]
[null,null,null,"Durchmesser der Klammer",null,null,null,null,null,null,null,null,null,null,null,null,null,null,null,null,null,null,"dKlammer","=",{"$f":"dklammer","v":1.83}]
[]
[null,null,null,"Berechnen des Verschiebungsmodul der Klammer nach [EC 5]"]
[null,null,null,"Verschiebungsmodul  = (ρm1,5d0,8 /80)*2",null,null,null,null,null,null,null,null,null,null,null,null,null,null,null,null,null,null,"Kser","=",{"$f":"((rohkmittlere^1.5*dklammer^0.8)/80)*2","v":342.74649754899309},null,null,null,null,null,null,null,null,null,null,"Der Verschiebungsmodul Kser der Klammer gilt je Stift "]
[null,null,null,"Verschiebungsmodul  = (Kser*1000/eKlammer*ls)/2  ]",null,null,null,null,null,null,null,null,null,null,null,null,null,null,null,null,null,null,"Kfuge","=",{"$f":"((Kser*1000/eklammer)*ls)/2","v":10282.394926469793},null,null,null,null,null,null,null,null,null,null,"und kann daher mit dem Faktor 2 multipliziert werden."]
[]
[null,null,null,"Berechnen der Anzahl der Koppelfugen"]
[null,null,null,"nkoppelgugen = bs  / bElement ",null,null,null,null,null,null,null,null,null,null,null,null,null,null,null,null,null,null,null,"=",{"$f":"bs/belement","v":16}]
[]
[]
[null,null,"Verformung infolge Lastfall 1"]
[null,null,"Schubmodul",null,null,null,null,null,null,null,null,null,null,null,null,null,null,null,null,null,null,null,"GAef","=",{"$f":"_xlfn.XLOOKUP('Eingabe und Ergebnis'!DM18,INDIRECT(\"tab_H1\"&'Eingabe und Ergebnis'!DM16),(_xlfn.XLOOKUP(\"GA \"&'Eingabe und Ergebnis'!DM17,INDIRECT(\"tab_Z1\"&'Eingabe und Ergebnis'!DM16),INDIRECT(\"tab_\"&'Eingabe und Ergebnis'!DM16))))","v":29741},null,null,null,null,null,null,null,null,null,null,null,"(~gl Technische Daten)"]
[null,null,"Scheibesschubmodul = GAef / belement * bs ",null,null,null,null,null,null,null,null,null,null,null,null,null,null,null,null,null,null,null,"GAef,scheibe","=",{"$f":"(GA/belement)*bs","v":475856}]
[null,null,"Verformung Element",null,null,null,null,null,null,null,null,null,null,null,null,null,null,null,null,null,null,null,"uges,Elemente,1","=",{"$f":"ls*(0.5*(V154*bs)*0.5)/(GAscheibe)*1000","v":4.2554890555125915E-2}]
[null,null,"Maximal zulässigen Verformung = ls/500",null,null,null,null,null,null,null,null,null,null,null,null,null,null,null,null,null,null,null,"umax,1","=",{"$f":"ls/500*1000","v":12}]
[]
[null,null,"Nachweis"]
[null,null,"ηu,1 = uges,Elemente,1 / umax,1",null,null,null,null,null,null,null,null,null,null,null,null,null,null,null,null,null,null,null,null,"=",{"$f":"Y454/Y455","v":3.5462408795938261E-3},null,null,null,null,null,null,null,null,null,null,{"$f":"IF(Y458>1,\"> 1 NEIN !\",\"< 1    OK !\")","v":"< 1    OK !"}]
[]
[]
[]
[]
["Statik Dachscheibe",null,null,null,null,null,null,null,null,null,null,null,null,null,null,null,null,null,null,null,"Fall 1 : Wind",null,null,null,null,null,null,null,null,null,null,null,null,null,null,null,null,{"$f":"TODAY()","v":"2023-11-20"}]
[null,null,null,null,null,null,null,null,null,null,null,null,null,null,null,null,null,null,null,null,null,null,null,null,null,null,null,null,null,null,null,null,null,null,null,null,null,"Seite 12/12"]
["4 - Seitig gelagert",null,null,null,null,null,null,null,null,null,null,null,null,null,null,null,null,null,null,null,null,null,null,null,null,null,null,null,null,null,null,null,null,null,null,null,null,"Bauvorhaben:",null,null,null,null,null,{"$f":"AR423","v":"Beispiel Holzhaus"}]
[null,null,null,null,null,null,null,null,null,null,null,null,null,null,null,null,null,null,null,null,null,null,null,null,null,null,null,null,null,null,null,null,null,null,null,null,null,"Position:",null,null,null,null,null,{"$f":"AR424","v":"Beispiel 3. Stock Küche"}]
[]
[]
["Landstraße 25, D - 79809 Weilheim - Bannholz"]
[]
[null,null,"Berechnung nach Eurocode 5 - EN 1995"]
[]
[]
[null,null,"Verformung infolge Lastfall 2"]
[null,null,"Schubmodul",null,null,null,null,null,null,null,null,null,null,null,null,null,null,null,null,null,null,null,"GAef","=",{"$f":"Y452","v":29741},null,null,null,null,null,null,null,null,null,null,null,"(~gl Technische Daten)"]
[null,null,"Scheibenschubmodul = GAef / belement * ls ",null,null,null,null,null,null,null,null,null,null,null,null,null,null,null,null,null,null,null,"GAef,scheibe","=",{"$f":"(GA/belement)*ls","v":285513.59999999998}]
[null,null,"Verformung Element",null,null,null,null,null,null,null,null,null,null,null,null,null,null,null,null,null,null,null,"uges,Elemente,2","=",{"$f":"bs*1000*(0.5*(AU154*1000*ls)*0.5)/(GAscheibe2*1000)","v":0.10945187899980946}]
[null,null,"Verformung infolge der Koppelfugen",null,null,null,null,null,null,null,null,null,null,null,null,null,null,null,null,null,null,null,"uges,Fuge,2","=",{"$f":"(0.5*((AU154*ls)*(nkoppelfugen+1)))/(Kfuge/1000)","v":10.333195793373239}]
[]
[null,null,"Berechnen der Gesamtverformung der Scheibe"]
[null,null,"uges,2 = uges,Fuge,2 + uges,Elemente,2",null,null,null,null,null,null,null,null,null,null,null,null,null,null,null,null,null,null,null,null,"=",{"$f":"Y478+Y477","v":10.442647672373049}]
[]
[null,null,"Maximal zulässigen Verformung = bs/500",null,null,null,null,null,null,null,null,null,null,null,null,null,null,null,null,null,null,null,"umax,2","=",{"$f":"bs/500*1000","v":20}]
[]
[null,null,"Nachweis"]
[null,null,"ηu,2 = uges,2 / umax,2",null,null,null,null,null,null,null,null,null,null,null,null,null,null,null,null,null,null,null,null,"=",{"$f":"Y481/Y483","v":0.52213238361865244},null,null,null,null,null,null,null,null,null,null,{"$f":"IF(Y486>1,\"> 1 NEIN !\",\"< 1    OK !\")","v":"< 1    OK !"}]

{"sheet":"Fall 2. Erdbeben","index":13,"n_rows":486,"n_cols":60,"rows_kept":486,"cut":false,"hidden":false,"merged":[[16,46,16,51],[17,46,17,51],[23,46,23,51],[24,46,24,51],[25,46,25,51],[0,0,1,19],[0,20,2,35],[0,37,0,54],[1,37,1,54],[2,0,3,12],[2,37,2,42],[2,43,2,54],[3,37,3,42],[3,43,3,54],[36,21,36,26],[37,21,37,26],[38,21,38,26],[42,0,43,19],[42,20,44,35],[27,21,27,26],[28,21,28,26],[29,21,29,26],[30,21,30,26],[34,21,34,26],[35,21,35,26],[54,3,55,12],[56,3,57,12],[58,3,59,12],[54,13,55,25],[56,13,57,25],[58,13,59,25],[42,37,42,54],[43,37,43,54],[44,0,45,12],[44,37,44,42],[44,43,44,54],[45,37,45,42],[45,43,45,54],[84,37,84,54],[85,37,85,54],[86,0,87,12],[86,37,86,42],[86,43,86,54],[87,37,87,42],[87,43,87,54],[60,3,61,12],[62,3,63,12],[84,0,85,19],[84,20,86,35],[60,13,61,25],[62,13,63,18],[62,19,63,25],[104,21,104,26],[104,46,104,51],[126,0,127,19],[126,20,128,35],[126,37,126,54],[127,37,127,54],[128,0,129,12],[128,37,128,42],[128,43,128,54],[129,37,129,42],[154,21,154,26],[154,46,154,51],[156,21,156,26],[156,46,156,51],[159,29,160,53],[162,4,162,8],[162,46,162,51],[129,43,129,54],[150,21,150,26],[150,46,150,51],[151,21,151,26],[151,46,151,51],[153,21,153,26],[153,46,153,51],[166,19,166,23],[168,0,169,19],[168,20,170,35],[168,37,168,54],[169,37,169,54],[170,0,171,12],[170,37,170,42],[170,43,170,54],[171,37,171,42],[171,43,171,54],[194,21,194,26],[194,33,194,38],[202,21,202,30],[203,21,203,30],[204,21,204,30],[206,21,206,26],[206,33,206,38],[179,21,179,38],[182,21,182,26],[183,21,183,26],[184,21,184,26],[185,21,185,26],[191,21,191,26],[191,33,191,38],[210,0,211,19],[210,20,212,35],[210,37,210,54],[211,37,211,54],[212,0,213,12],[212,37,212,42],[212,43,212,54],[213,37,213,42],[213,43,213,54],[240,41,240,46],[243,28,243,34],[244,30,244,34],[245,30,245,34],[246,30,246,34],[247,30,247,34],[233,28,233,34],[234,30,234,34],[235,30,235,35],[236,30,236,35],[237,30,237,34],[240,30,240,34],[250,30,250,34],[250,41,250,46],[252,0,253,19],[252,20,254,35],[252,37,252,54],[253,37,253,54],[254,0,255,12],[254,37,254,42],[254,43,254,54],[255,37,255,42],[269,48,269,53],[270,48,270,53],[271,48,271,53],[272,48,272,53],[273,48,273,53],[274,48,274,53],[255,43,255,54],[264,48,264,53],[265,48,265,53],[266,48,266,53],[267,48,267,53],[268,48,268,53],[284,21,284,26],[285,21,285,26],[285,32,286,53],[288,21,288,26],[289,21,289,26],[290,21,290,26],[275,48,275,53],[281,21,281,26],[281,48,281,53],[282,21,282,26],[282,48,282,53],[283,21,283,26],[283,48,283,53],[291,21,291,26],[292,21,292,26],[293,21,293,26],[294,0,295,19],[294,20,296,35],[294,37,294,54],[295,37,295,54],[296,0,297,12],[296,37,296,42],[296,43,296,54],[297,37,297,42],[297,43,297,54],[305,38,305,45],[305,46,305,49],[305,50,305,53],[306,24,306,29],[306,40,306,45],[306,46,306,49],[306,50,306,53],[309,24,309,29],[309,40,309,45],[309,46,309,49],[309,50,309,53],[310,24,310,29],[310,40,310,45],[310,46,310,49],[310,50,310,53],[307,24,307,29],[307,40,307,45],[307,46,307,49],[307,50,307,53],[308,24,308,29],[308,40,308,45],[308,46,308,49],[308,50,308,53],[313,24,313,29],[313,40,313,45],[313,46,313,49],[313,50,313,53],[314,24,314,29],[314,40,314,45],[314,46,314,49],[314,50,314,53],[311,24,311,29],[311,40,311,45],[311,46,311,49],[311,50,311,53],[312,24,312,29],[312,40,312,45],[312,46,312,49],[312,50,312,53],[323,50,323,53],[324,24,324,29],[325,24,325,29],[315,24,315,29],[315,40,315,45],[315,46,315,49],[315,50,315,53],[317,24,317,29],[321,24,321,29],[328,24,328,29],[329,24,329,29],[330,24,330,29],[331,24,331,29],[332,24,332,29],[334,24,334,29],[322,24,322,29],[322,40,322,45],[323,24,323,29],[348,24,348,29],[350,24,350,29],[351,24,351,29],[353,24,353,29],[354,24,354,29],[355,24,355,29],[336,0,337,19],[336,20,338,35],[336,37,336,54],[337,37,337,54],[338,0,339,12],[338,37,338,42],[338,43,338,54],[339,37,339,42],[339,43,339,54],[378,0,379,19],[378,20,380,35],[378,37,378,54],[379,37,379,54],[380,0,381,12],[356,24,356,29],[359,24,359,29],[359,35,359,40],[363,24,363,29],[364,24,364,29],[366,24,366,29],[380,37,380,42],[380,43,380,54],[381,37,381,42],[381,43,381,54],[390,24,390,30],[391,24,391,30],[367,24,367,29],[368,24,368,29],[369,24,369,29],[372,24,372,29],[372,35,372,40],[392,24,392,30],[393,24,393,30],[394,24,394,29],[397,24,397,29],[397,35,397,40],[420,0,421,19],[420,20,422,35],[420,37,420,54],[421,37,421,54],[422,0,423,12],[462,0,463,19],[462,20,464,35],[462,37,462,54],[463,37,463,54],[464,0,465,12],[439,24,439,29],[440,24,440,29],[443,24,443,29],[444,24,444,29],[447,24,447,29],[451,24,451,29],[182,43,182,45],[476,24,476,29],[477,24,477,29],[480,24,480,29],[482,24,482,29],[485,24,485,29],[485,35,485,40],[464,37,464,42],[464,43,464,54],[465,37,465,42],[465,43,465,54],[474,24,474,29],[475,24,475,29],[452,24,452,29],[453,24,453,29],[454,24,454,29],[457,24,457,29],[457,35,457,40],[422,37,422,42],[422,43,422,54],[423,37,423,42],[423,43,423,54],[437,24,437,29],[438,24,438,29]]}
["Statik Dachscheibe",null,null,null,null,null,null,null,null,null,null,null,null,null,null,null,null,null,null,null,"Fall 2 : Erdbeben",null,null,null,null,null,null,null,null,null,null,null,null,null,null,null,null,{"$f":"TODAY()","v":"2023-11-20"}]
[null,null,null,null,null,null,null,null,null,null,null,null,null,null,null,null,null,null,null,null,null,null,null,null,null,null,null,null,null,null,null,null,null,null,null,null,null,"Seite 1/12"]
["4 - Seitig gelagert",null,null,null,null,null,null,null,null,null,null,null,null,null,null,null,null,null,null,null,null,null,null,null,null,null,null,null,null,null,null,null,null,null,null,null,null,"Bauvorhaben:",null,null,null,null,null,{"$f":"'Eingabe und Ergebnis'!X3","v":"Beispiel Holzhaus"}]
[null,null,null,null,null,null,null,null,null,null,null,null,null,null,null,null,null,null,null,null,null,null,null,null,null,null,null,null,null,null,null,null,null,null,null,null,null,"Position:",null,null,null,null,null,{"$f":"'Eingabe und Ergebnis'!X4","v":"Beispiel 3. Stock Küche"}]
[]
[]
["Landstraße 25, D - 79809 Weilheim - Bannholz"]
[]
[null,null,"Berechnung nach Eurocode 5 - EN 1995"]
[]
[]
[null,null,1,"Geometrie"]
[null,null,null,null,null,null,null,null,null,null,null,null,null,null,null,null,null,null,null,null,null,null,null,null,null,null,null,null,null,null,null,null,null,null,3,"Lastfall"]
[]
[null,null,null,null,null,null,null,null,null,null,null,null,null,null,null,null,null,null,null,null,null,null,null,null,null,null,null,null,null,null,null,null,null,"Kraft rechtwinklig zur Elementspannrichtung"]
[]
[null,null,null,null,null,null,null,null,null,null,null,null,null,null,null,null,null,null,null,null,null,null,null,null,null,null,null,null,null,null,null,null,null,"Erdbeben Kraft",null,null,null,null,null,null,null,null,null,null,"Aek","=",{"$f":"'Eingabe und Ergebnis'!BA34","v":0}]
[null,null,null,null,null,null,null,null,null,null,null,null,null,null,null,null,null,null,null,null,null,null,null,null,null,null,null,null,null,null,null,null,null,"Verteilte Kraft",null,null,null,null,null,null,null,null,null,null," Aek,1 = Aek/ls","=",{"$f":"AU17/ls","v":0}]
[]
[]
[]
[null,null,null,null,null,null,null,null,null,null,null,null,null,null,null,null,null,null,null,null,null,null,null,null,null,null,null,null,null,null,null,null,null,"Kraft parallel zur Elementspannrichtung"]
[]
[null,null,null,null,null,null,null,null,null,null,null,null,null,null,null,null,null,null,null,null,null,null,null,null,null,null,null,null,null,null,null,null,null,"Erdbeben Kraft",null,null,null,null,null,null,null,null,null,null,"Aek","=",{"$f":"'Eingabe und Ergebnis'!BA34","v":0}]
[null,null,null,null,null,null,null,null,null,null,null,null,null,null,null,null,null,null,null,null,null,null,null,null,null,null,null,null,null,null,null,null,null,"Verteilte Kraft",null,null,null,null,null,null,null,null,null,null," Aek,2 = Aek/bs","=",{"$f":"AU24/bs","v":0}]
[]
[]
[null,null,"Scheibenbreite ",null,null,null,null,null,null,null,null,null,null,null,null,null,null,null,null,"bs ","=",{"$f":"'Eingabe und Ergebnis'!N12","v":10}]
[null,null,"Scheibenlänge ",null,null,null,null,null,null,null,null,null,null,null,null,null,null,null,null,"ls ","=",{"$f":"'Eingabe und Ergebnis'!N13","v":6}]
[null,null,"Elementbreite ",null,null,null,null,null,null,null,null,null,null,null,null,null,null,null,null,"bElement","=",{"$f":"'Eingabe und Ergebnis'!N14","v":0.625}]
[null,null,"Anzahl der Elemente ",null,null,null,null,null,null,null,null,null,null,null,null,null,null,null,null,"nElement","=",{"$f":"V28/V30","v":16}]
[]
[null,null,2,"Holzeigenschaft"]
[]
[null,null,"Baustoff:",null,null,null,null,null,null,null,null,null,null,null,null,null,null,null,null,null,null,{"$f":"'Eingabe und Ergebnis'!N16","v":"Brettschichtholz"}]
[null,null,"Festigkeitsklasse:",null,null,null,null,null,null,null,null,null,null,null,null,null,null,null,null,null,null,{"$f":"'Eingabe und Ergebnis'!N17","v":"GL 24h"}]
[null,null,"Modifikationsbeiwert",null,null,null,null,null,null,null,null,null,null,null,null,null,null,null,null,"kmod","=",{"$f":"IF(AND('Eingabe und Ergebnis'!BA43:BE43=0,'Eingabe und Ergebnis'!BA46:BE46=0),'Eingabe und Ergebnis'!BI33,IF(MIN('Eingabe und Ergebnis'!BI33,'Eingabe und Ergebnis'!BI40)=0,MAX('Eingabe und Ergebnis'!BI33,'Eingabe und Ergebnis'!BI40),MIN('Eingabe und Ergebnis'!BI33,'Eingabe und Ergebnis'!BI40)))","v":1.1000000000000001}]
[null,null,"Teilsicherheitsbeiwert ",null,null,null,null,null,null,null,null,null,null,null,null,null,null,null,null,"γm","=",1]
[null,null,null,null,null,null,null,null,null,null,null,null,null,null,null,null,null,null,null,"γQ","=",1]
[]
[]
[]
["Statik Dachscheibe",null,null,null,null,null,null,null,null,null,null,null,null,null,null,null,null,null,null,null,{"$f":"U1","v":"Fall 2 : Erdbeben"},null,null,null,null,null,null,null,null,null,null,null,null,null,null,null,null,{"$f":"TODAY()","v":"2023-11-20"}]
[null,null,null,null,null,null,null,null,null,null,null,null,null,null,null,null,null,null,null,null,null,null,null,null,null,null,null,null,null,null,null,null,null,null,null,null,null,"Seite 2/12"]
["4 - Seitig gelagert",null,null,null,null,null,null,null,null,null,null,null,null,null,null,null,null,null,null,null,null,null,null,null,null,null,null,null,null,null,null,null,null,null,null,null,null,"Bauvorhaben:",null,null,null,null,null,{"$f":"AR3","v":"Beispiel Holzhaus"}]
[null,null,null,null,null,null,null,null,null,null,null,null,null,null,null,null,null,null,null,null,null,null,null,null,null,null,null,null,null,null,null,null,null,null,null,null,null,"Position:",null,null,null,null,null,{"$f":"AR4","v":"Beispiel 3. Stock Küche"}]
[]
[]
["Landstraße 25, D - 79809 Weilheim - Bannholz"]
[]
[null,null,"Berechnung nach Eurocode 5 - EN 1995"]
[]
[]
[]
[null,null,null,"Nutzungsklasse",null,null,null,null,null,null,null,null,null,{"$f":"'Eingabe und Ergebnis'!N15","v":1}]
[]
[null,null,null,"Klasse der Lasteinwirkungsdauer",null,null,null,null,null,null,null,null,null,"Sehr Kurz"]
[null,null,null,null,null,null,null,null,null,null,null,null,null,null,null,null,null,null,null,null,null,null,null,null,null,null,null,null,"EC  5, Tabelle 3.1"]
[null,null,null,"Zeit ",null,null,null,null,null,null,null,null,null,{"$f":"VLOOKUP(N57,'kmod+gamma+Trag.keit'!C26:H31,2,FALSE)","v":"/"}]
[]
[null,null,null,"Beispiel ",null,null,null,null,null,null,null,null,null,{"$f":"VLOOKUP(N57,'kmod+gamma+Trag.keit'!C26:H31,3,FALSE)","v":"außergewöhnliche Einwirkung"}]
[]
[null,null,null,"Widerstandabänderung Koeffizient",null,null,null,null,null,null,null,null,null,"kmod =",null,null,null,null,null,{"$f":"IF(N55=3,VLOOKUP(N57,'kmod+gamma+Trag.keit'!C26:H31,6,FALSE),VLOOKUP(N57,'kmod+gamma+Trag.keit'!C26:H31,5,FALSE))","v":1.1000000000000001}]
[]
[]
[]
[]
[]
[]
[]
[]
[]
[]
[]
[]
[]
[]
[]
[]
[]
[]
[]
[]
[]
["Statik Dachscheibe",null,null,null,null,null,null,null,null,null,null,null,null,null,null,null,null,null,null,null,{"$f":"U1","v":"Fall 2 : Erdbeben"},null,null,null,null,null,null,null,null,null,null,null,null,null,null,null,null,{"$f":"TODAY()","v":"2023-11-20"}]
[null,null,null,null,null,null,null,null,null,null,null,null,null,null,null,null,null,null,null,null,null,null,null,null,null,null,null,null,null,null,null,null,null,null,null,null,null,"Seite 3/12"]
["4 - Seitig gelagert",null,null,null,null,null,null,null,null,null,null,null,null,null,null,null,null,null,null,null,null,null,null,null,null,null,null,null,null,null,null,null,null,null,null,null,null,"Bauvorhaben:",null,null,null,null,null,{"$f":"AR45","v":"Beispiel Holzhaus"}]
[null,null,null,null,null,null,null,null,null,null,null,null,null,null,null,null,null,null,null,null,null,null,null,null,null,null,null,null,null,null,null,null,null,null,null,null,null,"Position:",null,null,null,null,null,{"$f":"AR46","v":"Beispiel 3. Stock Küche"}]
[]
[]
["Landstraße 25, D - 79809 Weilheim - Bannholz"]
[]
[null,null,"Berechnung nach Eurocode 5 - EN 1995"]
[]
[]
[null,null,4,"Ermittlung der Schittgrößen"]
[]
[null,null,"Kombinationen :",null,null,null,null,null,null,null,null,null,null,null,null,null,null,null,null,null,"EC 8 : Formel (3.17)",null,null,null,null,null,null,null,null,null,null,null,null,null,"dabei",null,null," ψ2 = 0,30 "]
[]
[]
[null,null,"Horizontallasten: Qk",null,null,null,null,null,null,null,null,null,null,null,null,null,null,null,null,null,null,null,null,null,null,null,null,null,null,null,null,null,null,null," γm = 1,00 deshalb Aek = Aed"]
[]
[null,null,null,"Lastfall 1 (Rechtwinklig zur Elementspannrichtung)",null,null,null,null,null,null,null,null,null,null,null,null,null,null,null,null,null,null,null,null,null,null,null,null,null,"Lastfall 2 (Parallel zur Elementspannrichtung)"]
[]
[null,null,"Horizontallasten ",null,null,null,null,null,null,null,null,null,null,null,null,null,null,null,null,"Aed,1","=",{"$f":"AU18","v":0},null,null,null,null,null,null,null,"Horizontallasten ",null,null,null,null,null,null,null,null,null,null,null,null,null,null,"Aed,2","=",{"$f":"AU25","v":0}]
[]
[]
[]
[]
[]
[]
[]
[]
[]
[]
[]
[]
[]
[]
[]
[]
[]
[]
[]
[]
[]
["Statik Dachscheibe",null,null,null,null,null,null,null,null,null,null,null,null,null,null,null,null,null,null,null,{"$f":"U1","v":"Fall 2 : Erdbeben"},null,null,null,null,null,null,null,null,null,null,null,null,null,null,null,null,{"$f":"TODAY()","v":"2023-11-20"}]
[null,null,null,null,null,null,null,null,null,null,null,null,null,null,null,null,null,null,null,null,null,null,null,null,null,null,null,null,null,null,null,null,null,null,null,null,null,"Seite 4/12"]
["4 - Seitig gelagert",null,null,null,null,null,null,null,null,null,null,null,null,null,null,null,null,null,null,null,null,null,null,null,null,null,null,null,null,null,null,null,null,null,null,null,null,"Bauvorhaben:",null,null,null,null,null,{"$f":"AR87","v":"Beispiel Holzhaus"}]
[null,null,null,null,null,null,null,null,null,null,null,null,null,null,null,null,null,null,null,null,null,null,null,null,null,null,null,null,null,null,null,null,null,null,null,null,null,"Position:",null,null,null,null,null,{"$f":"AR88","v":"Beispiel 3. Stock Küche"}]
[]
[]
["Landstraße 25, D - 79809 Weilheim - Bannholz"]
[]
[null,null,"Berechnung nach Eurocode 5 - EN 1995"]
[]
[]
[]
[null,null,null,null,null,null,null,null,null,null,null,null,null,null,null,null,null,null,null,null,null,null,null,null,null,null,null,null,null,null,null,null,null,null,null,null,null,null,null,null,null,null,null,null,null,"dabei",null,"a =","bs"]
[null,null,null,null,null,null,null,null,null,null,null,null,null,null,null,null,null,null,null,null,null,null,null,null,null,null,null,null,null,null,null,null,null,null,null,null,null,null,null,null,null,null,null,null,null,null,null,"b =","l,r,||*"]
[null,null,null,null,null,null,null,null,null,null,null,null,null,null,null,null,null,null,null,null,null,null,null,null,null,null,null,null,null,null,null,null,null,null,null,null,null,null,null,null,null,null,null,null,null,null,null,"c =","bs"]
[null,null,null,null,null,null,null,null,null,null,null,null,null,null,null,null,null,null,null,null,null,null,null,null,null,null,null,null,null,null,null,null,null,null,null,null,null,null,null,null,null,null,null,null,null,null,null,"d =","ls"]
[]
[]
[]
[]
[]
[]
[null,null,"Horizontale Belastungen"]
[]
[null,null,"Moment Lastfall 1",null,null,null,null,null,null,null,null,null,null,null,null,null,null,null,null,"Md,z,1","=",{"$f":"gammaqerd*(Aed1erd*(ls*ls)/8)","v":0},null,null,null,null,null,null,null,"Moment Lastfall 2",null,null,null,null,null,null,null,null,null,null,null,null,null,null,"Md,z,2","=",{"$f":"gammaqerd*(Aed2erd*(bs*bs)/8)","v":0}]
[null,null,"Schub Lastfall 1",null,null,null,null,null,null,null,null,null,null,null,null,null,null,null,null,"Vd,z,1","=",{"$f":"gammaqerd*(Aed1erd*(ls)/2)","v":0},null,null,null,null,null,null,null,"Schub Lastfall 2",null,null,null,null,null,null,null,null,null,null,null,null,null,null,"Vd,z,2","=",{"$f":"gammaqerd*(Aed2erd*(bs)/2)","v":0}]
[]
[null,null,"Aufgerkraft charakteristisch ",null,null,null,null,null,null,null,null,null,null,null,null,null,null,null,null,"ak,1 ","=",{"$f":"V155/gammaqerd","v":0},null,null,null,null,null,null,null,"Aufgerkraft charakteristisch ",null,null,null,null,null,null,null,null,null,null,null,null,null,null,"bk,2","=",{"$f":"AU155/gammaqerd","v":0}]
[null,null,"Auflagerkraft Design",null,null,null,null,null,null,null,null,null,null,null,null,null,null,null,null,"ad,1","=",{"$f":"vdz1erd/bs","v":0},null,null,null,null,null,null,null,"Auflagerkraft Design",null,null,null,null,null,null,null,null,null,null,null,null,null,null,"bd,2","=",{"$f":"vdz2erd/ls","v":0}]
[]
[null,null,"Schubfluss   [ Vd,z,1 / bs ]",null,null,null,null,null,null,null,null,null,null,null,null,null,null,null,null,"td,1","=",{"$f":"vdz1erd/bs","v":0},null,null,null,null,null,null,null,"Schubfluss   [ Vd,z,2 / ls ]",null,null,null,null,null,null,null,null,null,null,null,null,null,null,"td,2","=",{"$f":"vdz2erd/ls","v":0}]
[]
[]
[null,null,"Lastfall 1",null,null,null,null,null,null,null,null,null,null,null,null,null,null,null,null,null,null,null,null,null,null,null,null,null,null,"Zugkraft beziehungsweise Druckkraft in den Randgurten quer zur Elementspannrichtung:"]
[]
[]
[null,null,null,"ad,1 =",{"$f":"V155","v":0},null,null,null,null,null,null,null,null,null,null,null,null,null,null,null,null,null,null,null,null,null,null,null,null,"Max Zd",null,null,null,null,null,null,null,null,null,null,null,null,null,null,"Zd","=",{"$f":"mdz2erd/ls","v":0}]
[]
[null,null,"Lastfall 2"]
[]
[null,null,null,null,null,null,null,null,null,null,null,null,null,null,null,null,null,null,"bd,2 =",{"$f":"AU155","v":0}]
[null,null,null,null,null,null,null,null,null,null,null,null,null,null,null,null,null,null,null,null,null,null,null,null,null,null,null,null,null,null,null,null,"* Falls die Rangurtlänge kürzer als die Scheibenlänge ist!"]
["Statik Dachscheibe",null,null,null,null,null,null,null,null,null,null,null,null,null,null,null,null,null,null,null,{"$f":"U1","v":"Fall 2 : Erdbeben"},null,null,null,null,null,null,null,null,null,null,null,null,null,null,null,null,{"$f":"TODAY()","v":"2023-11-20"}]
[null,null,null,null,null,null,null,null,null,null,null,null,null,null,null,null,null,null,null,null,null,null,null,null,null,null,null,null,null,null,null,null,null,null,null,null,null,"Seite 5/12"]
["4 - Seitig gelagert",null,null,null,null,null,null,null,null,null,null,null,null,null,null,null,null,null,null,null,null,null,null,null,null,null,null,null,null,null,null,null,null,null,null,null,null,"Bauvorhaben:",null,null,null,null,null,{"$f":"AR129","v":"Beispiel Holzhaus"}]
[null,null,null,null,null,null,null,null,null,null,null,null,null,null,null,null,null,null,null,null,null,null,null,null,null,null,null,null,null,null,null,null,null,null,null,null,null,"Position:",null,null,null,null,null,{"$f":"AR130","v":"Beispiel 3. Stock Küche"}]
[]
[]
["Landstraße 25, D - 79809 Weilheim - Bannholz"]
[]
[null,null,"Berechnung nach Eurocode 5 - EN 1995"]
[]
[]
[null,null,"Lignotrend Element:",null,null,null,null,null,null,null,null,null,null,null,null,null,null,null,null,null,null,{"$f":"'Eingabe und Ergebnis'!K24","v":"LIGNO Rippe Q3 Akustik WT Z26P0 - 190"}]
[]
[null,null,"Elementtragfähigkeit"]
[null,null,"Schubtragfähigkeit charakteristisch",null,null,null,null,null,null,null,null,null,null,null,null,null,null,null,null,"VR,k,y","=",{"$f":"_xlfn.XLOOKUP('Eingabe und Ergebnis'!DM18,INDIRECT(\"tab_H1\"&'Eingabe und Ergebnis'!DM16),(_xlfn.XLOOKUP('Eingabe und Ergebnis'!DM17,INDIRECT(\"tab_Z1\"&'Eingabe und Ergebnis'!DM16),INDIRECT(\"tab_\"&'Eingabe und Ergebnis'!DM16))))","v":49}]
[null,null,"Schubtragfähigkeit design",null,null,null,null,null,null,null,null,null,null,null,null,null,null,null,null,"VR,d,y","=",{"$f":"V183*kmoderd/gammam","v":41.461538461538467},null,null,null,null,null,null,null,null,null,"(~gl Technishe Daten)"]
[null,null,"Momenttragfähigkeit charasteristisch",null,null,null,null,null,null,null,null,null,null,null,null,null,null,null,null,"MR,k,y","=",{"$f":"_xlfn.XLOOKUP('Eingabe und Ergebnis'!DM18,INDIRECT(\"tab_H1\"&'Eingabe und Ergebnis'!DM16),(_xlfn.XLOOKUP(\"M \"&'Eingabe und Ergebnis'!DM17,INDIRECT(\"tab_Z1\"&'Eingabe und Ergebnis'!DM16),INDIRECT(\"tab_\"&'Eingabe und Ergebnis'!DM16))))","v":91.715449487179498}]
[null,null,"Momenttragfähigkeit design",null,null,null,null,null,null,null,null,null,null,null,null,null,null,null,null,"MR,d,y","=",{"$f":"V185*kmoderd/gammam","v":77.605380335305725}]
[]
[]
[null,null,5,"Nachweis"]
[]
[null,null,null,"Nachweis der Quertragfähigkeit"]
[null,null,null,"ηv",null,null,null,null,null,null,null,null,null,null,null,null,null,null,null,"[ MAX(td1;td2)/(Vrdy/belement) ]","=",{"$f":"MAX(tdeinerd,tdzweierd)/(Vrdy/belement)","v":0},null,null,null,null,null,null,null,null,null,null,null,{"$f":"IF(V192>1,\"> 1 NEIN !\",\"< 1    OK !\")","v":"< 1    OK !"}]
[]
[null,null,null,"Nachweis der Momenttragfähigkeit beim Lastfall 1"]
[null,null,null,"ηM1 ",null,null,null,null,null,null,null,null,null,null,null,null,null,null,null,"[ Md,z,1/(nelement*MR,d,z) ]","=",{"$f":"mdz1erd/(nelement*MRdz)","v":0},null,null,null,null,null,null,null,null,null,null,null,{"$f":"IF(V195>1,\"> 1 NEIN !\",\"< 1    OK !\")","v":"< 1    OK !"}]
[]
[null,null,null,"Nachweis der Momenttragfähigkeit beim Lastfall 2"]
[]
[null,null,null,"Zur Aufnahme des Momentes aus LF 2 dient der Randgurt quer zur Elementspannrichtung."]
[]
[null,null,null,"Randgurt: BSH 24h "]
[]
[null,null,null,"Querschnittsfläche Randgurt",null,null,null,null,null,null,null,null,null,null,null,null,null,null,null,"Aef","=",{"$f":"('Eingabe und Ergebnis'!N33*'Eingabe und Ergebnis'!N34)/100","v":240}]
[null,null,null,"Charakteristischer Wert der Zugfestigkeit",null,null,null,null,null,null,null,null,null,null,null,null,null,null,null,"ft,k","=",1.65]
[null,null,null,"Bemessungswert der Zugfestigkeit",null,null,null,null,null,null,null,null,null,null,null,null,null,null,null,"ft,d","=",{"$f":"V204*kmoderd/gammam","v":1.3961538461538461}]
[]
[null,null,null,"ηM2",null,null,null,null,null,null,null,null,null,null,null,null,null,null,null," [ Zd/(Aef*ft,d) ]","=",{"$f":"zderd/(Aef*(ftd))","v":0},null,null,null,null,null,null,null,null,null,null,null,{"$f":"IF(V207>1,\"> 1 NEIN !\",\"< 1    OK !\")","v":"< 1    OK !"}]
[]
[]
[]
["Statik Dachscheibe",null,null,null,null,null,null,null,null,null,null,null,null,null,null,null,null,null,null,null,{"$f":"U1","v":"Fall 2 : Erdbeben"},null,null,null,null,null,null,null,null,null,null,null,null,null,null,null,null,{"$f":"TODAY()","v":"2023-11-20"}]
[null,null,null,null,null,null,null,null,null,null,null,null,null,null,null,null,null,null,null,null,null,null,null,null,null,null,null,null,null,null,null,null,null,null,null,null,null,"Seite 6/12"]
["4 - Seitig gelagert",null,null,null,null,null,null,null,null,null,null,null,null,null,null,null,null,null,null,null,null,null,null,null,null,null,null,null,null,null,null,null,null,null,null,null,null,"Bauvorhaben:",null,null,null,null,null,{"$f":"AR171","v":"Beispiel Holzhaus"}]
[null,null,null,null,null,null,null,null,null,null,null,null,null,null,null,null,null,null,null,null,null,null,null,null,null,null,null,null,null,null,null,null,null,null,null,null,null,"Position:",null,null,null,null,null,{"$f":"AR172","v":"Beispiel 3. Stock Küche"}]
[]
[]
["Landstraße 25, D - 79809 Weilheim - Bannholz"]
[]
[null,null,"Berechnung nach Eurocode 5 - EN 1995"]
[]
[]
[null,null,"Nachweis der Koppelfuge"]
[]
[]
[]
[]
[]
[]
[]
[]
[]
[]
[null,null,"Nachweis der Schubtragfähigkeit des Koppelbretts"]
[null,null,null,"Material :",null,null,null,null,null,null,null,null,null,null,null,null,null,null,null,null,null,null,null,null,null,null,null,null,{"$f":"'Eingabe und Ergebnis'!N27","v":"Sperrholz"}]
[null,null,null,"Dicke Koppelbrett",null,null,null,null,null,null,null,null,null,null,null,null,null,null,null,null,null,null,null,null,null,null,null,null,"d","=",{"$f":"'Eingabe und Ergebnis'!N28","v":26}]
[null,null,null,"Characteristischswert der Schubfestigkeit",null,null,null,null,null,null,null,null,null,null,null,null,null,null,null,null,null,null,null,null,null,null,null,null,"fv,k","=",{"$f":"IF(AC234=\"Nadelholz C 24\",2,IF(AC234=\"Sperrholz\",3.5,2.7))","v":3.5}]
[null,null,null,"Bemessungswert der Schubfestigkeit",null,null,null,null,null,null,null,null,null,null,null,null,null,null,null,null,null,null,null,null,null,null,null,null,"fv,d","=",{"$f":"AE236*kmoderd/gammam","v":2.9615384615384617}]
[null,null,null,"Schubfluss in der Koppelbrett",null,null,null,null,null,null,null,null,null,null,null,null,null,null,null,null,null,null,null,null,null,null,null,null,"tR,d,Koppelbrett","=",{"$f":"fvd*dbrett","v":70}]
[]
[null,null,"Nachweis"]
[null,null,null,"ηKoppelbrett",null,null,null,null,null,null,null,null,null,null,null,null,null,null,null,null,null,null,null,null,null,null,null,null,"[ td,2 / tR,d,Koppelbrett ]","=",{"$f":"tdzweierd/AE238","v":0},null,null,null,null,null,null,null,null,null,null,{"$f":"IF(AE241>1,\"> 1 NEIN !\",\"< 1    OK !\")","v":"< 1    OK !"}]
[]
[null,null,"Nachweis der Klammern im Koppelbretts"]
[null,null,null,"Gewählter Klammetyp :",null,null,null,null,null,null,null,null,null,null,null,null,null,null,null,null,null,null,null,null,null,null,null,null,{"$f":"'Eingabe und Ergebnis'!N29","v":"1,83 x 63mm"}]
[null,null,null,"Gewählter Klammerabstand ",null,null,null,null,null,null,null,null,null,null,null,null,null,null,null,null,null,null,null,null,null,null,null,null,"eKlammer","=",{"$f":"'Eingabe und Ergebnis'!N30","v":100}]
[null,null,null,"Durchmesser",null,null,null,null,null,null,null,null,null,null,null,null,null,null,null,null,null,null,null,null,null,null,null,null,"dKl","=",{"$f":"IF(AC244=\"1,83 x 63mm\",1.83,1.53)","v":1.83}]
[null,null,null,"Characteristische Wert der Klammerntragfähigkeit",null,null,null,null,null,null,null,null,null,null,null,null,null,null,null,null,null,null,null,null,null,null,null,null,"Rk,klammer","=",{"$f":"IF(AC244=\"1,83 x 63mm\",0.72,0.55)","v":0.72}]
[null,null,null,"Bemessung Wert der Klammerntragfähigkeit",null,null,null,null,null,null,null,null,null,null,null,null,null,null,null,null,null,null,null,null,null,null,null,null,"Rd,klammer","=",{"$f":"AE247*kmoderd/gammam","v":0.60923076923076924}]
[]
[null,null,"Nachweis"]
[null,null,null,"ηKlammer",null,null,null,null,null,null,null,null,null,null,null,null,null,null,null,null,null,null,null,null,null,null,null,null,"[ td,2 /((Rd,Klammer* 1000)/eKlammer) ]","=",{"$f":"tdzweierd/((Rdklammerw*1000)/eklammerw)","v":0},null,null,null,null,null,null,null,null,null,null,{"$f":"IF(AE251>1,\"> 1 NEIN !\",\"< 1    OK !\")","v":"< 1    OK !"}]
[]
["Statik Dachscheibe",null,null,null,null,null,null,null,null,null,null,null,null,null,null,null,null,null,null,null,{"$f":"U1","v":"Fall 2 : Erdbeben"},null,null,null,null,null,null,null,null,null,null,null,null,null,null,null,null,{"$f":"TODAY()","v":"2023-11-20"}]
[null,null,null,null,null,null,null,null,null,null,null,null,null,null,null,null,null,null,null,null,null,null,null,null,null,null,null,null,null,null,null,null,null,null,null,null,null,"Seite 7/12"]
["4 - Seitig gelagert",null,null,null,null,null,null,null,null,null,null,null,null,null,null,null,null,null,null,null,null,null,null,null,null,null,null,null,null,null,null,null,null,null,null,null,null,"Bauvorhaben:",null,null,null,null,null,{"$f":"AR213","v":"Beispiel Holzhaus"}]
[null,null,null,null,null,null,null,null,null,null,null,null,null,null,null,null,null,null,null,null,null,null,null,null,null,null,null,null,null,null,null,null,null,null,null,null,null,"Position:",null,null,null,null,null,{"$f":"AR214","v":"Beispiel 3. Stock Küche"}]
[]
[]
["Landstraße 25, D - 79809 Weilheim - Bannholz"]
[]
[null,null,"Berechnung nach Eurocode 5 - EN 1995"]
[]
[]
[null,null,null,"Nachweis der Verbindunggsmittel Deckenscheibe an Randgurt",null,null,null,null,null,null,null,null,null,null,null,null,null,null,null,null,null,null,null,null,null,null,null,null,null,null,null,null,"Angaben zur Schraube laut"]
[null,null,null,null,null,null,null,null,null,null,null,null,null,null,null,null,null,null,null,null,null,null,null,null,null,null,null,null,null,null,null,null,"Firma",null,null,null,null,null,null,null,null,null,null,null,null,null,null,"=",{"$f":"'Eingabe und Ergebnis'!AC46","v":"Würth"}]
[null,null,null,null,null,null,null,null,null,null,null,null,null,null,null,null,null,null,null,null,null,null,null,null,null,null,null,null,null,null,null,null,"Art",null,null,null,null,null,null,null,null,null,null,null,null,null,null,"=",{"$f":"'Eingabe und Ergebnis'!AC47","v":"TeilgewindeScheibenkopf"}]
[null,null,null,null,null,null,null,null,null,null,null,null,null,null,null,null,null,null,null,null,null,null,null,null,null,null,null,null,null,null,null,null,"Typ",null,null,null,null,null,null,null,null,null,null,null,null,null,null,"=",{"$f":"'Eingabe und Ergebnis'!AC48","v":"8,0 x 300"}]
[null,null,null,null,null,null,null,null,null,null,null,null,null,null,null,null,null,null,null,null,null,null,null,null,null,null,null,null,null,null,null,null,"Produkt",null,null,null,null,null,null,null,null,null,null,null,null,null,null,"=",{"$f":"'Eingabe und Ergebnis'!AD49","v":"Assy Plus"}]
[null,null,null,null,null,null,null,null,null,null,null,null,null,null,null,null,null,null,null,null,null,null,null,null,null,null,null,null,null,null,null,null,"Durchmesser",null,null,null,null,null,null,null,null,null,null,null,null,null,"d","=",{"$f":"'Eingabe und Ergebnis'!AD51","v":8}]
[null,null,null,null,null,null,null,null,null,null,null,null,null,null,null,null,null,null,null,null,null,null,null,null,null,null,null,null,null,null,null,null,"Länge",null,null,null,null,null,null,null,null,null,null,null,null,null,"lSch","=",{"$f":"'Eingabe und Ergebnis'!AD52","v":300}]
[null,null,null,null,null,null,null,null,null,null,null,null,null,null,null,null,null,null,null,null,null,null,null,null,null,null,null,null,null,null,null,null,"Gewinde",null,null,null,null,null,null,null,null,null,null,null,null,null,"lG","=",{"$f":"'Eingabe und Ergebnis'!AD53","v":100}]
[null,null,null,null,null,null,null,null,null,null,null,null,null,null,null,null,null,null,null,null,null,null,null,null,null,null,null,null,null,null,null,null,"Kopfdurchmesser",null,null,null,null,null,null,null,null,null,null,null,null,null,"dK","=",{"$f":"'Eingabe und Ergebnis'!AD54","v":22}]
[null,null,null,null,null,null,null,null,null,null,null,null,null,null,null,null,null,null,null,null,null,null,null,null,null,null,null,null,null,null,null,null,"Zugtragfähigkeit",null,null,null,null,null,null,null,null,null,null,null,null,null,"Rt,u,k","=",{"$f":"IF(AND(AW265=\"Würth\",AW266=\"TeilgewindeSenkkopf\"),VLOOKUP(AW267,'Verbindung Schrauben'!B6:H34,7,FALSE),IF(AND(AW265=\"Würth\",AW266=\"TeilgewindeScheibenkopf\"),VLOOKUP(AW267,'Verbindung Schrauben'!B61:H97,7,FALSE),IF(AND(AW265=\"Würth\",AW266=\"VollgewindeSenkkopf\"),VLOOKUP(AW267,'Verbindung Schrauben'!J6:P27,7,FALSE),IF(AND(AW265=\"Würth\",AW266=\"VollgewindeZylinderkopf\"),VLOOKUP(AW267,'Verbindung Schrauben'!J61:P111,7,FALSE),IF(AND(AW265=\"Spax\",AW266=\"TeilgewindeSenkkopf_S\"),VLOOKUP(AW267,'Verbindung Schrauben'!B161:H196,7,FALSE),IF(AND(AW265=\"Spax\",AW266=\"TeilgewindeTellerkopf_S\"),VLOOKUP(AW267,'Verbindung Schrauben'!J161:P211,7,FALSE),IF(AND(AW265=\"Rothoblaas\",AW266=\"TeilgewindeTellerkopf_R\"),VLOOKUP(AW267,'Verbindung Schrauben'!AE6:AK64,7,FALSE),IF(AND(AW265=\"Rothoblaas\",AW266=\"TeilgewindeSenkkopf_R\"),VLOOKUP(AW267,'Verbindung Schrauben'!AN6:AT101,7,FALSE),IF(AND(AW265=\"Rothoblaas\",AW266=\"VollgewindeZylinderkopf_R\"),VLOOKUP(AW267,'Verbindung Schrauben'!AW6:BC48,7,FALSE))))))))))","v":21500}]
[null,null,null,null,null,null,null,null,null,null,null,null,null,null,null,null,null,null,null,null,null,null,null,null,null,null,null,null,null,null,null,null,"Fließmoiment",null,null,null,null,null,null,null,null,null,null,null,null,null,"My,k","=",{"$f":"IF(AND(AW265=\"Würth\",AW266=\"TeilgewindeSenkkopf\"),VLOOKUP(AW267,'Verbindung Schrauben'!B6:H34,6,FALSE),IF(AND(AW265=\"Würth\",AW266=\"TeilgewindeScheibenkopf\"),VLOOKUP(AW267,'Verbindung Schrauben'!B61:H97,6,FALSE),IF(AND(AW265=\"Würth\",AW266=\"VollgewindeSenkkopf\"),VLOOKUP(AW267,'Verbindung Schrauben'!J6:P27,6,FALSE),IF(AND(AW265=\"Würth\",AW266=\"VollgewindeZylinderkopf\"),VLOOKUP(AW267,'Verbindung Schrauben'!J61:P111,6,FALSE),IF(AND(AW265=\"Spax\",AW266=\"TeilgewindeSenkkopf_S\"),VLOOKUP(AW267,'Verbindung Schrauben'!B161:H196,6,FALSE),IF(AND(AW265=\"Spax\",AW266=\"TeilgewindeTellerkopf_S\"),VLOOKUP(AW267,'Verbindung Schrauben'!J161:P211,6,FALSE),IF(AND(AW265=\"Rothoblaas\",AW266=\"TeilgewindeTellerkopf_R\"),VLOOKUP(AW267,'Verbindung Schrauben'!AE6:AK64,6,FALSE),IF(AND(AW265=\"Rothoblaas\",AW266=\"TeilgewindeSenkkopf_R\"),VLOOKUP(AW267,'Verbindung Schrauben'!AN6:AT101,6,FALSE),IF(AND(AW265=\"Rothoblaas\",AW266=\"VollgewindeZylinderkopf_R\"),VLOOKUP(AW267,'Verbindung Schrauben'!AW6:BC48,6,FALSE))))))))))","v":23000}]
[null,null,null,null,null,null,null,null,null,null,null,null,null,null,null,null,null,null,null,null,null,null,null,null,null,null,null,null,null,null,null,null,"Tragfähigkeitsklasse Kopf",null,null,null,null,null,null,null,null,null,null,null,null,null,null,"=",3]
[null,null,null,null,null,null,null,null,null,null,null,null,null,null,null,null,null,null,null,null,null,null,null,null,null,null,null,null,null,null,null,null,"Tragfähigkeitsklasse Schaft",null,null,null,null,null,null,null,null,null,null,null,null,null,null,"=","B"]
[]
[null,null,null,null,null,null,null,null,null,null,null,null,null,null,null,null,null,null,null,null,null,null,null,null,null,null,null,null,null,null,null,null,"(Zulassung Würth und Zulassung Z-9.1-614)"]
[null,null,null,null,null,null,null,null,null,null,null,null,null,null,null,null,null,null,null,null,null,null,null,null,null,null,null,null,null,null,null,null,"(Zulassung Spax und Zulassung Z-9.1-519)"]
[null,null,null,null,null,null,null,null,null,null,null,null,null,null,null,null,null,null,null,null,null,null,null,null,null,null,null,null,null,null,null,null,"(Zulassung Rothoblass ETA-11/0030)"]
[null,null,"Angaben zum Seitenholz 1: Element",null,null,null,null,null,null,null,null,null,null,null,null,null,null,null,null,null,null,null,null,null,null,null,null,null,null,null,null,null,"Angaben zur Zwischenschicht [Blaß]"]
[null,null,"Dicke",null,null,null,null,null,null,null,null,null,null,null,null,null,null,null,null,"t1","=",{"$f":"'Eingabe und Ergebnis'!Q46","v":190},null,null,null,null,null,null,null,null,null,null,"Dicke",null,null,null,null,null,null,null,null,null,null,null,null,null,"tzw","=",{"$f":"'Eingabe und Ergebnis'!BB15","v":0}]
[null,null,"Rohdichte",null,null,null,null,null,null,null,null,null,null,null,null,null,null,null,null,"ρk1","=",{"$f":"'Eingabe und Ergebnis'!Q47","v":380},null,null,null,null,null,null,null,null,null,null,"Rohdichte",null,null,null,null,null,null,null,null,null,null,null,null,null,"ρkzw","=",{"$f":"'Eingabe und Ergebnis'!BB16","v":380}]
[null,null,"Dicke minimum",null,null,null,null,null,null,null,null,null,null,null,null,null,null,null,null,"t1 min","=",{"$f":"'Eingabe und Ergebnis'!Q48","v":51.519569049624963},null,null,null,null,null,null,null,null,null,null,"Kraft-Faser-Winkel",null,null,null,null,null,null,null,null,null,null,null,null,null," αzw","="]
[null,null,"Kraft-Faser-Winkel",null,null,null,null,null,null,null,null,null,null,null,null,null,null,null,null," α1","=",90]
[null,null,"Eindringtiefe Gewinde [t1 - (lSch - lG) ]",null,null,null,null,null,null,null,null,null,null,null,null,null,null,null,null,"lef,1","=",{"$f":"IF((dicket1-(lSch-lG))<=0,0,dicket1-(lSch-lG))","v":0},null,null,null,null,null,null,null,null,null,null,"bei Elementen mit Akustiklage muss die Abminderung durch eine Zwischenschicht nach blaß berücksichtigt werden"]
[]
[null,null,"Angaben zum Seitenholz 2: Randgurt",null,null,null,null,null,null,null,null,null,null,null,null,null,null,null,null,null,null,null,null,null,null,null,null,null,null,null,null,null,null,null,null,null,null,null,null,null,null,null,null,null,null,null,null,"EC 5,  N. Anhang (NA.103) & (NA.104)"]
[null,null,"Dicke",null,null,null,null,null,null,null,null,null,null,null,null,null,null,null,null,"t2,H","=",{"$f":"'Eingabe und Ergebnis'!Q51","v":240}]
[null,null,"Rohdichte",null,null,null,null,null,null,null,null,null,null,null,null,null,null,null,null,"ρk2","=",{"$f":"'Eingabe und Ergebnis'!Q52","v":380}]
[null,null,"Dicke minimum",null,null,null,null,null,null,null,null,null,null,null,null,null,null,null,null,"t2 min","=",{"$f":"'Eingabe und Ergebnis'!Q53","v":51.519569049624963}]
[null,null,"Kraft-Faser-Winkel",null,null,null,null,null,null,null,null,null,null,null,null,null,null,null,null," α2","=",90]
[null,null,"Eindringtiefe Schraube [ lSch - t1 - tzw ]",null,null,null,null,null,null,null,null,null,null,null,null,null,null,null,null,"t2 ","=",{"$f":"lSch-(dicket1+dicket)","v":110}]
[null,null,"Eindringtiefe Gewinde [ Wenn (lG < t2; lG , t2 ) ]",null,null,null,null,null,null,null,null,null,null,null,null,null,null,null,null,"lef,2","=",{"$f":"IF(lG<dicket2,lG,dicket2)","v":100}]
["Statik Dachscheibe",null,null,null,null,null,null,null,null,null,null,null,null,null,null,null,null,null,null,null,{"$f":"U1","v":"Fall 2 : Erdbeben"},null,null,null,null,null,null,null,null,null,null,null,null,null,null,null,null,{"$f":"TODAY()","v":"2023-11-20"}]
[null,null,null,null,null,null,null,null,null,null,null,null,null,null,null,null,null,null,null,null,null,null,null,null,null,null,null,null,null,null,null,null,null,null,null,null,null,"Seite 8/12"]
["4 - Seitig gelagert",null,null,null,null,null,null,null,null,null,null,null,null,null,null,null,null,null,null,null,null,null,null,null,null,null,null,null,null,null,null,null,null,null,null,null,null,"Bauvorhaben:",null,null,null,null,null,{"$f":"AR255","v":"Beispiel Holzhaus"}]
[null,null,null,null,null,null,null,null,null,null,null,null,null,null,null,null,null,null,null,null,null,null,null,null,null,null,null,null,null,null,null,null,null,null,null,null,null,"Position:",null,null,null,null,null,{"$f":"AR256","v":"Beispiel 3. Stock Küche"}]
[]
[]
["Landstraße 25, D - 79809 Weilheim - Bannholz"]
[]
[null,null,"Berechnung nach Eurocode 5 - EN 1995"]
[]
[]
[null,null,"Tragfähigkeit auf Abscheren je Scherfuge/ [Johannsengleichungen]",null,null,null,null,null,null,null,null,null,null,null,null,null,null,null,null,null,null,null,null,null,null,null,null,null,null,null,null,null,null,null,null,null,null,null,"Schubtragfähigkeit VM*2",null,null,null,null,null,null,null,"γm,lat",null,null,null,"Bruchtyp"]
[null,null,"Koefficient",null,null,null,null,null,null,null,null,null,null,null,null,null,null,null,null,null,null,null,"k90","=",{"$f":"IF(d<8,1.35+0.015*d,1)","v":1},null,null,null,null,null,null,null,null,null,null,null,null,null,"R1","=",{"$f":"((fh2vk*beta0)/(1+beta0))*(-2*dicket-dicket1-dicket2+((4+delta+(delta/beta0))*dicket^2+(2+1/beta0)*dicket1^2+(2+beta0)*dicket2^2+4*dicket*dicket2+4*dicket*dicket1+2*dicket1*dicket2)^0.5)*d","v":8799.3438456115146},null,null,null,null,null,1.3,null,null,null,"Holz"]
[null,null,"Lochleibungsfestigkeit in Seitenholz 1",null,null,null,null,null,null,null,null,null,null,null,null,null,null,null,null,null,null,null,"fh,1,v,k","=",{"$f":"(0.082*d^-0.3*rohk1)/(koefficientk90*(SIN(V285)^2)+(COS(V285)^2))","v":16.698230546315447},null,null,null,null,null,null,null,null,null,null,null,null,null,"R2","=",{"$f":"fh2vk*d*dicket2","v":14694.442880757593},null,null,null,null,null,1.3,null,null,null,"Holz"]
[null,null,"Lochleibungsfestigkeit in zwischenschicht",null,null,null,null,null,null,null,null,null,null,null,null,null,null,null,null,null,null,null,"fh,zw,v,k","=",{"$f":"(0.082*d^-0.3*rohkzw)/(koefficientk90*(SIN(alphazw)^2)+(COS(alphazw)^2))","v":16.698230546315447},null,null,null,null,null,null,null,null,null,null,null,null,null,"R3","=",{"$f":"fh1vk*d*dicket1","v":25381.310430399481},null,null,null,null,null,1.3,null,null,null,"Holz"]
[null,null,"Lochleibungsfestigkeit in Seitenholz 2",null,null,null,null,null,null,null,null,null,null,null,null,null,null,null,null,null,null,null,"fh,2,v,k","=",{"$f":"(0.082*d^-0.3*rohk2)/(koefficientk90*(SIN(V292)^2)+(COS(V292)^2))","v":16.698230546315447},null,null,null,null,null,null,null,null,null,null,null,null,null,"R4","=",{"$f":"fh2vk*(beta0/(0.5+beta0))*(-dicket-dicket2/2+(dicket^2+dicket*dicket2+dicket2^2/2+delta*dicket^2/(2*beta0)+dicket2^2/(2*beta0)+2*Myk/(fh2vk*d)+delta*dicket^2/4+Myk/(fh2vk*d))^0.5)*d","v":5105.0535237661525},null,null,null,null,null,1.2,null,null,null,"Holz/Stahl"]
[null,null,"Koefficient beta0 = fh,1,k / fh,2,k",null,null,null,null,null,null,null,null,null,null,null,null,null,null,null,null,null,null,null,"β0 ","=",{"$f":"fh1vk/fh2vk","v":1},null,null,null,null,null,null,null,null,null,null,null,null,null,"R5","=",{"$f":"fh2vk*(beta0/(0.5+beta0))*(-dicket-dicket1/2+((1+delta/(4*beta0)+delta/2)*dicket^2+(0.5+0.5*beta0)*dicket1^2+dicket*dicket1+(Myk/(fh2vk*d*beta0))+(2*Myk/(fh2vk*d)))^0.5)*d","v":8581.0595042671903},null,null,null,null,null,1.2,null,null,null,"Holz/Stahl"]
[null,null,"Koefficient beta1  = fh,2,k / fh,zw,k",null,null,null,null,null,null,null,null,null,null,null,null,null,null,null,null,null,null,null,"β1","=",{"$f":"IF(fhzwvk=0,0,fh2vk/fhzwvk)","v":1},null,null,null,null,null,null,null,null,null,null,null,null,null,"R6","=",{"$f":"fh2vk*1/(1+beta0)*(-beta0*dicket+(beta0^2*dicket^2+4*beta0*(beta0+1)*Myk/(fh2vk*d)+beta0*(beta0+1)/2*delta*dicket^2)^0.5)*d","v":2478.9007323900819},null,null,null,null,null,1.1000000000000001,null,null,null,"Stahl"]
[null,null,"Koefficient beta2  = fh,zw,k / fh,1,k",null,null,null,null,null,null,null,null,null,null,null,null,null,null,null,null,null,null,null,"β2","=",{"$f":"fhzwvk/fh1vk","v":1},null,null,null,null,null,null,null,null,null,null,null,null,null,"R7","=",{"$f":"fh1vk*dicket1*d/(2+beta2)*(((2*beta2)*(1+beta2)+4*beta2*(2+beta2)*Myk/(fh1vk*dicket1^2*d))^0.5-beta2)","v":8581.0595042671903},null,null,null,null,null,1.2,null,null,null,"Holz/Stahl"]
[null,null,"Koefficient delta  = fh,zw,k / fh,1,k",null,null,null,null,null,null,null,null,null,null,null,null,null,null,null,null,null,null,null,"δ","=",{"$f":"fhzwvk/fh1vk","v":1},null,null,null,null,null,null,null,null,null,null,null,null,null,"R8","=",{"$f":"(2*beta2/(1+beta2))^0.5*(2*Myk*fh1vk*d)^0.5","v":2478.9007323900819},null,null,null,null,null,1.1000000000000001,null,null,null,"Stahl"]
[null,null,"Modifikationsbeiwert VM",null,null,null,null,null,null,null,null,null,null,null,null,null,null,null,null,null,null,null,"kmod,lat","=",{"$f":"kmoderd","v":1.1000000000000001},null,null,null,null,null,null,null,null,null,null,null,null,null,"R9","=",{"$f":"fhzwvk*dicket2*d/(1+2*beta1)*((2*beta1^2*(1+beta1)+4*beta1*(1+2*beta1)*Myk/(dicket2^2*d*IF(fhzwvk=0,1,fhzwvk)))^0.5-beta1)","v":5105.0535237661534},null,null,null,null,null,1.2,null,null,null,"Holz/Stahl",null,null,null,null,null,null,null,"Rkmin","γm,lat"]
[null,null,"Teilsicherheitsbeiwert VM",null,null,null,null,null,null,null,null,null,null,null,null,null,null,null,null,null,null,null,"γm,lat","=",{"$f":"BH316","v":1.1000000000000001},null,null,null,null,null,null,null,null,null,null,null,null,null,"R10","=",{"$f":"(2*beta1/(1+beta1))^0.5*(2*Myk*fhzwvk*d)^0.5","v":2478.9007323900819},null,null,null,null,null,1.1000000000000001,null,null,null,"Stahl",null,null,null,null,null,null,null,{"$f":"IF(rohkzw=0,MIN(AO307:AT312),MIN(AO313:AT316))","v":2478.9007323900819},{"$f":"VLOOKUP(BG316,AO307:AX316,7,FALSE)","v":1.1000000000000001}]
[]
[null,null,"Schubtragfähigkeit = min(R1-R10)",null,null,null,null,null,null,null,null,null,null,null,null,null,null,null,null,null,null,null,"Rlat,k","=",{"$f":"IF(rohkzw=0,MIN(BG318:BG323),MIN(BG318:BG327))","v":2478.9007323900819},null,null,null,null,null,null,null,null,null,null,null,null,null,"*2 Hypothese: Verwendung von Holz vorgebohrt",null,null,null,null,null,null,null,null,null,null,null,null,null,null,null,null,null,null,null,{"$f":"ABS(AO307)","v":8799.3438456115146}]
[null,null,null,null,null,null,null,null,null,null,null,null,null,null,null,null,null,null,null,null,null,null,null,null,null,null,null,null,null,null,null,null,null,null,null,null,null,null,null,null,null,null,null,null,null,null,null,null,null,null,null,null,null,null,null,null,null,null,{"$f":"ABS(AO308)","v":14694.442880757593}]
[null,null,"Tragfähigkeit in Richtung der Stiftachse",null,null,null,null,null,null,null,null,null,null,null,null,null,null,null,null,null,null,null,null,null,null,null,null,null,null,null,null,null,null,null,null,null,null,null,null,null,null,null,null,null,null,null,null,null,null,null,null,null,null,null,null,null,null,null,25381.310430399481]
[null,null,"Seitenholz 1: Element",null,null,null,null,null,null,null,null,null,null,null,null,null,null,null,null,null,null,null,null,null,null,null,null,null,null,null,null,null,null,null,null,null,"Tragfähigkeit in Richtung der Scherfuge",null,null,null,null,null,null,null,null,null,null,null,null,null,null,null,null,null,null,null,null,null,5105.0535237661525]
[null,null,"Char. Wert des Ausziehparameters",null,null,null,null,null,null,null,null,null,null,null,null,null,null,null,null,null,null,null,"f1,k","=",{"$f":"80*10^-6*rohk1^2","v":11.552},null,null,null,null,null,null,null,null,null,null,null,"Char. Wert = (Rlat,k + ΔRk) . kmod,lat / γM,lat",null,null,null,null,null,null,null,null,null,null,null,null,null,null,null,null,null,null,null,null,null,8581.0595042671903]
[null,null,"Char. Wert des Kopfdurchziehparameters",null,null,null,null,null,null,null,null,null,null,null,null,null,null,null,null,null,null,null,"f2,k","=",{"$f":"80*10^-6*rohk1^2","v":11.552},null,null,null,null,null,null,null,null,null,null,null,null,null,"Rlat,d","=",{"$f":"(Rlatk+deltaRk)*(Y315/gammamlat)","v":3876.6927323900818},null,null,null,null,null,null,null,null,null,null,null,null,null,null,null,null,null,2478.9007323900819]
[null,null,"Schraubenkopf",null,null,null,null,null,null,null,null,null,null,null,null,null,null,null,null,null,null,null,"Rax,k,Kopf","=",{"$f":"f2k*dk^2","v":5591.1679999999997},null,null,null,null,null,null,null,null,null,null,null,null,null,null,null,null,null,null,null,null,null,null,null,null,null,null,null,null,null,null,null,null,null,8581.0595042671903]
[null,null,"Gewindeteil",null,null,null,null,null,null,null,null,null,null,null,null,null,null,null,null,null,null,null,"Rax,k,Gew","=",{"$f":"(f1k*langeef1*d)/((SIN(RADIANS(V285)))^2+(4/3)*(COS(RADIANS(V285)))^2)","v":0},null,null,null,null,null,null,null,null,null,null,"dabei:",null,null,null,null,null,null,null,null,null,null,null,null,null,null,null,null,null,null,null,null,null,null,2478.9007323900819]
[null,null,"Tragfähigkeit Seitenholz 1",null,null,null,null,null,null,null,null,null,null,null,null,null,null,null,null,null,null,null,"Rax,α,Rk,1","=",{"$f":"MAX(Y324:AD325)","v":5591.1679999999997},null,null,null,null,null,null,null,null,null,null,null,null,null,null,null,null,null,null,null,null,null,null,null,null,null,null,null,null,null,null,null,null,null,5105.0535237661534]
[null,null,null,null,null,null,null,null,null,null,null,null,null,null,null,null,null,null,null,null,null,null,null,null,null,null,null,null,null,null,null,null,null,null,null,null,null,null,null,null,null,null,null,null,null,null,null,null,null,null,null,null,null,null,null,null,null,null,2478.9007323900819]
[null,null,"Seitenholz 2: Randgurt"]
[null,null,"Char. Wert des Ausziehparameters",null,null,null,null,null,null,null,null,null,null,null,null,null,null,null,null,null,null,null,"f1,k","=",{"$f":"80*10^-6*rohk2^2","v":11.552}]
[null,null,"Char. Wert des Kopfdurchziehparameters",null,null,null,null,null,null,null,null,null,null,null,null,null,null,null,null,null,null,null,"f2,k","=",{"$f":"80*10^-6*rohk2^2","v":11.552}]
[null,null,"Tragfähigkeit Seitenholz 2",null,null,null,null,null,null,null,null,null,null,null,null,null,null,null,null,null,null,null,"Rax,α,Rk,2","=",{"$f":"(f1k*langeef2*d)/((SIN(RADIANS(V292)))^2+(4/3)*(COS(RADIANS(V292)))^2)","v":9241.6}]
[]
[null,null,"Tragfähigkeit in Richtung der Stiftachse",null,null,null,null,null,null,null,null,null,null,null,null,null,null,null,null,null,null,null,"Rax,α,Rk","=",{"$f":"MIN(Y326,Y331)","v":5591.1679999999997}]
[null,null,null,null,null,null,null,null,null,null,null,null,null,null,null,null,null,null,null,null,null,null,null,null,null,null,null,null,null,null,null,null,null,null,null,"EC 5,  8.7 formeln (8.40a) & (8.40b)"]
[null,null,"Seilwirkung  = MIN ( Rlat,k ; Rax,k/4*1 )",null,null,null,null,null,null,null,null,null,null,null,null,null,null,null,null,null,null,null,"ΔRk","=",{"$f":"MIN(Y318,Y333/4)","v":1397.7919999999999}]
[null,null,"*1 weil Φschrauben > 8mm"]
["Statik Dachscheibe",null,null,null,null,null,null,null,null,null,null,null,null,null,null,null,null,null,null,null,{"$f":"U1","v":"Fall 2 : Erdbeben"},null,null,null,null,null,null,null,null,null,null,null,null,null,null,null,null,{"$f":"TODAY()","v":"2023-11-20"}]
[null,null,null,null,null,null,null,null,null,null,null,null,null,null,null,null,null,null,null,null,null,null,null,null,null,null,null,null,null,null,null,null,null,null,null,null,null,"Seite 9/12"]
["4 - Seitig gelagert",null,null,null,null,null,null,null,null,null,null,null,null,null,null,null,null,null,null,null,null,null,null,null,null,null,null,null,null,null,null,null,null,null,null,null,null,"Bauvorhaben:",null,null,null,null,null,{"$f":"AR297","v":"Beispiel Holzhaus"}]
[null,null,null,null,null,null,null,null,null,null,null,null,null,null,null,null,null,null,null,null,null,null,null,null,null,null,null,null,null,null,null,null,null,null,null,null,null,"Position:",null,null,null,null,null,{"$f":"AR298","v":"Beispiel 3. Stock Küche"}]
[]
[]
["Landstraße 25, D - 79809 Weilheim - Bannholz"]
[]
[null,null,"Berechnung nach Eurocode 5 - EN 1995"]
[]
[]
[null,null,"Nachweis der Verbindungsmittel Scheibe an Randgurt parallel zur Elementspannrichtung"]
[null,null,"Tragfähigkeit in Richtung der Scherfuge",null,null,null,null,null,null,null,null,null,null,null,null,null,null,null,null,null,null,null,"Rlat,d","=",{"$f":"AO323","v":3876.6927323900818}]
[]
[null,null,"Länge Rangurt parallel zur Elementspannrichtung*",null,null,null,null,null,null,null,null,null,null,null,null,null,null,null,null,null,null,null,"lr,||","=",{"$f":"'Eingabe und Ergebnis'!Q41","v":6}]
[null,null,"Abstand der Verbindungsmittel",null,null,null,null,null,null,null,null,null,null,null,null,null,null,null,null,null,null,null,"eV,||","=",{"$f":"'Eingabe und Ergebnis'!Q43","v":0.25}]
[]
[null,null,"Kraft = Aed,1 ",null,null,null,null,null,null,null,null,null,null,null,null,null,null,null,null,null,null,null,"Aed,1 ","=",{"$f":"MAX(AU18)","v":0}]
[null,null,"Auflagerlast = Max ( Aed,1 ; bd,2 ) ",null,null,null,null,null,null,null,null,null,null,null,null,null,null,null,null,null,null,null,"bd,res","=",{"$f":"MAX(Aed1erd,bd2erd)","v":0}]
[null,null,"Längefaktor = ls / lr,||",null,null,null,null,null,null,null,null,null,null,null,null,null,null,null,null,null,null,null,"lf","=",{"$f":"ls/lrparallel","v":1}]
[null,null,"Kraft VM = bd,res * eV,|| * 1000 * lf",null,null,null,null,null,null,null,null,null,null,null,null,null,null,null,null,null,null,null,"Fv,b,d","=",{"$f":"bdreserd*evparallel*1000*lf","v":0}]
[]
[null,null,"Nachweis",null,null,null,null,null,null,null,null,null,null,null,null,null,null,null,null,null,null,null,null,null,null,null,null,null,null,null,null,null,null,null,null,null,null,null,null,null,null,null,null,null,null,null,null,"dabei"]
[null,null,"ηVM,|| = Fv,d,b / Rlat,d",null,null,null,null,null,null,null,null,null,null,null,null,null,null,null,null,null,null,null,null,"=",{"$f":"Fvbderd/IF('Eingabe und Ergebnis'!Q38=\"Nein\",'Eingabe und Ergebnis'!Q39,Rlatd)","v":0},null,null,null,null,null,null,null,null,null,null,{"$f":"IF(Y360>1,\"> 1 NEIN !\",\"< 1    OK !\")","v":"< 1    OK !"},null,null,null,null,null,null,null,null,null,null,null,"a =","bs"]
[null,null,null,null,null,null,null,null,null,null,null,null,null,null,null,null,null,null,null,null,null,null,null,null,null,null,null,null,null,null,null,null,null,null,null,null,null,null,null,null,null,null,null,null,null,null,null,"b =","l,r,||"]
[null,null,null,null,null,null,null,null,null,null,null,null,null,null,null,null,null,null,null,null,null,null,null,null,null,null,null,null,null,null,null,null,null,null,null,null,null,null,null,null,null,null,null,null,null,null,null,"c =","bs"]
[null,null,null,null,null,null,null,null,null,null,null,null,null,null,null,null,null,null,null,null,null,null,null,null,null,null,null,null,null,null,null,null,null,null,null,null,null,null,null,null,null,null,null,null,null,null,null,"d =","ls"]
[null,null,"Länge Rangurt parallel zur Elementspannrichtung lr,|| = ls",null,null,null,null,null,null,null,null,null,null,null,null,null,null,null,null,null,null,null,"l","=",{"$f":"ls","v":6}]
[null,null,"Abstand der Verbindungsmittel",null,null,null,null,null,null,null,null,null,null,null,null,null,null,null,null,null,null,null,"eV,||","=",{"$f":"evparallel","v":0.25}]
[]
[]
[null,null,"Auflagerlast = Max ( Aed,1 ; bd,2 ) ",null,null,null,null,null,null,null,null,null,null,null,null,null,null,null,null,null,null,null,"bd,res = dd,res","=",{"$f":"bdreserd","v":0}]
[null,null,"Längefaktor = ls / lr,||",null,null,null,null,null,null,null,null,null,null,null,null,null,null,null,null,null,null,null,"lf","=",{"$f":"ls/Y364","v":1}]
[null,null,"Kraft VM = bd,res * eV,|| * 1000 * lf",null,null,null,null,null,null,null,null,null,null,null,null,null,null,null,null,null,null,null,"Fv,b,d","=",{"$f":"bdreserd*evparallel*1000*Y369","v":0}]
[]
[null,null,"Nachweis"]
[null,null,"ηVM,|| = Fv,d,b / Rlat,d",null,null,null,null,null,null,null,null,null,null,null,null,null,null,null,null,null,null,null,null,"=",{"$f":"Y370/IF('Eingabe und Ergebnis'!Q38=\"Nein\",'Eingabe und Ergebnis'!Q39,Rlatd)","v":0},null,null,null,null,null,null,null,null,null,null,{"$f":"IF(Y373>1,\"> 1 NEIN !\",\"< 1    OK !\")","v":"< 1    OK !"}]
[]
[]
[]
[]
[null,null,"* Falls die Rangurtlänge kürzer als die Scheibenlänge ist!"]
["Statik Dachscheibe",null,null,null,null,null,null,null,null,null,null,null,null,null,null,null,null,null,null,null,{"$f":"U1","v":"Fall 2 : Erdbeben"},null,null,null,null,null,null,null,null,null,null,null,null,null,null,null,null,{"$f":"TODAY()","v":"2023-11-20"}]
[null,null,null,null,null,null,null,null,null,null,null,null,null,null,null,null,null,null,null,null,null,null,null,null,null,null,null,null,null,null,null,null,null,null,null,null,null,"Seite 10/12"]
["4 - Seitig gelagert",null,null,null,null,null,null,null,null,null,null,null,null,null,null,null,null,null,null,null,null,null,null,null,null,null,null,null,null,null,null,null,null,null,null,null,null,"Bauvorhaben:",null,null,null,null,null,{"$f":"AR339","v":"Beispiel Holzhaus"}]
[null,null,null,null,null,null,null,null,null,null,null,null,null,null,null,null,null,null,null,null,null,null,null,null,null,null,null,null,null,null,null,null,null,null,null,null,null,"Position:",null,null,null,null,null,{"$f":"AR340","v":"Beispiel 3. Stock Küche"}]
[]
[]
["Landstraße 25, D - 79809 Weilheim - Bannholz"]
[]
[null,null,"Berechnung nach Eurocode 5 - EN 1995"]
[]
[]
[null,null,"Nachweis der Verbindungsmittel Scheibe an Randgurt quer zur Elementspan."]
[null,null,"Anzahl der Verbindungsmittel pro Element",null,null,null,null,null,null,null,null,null,null,null,null,null,null,null,null,null,null,null," ηV","=",{"$f":"'Eingabe und Ergebnis'!Q42","v":3}]
[null,null,"Elementbreite",null,null,null,null,null,null,null,null,null,null,null,null,null,null,null,null,null,null,null,"bElement","=",{"$f":"belement","v":0.625}]
[null,null,"Kraft = Aed,2 ",null,null,null,null,null,null,null,null,null,null,null,null,null,null,null,null,null,null,null,"Aed,2","=",{"$f":"AU25","v":0}]
[null,null,"Auflagerlast = MAX( ad,1 ; √(ad,2² + Aed,2²))",null,null,null,null,null,null,null,null,null,null,null,null,null,null,null,null,null,null,null,"ad,res","=",{"$f":"MAX(V155,(tdzweierd^2+AU25^2)^0.5)","v":0}]
[null,null,"Kraft VM = ad,res * belement * 1000 / ηV",null,null,null,null,null,null,null,null,null,null,null,null,null,null,null,null,null,null,null,"Fv,a,d","=",{"$f":"Y394*belement/nv*1000","v":0}]
[]
[null,null,"Nachweis"]
[null,null,"ηVM,quer = Fv,a,d / Rlat,d",null,null,null,null,null,null,null,null,null,null,null,null,null,null,null,null,null,null,null,null,"=",{"$f":"Y395/IF('Eingabe und Ergebnis'!Q38=\"Nein\",'Eingabe und Ergebnis'!Q39,Rlatd)","v":0},null,null,null,null,null,null,null,null,null,null,{"$f":"IF(Y398>1,\"> 1 NEIN !\",\"< 1    OK !\")","v":"< 1    OK !"}]
[]
[]
[]
[]
[]
[]
[]
[]
[]
[]
[]
[]
[]
[]
[]
[]
[]
[]
[]
[]
[]
[]
["Statik Dachscheibe",null,null,null,null,null,null,null,null,null,null,null,null,null,null,null,null,null,null,null,{"$f":"U1","v":"Fall 2 : Erdbeben"},null,null,null,null,null,null,null,null,null,null,null,null,null,null,null,null,{"$f":"TODAY()","v":"2023-11-20"}]
[null,null,null,null,null,null,null,null,null,null,null,null,null,null,null,null,null,null,null,null,null,null,null,null,null,null,null,null,null,null,null,null,null,null,null,null,null,"Seite 11/12"]
["4 - Seitig gelagert",null,null,null,null,null,null,null,null,null,null,null,null,null,null,null,null,null,null,null,null,null,null,null,null,null,null,null,null,null,null,null,null,null,null,null,null,"Bauvorhaben:",null,null,null,null,null,{"$f":"AR381","v":"Beispiel Holzhaus"}]
[null,null,null,null,null,null,null,null,null,null,null,null,null,null,null,null,null,null,null,null,null,null,null,null,null,null,null,null,null,null,null,null,null,null,null,null,null,"Position:",null,null,null,null,null,{"$f":"AR382","v":"Beispiel 3. Stock Küche"}]
[]
[]
["Landstraße 25, D - 79809 Weilheim - Bannholz"]
[]
[null,null,"Berechnung nach Eurocode 5 - EN 1995"]
[]
[]
[null,null,6,"Gebrauchstauglichkeitsnachweis"]
[]
[null,null,"Nachweis der Scheibenverformung"]
[null,null,"Der Hauptanteil der Scheibenverformung resultiert aus der Verschiebung in der Koppelfugen und der Schubverzerrung im Element"]
[]
[null,null,null,"Berechnen der Steifigkeit der Koppelfuge"]
[null,null,null,"Rohdichte des Koppelbretts",null,null,null,null,null,null,null,null,null,null,null,null,null,null,null,null,null,null,"ρk,1","=",{"$f":"IF(AC234=\"Nadelholz C 24\",350,IF(AC234=\"Sperrholz\",550,430))","v":550}]
[null,null,null,"Rohdichte des Element",null,null,null,null,null,null,null,null,null,null,null,null,null,null,null,null,null,null,"ρk,2","=",350]
[null,null,null,"Mittlere Rohdichte Element",null,null,null,null,null,null,null,null,null,null,null,null,null,null,null,null,null,null,"ρk","=",{"$f":"AVERAGE(Y438:AD439)","v":450}]
[null,null,null,"Durchmesser der Klammer",null,null,null,null,null,null,null,null,null,null,null,null,null,null,null,null,null,null,"dKlammer","=",{"$f":"dklammer","v":1.83}]
[]
[null,null,null,"Berechnen des Verschiebungsmodul der Klammer nach [EC 5]"]
[null,null,null,"Verschiebungsmodul  = (ρm1,5d0,8 /80)*2",null,null,null,null,null,null,null,null,null,null,null,null,null,null,null,null,null,null,"Kser","=",{"$f":"((rohkmittlere^1.5*dklammer^0.8)/80)*2","v":342.74649754899309},null,null,null,null,null,null,null,null,null,null,"Der Verschiebungsmodul Kser der Klammer gilt je Stift "]
[null,null,null,"Verschiebungsmodul  = (Kser*1000/eKlammer*ls)/2  ]",null,null,null,null,null,null,null,null,null,null,null,null,null,null,null,null,null,null,"Kfuge","=",{"$f":"((Kser*1000/eklammer)*ls)/2","v":10282.394926469793},null,null,null,null,null,null,null,null,null,null,"und kann daher mit dem Faktor 2 multipliziert werden."]
[]
[null,null,null,"Berechnen der Anzahl der Koppelfugen"]
[null,null,null,"nkoppelgugen = bs  / bElement ",null,null,null,null,null,null,null,null,null,null,null,null,null,null,null,null,null,null,null,"=",{"$f":"bs/belement","v":16}]
[]
[]
[null,null,"Verformung infolge Lastfall 1"]
[null,null,"Schubmodul",null,null,null,null,null,null,null,null,null,null,null,null,null,null,null,null,null,null,null,"GAef","=",{"$f":"_xlfn.XLOOKUP('Eingabe und Ergebnis'!DM18,INDIRECT(\"tab_H1\"&'Eingabe und Ergebnis'!DM16),(_xlfn.XLOOKUP(\"GA \"&'Eingabe und Ergebnis'!DM17,INDIRECT(\"tab_Z1\"&'Eingabe und Ergebnis'!DM16),INDIRECT(\"tab_\"&'Eingabe und Ergebnis'!DM16))))","v":29741},null,null,null,null,null,null,null,null,null,null,null,"(~gl Technische Daten)"]
[null,null,"Scheibesschubmodul = GAef / belement * bs ",null,null,null,null,null,null,null,null,null,null,null,null,null,null,null,null,null,null,null,"GAef,scheibe","=",{"$f":"(GA/belement)*bs","v":475856}]
[null,null,"Verformung Element",null,null,null,null,null,null,null,null,null,null,null,null,null,null,null,null,null,null,null,"uges,Elemente,1","=",{"$f":"ls*1000*(0.5*(V154*1000*bs)*0.5)/(GAscheibe*1000)","v":0}]
[null,null,"Maximal zulässigen Verformung = ls/500",null,null,null,null,null,null,null,null,null,null,null,null,null,null,null,null,null,null,null,"umax,1","=",{"$f":"ls/500*1000","v":12}]
[]
[null,null,"Nachweis"]
[null,null,"ηu,1 = uges,Elemente,1 / umax,1",null,null,null,null,null,null,null,null,null,null,null,null,null,null,null,null,null,null,null,null,"=",{"$f":"Y454/Y455","v":0},null,null,null,null,null,null,null,null,null,null,{"$f":"IF(Y458>1,\"> 1 NEIN !\",\"< 1    OK !\")","v":"< 1    OK !"}]
[]
[]
[]
[]
["Statik Dachscheibe",null,null,null,null,null,null,null,null,null,null,null,null,null,null,null,null,null,null,null,{"$f":"U1","v":"Fall 2 : Erdbeben"},null,null,null,null,null,null,null,null,null,null,null,null,null,null,null,null,{"$f":"TODAY()","v":"2023-11-20"}]
[null,null,null,null,null,null,null,null,null,null,null,null,null,null,null,null,null,null,null,null,null,null,null,null,null,null,null,null,null,null,null,null,null,null,null,null,null,"Seite 12/12"]
["4 - Seitig gelagert",null,null,null,null,null,null,null,null,null,null,null,null,null,null,null,null,null,null,null,null,null,null,null,null,null,null,null,null,null,null,null,null,null,null,null,null,"Bauvorhaben:",null,null,null,null,null,{"$f":"AR423","v":"Beispiel Holzhaus"}]
[null,null,null,null,null,null,null,null,null,null,null,null,null,null,null,null,null,null,null,null,null,null,null,null,null,null,null,null,null,null,null,null,null,null,null,null,null,"Position:",null,null,null,null,null,{"$f":"AR424","v":"Beispiel 3. Stock Küche"}]
[]
[]
["Landstraße 25, D - 79809 Weilheim - Bannholz"]
[]
[null,null,"Berechnung nach Eurocode 5 - EN 1995"]
[]
[]
[null,null,"Verformung infolge Lastfall 2"]
[null,null,"Schubmodul",null,null,null,null,null,null,null,null,null,null,null,null,null,null,null,null,null,null,null,"GAef","=",{"$f":"Y452","v":29741},null,null,null,null,null,null,null,null,null,null,null,"(~gl Technische Daten)"]
[null,null,"Scheibesschubmodul = GAef / belement * ls ",null,null,null,null,null,null,null,null,null,null,null,null,null,null,null,null,null,null,null,"GAef,scheibe","=",{"$f":"(GA/belement)*ls","v":285513.59999999998}]
[null,null,"Verformung Element",null,null,null,null,null,null,null,null,null,null,null,null,null,null,null,null,null,null,null,"uges,Elemente,2","=",{"$f":"bs*1000*(0.5*(AU154*1000*ls)*0.5)/(GAscheibe2*1000)","v":0}]
[null,null,"Verformung infolge der Koppelgufen",null,null,null,null,null,null,null,null,null,null,null,null,null,null,null,null,null,null,null,"uges,Fuge,2","=",{"$f":"0.5*(AU154*ls)*(nkoppelfugen+1)/(Kfuge/1000)","v":0}]
[]
[null,null,"Berechnen der Gesamtverformung der Scheibe"]
[null,null,"uges,2 = uges,Fuge,2 + uges,Elemente,2",null,null,null,null,null,null,null,null,null,null,null,null,null,null,null,null,null,null,null,null,"=",{"$f":"Y478+Y477","v":0}]
[]
[null,null,"Maximal zulässigen Verformung = bs/500",null,null,null,null,null,null,null,null,null,null,null,null,null,null,null,null,null,null,null,"umax,2","=",{"$f":"bs/500*1000","v":20}]
[]
[null,null,"Nachweis"]
[null,null,"ηu,2 = uges,2 / umax,2",null,null,null,null,null,null,null,null,null,null,null,null,null,null,null,null,null,null,null,null,"=",{"$f":"Y481/Y483","v":0},null,null,null,null,null,null,null,null,null,null,{"$f":"IF(Y486>1,\"> 1 NEIN !\",\"< 1    OK !\")","v":"< 1    OK !"}]

{"sheet":"Fall 3. Stabilisierung","index":14,"n_rows":486,"n_cols":60,"rows_kept":486,"cut":false,"hidden":false,"merged":[[185,42,185,45],[185,46,185,49],[191,43,191,46],[191,47,191,50],[194,43,194,46],[194,47,194,50],[204,43,204,46],[204,47,204,50],[241,43,241,46],[241,47,241,50],[229,42,229,49],[230,42,230,44],[230,47,230,49],[236,42,236,45],[236,46,236,49],[237,42,237,45],[237,46,237,49],[210,37,210,54],[211,37,211,54],[0,0,1,19],[0,20,2,35],[0,37,0,54],[1,37,1,54],[2,0,3,12],[2,37,2,42],[2,43,2,54],[3,37,3,42],[3,43,3,54],[28,21,28,26],[29,21,29,26],[30,21,30,26],[34,21,34,26],[35,21,35,26],[36,21,36,26],[16,46,16,51],[17,46,17,51],[23,46,23,51],[24,46,24,51],[25,46,25,51],[27,21,27,26],[35,28,35,30],[35,33,35,35],[36,28,36,30],[36,33,36,35],[34,28,34,35],[45,43,45,54],[54,3,55,12],[54,13,55,25],[56,3,57,12],[56,13,57,25],[58,3,59,12],[58,13,59,25],[37,21,37,26],[38,21,38,26],[42,0,43,19],[42,20,44,35],[42,37,42,54],[43,37,43,54],[44,0,45,12],[44,37,44,42],[44,43,44,54],[45,37,45,42],[84,37,84,54],[85,37,85,54],[86,0,87,12],[86,37,86,42],[86,43,86,54],[87,37,87,42],[87,43,87,54],[60,3,61,12],[60,13,61,25],[62,3,63,12],[62,13,63,18],[62,19,63,25],[84,0,85,19],[84,20,86,35],[104,21,104,26],[104,46,104,51],[126,0,127,19],[126,20,128,35],[126,37,126,54],[127,37,127,54],[128,0,129,12],[128,37,128,42],[128,43,128,54],[129,37,129,42],[154,21,154,26],[154,46,154,51],[156,21,156,26],[156,46,156,51],[159,29,160,53],[162,4,162,8],[162,46,162,51],[129,43,129,54],[150,21,150,26],[150,46,150,51],[151,21,151,26],[151,46,151,51],[153,21,153,26],[153,46,153,51],[155,22,155,23],[157,48,157,49],[179,21,179,38],[182,21,182,26],[183,21,183,26],[184,21,184,26],[185,21,185,26],[166,19,166,23],[168,0,169,19],[168,20,170,35],[168,37,168,54],[169,37,169,54],[170,0,171,12],[170,37,170,42],[170,43,170,54],[171,37,171,42],[171,43,171,54],[179,42,179,49],[180,42,180,44],[180,47,180,49],[182,42,182,45],[182,46,182,49],[183,42,183,45],[183,46,183,49],[184,42,184,45],[184,46,184,49],[212,0,213,12],[212,37,212,42],[212,43,212,54],[191,21,191,26],[191,33,191,38],[194,21,194,26],[194,33,194,38],[202,21,202,30],[203,21,203,30],[213,37,213,42],[213,43,213,54],[206,43,206,46],[206,47,206,50],[233,28,233,34],[234,30,234,34],[235,30,235,35],[236,30,236,35],[204,21,204,30],[206,21,206,26],[206,33,206,38],[252,0,253,19],[252,20,254,35],[252,37,252,54],[253,37,253,54],[254,0,255,12],[254,37,254,42],[237,30,237,34],[240,30,240,34],[240,41,240,46],[243,28,243,34],[244,30,244,34],[245,30,245,34],[254,43,254,54],[255,37,255,42],[255,43,255,54],[210,0,211,19],[210,20,212,35],[264,48,264,53],[265,48,265,53],[266,48,266,53],[246,30,246,34],[247,30,247,34],[250,30,250,34],[250,41,250,46],[273,48,273,53],[274,48,274,53],[247,42,247,45],[247,46,247,49],[251,42,251,45],[251,46,251,49],[275,48,275,53],[281,21,281,26],[281,48,281,53],[282,21,282,26],[282,48,282,53],[267,48,267,53],[268,48,268,53],[269,48,269,53],[270,48,270,53],[271,48,271,53],[272,48,272,53],[291,21,291,26],[292,21,292,26],[293,21,293,26],[294,0,295,19],[294,20,296,35],[283,21,283,26],[283,48,283,53],[284,21,284,26],[285,21,285,26],[285,32,286,53],[288,21,288,26],[289,21,289,26],[290,21,290,26],[305,46,305,49],[305,50,305,53],[306,24,306,29],[306,40,306,45],[306,46,306,49],[306,50,306,53],[294,37,294,54],[295,37,295,54],[296,0,297,12],[296,37,296,42],[296,43,296,54],[297,37,297,42],[297,43,297,54],[305,38,305,45],[309,46,309,49],[309,50,309,53],[310,24,310,29],[310,40,310,45],[310,46,310,49],[310,50,310,53],[307,24,307,29],[307,40,307,45],[307,46,307,49],[307,50,307,53],[308,24,308,29],[308,40,308,45],[308,46,308,49],[308,50,308,53],[313,46,313,49],[313,50,313,53],[314,24,314,29],[314,40,314,45],[314,46,314,49],[314,50,314,53],[311,24,311,29],[311,40,311,45],[311,46,311,49],[311,50,311,53],[312,24,312,29],[312,40,312,45],[312,46,312,49],[312,50,312,53],[323,50,323,53],[324,24,324,29],[325,24,325,29],[315,24,315,29],[315,40,315,45],[315,46,315,49],[315,50,315,53],[317,24,317,29],[321,24,321,29],[336,0,337,19],[336,20,338,35],[336,37,336,54],[337,37,337,54],[338,0,339,12],[338,37,338,42],[338,43,338,54],[339,37,339,42],[339,43,339,54],[378,0,379,19],[378,20,380,35],[378,37,378,54],[379,37,379,54],[380,0,381,12],[356,24,356,29],[359,24,359,29],[359,35,359,40],[363,24,363,29],[364,24,364,29],[366,24,366,29],[380,37,380,42],[380,43,380,54],[381,37,381,42],[381,43,381,54],[390,24,390,30],[391,24,391,30],[422,43,422,54],[423,37,423,42],[423,43,423,54],[394,24,394,29],[397,24,397,29],[397,35,397,40],[462,0,463,19],[462,20,464,35],[462,37,462,54],[463,37,463,54],[464,0,465,12],[439,24,439,29],[440,24,440,29],[443,24,443,29],[444,24,444,29],[447,24,447,29],[451,24,451,29],[464,43,464,54],[465,37,465,42],[465,43,465,54],[420,0,421,19],[420,20,422,35],[420,37,420,54],[421,37,421,54],[422,0,423,12],[97,39,97,40],[98,39,98,40],[348,24,348,29],[350,24,350,29],[351,24,351,29],[353,24,353,29],[354,24,354,29],[355,24,355,29],[328,24,328,29],[329,24,329,29],[330,24,330,29],[331,24,331,29],[332,24,332,29],[334,24,334,29],[322,24,322,29],[322,40,322,45],[323,24,323,29],[313,24,313,29],[313,40,313,45],[309,24,309,29],[309,40,309,45],[476,24,476,29],[477,24,477,29],[480,24,480,29],[482,24,482,29],[485,24,485,29],[485,35,485,40],[464,37,464,42],[422,37,422,42],[367,24,367,29],[368,24,368,29],[369,24,369,29],[372,24,372,29],[372,35,372,40],[474,24,474,29],[475,24,475,29],[452,24,452,29],[453,24,453,29],[454,24,454,29],[457,24,457,29],[457,35,457,40],[437,24,437,29],[438,24,438,29],[392,24,392,30],[393,24,393,30]]}
["Statik Dachscheibe",null,null,null,null,null,null,null,null,null,null,null,null,null,null,null,null,null,null,null,"Fall 3 : Stabilisierung",null,null,null,null,null,null,null,null,null,null,null,null,null,null,null,null,{"$f":"TODAY()","v":"2023-11-20"}]
[null,null,null,null,null,null,null,null,null,null,null,null,null,null,null,null,null,null,null,null,null,null,null,null,null,null,null,null,null,null,null,null,null,null,null,null,null,"Seite 1/12"]
["4 - Seitig gelagert",null,null,null,null,null,null,null,null,null,null,null,null,null,null,null,null,null,null,null,null,null,null,null,null,null,null,null,null,null,null,null,null,null,null,null,null,"Bauvorhaben:",null,null,null,null,null,{"$f":"'Eingabe und Ergebnis'!X3","v":"Beispiel Holzhaus"}]
[null,null,null,null,null,null,null,null,null,null,null,null,null,null,null,null,null,null,null,null,null,null,null,null,null,null,null,null,null,null,null,null,null,null,null,null,null,"Position:",null,null,null,null,null,{"$f":"'Eingabe und Ergebnis'!X4","v":"Beispiel 3. Stock Küche"}]
[]
[]
["Landstraße 25, D - 79809 Weilheim - Bannholz"]
[]
[null,null,"Berechnung nach Eurocode 5 - EN 1995"]
[]
[]
[null,null,1,"Geometrie"]
[null,null,null,null,null,null,null,null,null,null,null,null,null,null,null,null,null,null,null,null,null,null,null,null,null,null,null,null,null,null,null,null,null,null,3,"Lastfall"]
[]
[null,null,null,null,null,null,null,null,null,null,null,null,null,null,null,null,null,null,null,null,null,null,null,null,null,null,null,null,null,null,null,null,null,"Kraft rechtwinklig zur Elementspannrichtung"]
[]
[]
[null,null,null,null,null,null,null,null,null,null,null,null,null,null,null,null,null,null,null,null,null,null,null,null,null,null,null,null,null,null,null,null,null,"Verteilte Kraft",null,null,null,null,null,null,null,null,null,null," qd1","=",{"$f":"'Eingabe und Ergebnis'!BA43","v":0}]
[]
[]
[]
[null,null,null,null,null,null,null,null,null,null,null,null,null,null,null,null,null,null,null,null,null,null,null,null,null,null,null,null,null,null,null,null,null,"Kraft parallel zur Elementspannrichtung"]
[]
[]
[null,null,null,null,null,null,null,null,null,null,null,null,null,null,null,null,null,null,null,null,null,null,null,null,null,null,null,null,null,null,null,null,null,"Verteilte Kraft",null,null,null,null,null,null,null,null,null,null,"qd2","=",{"$f":"'Eingabe und Ergebnis'!BA46","v":0}]
[]
[]
[null,null,"Scheibenbreite ",null,null,null,null,null,null,null,null,null,null,null,null,null,null,null,null,"bs ","=",{"$f":"'Eingabe und Ergebnis'!N12","v":10}]
[null,null,"Scheibenlänge ",null,null,null,null,null,null,null,null,null,null,null,null,null,null,null,null,"ls ","=",{"$f":"'Eingabe und Ergebnis'!N13","v":6}]
[null,null,"Elementbreite ",null,null,null,null,null,null,null,null,null,null,null,null,null,null,null,null,"bElement","=",{"$f":"'Eingabe und Ergebnis'!N14","v":0.625}]
[null,null,"Anzahl der Elemente ",null,null,null,null,null,null,null,null,null,null,null,null,null,null,null,null,"nElement","=",{"$f":"V28/V30","v":16}]
[]
[null,null,2,"Holzeigenschaft"]
[]
[null,null,"Baustoff:",null,null,null,null,null,null,null,null,null,null,null,null,null,null,null,null,null,null,{"$f":"'Eingabe und Ergebnis'!N16","v":"Brettschichtholz"},null,null,null,null,null,null,"für Kombination mit"]
[null,null,"Festigkeitsklasse:",null,null,null,null,null,null,null,null,null,null,null,null,null,null,null,null,null,null,{"$f":"'Eingabe und Ergebnis'!N17","v":"GL 24h"},null,null,null,null,null,null,"Wind",null,null,null,null,"Erdbeben"]
[null,null,"Modifikationsbeiwert",null,null,null,null,null,null,null,null,null,null,null,null,null,null,null,null,"kmod","=",{"$f":"T63","v":0.9},null,null,null,null,null,null,{"$f":"IF(MIN('Eingabe und Ergebnis'!BI22,'Eingabe und Ergebnis'!BI40)=0,MAX('Eingabe und Ergebnis'!BI22,'Eingabe und Ergebnis'!BI40),MIN('Eingabe und Ergebnis'!BI22,'Eingabe und Ergebnis'!BI40))","v":0.9},null,null,null,null,{"$f":"IF(MIN('Eingabe und Ergebnis'!BI33,'Eingabe und Ergebnis'!BI40)=0,MAX('Eingabe und Ergebnis'!BI33,'Eingabe und Ergebnis'!BI40),MIN('Eingabe und Ergebnis'!BI33,'Eingabe und Ergebnis'!BI40))","v":0.9}]
[null,null,"Teilsicherheitsbeiwert ",null,null,null,null,null,null,null,null,null,null,null,null,null,null,null,null,"γm","=",1.25]
[null,null,null,null,null,null,null,null,null,null,null,null,null,null,null,null,null,null,null,"γQ","=",1]
[]
[]
[]
["Statik Dachscheibe",null,null,null,null,null,null,null,null,null,null,null,null,null,null,null,null,null,null,null,{"$f":"U1","v":"Fall 3 : Stabilisierung"},null,null,null,null,null,null,null,null,null,null,null,null,null,null,null,null,{"$f":"TODAY()","v":"2023-11-20"}]
[null,null,null,null,null,null,null,null,null,null,null,null,null,null,null,null,null,null,null,null,null,null,null,null,null,null,null,null,null,null,null,null,null,null,null,null,null,"Seite 2/12"]
["4 - Seitig gelagert",null,null,null,null,null,null,null,null,null,null,null,null,null,null,null,null,null,null,null,null,null,null,null,null,null,null,null,null,null,null,null,null,null,null,null,null,"Bauvorhaben:",null,null,null,null,null,{"$f":"AR3","v":"Beispiel Holzhaus"}]
[null,null,null,null,null,null,null,null,null,null,null,null,null,null,null,null,null,null,null,null,null,null,null,null,null,null,null,null,null,null,null,null,null,null,null,null,null,"Position:",null,null,null,null,null,{"$f":"AR4","v":"Beispiel 3. Stock Küche"}]
[]
[]
["Landstraße 25, D - 79809 Weilheim - Bannholz"]
[]
[null,null,"Berechnung nach Eurocode 5 - EN 1995"]
[]
[]
[]
[null,null,null,"Nutzungsklasse",null,null,null,null,null,null,null,null,null,{"$f":"'Eingabe und Ergebnis'!N15","v":1}]
[]
[null,null,null,"Klasse der Lasteinwirkungsdauer",null,null,null,null,null,null,null,null,null,{"$f":"'Eingabe und Ergebnis'!BA41","v":"Kurz"}]
[null,null,null,null,null,null,null,null,null,null,null,null,null,null,null,null,null,null,null,null,null,null,null,null,null,null,null,null,"EC  5, Tabelle 3.1"]
[null,null,null,"Zeit ",null,null,null,null,null,null,null,null,null,{"$f":"VLOOKUP(N57,'kmod+gamma+Trag.keit'!C26:H31,2,FALSE)","v":"Kürzer als 1 Woche"}]
[]
[null,null,null,"Beispiel ",null,null,null,null,null,null,null,null,null,{"$f":"VLOOKUP(N57,'kmod+gamma+Trag.keit'!C26:H31,3,FALSE)","v":"Schnee"}]
[]
[null,null,null,"Widerstandabänderung Koeffizient",null,null,null,null,null,null,null,null,null,"kmod =",null,null,null,null,null,{"$f":"IF(N55=3,VLOOKUP(N57,'kmod+gamma+Trag.keit'!C26:H31,6,FALSE),VLOOKUP(N57,'kmod+gamma+Trag.keit'!C26:H31,5,FALSE))","v":0.9}]
[]
[]
[]
[]
[]
[]
[]
[]
[]
[]
[]
[]
[]
[]
[]
[]
[]
[]
[]
[]
[]
["Statik Dachscheibe",null,null,null,null,null,null,null,null,null,null,null,null,null,null,null,null,null,null,null,{"$f":"U1","v":"Fall 3 : Stabilisierung"},null,null,null,null,null,null,null,null,null,null,null,null,null,null,null,null,{"$f":"TODAY()","v":"2023-11-20"}]
[null,null,null,null,null,null,null,null,null,null,null,null,null,null,null,null,null,null,null,null,null,null,null,null,null,null,null,null,null,null,null,null,null,null,null,null,null,"Seite 3/12"]
["4 - Seitig gelagert",null,null,null,null,null,null,null,null,null,null,null,null,null,null,null,null,null,null,null,null,null,null,null,null,null,null,null,null,null,null,null,null,null,null,null,null,"Bauvorhaben:",null,null,null,null,null,{"$f":"AR45","v":"Beispiel Holzhaus"}]
[null,null,null,null,null,null,null,null,null,null,null,null,null,null,null,null,null,null,null,null,null,null,null,null,null,null,null,null,null,null,null,null,null,null,null,null,null,"Position:",null,null,null,null,null,{"$f":"AR46","v":"Beispiel 3. Stock Küche"}]
[]
[]
["Landstraße 25, D - 79809 Weilheim - Bannholz"]
[]
[null,null,"Berechnung nach Eurocode 5 - EN 1995"]
[]
[]
[null,null,4,"Ermittlung der Schittgrößen"]
[]
[null,null,"Kombinationen :"]
[]
[]
[]
[]
[null,null,null,"Lastfall 1 (Rechtwinklig zur Elementspannrichtung)",null,null,null,null,null,null,null,null,null,null,null,null,null,null,null,null,null,null,null,null,null,null,null,null,null,"Lastfall 2 (Parallel zur Elementspannrichtung)"]
[]
[null,null,"Horizontallasten ",null,null,null,null,null,null,null,null,null,null,null,null,null,null,null,null,"qs,1","=",{"$f":"AU18","v":0},null,null,null,null,null,null,null,"Horizontallasten ",null,null,null,null,null,null,null,null,null,null,null,null,null,null,"qs,2","=",{"$f":"AU25","v":0}]
[]
[]
[]
[]
[]
[]
[]
[]
[]
[]
[]
[]
[]
[]
[]
[]
[]
[]
[]
[]
[]
["Statik Dachscheibe",null,null,null,null,null,null,null,null,null,null,null,null,null,null,null,null,null,null,null,{"$f":"U1","v":"Fall 3 : Stabilisierung"},null,null,null,null,null,null,null,null,null,null,null,null,null,null,null,null,{"$f":"TODAY()","v":"2023-11-20"}]
[null,null,null,null,null,null,null,null,null,null,null,null,null,null,null,null,null,null,null,null,null,null,null,null,null,null,null,null,null,null,null,null,null,null,null,null,null,"Seite 4/12"]
["4 - Seitig gelagert",null,null,null,null,null,null,null,null,null,null,null,null,null,null,null,null,null,null,null,null,null,null,null,null,null,null,null,null,null,null,null,null,null,null,null,null,"Bauvorhaben:",null,null,null,null,null,{"$f":"AR87","v":"Beispiel Holzhaus"}]
[null,null,null,null,null,null,null,null,null,null,null,null,null,null,null,null,null,null,null,null,null,null,null,null,null,null,null,null,null,null,null,null,null,null,null,null,null,"Position:",null,null,null,null,null,{"$f":"AR88","v":"Beispiel 3. Stock Küche"}]
[]
[]
["Landstraße 25, D - 79809 Weilheim - Bannholz"]
[]
[null,null,"Berechnung nach Eurocode 5 - EN 1995"]
[]
[]
[]
[null,null,null,null,null,null,null,null,null,null,null,null,null,null,null,null,null,null,null,null,null,null,null,null,null,null,null,null,null,null,null,null,null,null,null,null,null,null,null,null,null,null,null,null,null,"dabei",null,"a =","bs"]
[null,null,null,null,null,null,null,null,null,null,null,null,null,null,null,null,null,null,null,null,null,null,null,null,null,null,null,null,null,null,null,null,null,null,null,null,null,null,null,null,null,null,null,null,null,null,null,"b =","l,r,||*"]
[null,null,null,null,null,null,null,null,null,null,null,null,null,null,null,null,null,null,null,null,null,null,null,null,null,null,null,null,null,null,null,null,null,null,null,null,null,null,null,null,null,null,null,null,null,null,null,"c =","bs"]
[null,null,null,null,null,null,null,null,null,null,null,null,null,null,null,null,null,null,null,null,null,null,null,null,null,null,null,null,null,null,null,null,null,null,null,null,null,null,null,null,null,null,null,null,null,null,null,"d =","ls"]
[]
[]
[]
[]
[]
[]
[null,null,"Horizontale Belastungen"]
[]
[null,null,"Moment Lastfall 1",null,null,null,null,null,null,null,null,null,null,null,null,null,null,null,null,"Md,z,1","=",{"$f":"(qs1kraftst*(ls*ls)/8)","v":0},null,null,null,null,null,null,null,"Moment Lastfall 2",null,null,null,null,null,null,null,null,null,null,null,null,null,null,"Md,z,2","=",{"$f":"(qs2kraftst*(bs*bs)/8)","v":0}]
[null,null,"Schub Lastfall 1",null,null,null,null,null,null,null,null,null,null,null,null,null,null,null,null,"Vd,z,1","=",{"$f":"(qs1kraftst*(ls)/2)","v":0},null,null,null,null,null,null,null,"Schub Lastfall 2",null,null,null,null,null,null,null,null,null,null,null,null,null,null,"Vd,z,2","=",{"$f":"(qs2kraftst*(bs)/2)","v":0}]
[]
[null,null,"Aufgerkraft charakteristisch ",null,null,null,null,null,null,null,null,null,null,null,null,null,null,null,null,"ak,1 ","=",{"$f":"V155","v":0},null,null,null,null,null,null,null,"Aufgerkraft charakteristisch ",null,null,null,null,null,null,null,null,null,null,null,null,null,null,"bk,2","=",{"$f":"AU155","v":0}]
[null,null,"Auflagerkraft Design",null,null,null,null,null,null,null,null,null,null,null,null,null,null,null,null,"ad,1","=",{"$f":"vdz1st/bs","v":0},null,null,null,null,null,null,null,"Auflagerkraft Design",null,null,null,null,null,null,null,null,null,null,null,null,null,null,"bd,2","=",{"$f":"vdz2st/ls","v":0}]
[]
[null,null,"Schubfluss   [ Vd,z,1 / bs ]",null,null,null,null,null,null,null,null,null,null,null,null,null,null,null,null,"td,1","=",{"$f":"vdz1st/bs","v":0},null,null,null,null,null,null,null,"Schubfluss   [ Vd,z,2 / ls ]",null,null,null,null,null,null,null,null,null,null,null,null,null,null,"td,2","=",{"$f":"vdz2st/ls","v":0}]
[]
[]
[null,null,"Lastfall 1",null,null,null,null,null,null,null,null,null,null,null,null,null,null,null,null,null,null,null,null,null,null,null,null,null,null,"Zugkraft beziehungsweise Druckkraft in den Randgurten quer zur Elementspannrichtung:"]
[]
[]
[null,null,null,"ad,1 =",{"$f":"V155","v":0},null,null,null,null,null,null,null,null,null,null,null,null,null,null,null,null,null,null,null,null,null,null,null,null,"Max Zd",null,null,null,null,null,null,null,null,null,null,null,null,null,null,"Zd","=",{"$f":"mdz2st/ls","v":0}]
[]
[null,null,"Lastfall 2"]
[]
[null,null,null,null,null,null,null,null,null,null,null,null,null,null,null,null,null,null,"bd,2 =",{"$f":"AU155","v":0}]
[null,null,null,null,null,null,null,null,null,null,null,null,null,null,null,null,null,null,null,null,null,null,null,null,null,null,null,null,null,null,null,null,"* Falls die Rangurtlänge kürzer als die Scheibenlänge ist!"]
["Statik Dachscheibe",null,null,null,null,null,null,null,null,null,null,null,null,null,null,null,null,null,null,null,{"$f":"U1","v":"Fall 3 : Stabilisierung"},null,null,null,null,null,null,null,null,null,null,null,null,null,null,null,null,{"$f":"TODAY()","v":"2023-11-20"}]
[null,null,null,null,null,null,null,null,null,null,null,null,null,null,null,null,null,null,null,null,null,null,null,null,null,null,null,null,null,null,null,null,null,null,null,null,null,"Seite 5/12"]
["4 - Seitig gelagert",null,null,null,null,null,null,null,null,null,null,null,null,null,null,null,null,null,null,null,null,null,null,null,null,null,null,null,null,null,null,null,null,null,null,null,null,"Bauvorhaben:",null,null,null,null,null,{"$f":"AR129","v":"Beispiel Holzhaus"}]
[null,null,null,null,null,null,null,null,null,null,null,null,null,null,null,null,null,null,null,null,null,null,null,null,null,null,null,null,null,null,null,null,null,null,null,null,null,"Position:",null,null,null,null,null,{"$f":"AR130","v":"Beispiel 3. Stock Küche"}]
[]
[]
["Landstraße 25, D - 79809 Weilheim - Bannholz"]
[]
[null,null,"Berechnung nach Eurocode 5 - EN 1995"]
[]
[]
[null,null,"Lignotrend Element:",null,null,null,null,null,null,null,null,null,null,null,null,null,null,null,null,null,null,{"$f":"'Eingabe und Ergebnis'!K24","v":"LIGNO Rippe Q3 Akustik WT Z26P0 - 190"},null,null,null,null,null,null,null,null,null,null,null,null,null,null,null,null,null,null,null,null,"für Kombination mit"]
[null,null,null,null,null,null,null,null,null,null,null,null,null,null,null,null,null,null,null,null,null,null,null,null,null,null,null,null,null,null,null,null,null,null,null,null,null,null,null,null,null,null,"Wind",null,null,null,null,"Erdbeben"]
[null,null,"Elementtragfähigkeit"]
[null,null,"Schubtragfähigkeit charakteristisch",null,null,null,null,null,null,null,null,null,null,null,null,null,null,null,null,"VR,k,y","=",{"$f":"_xlfn.XLOOKUP('Eingabe und Ergebnis'!DM18,INDIRECT(\"tab_H1\"&'Eingabe und Ergebnis'!DM16),(_xlfn.XLOOKUP('Eingabe und Ergebnis'!DM17,INDIRECT(\"tab_Z1\"&'Eingabe und Ergebnis'!DM16),INDIRECT(\"tab_\"&'Eingabe und Ergebnis'!DM16))))","v":49},null,null,null,null,null,null,null,null,null,null,null,null,null,null,null,null,null,null,"VR,k,y","="]
[null,null,"Schubtragfähigkeit design",null,null,null,null,null,null,null,null,null,null,null,null,null,null,null,null,"VR,d,y","=",{"$f":"V183*V37/gammamsta","v":35.28},null,null,null,null,null,null,null,null,null,"(~gl Technishe Daten)",null,null,null,null,null,null,null,null,"VR,d,y","=",{"$f":"V183*AC37/gammamsta","v":35.28},null,null,null,{"$f":"V183*AH37/gammamsta","v":35.28}]
[null,null,"Momenttragfähigkeit charakteristisch",null,null,null,null,null,null,null,null,null,null,null,null,null,null,null,null,"MR,k,y","=",{"$f":"_xlfn.XLOOKUP('Eingabe und Ergebnis'!DM18,INDIRECT(\"tab_H1\"&'Eingabe und Ergebnis'!DM16),(_xlfn.XLOOKUP(\"M \"&'Eingabe und Ergebnis'!DM17,INDIRECT(\"tab_Z1\"&'Eingabe und Ergebnis'!DM16),INDIRECT(\"tab_\"&'Eingabe und Ergebnis'!DM16))))","v":91.715449487179498},null,null,null,null,null,null,null,null,null,null,null,null,null,null,null,null,null,null,"MR,k,y","="]
[null,null,"Momenttragfähigkeit design",null,null,null,null,null,null,null,null,null,null,null,null,null,null,null,null,"MR,d,y","=",{"$f":"V185*V37/gammam","v":63.495311183431959},null,null,null,null,null,null,null,null,null,null,null,null,null,null,null,null,null,null,"MR,d,y","=",{"$f":"V185*AC37/gammamsta","v":66.035123630769235},null,null,null,{"$f":"V185*AH37/gammamsta","v":66.035123630769235}]
[]
[]
[null,null,5,"Nachweis"]
[]
[null,null,null,"Nachweis der Quertragfähigkeit"]
[null,null,null,"ηv",null,null,null,null,null,null,null,null,null,null,null,null,null,null,null,"[ MAX(td1;td2)/(Vrdy/belement) ]","=",{"$f":"MAX(tdeinst,tdzweist)/(V184/belement)","v":0},null,null,null,null,null,null,null,null,null,null,null,{"$f":"IF(V192>1,\"> 1 NEIN !\",\"< 1    OK !\")","v":"< 1    OK !"},null,null,null,null,null,null,"ηv","=",null,{"$f":"MAX(tdeinst,tdzweist)/(AQ184/belement)","v":0},null,null,null,{"$f":"MAX(tdeinst,tdzweist)/(AU184/belement)","v":0}]
[]
[null,null,null,"Nachweis der Momenttragfähigkeit beim Lastfall 1"]
[null,null,null,"ηM1 ",null,null,null,null,null,null,null,null,null,null,null,null,null,null,null,"[ Md,z,1/(nelement*MR,d,z) ]","=",{"$f":"mdz1st/(nelement*V186)","v":0},null,null,null,null,null,null,null,null,null,null,null,{"$f":"IF(V195>1,\"> 1 NEIN !\",\"< 1    OK !\")","v":"< 1    OK !"},null,null,null,null,null,null,"ηM1 ","=",null,{"$f":"mdz1st/(nelement*AQ186)","v":0},null,null,null,{"$f":"mdz1st/(nelement*AU186)","v":0}]
[]
[null,null,null,"Nachweis der Momenttragfähigkeit beim Lastfall 2"]
[]
[null,null,null,"Zur Aufnahme des Momentes aus LF 2 dient der Randgurt quer zur Elementspannrichtung."]
[]
[null,null,null,"Randgurt: BSH 24h "]
[]
[null,null,null,"Querschnittsfläche Randgurt",null,null,null,null,null,null,null,null,null,null,null,null,null,null,null,"Aef","=",{"$f":"('Eingabe und Ergebnis'!N33*'Eingabe und Ergebnis'!N34)/100","v":240}]
[null,null,null,"Charakteristischer Wert der Zugfestigkeit",null,null,null,null,null,null,null,null,null,null,null,null,null,null,null,"ft,k","=",1.65]
[null,null,null,"Bemessungswert der Zugfestigkeit",null,null,null,null,null,null,null,null,null,null,null,null,null,null,null,"ft,d","=",{"$f":"ftk*V37/gammam","v":1.1423076923076922},null,null,null,null,null,null,null,null,null,null,null,null,null,null,null,null,null,null,"ft,d","=",null,{"$f":"V204*AC37/gammamsta","v":1.1879999999999999},null,null,null,{"$f":"V204*AH37/gammamsta","v":1.1879999999999999}]
[]
[null,null,null,"ηM2",null,null,null,null,null,null,null,null,null,null,null,null,null,null,null," [ Zd/(Aef*ft,d) ]","=",{"$f":"Zdst/(Aef*(ftd))","v":0},null,null,null,null,null,null,null,null,null,null,null,{"$f":"IF(V207>1,\"> 1 NEIN !\",\"< 1    OK !\")","v":"< 1    OK !"},null,null,null,null,null,null,"ηM2","=",null,{"$f":"Zdst/(Aef*(AR205))","v":0},null,null,null,{"$f":"Zdst/(Aef*(AV205))","v":0}]
[]
[]
[]
["Statik Dachscheibe",null,null,null,null,null,null,null,null,null,null,null,null,null,null,null,null,null,null,null,{"$f":"U1","v":"Fall 3 : Stabilisierung"},null,null,null,null,null,null,null,null,null,null,null,null,null,null,null,null,{"$f":"TODAY()","v":"2023-11-20"}]
[null,null,null,null,null,null,null,null,null,null,null,null,null,null,null,null,null,null,null,null,null,null,null,null,null,null,null,null,null,null,null,null,null,null,null,null,null,"Seite 6/12"]
["4 - Seitig gelagert",null,null,null,null,null,null,null,null,null,null,null,null,null,null,null,null,null,null,null,null,null,null,null,null,null,null,null,null,null,null,null,null,null,null,null,null,"Bauvorhaben:",null,null,null,null,null,{"$f":"AR171","v":"Beispiel Holzhaus"}]
[null,null,null,null,null,null,null,null,null,null,null,null,null,null,null,null,null,null,null,null,null,null,null,null,null,null,null,null,null,null,null,null,null,null,null,null,null,"Position:",null,null,null,null,null,{"$f":"AR172","v":"Beispiel 3. Stock Küche"}]
[]
[]
["Landstraße 25, D - 79809 Weilheim - Bannholz"]
[]
[null,null,"Berechnung nach Eurocode 5 - EN 1995"]
[]
[]
[null,null,"Nachweis der Koppelfuge"]
[]
[]
[]
[]
[]
[]
[]
[null,null,null,null,null,null,null,null,null,null,null,null,null,null,null,null,null,null,null,null,null,null,null,null,null,null,null,null,null,null,null,null,null,null,null,null,null,null,null,null,null,null,"für Kombination mit"]
[null,null,null,null,null,null,null,null,null,null,null,null,null,null,null,null,null,null,null,null,null,null,null,null,null,null,null,null,null,null,null,null,null,null,null,null,null,null,null,null,null,null,"Wind",null,null,null,null,"Erdbeben"]
[]
[null,null,"Nachweis der Schubtragfähigkeit des Koppelbretts"]
[null,null,null,"Material :",null,null,null,null,null,null,null,null,null,null,null,null,null,null,null,null,null,null,null,null,null,null,null,null,{"$f":"'Eingabe und Ergebnis'!N27","v":"Sperrholz"}]
[null,null,null,"Dicke Koppelbrett",null,null,null,null,null,null,null,null,null,null,null,null,null,null,null,null,null,null,null,null,null,null,null,null,"d","=",{"$f":"'Eingabe und Ergebnis'!N28","v":26}]
[null,null,null,"Characteristischswert der Schubfestigkeit",null,null,null,null,null,null,null,null,null,null,null,null,null,null,null,null,null,null,null,null,null,null,null,null,"fv,k","=",{"$f":"IF(AC234=\"Nadelholz C 24\",2,IF(AC234=\"Sperrholz\",3.5,2.7))","v":3.5}]
[null,null,null,"Bemessungswert der Schubfestigkeit",null,null,null,null,null,null,null,null,null,null,null,null,null,null,null,null,null,null,null,null,null,null,null,null,"fv,d","=",{"$f":"AE236*V37/gammam","v":2.4230769230769229},null,null,null,null,null,null,null,null,null,"fv,d","=",{"$f":"fvk*AC37/gammam","v":2.4230769230769229},null,null,null,{"$f":"fvk*AH37/gammam","v":2.4230769230769229}]
[null,null,null,"Schubfluss in der Koppelbrett",null,null,null,null,null,null,null,null,null,null,null,null,null,null,null,null,null,null,null,null,null,null,null,null,"tR,d,Koppelbrett","=",{"$f":"fvd*dbrett","v":70},null,null,null,null,null,null,null,null,null,"tR,d,Koppelbrett","=",{"$f":"AQ237*AE235","v":62.999999999999993},null,null,null,{"$f":"AU237*AE235","v":62.999999999999993}]
[]
[null,null,"Nachweis"]
[null,null,null,"ηKoppelbrett",null,null,null,null,null,null,null,null,null,null,null,null,null,null,null,null,null,null,null,null,null,null,null,null,"[ td,2 / tR,d,Koppelbrett ]","=",{"$f":"tdzweist/AE238","v":0},null,null,null,null,null,null,null,null,null,null,{"$f":"IF(AE241>1,\"> 1 NEIN !\",\"< 1    OK !\")","v":"< 1    OK !"}]
[null,null,null,null,null,null,null,null,null,null,null,null,null,null,null,null,null,null,null,null,null,null,null,null,null,null,null,null,null,null,null,null,null,null,null,null,null,null,null,null,null,"[ td,2 / tR,d,Koppelbrett ]","=",{"$f":"tdzweist/AQ238","v":0},null,null,null,{"$f":"tdzweist/AU238","v":0}]
[null,null,"Nachweis der Klammern im Koppelbretts"]
[null,null,null,"Gewählter Klammetyp :",null,null,null,null,null,null,null,null,null,null,null,null,null,null,null,null,null,null,null,null,null,null,null,null,{"$f":"'Eingabe und Ergebnis'!N29","v":"1,83 x 63mm"}]
[null,null,null,"Gewählter Klammerabstand ",null,null,null,null,null,null,null,null,null,null,null,null,null,null,null,null,null,null,null,null,null,null,null,null,"eKlammer","=",{"$f":"'Eingabe und Ergebnis'!N30","v":100}]
[null,null,null,"Durchmesser",null,null,null,null,null,null,null,null,null,null,null,null,null,null,null,null,null,null,null,null,null,null,null,null,"dKl","=",{"$f":"IF(AC244=\"1,83 x 63mm\",1.83,1.53)","v":1.83}]
[null,null,null,"Characteristische Wert der Klammerntragfähigkeit",null,null,null,null,null,null,null,null,null,null,null,null,null,null,null,null,null,null,null,null,null,null,null,null,"Rk,klammer","=",{"$f":"IF(AC244=\"1,83 x 63mm\",0.72,0.55)","v":0.72}]
[null,null,null,"Bemessung Wert der Klammerntragfähigkeit",null,null,null,null,null,null,null,null,null,null,null,null,null,null,null,null,null,null,null,null,null,null,null,null,"Rd,klammer","=",{"$f":"AE247*V37/gammam","v":0.49846153846153846},null,null,null,null,null,null,null,null,null,"Rd,klammer","=",{"$f":"AE247*AC37/gammam","v":0.49846153846153846},null,null,null,{"$f":"AE247*AH37/gammam","v":0.49846153846153846}]
[]
[null,null,"Nachweis"]
[null,null,null,"ηKlammer",null,null,null,null,null,null,null,null,null,null,null,null,null,null,null,null,null,null,null,null,null,null,null,null,"[ td,2 /((Rd,Klammer* 1000)/eKlammer) ]","=",{"$f":"tdzweist/((AE248*1000)/eklammerw)","v":0},null,null,null,null,null,null,null,null,null,null,{"$f":"IF(AE251>1,\"> 1 NEIN !\",\"< 1    OK !\")","v":"< 1    OK !"}]
[null,null,null,null,null,null,null,null,null,null,null,null,null,null,null,null,null,null,null,null,null,null,null,null,null,null,null,null,null,null,null,null,null,null,null,null,null,null,"ηKlammer",null,null,"=",{"$f":"tdzweist/((AQ248*1000)/eklammerw)","v":0},null,null,null,{"$f":"tdzweist/((AU248*1000)/eklammerw)","v":0}]
["Statik Dachscheibe",null,null,null,null,null,null,null,null,null,null,null,null,null,null,null,null,null,null,null,{"$f":"U1","v":"Fall 3 : Stabilisierung"},null,null,null,null,null,null,null,null,null,null,null,null,null,null,null,null,{"$f":"TODAY()","v":"2023-11-20"}]
[null,null,null,null,null,null,null,null,null,null,null,null,null,null,null,null,null,null,null,null,null,null,null,null,null,null,null,null,null,null,null,null,null,null,null,null,null,"Seite 7/12"]
["4 - Seitig gelagert",null,null,null,null,null,null,null,null,null,null,null,null,null,null,null,null,null,null,null,null,null,null,null,null,null,null,null,null,null,null,null,null,null,null,null,null,"Bauvorhaben:",null,null,null,null,null,{"$f":"AR213","v":"Beispiel Holzhaus"}]
[null,null,null,null,null,null,null,null,null,null,null,null,null,null,null,null,null,null,null,null,null,null,null,null,null,null,null,null,null,null,null,null,null,null,null,null,null,"Position:",null,null,null,null,null,{"$f":"AR214","v":"Beispiel 3. Stock Küche"}]
[]
[]
["Landstraße 25, D - 79809 Weilheim - Bannholz"]
[]
[null,null,"Berechnung nach Eurocode 5 - EN 1995"]
[]
[]
[null,null,null,"Nachweis der Verbindunggsmittel Deckenscheibe an Randgurt",null,null,null,null,null,null,null,null,null,null,null,null,null,null,null,null,null,null,null,null,null,null,null,null,null,null,null,null,"Angaben zur Schraube laut"]
[null,null,null,null,null,null,null,null,null,null,null,null,null,null,null,null,null,null,null,null,null,null,null,null,null,null,null,null,null,null,null,null,"Firma",null,null,null,null,null,null,null,null,null,null,null,null,null,null,"=",{"$f":"'Eingabe und Ergebnis'!AC46","v":"Würth"}]
[null,null,null,null,null,null,null,null,null,null,null,null,null,null,null,null,null,null,null,null,null,null,null,null,null,null,null,null,null,null,null,null,"Art",null,null,null,null,null,null,null,null,null,null,null,null,null,null,"=",{"$f":"'Eingabe und Ergebnis'!AC47","v":"TeilgewindeScheibenkopf"}]
[null,null,null,null,null,null,null,null,null,null,null,null,null,null,null,null,null,null,null,null,null,null,null,null,null,null,null,null,null,null,null,null,"Typ",null,null,null,null,null,null,null,null,null,null,null,null,null,null,"=",{"$f":"'Eingabe und Ergebnis'!AC48","v":"8,0 x 300"}]
[null,null,null,null,null,null,null,null,null,null,null,null,null,null,null,null,null,null,null,null,null,null,null,null,null,null,null,null,null,null,null,null,"Produkt",null,null,null,null,null,null,null,null,null,null,null,null,null,null,"=",{"$f":"'Eingabe und Ergebnis'!AD49","v":"Assy Plus"}]
[null,null,null,null,null,null,null,null,null,null,null,null,null,null,null,null,null,null,null,null,null,null,null,null,null,null,null,null,null,null,null,null,"Durchmesser",null,null,null,null,null,null,null,null,null,null,null,null,null,"d","=",{"$f":"'Eingabe und Ergebnis'!AD51","v":8}]
[null,null,null,null,null,null,null,null,null,null,null,null,null,null,null,null,null,null,null,null,null,null,null,null,null,null,null,null,null,null,null,null,"Länge",null,null,null,null,null,null,null,null,null,null,null,null,null,"lSch","=",{"$f":"'Eingabe und Ergebnis'!AD52","v":300}]
[null,null,null,null,null,null,null,null,null,null,null,null,null,null,null,null,null,null,null,null,null,null,null,null,null,null,null,null,null,null,null,null,"Gewinde",null,null,null,null,null,null,null,null,null,null,null,null,null,"lG","=",{"$f":"'Eingabe und Ergebnis'!AD53","v":100}]
[null,null,null,null,null,null,null,null,null,null,null,null,null,null,null,null,null,null,null,null,null,null,null,null,null,null,null,null,null,null,null,null,"Kopfdurchmesser",null,null,null,null,null,null,null,null,null,null,null,null,null,"dK","=",{"$f":"'Eingabe und Ergebnis'!AD54","v":22}]
[null,null,null,null,null,null,null,null,null,null,null,null,null,null,null,null,null,null,null,null,null,null,null,null,null,null,null,null,null,null,null,null,"Zugtragfähigkeit",null,null,null,null,null,null,null,null,null,null,null,null,null,"Rt,u,k","=",{"$f":"IF(AND(AW265=\"Würth\",AW266=\"TeilgewindeSenkkopf\"),VLOOKUP(AW267,'Verbindung Schrauben'!B6:H34,7,FALSE),IF(AND(AW265=\"Würth\",AW266=\"TeilgewindeScheibenkopf\"),VLOOKUP(AW267,'Verbindung Schrauben'!B61:H97,7,FALSE),IF(AND(AW265=\"Würth\",AW266=\"VollgewindeSenkkopf\"),VLOOKUP(AW267,'Verbindung Schrauben'!J6:P27,7,FALSE),IF(AND(AW265=\"Würth\",AW266=\"VollgewindeZylinderkopf\"),VLOOKUP(AW267,'Verbindung Schrauben'!J61:P111,7,FALSE),IF(AND(AW265=\"Spax\",AW266=\"TeilgewindeSenkkopf_S\"),VLOOKUP(AW267,'Verbindung Schrauben'!B161:H196,7,FALSE),IF(AND(AW265=\"Spax\",AW266=\"TeilgewindeTellerkopf_S\"),VLOOKUP(AW267,'Verbindung Schrauben'!J161:P211,7,FALSE),IF(AND(AW265=\"Rothoblaas\",AW266=\"TeilgewindeTellerkopf_R\"),VLOOKUP(AW267,'Verbindung Schrauben'!AE6:AK64,7,FALSE),IF(AND(AW265=\"Rothoblaas\",AW266=\"TeilgewindeSenkkopf_R\"),VLOOKUP(AW267,'Verbindung Schrauben'!AN6:AT101,7,FALSE),IF(AND(AW265=\"Rothoblaas\",AW266=\"VollgewindeZylinderkopf_R\"),VLOOKUP(AW267,'Verbindung Schrauben'!AW6:BC48,7,FALSE))))))))))","v":21500}]
[null,null,null,null,null,null,null,null,null,null,null,null,null,null,null,null,null,null,null,null,null,null,null,null,null,null,null,null,null,null,null,null,"Fließmoiment",null,null,null,null,null,null,null,null,null,null,null,null,null,"My,k","=",{"$f":"IF(AND(AW265=\"Würth\",AW266=\"TeilgewindeSenkkopf\"),VLOOKUP(AW267,'Verbindung Schrauben'!B6:H34,6,FALSE),IF(AND(AW265=\"Würth\",AW266=\"TeilgewindeScheibenkopf\"),VLOOKUP(AW267,'Verbindung Schrauben'!B61:H97,6,FALSE),IF(AND(AW265=\"Würth\",AW266=\"VollgewindeSenkkopf\"),VLOOKUP(AW267,'Verbindung Schrauben'!J6:P27,6,FALSE),IF(AND(AW265=\"Würth\",AW266=\"VollgewindeZylinderkopf\"),VLOOKUP(AW267,'Verbindung Schrauben'!J61:P111,6,FALSE),IF(AND(AW265=\"Spax\",AW266=\"TeilgewindeSenkkopf_S\"),VLOOKUP(AW267,'Verbindung Schrauben'!B161:H196,6,FALSE),IF(AND(AW265=\"Spax\",AW266=\"TeilgewindeTellerkopf_S\"),VLOOKUP(AW267,'Verbindung Schrauben'!J161:P211,6,FALSE),IF(AND(AW265=\"Rothoblaas\",AW266=\"TeilgewindeTellerkopf_R\"),VLOOKUP(AW267,'Verbindung Schrauben'!AE6:AK64,6,FALSE),IF(AND(AW265=\"Rothoblaas\",AW266=\"TeilgewindeSenkkopf_R\"),VLOOKUP(AW267,'Verbindung Schrauben'!AN6:AT101,6,FALSE),IF(AND(AW265=\"Rothoblaas\",AW266=\"VollgewindeZylinderkopf_R\"),VLOOKUP(AW267,'Verbindung Schrauben'!AW6:BC48,6,FALSE))))))))))","v":23000}]
[null,null,null,null,null,null,null,null,null,null,null,null,null,null,null,null,null,null,null,null,null,null,null,null,null,null,null,null,null,null,null,null,"Tragfähigkeitsklasse Kopf",null,null,null,null,null,null,null,null,null,null,null,null,null,null,"=",3]
[null,null,null,null,null,null,null,null,null,null,null,null,null,null,null,null,null,null,null,null,null,null,null,null,null,null,null,null,null,null,null,null,"Tragfähigkeitsklasse Schaft",null,null,null,null,null,null,null,null,null,null,null,null,null,null,"=","B"]
[]
[null,null,null,null,null,null,null,null,null,null,null,null,null,null,null,null,null,null,null,null,null,null,null,null,null,null,null,null,null,null,null,null,"(Zulassung Würth und Zulassung Z-9.1-614)"]
[null,null,null,null,null,null,null,null,null,null,null,null,null,null,null,null,null,null,null,null,null,null,null,null,null,null,null,null,null,null,null,null,"(Zulassung Spax und Zulassung Z-9.1-519)"]
[null,null,null,null,null,null,null,null,null,null,null,null,null,null,null,null,null,null,null,null,null,null,null,null,null,null,null,null,null,null,null,null,"(Zulassung Rothoblass ETA-11/0030)"]
[null,null,"Angaben zum Seitenholz 1: Element",null,null,null,null,null,null,null,null,null,null,null,null,null,null,null,null,null,null,null,null,null,null,null,null,null,null,null,null,null,"Angaben zur Zwischenschicht [Blaß]"]
[null,null,"Dicke",null,null,null,null,null,null,null,null,null,null,null,null,null,null,null,null,"t1","=",{"$f":"'Eingabe und Ergebnis'!Q46","v":190},null,null,null,null,null,null,null,null,null,null,"Dicke",null,null,null,null,null,null,null,null,null,null,null,null,null,"tzw","=",{"$f":"'Eingabe und Ergebnis'!BB15","v":0}]
[null,null,"Rohdichte",null,null,null,null,null,null,null,null,null,null,null,null,null,null,null,null,"ρk1","=",{"$f":"'Eingabe und Ergebnis'!Q47","v":380},null,null,null,null,null,null,null,null,null,null,"Rohdichte",null,null,null,null,null,null,null,null,null,null,null,null,null,"ρkzw","=",{"$f":"'Eingabe und Ergebnis'!BB16","v":380}]
[null,null,"Dicke minimum",null,null,null,null,null,null,null,null,null,null,null,null,null,null,null,null,"t1 min","=",{"$f":"'Eingabe und Ergebnis'!Q48","v":51.519569049624963},null,null,null,null,null,null,null,null,null,null,"Kraft-Faser-Winkel",null,null,null,null,null,null,null,null,null,null,null,null,null," αzw","=",{"$f":"'Eingabe und Ergebnis'!AU54","v":0}]
[null,null,"Kraft-Faser-Winkel",null,null,null,null,null,null,null,null,null,null,null,null,null,null,null,null," α1","=",90]
[null,null,"Eindringtiefe Gewinde [t1 - (lSch - lG) ]",null,null,null,null,null,null,null,null,null,null,null,null,null,null,null,null,"lef,1","=",{"$f":"IF((dicket1-(lSch-lG))<=0,0,dicket1-(lSch-lG))","v":0},null,null,null,null,null,null,null,null,null,null,"bei Elementen mit Akustiklage muss die Abminderung durch eine Zwischenschicht nach Blaß berücksichtigt werden"]
[]
[null,null,"Angaben zum Seitenholz 2: Randgurt",null,null,null,null,null,null,null,null,null,null,null,null,null,null,null,null,null,null,null,null,null,null,null,null,null,null,null,null,null,null,null,null,null,null,null,null,null,null,null,null,null,null,null,null,"EC 5,  N. Anhang (NA.103) & (NA.104)"]
[null,null,"Dicke",null,null,null,null,null,null,null,null,null,null,null,null,null,null,null,null,"t2,H","=",{"$f":"'Eingabe und Ergebnis'!Q51","v":240}]
[null,null,"Rohdichte",null,null,null,null,null,null,null,null,null,null,null,null,null,null,null,null,"ρk2","=",{"$f":"'Eingabe und Ergebnis'!Q52","v":380}]
[null,null,"Dicke minimum",null,null,null,null,null,null,null,null,null,null,null,null,null,null,null,null,"t2 min","=",{"$f":"'Eingabe und Ergebnis'!Q53","v":51.519569049624963}]
[null,null,"Kraft-Faser-Winkel",null,null,null,null,null,null,null,null,null,null,null,null,null,null,null,null," α2","=",90]
[null,null,"Eindringtiefe Schraube [ lSch - t1 - tzw ]",null,null,null,null,null,null,null,null,null,null,null,null,null,null,null,null,"t2 ","=",{"$f":"lSch-(dicket1+dicket)","v":110}]
[null,null,"Eindringtiefe Gewinde [ Wenn (lG < t2; lG , t2 ) ]",null,null,null,null,null,null,null,null,null,null,null,null,null,null,null,null,"lef,2","=",{"$f":"IF(lG<dicket2,lG,dicket2)","v":100}]
["Statik Dachscheibe",null,null,null,null,null,null,null,null,null,null,null,null,null,null,null,null,null,null,null,{"$f":"U1","v":"Fall 3 : Stabilisierung"},null,null,null,null,null,null,null,null,null,null,null,null,null,null,null,null,{"$f":"TODAY()","v":"2023-11-20"}]
[null,null,null,null,null,null,null,null,null,null,null,null,null,null,null,null,null,null,null,null,null,null,null,null,null,null,null,null,null,null,null,null,null,null,null,null,null,"Seite 8/12"]
["4 - Seitig gelagert",null,null,null,null,null,null,null,null,null,null,null,null,null,null,null,null,null,null,null,null,null,null,null,null,null,null,null,null,null,null,null,null,null,null,null,null,"Bauvorhaben:",null,null,null,null,null,{"$f":"AR255","v":"Beispiel Holzhaus"}]
[null,null,null,null,null,null,null,null,null,null,null,null,null,null,null,null,null,null,null,null,null,null,null,null,null,null,null,null,null,null,null,null,null,null,null,null,null,"Position:",null,null,null,null,null,{"$f":"AR256","v":"Beispiel 3. Stock Küche"}]
[]
[]
["Landstraße 25, D - 79809 Weilheim - Bannholz"]
[]
[null,null,"Berechnung nach Eurocode 5 - EN 1995"]
[]
[]
[null,null,"Tragfähigkeit auf Abscheren je Scherfuge/ [Johannsengleichungen]",null,null,null,null,null,null,null,null,null,null,null,null,null,null,null,null,null,null,null,null,null,null,null,null,null,null,null,null,null,null,null,null,null,null,null,"Schubtragfähigkeit VM*2",null,null,null,null,null,null,null,"γm,lat",null,null,null,"Bruchtyp"]
[null,null,"Koefficient",null,null,null,null,null,null,null,null,null,null,null,null,null,null,null,null,null,null,null,"k90","=",{"$f":"IF(d<8,1.35+0.015*d,1)","v":1},null,null,null,null,null,null,null,null,null,null,null,null,null,"R1","=",{"$f":"((fh2vk*beta0)/(1+beta0))*(-2*dicket-dicket1-dicket2+((4+delta+(delta/beta0))*dicket^2+(2+1/beta0)*dicket1^2+(2+beta0)*dicket2^2+4*dicket*dicket2+4*dicket*dicket1+2*dicket1*dicket2)^0.5)*d","v":8799.3438456115146},null,null,null,null,null,1.3,null,null,null,"Holz"]
[null,null,"Lochleibungsfestigkeit in Seitenholz 1",null,null,null,null,null,null,null,null,null,null,null,null,null,null,null,null,null,null,null,"fh,1,v,k","=",{"$f":"(0.082*d^-0.3*rohk1)/(koefficientk90*(SIN(V285)^2)+(COS(V285)^2))","v":16.698230546315447},null,null,null,null,null,null,null,null,null,null,null,null,null,"R2","=",{"$f":"fh2vk*d*dicket2","v":14694.442880757593},null,null,null,null,null,1.3,null,null,null,"Holz"]
[null,null,"Lochleibungsfestigkeit in zwischenschicht",null,null,null,null,null,null,null,null,null,null,null,null,null,null,null,null,null,null,null,"fh,zw,v,k","=",{"$f":"(0.082*d^-0.3*rohkzw)/(koefficientk90*(SIN(alphazw)^2)+(COS(alphazw)^2))","v":16.698230546315447},null,null,null,null,null,null,null,null,null,null,null,null,null,"R3","=",{"$f":"fh1vk*d*dicket1","v":25381.310430399481},null,null,null,null,null,1.3,null,null,null,"Holz"]
[null,null,"Lochleibungsfestigkeit in Seitenholz 2",null,null,null,null,null,null,null,null,null,null,null,null,null,null,null,null,null,null,null,"fh,2,v,k","=",{"$f":"(0.082*d^-0.3*rohk2)/(koefficientk90*(SIN(V292)^2)+(COS(V292)^2))","v":16.698230546315447},null,null,null,null,null,null,null,null,null,null,null,null,null,"R4","=",{"$f":"fh2vk*(beta0/(0.5+beta0))*(-dicket-dicket2/2+(dicket^2+dicket*dicket2+dicket2^2/2+delta*dicket^2/(2*beta0)+dicket2^2/(2*beta0)+2*Myk/(fh2vk*d)+delta*dicket^2/4+Myk/(fh2vk*d))^0.5)*d","v":5105.0535237661525},null,null,null,null,null,1.2,null,null,null,"Holz/Stahl"]
[null,null,"Koefficient beta0 = fh,1,k / fh,2,k",null,null,null,null,null,null,null,null,null,null,null,null,null,null,null,null,null,null,null,"β0 ","=",{"$f":"fh1vk/fh2vk","v":1},null,null,null,null,null,null,null,null,null,null,null,null,null,"R5","=",{"$f":"fh2vk*(beta0/(0.5+beta0))*(-dicket-dicket1/2+((1+delta/(4*beta0)+delta/2)*dicket^2+(0.5+0.5*beta0)*dicket1^2+dicket*dicket1+(Myk/(fh2vk*d*beta0))+(2*Myk/(fh2vk*d)))^0.5)*d","v":8581.0595042671903},null,null,null,null,null,1.2,null,null,null,"Holz/Stahl"]
[null,null,"Koefficient beta1  = fh,2,k / fh,zw,k",null,null,null,null,null,null,null,null,null,null,null,null,null,null,null,null,null,null,null,"β1","=",{"$f":"IF(fhzwvk=0,0,fh2vk/fhzwvk)","v":1},null,null,null,null,null,null,null,null,null,null,null,null,null,"R6","=",{"$f":"fh2vk*1/(1+beta0)*(-beta0*dicket+(beta0^2*dicket^2+4*beta0*(beta0+1)*Myk/(fh2vk*d)+beta0*(beta0+1)/2*delta*dicket^2)^0.5)*d","v":2478.9007323900819},null,null,null,null,null,1.1000000000000001,null,null,null,"Stahl"]
[null,null,"Koefficient beta2  = fh,zw,k / fh,1,k",null,null,null,null,null,null,null,null,null,null,null,null,null,null,null,null,null,null,null,"β2","=",{"$f":"fhzwvk/fh1vk","v":1},null,null,null,null,null,null,null,null,null,null,null,null,null,"R7","=",{"$f":"fh1vk*dicket1*d/(2+beta2)*(((2*beta2)*(1+beta2)+4*beta2*(2+beta2)*Myk/(fh1vk*dicket1^2*d))^0.5-beta2)","v":8581.0595042671903},null,null,null,null,null,1.2,null,null,null,"Holz/Stahl"]
[null,null,"Koefficient delta  = fh,zw,k / fh,1,k",null,null,null,null,null,null,null,null,null,null,null,null,null,null,null,null,null,null,null,"δ","=",{"$f":"fhzwvk/fh1vk","v":1},null,null,null,null,null,null,null,null,null,null,null,null,null,"R8","=",{"$f":"(2*beta2/(1+beta2))^0.5*(2*Myk*fh1vk*d)^0.5","v":2478.9007323900819},null,null,null,null,null,1.1000000000000001,null,null,null,"Stahl"]
[null,null,"Modifikationsbeiwert VM",null,null,null,null,null,null,null,null,null,null,null,null,null,null,null,null,null,null,null,"kmod,lat","=",{"$f":"V37","v":0.9},null,null,null,null,null,null,null,null,null,null,null,null,null,"R9","=",{"$f":"fhzwvk*dicket2*d/(1+2*beta1)*((2*beta1^2*(1+beta1)+4*beta1*(1+2*beta1)*Myk/(dicket2^2*d*IF(fhzwvk=0,1,fhzwvk)))^0.5-beta1)","v":5105.0535237661534},null,null,null,null,null,1.2,null,null,null,"Holz/Stahl",null,null,null,null,null,null,null,"Rkmin","γm,lat"]
[null,null,"Teilsicherheitsbeiwert VM",null,null,null,null,null,null,null,null,null,null,null,null,null,null,null,null,null,null,null,"γm,lat","=",{"$f":"BH316","v":1.1000000000000001},null,null,null,null,null,null,null,null,null,null,null,null,null,"R10","=",{"$f":"(2*beta1/(1+beta1))^0.5*(2*Myk*fhzwvk*d)^0.5","v":2478.9007323900819},null,null,null,null,null,1.1000000000000001,null,null,null,"Stahl",null,null,null,null,null,null,null,{"$f":"IF(rohkzw=0,MIN(AO307:AT312),MIN(AO313:AT316))","v":2478.9007323900819},{"$f":"VLOOKUP(BG316,AO307:AX316,7,FALSE)","v":1.1000000000000001}]
[]
[null,null,"Schubtragfähigkeit = min(R1-R10)",null,null,null,null,null,null,null,null,null,null,null,null,null,null,null,null,null,null,null,"Rlat,k","=",{"$f":"IF(rohkzw=0,MIN(BG318:BG323),MIN(BG318:BG327))","v":2478.9007323900819},null,null,null,null,null,null,null,null,null,null,null,null,null,"*2 Hypothese: Verwendung von Holz vorgebohrt",null,null,null,null,null,null,null,null,null,null,null,null,null,null,null,null,null,null,null,{"$f":"ABS(AO307)","v":8799.3438456115146}]
[null,null,null,null,null,null,null,null,null,null,null,null,null,null,null,null,null,null,null,null,null,null,null,null,null,null,null,null,null,null,null,null,null,null,null,null,null,null,null,null,null,null,null,null,null,null,null,null,null,null,null,null,null,null,null,null,null,null,{"$f":"ABS(AO308)","v":14694.442880757593}]
[null,null,"Tragfähigkeit in Richtung der Stiftachse",null,null,null,null,null,null,null,null,null,null,null,null,null,null,null,null,null,null,null,null,null,null,null,null,null,null,null,null,null,null,null,null,null,null,null,null,null,null,null,null,null,null,null,null,null,null,null,null,null,null,null,null,null,null,null,25381.310430399481]
[null,null,"Seitenholz 1: Element",null,null,null,null,null,null,null,null,null,null,null,null,null,null,null,null,null,null,null,null,null,null,null,null,null,null,null,null,null,null,null,null,null,"Tragfähigkeit in Richtung der Scherfuge",null,null,null,null,null,null,null,null,null,null,null,null,null,null,null,null,null,null,null,null,null,5105.0535237661525]
[null,null,"Char. Wert des Ausziehparameters",null,null,null,null,null,null,null,null,null,null,null,null,null,null,null,null,null,null,null,"f1,k","=",{"$f":"80*10^-6*rohk1^2","v":11.552},null,null,null,null,null,null,null,null,null,null,null,"Char. Wert = (Rlat,k + ΔRk) . kmod,lat / γM,lat",null,null,null,null,null,null,null,null,null,null,null,null,null,null,null,null,null,null,null,null,null,8581.0595042671903]
[null,null,"Char. Wert des Kopfdurchziehparameters",null,null,null,null,null,null,null,null,null,null,null,null,null,null,null,null,null,null,null,"f2,k","=",{"$f":"80*10^-6*rohk1^2","v":11.552},null,null,null,null,null,null,null,null,null,null,null,null,null,"Rlat,d","=",{"$f":"(Rlatk+deltaRk)*(Y315/gammamlat)","v":3171.8395083191576},null,null,null,null,null,null,null,null,null,null,null,null,null,null,null,null,null,2478.9007323900819]
[null,null,"Schraubenkopf",null,null,null,null,null,null,null,null,null,null,null,null,null,null,null,null,null,null,null,"Rax,k,Kopf","=",{"$f":"f2k*dk^2","v":5591.1679999999997},null,null,null,null,null,null,null,null,null,null,null,null,null,null,null,null,null,null,null,null,null,null,null,null,null,null,null,null,null,null,null,null,null,8581.0595042671903]
[null,null,"Gewindeteil",null,null,null,null,null,null,null,null,null,null,null,null,null,null,null,null,null,null,null,"Rax,k,Gew","=",{"$f":"(f1k*langeef1*d)/((SIN(RADIANS(V285)))^2+(4/3)*(COS(RADIANS(V285)))^2)","v":0},null,null,null,null,null,null,null,null,null,null,"dabei:",null,null,null,null,null,null,null,null,null,null,null,null,null,null,null,null,null,null,null,null,null,null,2478.9007323900819]
[null,null,"Tragfähigkeit Seitenholz 1",null,null,null,null,null,null,null,null,null,null,null,null,null,null,null,null,null,null,null,"Rax,α,Rk,1","=",{"$f":"MAX(Y324:AD325)","v":5591.1679999999997},null,null,null,null,null,null,null,null,null,null,null,null,null,null,null,null,null,null,null,null,null,null,null,null,null,null,null,null,null,null,null,null,null,5105.0535237661534]
[null,null,null,null,null,null,null,null,null,null,null,null,null,null,null,null,null,null,null,null,null,null,null,null,null,null,null,null,null,null,null,null,null,null,null,null,null,null,null,null,null,null,null,null,null,null,null,null,null,null,null,null,null,null,null,null,null,null,2478.9007323900819]
[null,null,"Seitenholz 2: Randgurt"]
[null,null,"Char. Wert des Ausziehparameters",null,null,null,null,null,null,null,null,null,null,null,null,null,null,null,null,null,null,null,"f1,k","=",{"$f":"80*10^-6*rohk2^2","v":11.552}]
[null,null,"Char. Wert des Kopfdurchziehparameters",null,null,null,null,null,null,null,null,null,null,null,null,null,null,null,null,null,null,null,"f2,k","=",{"$f":"80*10^-6*rohk2^2","v":11.552}]
[null,null,"Tragfähigkeit Seitenholz 2",null,null,null,null,null,null,null,null,null,null,null,null,null,null,null,null,null,null,null,"Rax,α,Rk,2","=",{"$f":"(f1k*langeef2*d)/((SIN(RADIANS(V292)))^2+(4/3)*(COS(RADIANS(V292)))^2)","v":9241.6}]
[]
[null,null,"Tragfähigkeit in Richtung der Stiftachse",null,null,null,null,null,null,null,null,null,null,null,null,null,null,null,null,null,null,null,"Rax,α,Rk","=",{"$f":"MIN(Y326,Y331)","v":5591.1679999999997}]
[null,null,null,null,null,null,null,null,null,null,null,null,null,null,null,null,null,null,null,null,null,null,null,null,null,null,null,null,null,null,null,null,null,null,null,"EC 5,  8.7 formeln (8.40a) & (8.40b)"]
[null,null,"Seilwirkung  = MIN ( Rlat,k ; Rax,k/4*1 )",null,null,null,null,null,null,null,null,null,null,null,null,null,null,null,null,null,null,null,"ΔRk","=",{"$f":"MIN(Y318,Y333/4)","v":1397.7919999999999}]
[null,null,"*1 weil Φschrauben > 8mm"]
["Statik Dachscheibe",null,null,null,null,null,null,null,null,null,null,null,null,null,null,null,null,null,null,null,{"$f":"U1","v":"Fall 3 : Stabilisierung"},null,null,null,null,null,null,null,null,null,null,null,null,null,null,null,null,{"$f":"TODAY()","v":"2023-11-20"}]
[null,null,null,null,null,null,null,null,null,null,null,null,null,null,null,null,null,null,null,null,null,null,null,null,null,null,null,null,null,null,null,null,null,null,null,null,null,"Seite 9/12"]
["4 - Seitig gelagert",null,null,null,null,null,null,null,null,null,null,null,null,null,null,null,null,null,null,null,null,null,null,null,null,null,null,null,null,null,null,null,null,null,null,null,null,"Bauvorhaben:",null,null,null,null,null,{"$f":"AR297","v":"Beispiel Holzhaus"}]
[null,null,null,null,null,null,null,null,null,null,null,null,null,null,null,null,null,null,null,null,null,null,null,null,null,null,null,null,null,null,null,null,null,null,null,null,null,"Position:",null,null,null,null,null,{"$f":"AR298","v":"Beispiel 3. Stock Küche"}]
[]
[]
["Landstraße 25, D - 79809 Weilheim - Bannholz"]
[]
[null,null,"Berechnung nach Eurocode 5 - EN 1995"]
[]
[]
[null,null,"Nachweis der Verbindungsmittel Scheibe an Randgurt parallel zur Elementspannrichtung"]
[null,null,"Tragfähigkeit in Richtung der Scherfuge",null,null,null,null,null,null,null,null,null,null,null,null,null,null,null,null,null,null,null,"Rlat,d","=",{"$f":"AO323","v":3171.8395083191576}]
[]
[null,null,"Länge Rangurt parallel zur Elementspannrichtung*",null,null,null,null,null,null,null,null,null,null,null,null,null,null,null,null,null,null,null,"lr,||","=",{"$f":"'Eingabe und Ergebnis'!Q41","v":6}]
[null,null,"Abstand der Verbindungsmittel",null,null,null,null,null,null,null,null,null,null,null,null,null,null,null,null,null,null,null,"eV,||","=",{"$f":"'Eingabe und Ergebnis'!Q43","v":0.25}]
[]
[null,null,"Kraft = qs,1 ",null,null,null,null,null,null,null,null,null,null,null,null,null,null,null,null,null,null,null,"qs,1 ","=",{"$f":"MAX(AU18)","v":0}]
[null,null,"Auflagerlast = Max ( qs,1 ; bd,2 ) ",null,null,null,null,null,null,null,null,null,null,null,null,null,null,null,null,null,null,null,"bd,res","=",{"$f":"MAX(qs1kraftst,bd2st)","v":0}]
[null,null,"Längefaktor = ls / lr,||",null,null,null,null,null,null,null,null,null,null,null,null,null,null,null,null,null,null,null,"lf","=",{"$f":"ls/lrparallel","v":1}]
[null,null,"Kraft VM = bd,res * eV,|| * 1000 * lf",null,null,null,null,null,null,null,null,null,null,null,null,null,null,null,null,null,null,null,"Fv,b,d","=",{"$f":"bdresst*evparallel*1000*lf","v":0}]
[]
[null,null,"Nachweis",null,null,null,null,null,null,null,null,null,null,null,null,null,null,null,null,null,null,null,null,null,null,null,null,null,null,null,null,null,null,null,null,null,null,null,null,null,null,null,null,null,null,null,null,"dabei"]
[null,null,"ηVM,|| = Fv,d,b / Rlat,d",null,null,null,null,null,null,null,null,null,null,null,null,null,null,null,null,null,null,null,null,"=",{"$f":"Fvbdst/IF('Eingabe und Ergebnis'!Q38=\"Nein\",'Eingabe und Ergebnis'!Q39,Rlatd)","v":0},null,null,null,null,null,null,null,null,null,null,{"$f":"IF(Y360>1,\"> 1 NEIN !\",\"< 1    OK !\")","v":"< 1    OK !"},null,null,null,null,null,null,null,null,null,null,null,"a =","bs"]
[null,null,null,null,null,null,null,null,null,null,null,null,null,null,null,null,null,null,null,null,null,null,null,null,null,null,null,null,null,null,null,null,null,null,null,null,null,null,null,null,null,null,null,null,null,null,null,"b =","l,r,||"]
[null,null,null,null,null,null,null,null,null,null,null,null,null,null,null,null,null,null,null,null,null,null,null,null,null,null,null,null,null,null,null,null,null,null,null,null,null,null,null,null,null,null,null,null,null,null,null,"c =","bs"]
[null,null,null,null,null,null,null,null,null,null,null,null,null,null,null,null,null,null,null,null,null,null,null,null,null,null,null,null,null,null,null,null,null,null,null,null,null,null,null,null,null,null,null,null,null,null,null,"d =","ls"]
[null,null,"Länge Rangurt parallel zur Elementspannrichtung lr,|| = ls",null,null,null,null,null,null,null,null,null,null,null,null,null,null,null,null,null,null,null,"l","=",{"$f":"ls","v":6}]
[null,null,"Abstand der Verbindungsmittel",null,null,null,null,null,null,null,null,null,null,null,null,null,null,null,null,null,null,null,"eV,||","=",{"$f":"evparallel","v":0.25}]
[]
[]
[null,null,"Auflagerlast = Max ( Aed,1 ; bd,2 ) ",null,null,null,null,null,null,null,null,null,null,null,null,null,null,null,null,null,null,null,"bd,res = dd,res","=",{"$f":"bdresst","v":0}]
[null,null,"Längefaktor = ls / lr,||",null,null,null,null,null,null,null,null,null,null,null,null,null,null,null,null,null,null,null,"lf","=",{"$f":"ls/Y364","v":1}]
[null,null,"Kraft VM = bd,res * eV,|| * 1000 * lf",null,null,null,null,null,null,null,null,null,null,null,null,null,null,null,null,null,null,null,"Fv,b,d","=",{"$f":"bdresst*evparallel*1000*Y369","v":0}]
[]
[null,null,"Nachweis"]
[null,null,"ηVM,|| = Fv,d,b / Rlat,d",null,null,null,null,null,null,null,null,null,null,null,null,null,null,null,null,null,null,null,null,"=",{"$f":"Y370/IF('Eingabe und Ergebnis'!Q38=\"Nein\",'Eingabe und Ergebnis'!Q39,Rlatd)","v":0},null,null,null,null,null,null,null,null,null,null,{"$f":"IF(Y373>1,\"> 1 NEIN !\",\"< 1    OK !\")","v":"< 1    OK !"}]
[]
[]
[]
[]
[null,null,"* Falls die Rangurtlänge kürzer als die Scheibenlänge ist!"]
["Statik Dachscheibe",null,null,null,null,null,null,null,null,null,null,null,null,null,null,null,null,null,null,null,{"$f":"U1","v":"Fall 3 : Stabilisierung"},null,null,null,null,null,null,null,null,null,null,null,null,null,null,null,null,{"$f":"TODAY()","v":"2023-11-20"}]
[null,null,null,null,null,null,null,null,null,null,null,null,null,null,null,null,null,null,null,null,null,null,null,null,null,null,null,null,null,null,null,null,null,null,null,null,null,"Seite 10/12"]
["4 - Seitig gelagert",null,null,null,null,null,null,null,null,null,null,null,null,null,null,null,null,null,null,null,null,null,null,null,null,null,null,null,null,null,null,null,null,null,null,null,null,"Bauvorhaben:",null,null,null,null,null,{"$f":"AR339","v":"Beispiel Holzhaus"}]
[null,null,null,null,null,null,null,null,null,null,null,null,null,null,null,null,null,null,null,null,null,null,null,null,null,null,null,null,null,null,null,null,null,null,null,null,null,"Position:",null,null,null,null,null,{"$f":"AR340","v":"Beispiel 3. Stock Küche"}]
[]
[]
["Landstraße 25, D - 79809 Weilheim - Bannholz"]
[]
[null,null,"Berechnung nach Eurocode 5 - EN 1995"]
[]
[]
[null,null,"Nachweis der Verbindungsmittel Scheibe an Randgurt quer zur Elementspan."]
[null,null,"Anzahl der Verbindungsmittel pro Element",null,null,null,null,null,null,null,null,null,null,null,null,null,null,null,null,null,null,null," ηV","=",{"$f":"'Eingabe und Ergebnis'!Q42","v":3}]
[null,null,"Elementbreite",null,null,null,null,null,null,null,null,null,null,null,null,null,null,null,null,null,null,null,"bElement","=",{"$f":"belement","v":0.625}]
[null,null,"Kraft = qs,2 ",null,null,null,null,null,null,null,null,null,null,null,null,null,null,null,null,null,null,null,"qs,2","=",{"$f":"AU25","v":0}]
[null,null,"Auflagerlast = MAX( ad,1 ; √(ad,2² + qs,2²))",null,null,null,null,null,null,null,null,null,null,null,null,null,null,null,null,null,null,null,"ad,res","=",{"$f":"MAX(V155,(tdzweist^2+AU25^2)^0.5)","v":0}]
[null,null,"Kraft VM = ad,res * belement * 1000 / ηV",null,null,null,null,null,null,null,null,null,null,null,null,null,null,null,null,null,null,null,"Fv,a,d","=",{"$f":"Y394*belement/nv*1000","v":0}]
[]
[null,null,"Nachweis"]
[null,null,"ηVM,quer = Fv,a,d / Rlat,d",null,null,null,null,null,null,null,null,null,null,null,null,null,null,null,null,null,null,null,null,"=",{"$f":"Y395/IF('Eingabe und Ergebnis'!Q38=\"Nein\",'Eingabe und Ergebnis'!Q39,Rlatd)","v":0},null,null,null,null,null,null,null,null,null,null,{"$f":"IF(Y398>1,\"> 1 NEIN !\",\"< 1    OK !\")","v":"< 1    OK !"}]
[]
[]
[]
[]
[]
[]
[]
[]
[]
[]
[]
[]
[]
[]
[]
[]
[]
[]
[]
[]
[]
[]
["Statik Dachscheibe",null,null,null,null,null,null,null,null,null,null,null,null,null,null,null,null,null,null,null,{"$f":"U1","v":"Fall 3 : Stabilisierung"},null,null,null,null,null,null,null,null,null,null,null,null,null,null,null,null,{"$f":"TODAY()","v":"2023-11-20"}]
[null,null,null,null,null,null,null,null,null,null,null,null,null,null,null,null,null,null,null,null,null,null,null,null,null,null,null,null,null,null,null,null,null,null,null,null,null,"Seite 11/12"]
["4 - Seitig gelagert",null,null,null,null,null,null,null,null,null,null,null,null,null,null,null,null,null,null,null,null,null,null,null,null,null,null,null,null,null,null,null,null,null,null,null,null,"Bauvorhaben:",null,null,null,null,null,{"$f":"AR381","v":"Beispiel Holzhaus"}]
[null,null,null,null,null,null,null,null,null,null,null,null,null,null,null,null,null,null,null,null,null,null,null,null,null,null,null,null,null,null,null,null,null,null,null,null,null,"Position:",null,null,null,null,null,{"$f":"AR382","v":"Beispiel 3. Stock Küche"}]
[]
[]
["Landstraße 25, D - 79809 Weilheim - Bannholz"]
[]
[null,null,"Berechnung nach Eurocode 5 - EN 1995"]
[]
[]
[null,null,6,"Gebrauchstauglichkeitsnachweis"]
[]
[null,null,"Nachweis der Scheibenverformung"]
[null,null,"Der Hauptanteil der Scheibenverformung resultiert aus der Verschiebung in der Koppelfugen und der Schubverzerrung im Element"]
[]
[null,null,null,"Berechnen der Steifigkeit der Koppelfuge"]
[null,null,null,"Rohdichte des Koppelbretts",null,null,null,null,null,null,null,null,null,null,null,null,null,null,null,null,null,null,"ρk,1","=",{"$f":"IF(AC234=\"Nadelholz C 24\",350,IF(AC234=\"Sperrholz\",550,430))","v":550}]
[null,null,null,"Rohdichte des Element",null,null,null,null,null,null,null,null,null,null,null,null,null,null,null,null,null,null,"ρk,2","=",350]
[null,null,null,"Mittlere Rohdichte Element",null,null,null,null,null,null,null,null,null,null,null,null,null,null,null,null,null,null,"ρk","=",{"$f":"AVERAGE(Y438:AD439)","v":450}]
[null,null,null,"Durchmesser der Klammer",null,null,null,null,null,null,null,null,null,null,null,null,null,null,null,null,null,null,"dKlammer","=",{"$f":"dklammer","v":1.83}]
[]
[null,null,null,"Berechnen des Verschiebungsmodul der Klammer nach [EC 5]"]
[null,null,null,"Verschiebungsmodul  = (ρm1,5d0,8 /80)*2",null,null,null,null,null,null,null,null,null,null,null,null,null,null,null,null,null,null,"Kser","=",{"$f":"((rohkmittlere^1.5*dklammer^0.8)/80)*2","v":342.74649754899309},null,null,null,null,null,null,null,null,null,null,"Der Verschiebungsmodul Kser der Klammer gilt je Stift"]
[null,null,null,"Verschiebungsmodul  = (Kser*1000/eKlammer*ls)/2  ]",null,null,null,null,null,null,null,null,null,null,null,null,null,null,null,null,null,null,"Kfuge","=",{"$f":"((Kser*1000/eklammer)*ls)/2","v":10282.394926469793},null,null,null,null,null,null,null,null,null,null,"und kann daher mit dem Faktor 2 multipliziert werden."]
[]
[null,null,null,"Berechnen der Anzahl der Koppelfugen"]
[null,null,null,"nkoppelgugen = bs  / bElement ",null,null,null,null,null,null,null,null,null,null,null,null,null,null,null,null,null,null,null,"=",{"$f":"bs/belement","v":16}]
[]
[]
[null,null,"Verformung infolge Lastfall 1"]
[null,null,"Schubmodul",null,null,null,null,null,null,null,null,null,null,null,null,null,null,null,null,null,null,null,"GAef","=",{"$f":"_xlfn.XLOOKUP('Eingabe und Ergebnis'!DM18,INDIRECT(\"tab_H1\"&'Eingabe und Ergebnis'!DM16),(_xlfn.XLOOKUP(\"GA \"&'Eingabe und Ergebnis'!DM17,INDIRECT(\"tab_Z1\"&'Eingabe und Ergebnis'!DM16),INDIRECT(\"tab_\"&'Eingabe und Ergebnis'!DM16))))","v":29741},null,null,null,null,null,null,null,null,null,null,null,"(~gl Technische Daten)"]
[null,null,"Scheibesschubmodul = GAef / belement * bs ",null,null,null,null,null,null,null,null,null,null,null,null,null,null,null,null,null,null,null,"GAef,scheibe","=",{"$f":"(GA/belement)*bs","v":475856}]
[null,null,"Verformung Element",null,null,null,null,null,null,null,null,null,null,null,null,null,null,null,null,null,null,null,"uges,Elemente,1","=",{"$f":"ls*1000*(0.5*(V154*1000*bs)*0.5)/(GAscheibe*1000)","v":0}]
[null,null,"Maximal zulässigen Verformung = ls/500",null,null,null,null,null,null,null,null,null,null,null,null,null,null,null,null,null,null,null,"umax,1","=",{"$f":"ls/500*1000","v":12}]
[]
[null,null,"Nachweis"]
[null,null,"ηu,1 = uges,Elemente,1 / umax,1",null,null,null,null,null,null,null,null,null,null,null,null,null,null,null,null,null,null,null,null,"=",{"$f":"Y454/Y455","v":0},null,null,null,null,null,null,null,null,null,null,{"$f":"IF(Y458>1,\"> 1 NEIN !\",\"< 1    OK !\")","v":"< 1    OK !"}]
[]
[]
[]
[]
["Statik Dachscheibe",null,null,null,null,null,null,null,null,null,null,null,null,null,null,null,null,null,null,null,{"$f":"U1","v":"Fall 3 : Stabilisierung"},null,null,null,null,null,null,null,null,null,null,null,null,null,null,null,null,{"$f":"TODAY()","v":"2023-11-20"}]
[null,null,null,null,null,null,null,null,null,null,null,null,null,null,null,null,null,null,null,null,null,null,null,null,null,null,null,null,null,null,null,null,null,null,null,null,null,"Seite 12/12"]
["4 - Seitig gelagert",null,null,null,null,null,null,null,null,null,null,null,null,null,null,null,null,null,null,null,null,null,null,null,null,null,null,null,null,null,null,null,null,null,null,null,null,"Bauvorhaben:",null,null,null,null,null,{"$f":"AR423","v":"Beispiel Holzhaus"}]
[null,null,null,null,null,null,null,null,null,null,null,null,null,null,null,null,null,null,null,null,null,null,null,null,null,null,null,null,null,null,null,null,null,null,null,null,null,"Position:",null,null,null,null,null,{"$f":"AR424","v":"Beispiel 3. Stock Küche"}]
[]
[]
["Landstraße 25, D - 79809 Weilheim - Bannholz"]
[]
[null,null,"Berechnung nach Eurocode 5 - EN 1995"]
[]
[]
[null,null,"Verformung infolge Lastfall 2"]
[null,null,"Schubmodul",null,null,null,null,null,null,null,null,null,null,null,null,null,null,null,null,null,null,null,"GAef","=",{"$f":"Y452","v":29741},null,null,null,null,null,null,null,null,null,null,null,"(~gl Technische Daten)"]
[null,null,"Scheibesschubmodul = GAef / belement * ls ",null,null,null,null,null,null,null,null,null,null,null,null,null,null,null,null,null,null,null,"GAef,scheibe","=",{"$f":"(GA/belement)*ls","v":285513.59999999998}]
[null,null,"Verformung Element",null,null,null,null,null,null,null,null,null,null,null,null,null,null,null,null,null,null,null,"uges,Elemente,2","=",{"$f":"bs*1000*(0.5*(AU154*1000*ls)*0.5)/(GAscheibe2*1000)","v":0}]
[null,null,"Verformung infolge der Koppelgufen",null,null,null,null,null,null,null,null,null,null,null,null,null,null,null,null,null,null,null,"uges,Fuge,2","=",{"$f":"0.5*(AU154*ls)*(nkoppelfugen+1)/(Kfuge/1000)","v":0}]
[]
[null,null,"Berechnen der Gesamtverformung der Scheibe"]
[null,null,"uges,2 = uges,Fuge,2 + uges,Elemente,2",null,null,null,null,null,null,null,null,null,null,null,null,null,null,null,null,null,null,null,null,"=",{"$f":"Y478+Y477","v":0}]
[]
[null,null,"Maximal zulässigen Verformung = bs/500",null,null,null,null,null,null,null,null,null,null,null,null,null,null,null,null,null,null,null,"umax,2","=",{"$f":"bs/500*1000","v":20}]
[]
[null,null,"Nachweis"]
[null,null,"ηu,2 = uges,2 / umax,2",null,null,null,null,null,null,null,null,null,null,null,null,null,null,null,null,null,null,null,null,"=",{"$f":"Y481/Y483","v":0},null,null,null,null,null,null,null,null,null,null,{"$f":"IF(Y486>1,\"> 1 NEIN !\",\"< 1    OK !\")","v":"< 1    OK !"}]

{"sheet":"Block 3S","index":15,"n_rows":0,"n_cols":0,"rows_kept":0,"cut":false,"hidden":true,"merged":[]}

{"sheet":"Akustik 2S Ausklinkung","index":16,"n_rows":0,"n_cols":0,"rows_kept":0,"cut":false,"hidden":true,"merged":[]}

{"sheet":"Block 2S Ausklinkung","index":17,"n_rows":0,"n_cols":0,"rows_kept":0,"cut":false,"hidden":true,"merged":[]}

{"sheet":"Akustik 3S Ausklinkung","index":18,"n_rows":0,"n_cols":0,"rows_kept":0,"cut":false,"hidden":true,"merged":[]}

{"sheet":"Block 3S Ausklinkung","index":19,"n_rows":0,"n_cols":0,"rows_kept":0,"cut":false,"hidden":true,"merged":[]}

{"sheet":"Rippe 2S Ausklinkung","index":20,"n_rows":0,"n_cols":0,"rows_kept":0,"cut":false,"hidden":true,"merged":[]}

{"sheet":"Rippe 3S Ausklinkung","index":21,"n_rows":0,"n_cols":0,"rows_kept":0,"cut":false,"hidden":true,"merged":[]}

{"sheet":"Block 3S Füllholz","index":22,"n_rows":0,"n_cols":0,"rows_kept":0,"cut":false,"hidden":true,"merged":[]}

{"sheet":"Block 2S","index":23,"n_rows":0,"n_cols":0,"rows_kept":0,"cut":false,"hidden":true,"merged":[]}

{"sheet":"Block 2S Füllholz","index":24,"n_rows":0,"n_cols":0,"rows_kept":0,"cut":false,"hidden":true,"merged":[]}

{"sheet":"Rippe 3S","index":25,"n_rows":0,"n_cols":0,"rows_kept":0,"cut":false,"hidden":true,"merged":[]}

{"sheet":"Rippe 3S Füllholz","index":26,"n_rows":0,"n_cols":0,"rows_kept":0,"cut":false,"hidden":true,"merged":[]}

{"sheet":"Rippe Q2i 2S","index":27,"n_rows":0,"n_cols":0,"rows_kept":0,"cut":false,"hidden":true,"merged":[]}

{"sheet":"Rippe 2S","index":28,"n_rows":0,"n_cols":0,"rows_kept":0,"cut":false,"hidden":true,"merged":[]}

{"sheet":"Rippe 2S Füllholz","index":29,"n_rows":0,"n_cols":0,"rows_kept":0,"cut":false,"hidden":true,"merged":[]}

{"sheet":"Akustik 3S","index":30,"n_rows":0,"n_cols":0,"rows_kept":0,"cut":false,"hidden":true,"merged":[]}

{"sheet":"Akustik 2S","index":31,"n_rows":0,"n_cols":0,"rows_kept":0,"cut":false,"hidden":true,"merged":[]}